Workbook

Sheet START

Sheet Instructions
D2: 2020
X4: Yes
X5: No
W7: Type of Entities Range:
X8: Parent Municipality
X9: Consolidated Information
F14: START
F15: Instructions
F16: Template names
F17: Lookup and lists | W17: MTREF Range: | X17: 2013
F18: Org structure | X18: 2014
F19: Contacts | X19: 2015
F20: A1-Sum | X20: 2016
F21: A2-FinPerf SC | X21: 2017
F22: A2A | X22: 2018
F23: A3-FinPerf V | X23: 2019
F24: A3A | X24: 2020
F25: A4-FinPerf RE | X25: 2021
F26: A5-Capex | X26: 2022
F27: A5A | X27: 2023
F28: A6-FinPos | X28: 2024
F29: A7-CFlow | X29: 2025
F30: A8-ResRecon | X30: 2026
F31: A9-Asset | X31: 2027
F32: A10-SerDel
F33: SA1 | W33: MTREF Linked: | X33: 9
F34: SA2 | W34: MTREF: | X34: =INDEX(X17:X26,X33,1) -> 2021
F35: SA3
F36: SA4 | W36: Fin Year: | X36: =MTREF&"/"&RIGHT(MTREF,2)+1 -> 2021/22
F37: SA5
F38: SA6
F39: SA7
F40: SA8
F41: SA9
F42: SA10
F43: SA11
F44: SA12a
F45: SA12b
F46: SA13a
F47: SA13b
F48: SA14
F49: SA15
F50: SA16
F51: SA17
F52: SA18
F53: SA19
F54: SA20
F55: SA21
F56: SA22
F57: SA23
F58: SA24
F59: SA25
F60: SA26
F61: SA27
F62: SA28
F63: SA29
F64: SA30
F65: SA31
F66: SA32
F67: SA33
F68: SA34a
F69: SA34b
F70: SA34c
F71: SA34d
F72: SA34e
F73: SA35
F74: SA36
F75: SA37
F76: SA38
F77: LGDB_EXPORT

Sheet Template names (hidden)
A1: Common sheet headings
A2: Head1 | B2: =HLOOKUP(MTREF,Headings,2) -> 2019/20 | C2: Prior year -1
A3: Head1A | B3: =HLOOKUP(MTREF,Headings,3) -> 2018/19 | C3: Prior year -2
A4: Head1B | B4: =HLOOKUP(MTREF,Headings,4) -> 2017/18 | C4: Prior year -3
A5: Head2 | B5: =HLOOKUP(MTREF,Headings,5) -> Current Year 2020/21 | C5: Year in which budget is being prepared
A6: Head2A | B6: =HLOOKUP(MTREF,Headings,6) -> 2020/21 | C6: Year in which budget is being prepared
A7: Head3 | B7: =HLOOKUP(MTREF,Headings,7) -> 2021/22 Medium Term Revenue & Expenditure Framework | C7: MTREF name
A8: Head4 | B8: LTFS | C8: Long term financial strategy
A9: Head5 | B9: Audited Outcome
A10: Head5A | B10: Outcome
A11: Head5B | B11: Pre-audit outcome
A12: Head6 | B12: Original Budget
A13: Head7 | B13: Adjusted Budget
A14: Head8 | B14: Full Year Forecast
A15: Head9 | B15: =HLOOKUP(MTREF,Headings,8) -> Budget Year 2021/22 | C15: 1st year of MTREF | D15: Year1
A16: Head10 | B16: =HLOOKUP(MTREF,Headings,9) -> Budget Year +1 2022/23 | C16: 2nd year of MTREF | D16: Year2
A17: Head11 | B17: =HLOOKUP(MTREF,Headings,10) -> Budget Year +2 2023/24 | C17: 3rd year of MTREF | D17: Year3
A18: Head12 | B18: =HLOOKUP(MTREF,Headings,11) -> Forecast 2024/25 | C18: 1st yr of long term forecast | D18: Year4
A19: Head13 | B19: =HLOOKUP(MTREF,Headings,12) -> Forecast 2025/26 | C19: Next yr of long term forecast | D19: Year5
A20: Head14 | B20: =HLOOKUP(MTREF,Headings,13) -> Forecast 2026/27 | C20: Next yr of long term forecast | D20: Year6
A21: Head15 | B21: =HLOOKUP(MTREF,Headings,14) -> Forecast 2027/28 | C21: Next yr of long term forecast | D21: Year7
A22: Head16 | B22: =HLOOKUP(MTREF,Headings,15) -> Forecast 2028/29 | C22: Next yr of long term forecast | D22: Year8
A23: Head17 | B23: =HLOOKUP(MTREF,Headings,16) -> Forecast 2029/30 | C23: Next yr of long term forecast | D23: Year9
A24: Head18 | B24: =HLOOKUP(MTREF,Headings,17) -> Forecast 2030/31 | C24: Next yr of long term forecast | D24: Year10
A25: Head19 | B25: =HLOOKUP(MTREF,Headings,18) -> Forecast 2031/32 | C25: Next yr of long term forecast | D25: Year11
A26: Head20 | B26: =HLOOKUP(MTREF,Headings,19) -> Forecast 2032/33 | C26: Next yr of long term forecast | D26: Year12
A27: Head21 | B27: =HLOOKUP(MTREF,Headings,20) -> Forecast 2033/34 | C27: Next yr of long term forecast | D27: Year13
A28: Head22 | B28: =HLOOKUP(MTREF,Headings,21) -> Forecast 2034/35 | C28: Next yr of long term forecast | D28: Year14
A29: Head23 | B29: =HLOOKUP(MTREF,Headings,22) -> Forecast 2035/36 | C29: Next yr of long term forecast | D29: Year15
A30: Head24 | B30: Description
A31: Head25
A32: Head26 | B32: Vote Description
A33: Head27 | B33: Ref
A34: Head27a | B34: References
A35: Head28 | B35: Surplus/(Deficit) for the year | D35: Result
A36: Head29 | B36: =HLOOKUP(MTREF,Headings,23) -> Annual target 2021/22
A37: Head30 | B37: =HLOOKUP(MTREF,Headings,24) -> Revised target 2021/22
A38: Head31 | B38: Quarter ended 30 September
A39: Head32 | B39: Quarter ended 31 December
A40: Head33 | B40: Quarter ended 31 March
A41: Head34 | B41: Quarter ended 30 June
A42: Head35 | B42: Variance explanation
A43: Head36 | B43: YTD Actual 31 Dec
A44: Head37 | B44: YTD Budget 31 Dec
A45: Head38 | B45: Monthly actual
A46: Head39 | B46: YTD actual
A47: Head40 | B47: YTD budget
A48: Head41 | B48: YTD variance
A49: Head42 | B49: Surplus/ (Deficit) for the yr/period
A50: Head43 | B50: =Head3&" Summary" -> 2021/22 Medium Term Revenue & Expenditure Framework Summary
A51: Head44 | B51: 2001 Census
A52: Head45 | B52: 2011 Census
A53: Head46 | B53: - Adjustments Budget - January 2007
A54: Head47 | B54: Previous target year to complete
A55: Head48 | B55: Present value
A56: Head49
A57: Head50 | B57: Other Adjusts.
A58: Head51 | B58: Accum. Funds
A59: Head52 | B59: Multi-year capital
A60: Head53 | B60: Unfore. Unavoid.
A61: Head54 | B61: Prior Adjusted
A62: Head55 | B62: Nat. or Prov. Govt
A63: Head56 | B63: Total Adjusts.
A64: SFPerf1 | B64: Budgeted Financial Performance
A65: SFPerf2 | B65: Forecast Financial Performance
A66: SFPos1 | B66: Budgeted Financial Position
A67: SFPos2 | B67: Forecast Financial Position
A68: Cash1 | B68: Budget Cash Flow
A69: Cash2 | B69: Forecast Cash Flow
A70: RandM | B70: Expenditure includes repairs & maintenance of R'000
A71: Depart1 | B71: Department 1 - | D71: DEP1
A72: Depart2 | B72: Department 2 - | D72: DEP2
A73: Depart3 | B73: Department 3 - | D73: DEP3
A74: Depart4 | B74: Department 4 - | D74: DEP4
A75: Depart5 | B75: Department 5 - | D75: DEP5
A76: Depart6 | B76: Department 6 - | D76: DEP6
A77: Depart7 | B77: Department 7 - | D77: DEP7
A78: Depart8 | B78: Department 8 - | D78: DEP8
A79: Depart9 | B79: Department 9 - | D79: DEP9
A80: Depart10 | B80: Department 10 - | D80: DEP10
A81: Depart11 | B81: Department 11 - | D81: DEP11
A82: Depart12 | B82: Department 12 - | D82: DEP12
A83: Depart13 | B83: Department 13 - | D83: DEP13
A84: Depart14 | B84: Department 14 - | D84: DEP14
A87: Base year of forecast column selection names
A88: Choose | B88: ACT
B89: APP
B90: ADJ
A92: Standard nomenclature
A93: Muni | B93: ='Lookup and lists'!B28 -> KZN225 Msunduzi
A94: Municipal Entities | B94: 1 | C94: Type of report: | D94: 2
A95: =IF((MuniEntities=1)*(MuniType=2),"YES","NO") -> YES | B95: Does this municipality have entities (consolidated budget and entity budgets required)? YES/NO
A96: Entity 1 | B96: (Pty) Ltd Example 1 - Municipal entity - | D96: Ent1
A97: Entity 2 | B97: (Pty) Ltd Example 2 - Municipal entity - | D97: Ent2
A98: Entity 3 | B98: Municipal Entity Example 3 | D98: Ent3
A99: Budget approval tables | C99: Chart x-ref | D99: Sch/Tab/Ch | E99: Alternative for municipalities without entities | F99: Alternative for municipalities without entities
B100: =IF(Consolques="YES",E100,F100) -> Table A1 Consolidated Budget Summary | D100: Table A1 | E100: =D100&"Consolidated Budget Summary" -> Table A1 Consolidated Budget Summary | F100: =D100&"Budget Summary" -> Table A1 Budget Summary
B101: Table A2 Consolidated Budgeted Financial Performance (revenue and expenditure by functional classification) | C101: Charts 5, 6 | D101: Table A2 | E101: =D101&"Consolidated Budgeted Financial Performance (revenue and expenditure by functional classification)" -> Table A2 Consolidated Budgeted Financial Performance (revenue and expenditure by functional classification) | F101: =D101&"Budgeted Financial Performance (revenue and expenditure by functional classification)" -> Table A2 Budgeted Financial Performance (revenue and expenditure by functional classification)
B102: Table A3 Consolidated Budgeted Financial Performance (revenue and expenditure by municipal vote) | D102: Table A3 | E102: =D102&"Consolidated Budgeted Financial Performance (revenue and expenditure by municipal vote)" -> Table A3 Consolidated Budgeted Financial Performance (revenue and expenditure by municipal vote) | F102: =D102&"Budgeted Financial Performance (revenue and expenditure by municipal vote)" -> Table A3 Budgeted Financial Performance (revenue and expenditure by municipal vote)
B103: Table A4 Consolidated Budgeted Financial Performance (revenue and expenditure) | C103: Charts 1, 2, 3, 4 | D103: Table A4 | E103: =D103&"Consolidated Budgeted Financial Performance (revenue and expenditure)" -> Table A4 Consolidated Budgeted Financial Performance (revenue and expenditure) | F103: =D103&"Budgeted Financial Performance (revenue and expenditure)" -> Table A4 Budgeted Financial Performance (revenue and expenditure)
B104: Table A5 Consolidated Budgeted Capital Expenditure by vote, functional classification and funding | C104: Charts 7, 8, 9, 10, 20 | D104: Table A5 | E104: =D104&"Consolidated Budgeted Capital Expenditure by vote, functional classification and funding" -> Table A5 Consolidated Budgeted Capital Expenditure by vote, functional classification and funding | F104: =D104&"Budgeted Capital Expenditure by vote, functional classification and funding" -> Table A5 Budgeted Capital Expenditure by vote, functional classification and funding
B105: Table A6 Consolidated Budgeted Financial Position | D105: Table A6 | E105: =D105&"Consolidated Budgeted Financial Position" -> Table A6 Consolidated Budgeted Financial Position | F105: =D105&"Budgeted Financial Position" -> Table A6 Budgeted Financial Position
B106: Table A7 Consolidated Budgeted Cash Flows | D106: Table A7 | E106: =D106&"Consolidated Budgeted Cash Flows" -> Table A7 Consolidated Budgeted Cash Flows | F106: =D106&"Budgeted Cash Flows" -> Table A7 Budgeted Cash Flows
B107: Table A8 Consolidated Cash backed reserves/accumulated surplus reconciliation | D107: Table A8 | E107: =D107&"Consolidated Cash backed reserves/accumulated surplus reconciliation" -> Table A8 Consolidated Cash backed reserves/accumulated surplus reconciliation | F107: =D107&"Cash backed reserves/accumulated surplus reconciliation" -> Table A8 Cash backed reserves/accumulated surplus reconciliation
B108: Table A9 Consolidated Asset Management | D108: Table A9 | E108: =D108&"Consolidated Asset Management" -> Table A9 Consolidated Asset Management | F108: =D108&"Asset Management" -> Table A9 Asset Management
B109: Table A10 Consolidated basic service delivery measurement | D109: Table A10 | E109: =D109&"Consolidated basic service delivery measurement" -> Table A10 Consolidated basic service delivery measurement | F109: =D109&"Basic service delivery measurement" -> Table A10 Basic service delivery measurement
A110: Supportinging Tables to the Budget Approval Tables | C110: =$C$99 -> Chart x-ref | D110: =$D$99 -> Sch/Tab/Ch
A111: Supporting Table SA1 | B111: =A111&" Supportinging detail to 'Budgeted Financial Performance'" -> Supporting Table SA1 Supportinging detail to 'Budgeted Financial Performance'
A112: Supporting Table SA2 | B112: =IF(Consolques="YES",E112,F112) -> Supporting Table SA2 Consolidated Matrix Financial Performance Budget (revenue source/expenditure type & dept.) | E112: =A112&"Consolidated Matrix Financial Performance Budget (revenue source/expenditure type & dept.)" -> Supporting Table SA2 Consolidated Matrix Financial Performance Budget (revenue source/expenditure type & dept.) | F112: =A112&"Matrix Financial Performance Budget (revenue source/expenditure type and dept.)" -> Supporting Table SA2 Matrix Financial Performance Budget (revenue source/expenditure type and dept.)
A113: Supporting Table SA3 | B113: =A113&"Supportinging detail to 'Budgeted Financial Position'" -> Supporting Table SA3 Supportinging detail to 'Budgeted Financial Position'
A114: Supporting Table SA4 | B114: =A114&"Reconciliation of IDP strategic objectives and budget (revenue)" -> Supporting Table SA4 Reconciliation of IDP strategic objectives and budget (revenue) | C114: Chart 11
A115: Supporting Table SA5 | B115: =A115&"Reconciliation of IDP strategic objectives and budget (operating expenditure)" -> Supporting Table SA5 Reconciliation of IDP strategic objectives and budget (operating expenditure) | C115: Chart 12
A116: Supporting Table SA6 | B116: =A116&"Reconciliation of IDP strategic objectives and budget (capital expenditure)" -> Supporting Table SA6 Reconciliation of IDP strategic objectives and budget (capital expenditure) | C116: Chart 13
A117: Supporting Table SA7 | B117: =A117&" Measureable performance objectives" -> Supporting Table SA7 Measureable performance objectives
A118: Supporting Table SA8 | B118: =A118&" Performance indicators and benchmarks" -> Supporting Table SA8 Performance indicators and benchmarks | C118: Chts 15-19
A119: Supporting Table SA9 | B119: =A119&" Social, economic and demographic statistics and assumptions" -> Supporting Table SA9 Social, economic and demographic statistics and assumptions
A120: Supporting Table SA10 | B120: =A120&" Funding measurement" -> Supporting Table SA10 Funding measurement | C120: Chart 14
A121: Supporting Table SA11 | B121: =A121&" Property rates summary" -> Supporting Table SA11 Property rates summary
A122: Supporting Table SA12a | B122: =A122&" Property rates by category (current year)" -> Supporting Table SA12a Property rates by category (current year)
A123: Supporting Table SA12b | B123: =A123&" Property rates by category (budget year)" -> Supporting Table SA12b Property rates by category (budget year)
A124: Supporting Table SA13a | B124: =A124&" Service Tariffs by category" -> Supporting Table SA13a Service Tariffs by category
A125: Supporting Table SA13b | B125: =A125&" Service Tariffs by category - explanatory" -> Supporting Table SA13b Service Tariffs by category - explanatory
A126: Supporting Table SA14 | B126: =A126&" Household bills" -> Supporting Table SA14 Household bills
A127: Supporting Table SA15 | B127: =A127&" Investment particulars by type" -> Supporting Table SA15 Investment particulars by type
A128: Supporting Table SA16 | B128: =A128&" Investment particulars by maturity" -> Supporting Table SA16 Investment particulars by maturity
A129: Supporting Table SA17 | B129: =A129&" Borrowing" -> Supporting Table SA17 Borrowing
A130: Supporting Table SA18 | B130: =A130&" Transfers and grant receipts" -> Supporting Table SA18 Transfers and grant receipts
A131: Supporting Table SA19 | B131: =A131&" Expenditure on transfers and grant programme" -> Supporting Table SA19 Expenditure on transfers and grant programme
A132: Supporting Table SA20 | B132: =A132&" Reconciliation of transfers, grant receipts and unspent funds" -> Supporting Table SA20 Reconciliation of transfers, grant receipts and unspent funds
A133: Supporting Table SA21 | B133: =A133&" Transfers and grants made by the municipality" -> Supporting Table SA21 Transfers and grants made by the municipality
A134: Supporting Table SA22 | B134: =A134&" Summary councillor and staff benefits" -> Supporting Table SA22 Summary councillor and staff benefits
A135: Supporting Table SA23 | B135: =A135&" Salaries, allowances & benefits (political office bearers/councillors/senior managers)" -> Supporting Table SA23 Salaries, allowances & benefits (political office bearers/councillors/senior managers)
A136: Supporting Table SA24 | B136: =A136&" Summary of personnel numbers" -> Supporting Table SA24 Summary of personnel numbers
A137: Supporting Table SA25 | B137: =IF(Consolques="YES",E137,F137) -> Supporting Table SA25 Consolidated budgeted monthly revenue and expenditure | E137: =A137&" Consolidated budgeted monthly revenue and expenditure" -> Supporting Table SA25 Consolidated budgeted monthly revenue and expenditure | F137: =A137&" Budgeted monthly revenue and expenditure" -> Supporting Table SA25 Budgeted monthly revenue and expenditure
A138: Supporting Table SA26 | B138: Supporting Table SA26 Consolidated budgeted monthly revenue and expenditure (municipal vote) | E138: =A138&" Consolidated budgeted monthly revenue and expenditure (municipal vote)" -> Supporting Table SA26 Consolidated budgeted monthly revenue and expenditure (municipal vote) | F138: =A138&" Budgeted monthly revenue and expenditure (municipal vote)" -> Supporting Table SA26 Budgeted monthly revenue and expenditure (municipal vote)
A139: Supporting Table SA27 | B139: Supporting Table SA27 Consolidated budgeted monthly revenue and expenditure (functional classification) | E139: =A139&" Consolidated budgeted monthly revenue and expenditure (functional classification)" -> Supporting Table SA27 Consolidated budgeted monthly revenue and expenditure (functional classification) | F139: =A139&" Budgeted monthly revenue and expenditure (functional classification)" -> Supporting Table SA27 Budgeted monthly revenue and expenditure (functional classification)
A140: Supporting Table SA28 | B140: Supporting Table SA28 Consolidated budgeted monthly capital expenditure (municipal vote) | E140: =A140&" Consolidated budgeted monthly capital expenditure (municipal vote)" -> Supporting Table SA28 Consolidated budgeted monthly capital expenditure (municipal vote) | F140: =A140&" Budgeted monthly capital expenditure (municipal vote)" -> Supporting Table SA28 Budgeted monthly capital expenditure (municipal vote)
A141: Supporting Table SA29 | B141: Supporting Table SA29 Consolidated budgeted monthly capital expenditure (functional classification) | E141: =A141&" Consolidated budgeted monthly capital expenditure (functional classification)" -> Supporting Table SA29 Consolidated budgeted monthly capital expenditure (functional classification) | F141: =A141&" Budgeted monthly capital expenditure (functional classification)" -> Supporting Table SA29 Budgeted monthly capital expenditure (functional classification)
A142: Supporting Table SA30 | B142: Supporting Table SA30 Consolidated budgeted monthly cash flow | E142: =A142&" Consolidated budgeted monthly cash flow" -> Supporting Table SA30 Consolidated budgeted monthly cash flow | F142: =A142&" Budgeted monthly cash flow" -> Supporting Table SA30 Budgeted monthly cash flow
A143: Supporting Table SA31 | B143: Supporting Table SA31 Aggregated entity budget | E143: =A143&" Aggregated entity budget" -> Supporting Table SA31 Aggregated entity budget | F143: NOT REQUIRED - municipality does not have entities
A144: Supporting Table SA32 | B144: =A144&" List of external mechanisms" -> Supporting Table SA32 List of external mechanisms
A145: Supporting Table SA33 | B145: =A145&" Contracts having future budgetary implications" -> Supporting Table SA33 Contracts having future budgetary implications
A146: Supporting Table SA34a | B146: =IF(Consolques="YES",E146,F146) -> Supporting Table SA34a Consolidated capital expenditure on new assets by asset class | E146: =A146&" Consolidated capital expenditure on new assets by asset class" -> Supporting Table SA34a Consolidated capital expenditure on new assets by asset class | F146: =A146&" Capital expenditure on new assets by asset class" -> Supporting Table SA34a Capital expenditure on new assets by asset class
A147: Supporting Table SA34b | B147: Supporting Table SA34b Consolidated capital expenditure on the renewal of existing assets by asset class | E147: =A147&" Consolidated capital expenditure on the renewal of existing assets by asset class" -> Supporting Table SA34b Consolidated capital expenditure on the renewal of existing assets by asset class | F147: =A147&" Capital expenditure on the renewal of existing assets by asset class" -> Supporting Table SA34b Capital expenditure on the renewal of existing assets by asset class
A148: Supporting Table SA34c | B148: Supporting Table SA34c Consolidated repairs and maintenance by asset class | E148: =A148&" Consolidated repairs and maintenance by asset class" -> Supporting Table SA34c Consolidated repairs and maintenance by asset class | F148: =A148&" Repairs and maintenance expenditure by asset class" -> Supporting Table SA34c Repairs and maintenance expenditure by asset class
A149: Supporting Table SA34d | B149: =IF(Consolques="YES",E149,F149) -> Supporting Table SA34d Consolidated Depreciation by asset class | E149: =A149&" Consolidated Depreciation by asset class" -> Supporting Table SA34d Consolidated Depreciation by asset class | F149: =A149&" Depreciation by asset class" -> Supporting Table SA34d Depreciation by asset class
A150: Supporting Table SA34e | B150: =IF(Consolques="YES",E150,F150) -> Supporting Table SA34e Consolidated capital expenditure on the upgrading of existing assets by asset class | E150: =A150&" Consolidated capital expenditure on the upgrading of existing assets by asset class" -> Supporting Table SA34e Consolidated capital expenditure on the upgrading of existing assets by asset class | F150: =A150&" Capital expenditure on the upgrading of existing assets by asset class" -> Supporting Table SA34e Capital expenditure on the upgrading of existing assets by asset class
A151: Supporting Table SA35 | B151: Supporting Table SA35 Consolidated future financial implications of the capital budget | E151: =A151&" Consolidated future financial implications of the capital budget" -> Supporting Table SA35 Consolidated future financial implications of the capital budget | F151: =A151& " Future financial implications of the capital budget" -> Supporting Table SA35 Future financial implications of the capital budget
A152: Supporting Table SA36 | B152: Supporting Table SA36 Consolidated detailed capital budget | E152: =A152&" Consolidated detailed capital budget" -> Supporting Table SA36 Consolidated detailed capital budget | F152: =A152& " Detailed capital budget" -> Supporting Table SA36 Detailed capital budget
A153: Supporting Table SA37 | B153: Supporting Table SA37 Consolidated projects delayed from previous financial year/s | E153: =A153&" Consolidated projects delayed from previous financial year/s" -> Supporting Table SA37 Consolidated projects delayed from previous financial year/s | F153: =A153& " Projects delayed from previous financial year/s" -> Supporting Table SA37 Projects delayed from previous financial year/s
A154: Supporting Table SA38 | B154: =IF(Consolques="YES",E154,F154) -> Supporting Table SA38 Consolidated detailed operational projects | E154: =A154&" Consolidated detailed operational projects" -> Supporting Table SA38 Consolidated detailed operational projects | F154: =A154& " Detailed operational projects" -> Supporting Table SA38 Detailed operational projects
A156: Budget Charts | B156: Charts | C156: Cross reference
A157: Chart A1 | B157: =A157&"Revenue by Municipal Vote" -> Chart A1 Revenue by Municipal Vote
A158: Chart A2 | B158: =A158&"Expenditure by Municipal Vote" -> Chart A2 Expenditure by Municipal Vote
A159: Chart A3 | B159: =A159&"Revenue by Standard Classification" -> Chart A3 Revenue by Standard Classification | C159: A2
A160: Chart A4 | B160: =A160&"Expenditure by Standard Classification" -> Chart A4 Expenditure by Standard Classification | C160: A2
A161: Chart A5 | B161: =A161&"Revenue by Major Source (refer 'Minor' source for 'Other Revenue' allocation" -> Chart A5 Revenue by Major Source (refer 'Minor' source for 'Other Revenue' allocation | C161: A3
A162: Chart A6 | B162: =A162&"Revenue by Minor Source (Other)" -> Chart A6 Revenue by Minor Source (Other) | C162: A3
A163: Chart A7 | B163: =A163&"Expenditure by Major Type" -> Chart A7 Expenditure by Major Type | C163: A3
A164: Chart A8 | B164: =A164&"Expenditure by Minor Type (Other)" -> Chart A8 Expenditure by Minor Type (Other) | C164: A3
A165: Chart A9 | B165: =A165&"Capital Expenditure by Municipal Vote/Appropriation (Major)" -> Chart A9 Capital Expenditure by Municipal Vote/Appropriation (Major) | C165: A5
A166: Chart A10 | B166: =A166&"Capital Expenditure by Municipal Vote/Appropriation (Minor)" -> Chart A10 Capital Expenditure by Municipal Vote/Appropriation (Minor) | C166: A5
A167: Chart A11 | B167: =A166&"Capital Expenditure by Standard Classification" -> Chart A10 Capital Expenditure by Standard Classification | C167: A5
A168: Chart A12 | B168: =A168&"Capital expenditure performance trend" -> Chart A12 Capital expenditure performance trend | C168: A5
A169: Chart A13 | B169: =A169&"Capital funding by Source" -> Chart A13 Capital funding by Source | C169: A5
A170: Chart A14 | B170: =A170&"Cash flow trend" -> Chart A14 Cash flow trend | C170: A7
A171: Chart A15 | B171: =A171&"IDP Strategic Objective - Revenue" -> Chart A15 IDP Strategic Objective - Revenue | C171: Table A4
A172: Chart A16 | B172: =A172&"IDP Strategic Objective - Expenditure" -> Chart A16 IDP Strategic Objective - Expenditure | C172: Table A5
A173: Chart A17 | B173: =A173&"IDP Strategic Objective - Capital Expenditure" -> Chart A17 IDP Strategic Objective - Capital Expenditure | C173: Table A6
A174: Chart A18 | B174: =A174&"Debt (borrowing to Total Revenue)" -> Chart A18 Debt (borrowing to Total Revenue) | C174: Table A8
A175: Chart A19 | B175: =A175&"Debtors' trend analysis" -> Chart A19 Debtors' trend analysis | C175: Table A8
A176: Chart A20 | B176: =A176&"Distribution losses" -> Chart A20 Distribution losses | C176: Table A8
A177: Chart A21 | B177: =A177&"Borrowed funding of capital expenditure" -> Chart A21 Borrowed funding of capital expenditure | C177: Table A8
A178: Chart A22 | B178: =A178&"Expenditure analysis (% of Revenue)" -> Chart A22 Expenditure analysis (% of Revenue) | C178: Table A8
A179: Chart A23 | B179: =A179&"Increases in service charges" -> Chart A23 Increases in service charges | C179: Table A10

Sheet Lookup and lists (hidden)
A1: Description | B1: 2013 | C1: 2014 | D1: 2015 | E1: 2016 | F1: 2017 | G1: 2018 | H1: 2019 | I1: 2020 | J1: 2021 | K1: 2022 | L1: 2023 | M1: 2024 | N1: 2025 | O1: 2026 | Q1: Lists | Y1: Grants: | Z1: National - opex | AA1: Provincial - opex | AB1: National - capex | AC1: Provincial - capex
A2: ='Template names'!C2 -> Prior year -1 | B2: =B1-2&"/"&RIGHT(B1,2)-1 -> 2011/12 | C2: 2012/13 | D2: 2013/14 | E2: 2014/15 | F2: 2015/16 | G2: 2016/17 | H2: 2017/18 | I2: 2018/19 | J2: =J1-2&"/"&RIGHT(J1,2)-1 -> 2019/20 | K2: 2020/21 | L2: 2021/22 | M2: 2022/23 | N2: 2023/24 | O2: 2024/25 | Q2: Yes | R2: <1 | S2: <4 | T2: Market | U2: Land & impr. | V2: Yes | W2: Uniform | X2: Yrs | Z2: Local Government Equitable Share | AA2: Health subsidy | AB2: Municipal Infrastructure Grant (MIG) | AC2: Agriculture
A3: ='Template names'!C3 -> Prior year -2 | B3: =B1-3&"/"&RIGHT(B1,2)-2 -> 2010/11 | C3: 2011/12 | D3: 2012/13 | E3: 2013/14 | F3: 2014/15 | G3: 2015/16 | H3: 2016/17 | I3: 2017/18 | J3: =J1-3&"/"&RIGHT(J1,2)-2 -> 2018/19 | K3: 2019/20 | L3: 2020/21 | M3: 2021/22 | N3: 2022/23 | O3: 2023/24 | Q3: No | R3: 1 | S3: 4 | T3: Dep.Replace | U3: Land only | V3: No | W3: Variable | X3: Mths | Z3: RSC Levy Replacement | AA3: Ambulance subsidy | AB3: Public Transport and Systems | AC3: Education
A4: ='Template names'!C4 -> Prior year -3 | B4: =B1-4&"/"&RIGHT(B1,2)-3 -> 2009/10 | C4: 2010/11 | D4: 2011/12 | E4: 2012/13 | F4: 2013/14 | G4: 2014/15 | H4: 2015/16 | I4: 2016/17 | J4: =J1-4&"/"&RIGHT(J1,2)-3 -> 2017/18 | K4: 2018/19 | L4: 2019/20 | M4: 2020/21 | N4: 2021/22 | O4: 2022/23 | R4: 2 | S4: 5 | T4: Other | U4: Other | Z4: Finance Management | AA4: Housing | AB4: Rural Transport Services and Infrastructure | AC4: Health
A5: ='Template names'!C5 -> Year in which budget is being prepared | B5: ="Current Year "& B1-1&"/"&RIGHT(B1,2) -> Current Year 2012/13 | C5: Current Year 2013/14 | D5: Current Year 2014/15 | E5: Current Year 2015/16 | F5: Current Year 2016/17 | G5: Current Year 2017/18 | H5: Current Year 2018/19 | I5: Current Year 2019/20 | J5: ="Current Year "& J1-1&"/"&RIGHT(J1,2) -> Current Year 2020/21 | K5: Current Year 2021/22 | L5: Current Year 2022/23 | M5: Current Year 2023/24 | N5: Current Year 2024/25 | O5: Current Year 2025/26 | R5: 3 | S5: 6 | Z5: Municipal Systems Improvement | AA5: Sport and Recreation | AB5: Regional Bulk Infrastructure | AC5: Housing and Local Government
A6: ='Template names'!C6 -> Year in which budget is being prepared | B6: =B1-1&"/"&RIGHT(B1,2) -> 2012/13 | C6: 2013/14 | D6: 2014/15 | E6: 2015/16 | F6: 2016/17 | G6: 2017/18 | H6: 2018/19 | I6: 2019/20 | J6: =J1-1&"/"&RIGHT(J1,2) -> 2020/21 | K6: 2021/22 | L6: 2022/23 | M6: 2023/24 | N6: 2024/25 | O6: 2025/26 | R6: 4 | S6: 6-10 | Z6: Water Services Operating Subsidy | AB6: Rural Households Infrastructure | AC6: Other Departments
A7: ='Template names'!C7 -> MTREF name | B7: =B1&"/"&RIGHT(B1,2)+1&" Medium Term Revenue & Expenditure Framework" -> 2013/14 Medium Term Revenue & Expenditure Framework | C7: 2014/15 Medium Term Revenue & Expenditure Framework | D7: 2015/16 Medium Term Revenue & Expenditure Framework | E7: 2016/17 Medium Term Revenue & Expenditure Framework | F7: 2017/18 Medium Term Revenue & Expenditure Framework | G7: 2018/19 Medium Term Revenue & Expenditure Framework | H7: 2019/20 Medium Term Revenue & Expenditure Framework | I7: 2020/21 Medium Term Revenue & Expenditure Framework | J7: =J1&"/"&RIGHT(J1,2)+1&" Medium Term Revenue & Expenditure Framework" -> 2021/22 Medium Term Revenue & Expenditure Framework | K7: 2022/23 Medium Term Revenue & Expenditure Framework | L7: 2023/24 Medium Term Revenue & Expenditure Framework | M7: 2024/25 Medium Term Revenue & Expenditure Framework | N7: 2025/26 Medium Term Revenue & Expenditure Framework | O7: 2026/27 Medium Term Revenue & Expenditure Framework | R7: 5 | S7: >10 | Z7: Energy Efficiency and Demand Management | AB7: Neighbourhood Development Partnership | AC7: Public Works, Roads, Transport
A8: ='Template names'!C15 -> 1st year of MTREF | B8: ="Budget Year "&B1&"/"&RIGHT(B1,2)+1 -> Budget Year 2013/14 | C8: Budget Year 2014/15 | D8: Budget Year 2015/16 | E8: Budget Year 2016/17 | F8: Budget Year 2017/18 | G8: Budget Year 2018/19 | H8: Budget Year 2019/20 | I8: Budget Year 2020/21 | J8: ="Budget Year "&J1&"/"&RIGHT(J1,2)+1 -> Budget Year 2021/22 | K8: Budget Year 2022/23 | L8: Budget Year 2023/24 | M8: Budget Year 2024/25 | N8: Budget Year 2025/26 | O8: Budget Year 2026/27 | R8: >5 | Z8: Integrated National Electrification Programme | AB8: 2010 FIFA World Cup Stadiums Development | AC8: Sport and Recreation
A9: ='Template names'!C16 -> 2nd year of MTREF | B9: ="Budget Year +1 "&B1+1&"/"&RIGHT(B1,2)+2 -> Budget Year +1 2014/15 | C9: Budget Year +1 2015/16 | D9: Budget Year +1 2016/17 | E9: Budget Year +1 2017/18 | F9: Budget Year +1 2018/19 | G9: Budget Year +1 2019/20 | H9: Budget Year +1 2020/21 | I9: Budget Year +1 2021/22 | J9: ="Budget Year +1 "&J1+1&"/"&RIGHT(J1,2)+2 -> Budget Year +1 2022/23 | K9: Budget Year +1 2023/24 | L9: Budget Year +1 2024/25 | M9: Budget Year +1 2025/26 | N9: Budget Year +1 2026/27 | O9: Budget Year +1 2027/28 | Z9: Municipal Drought Relief
A10: ='Template names'!C17 -> 3rd year of MTREF | B10: ="Budget Year +2 "&B1+2&"/"&RIGHT(B1,2)+3 -> Budget Year +2 2015/16 | C10: Budget Year +2 2016/17 | D10: Budget Year +2 2017/18 | E10: Budget Year +2 2018/19 | F10: Budget Year +2 2019/20 | G10: Budget Year +2 2020/21 | H10: Budget Year +2 2021/22 | I10: Budget Year +2 2022/23 | J10: ="Budget Year +2 "&J1+2&"/"&RIGHT(J1,2)+3 -> Budget Year +2 2023/24 | K10: Budget Year +2 2024/25 | L10: Budget Year +2 2025/26 | M10: Budget Year +2 2026/27 | N10: Budget Year +2 2027/28 | O10: Budget Year +2 2028/29 | Z10: 2010 FIFA World Cup Operating
A11: ='Template names'!C18 -> 1st yr of long term forecast | B11: ="Forecast "&B1+3&"/"&RIGHT(B1,2)+4 -> Forecast 2016/17 | C11: Forecast 2017/18 | D11: Forecast 2018/19 | E11: Forecast 2019/20 | F11: Forecast 2020/21 | G11: Forecast 2021/22 | H11: Forecast 2022/23 | I11: Forecast 2023/24 | J11: ="Forecast "&J1+3&"/"&RIGHT(J1,2)+4 -> Forecast 2024/25 | K11: Forecast 2025/26 | L11: Forecast 2026/27 | M11: Forecast 2027/28 | N11: Forecast 2028/29 | O11: Forecast 2029/30 | Z11: Electricity Demand Side Management
A12: ='Template names'!C19 -> Next yr of long term forecast | B12: ="Forecast "&B1+4&"/"&RIGHT(B1,2)+5 -> Forecast 2017/18 | C12: Forecast 2018/19 | D12: Forecast 2019/20 | E12: Forecast 2020/21 | F12: Forecast 2021/22 | G12: Forecast 2022/23 | H12: Forecast 2023/24 | I12: Forecast 2024/25 | J12: ="Forecast "&J1+4&"/"&RIGHT(J1,2)+5 -> Forecast 2025/26 | K12: Forecast 2026/27 | L12: Forecast 2027/28 | M12: Forecast 2028/29 | N12: Forecast 2029/30 | O12: Forecast 2030/31 | Z12: EPWP Incentive
A13: ='Template names'!C20 -> Next yr of long term forecast | B13: ="Forecast "&B1+5&"/"&RIGHT(B1,2)+6 -> Forecast 2018/19 | C13: Forecast 2019/20 | D13: Forecast 2020/21 | E13: Forecast 2021/22 | F13: Forecast 2022/23 | G13: Forecast 2023/24 | H13: Forecast 2024/25 | I13: Forecast 2025/26 | J13: ="Forecast "&J1+5&"/"&RIGHT(J1,2)+6 -> Forecast 2026/27 | K13: Forecast 2027/28 | L13: Forecast 2028/29 | M13: Forecast 2029/30 | N13: Forecast 2030/31 | O13: Forecast 2031/32
A14: ='Template names'!C21 -> Next yr of long term forecast | B14: ="Forecast "&B1+6&"/"&RIGHT(B1,2)+7 -> Forecast 2019/20 | C14: Forecast 2020/21 | D14: Forecast 2021/22 | E14: Forecast 2022/23 | F14: Forecast 2023/24 | G14: Forecast 2024/25 | H14: Forecast 2025/26 | I14: Forecast 2026/27 | J14: ="Forecast "&J1+6&"/"&RIGHT(J1,2)+7 -> Forecast 2027/28 | K14: Forecast 2028/29 | L14: Forecast 2029/30 | M14: Forecast 2030/31 | N14: Forecast 2031/32 | O14: Forecast 2032/33 | Z14: Asset Class | AA14: Asset sub-class old | AB14: Asset sub-class | AC14: IUDF | AD14: MTSF
A15: ='Template names'!C22 -> Next yr of long term forecast | B15: ="Forecast "&B1+7&"/"&RIGHT(B1,2)+8 -> Forecast 2020/21 | C15: Forecast 2021/22 | D15: Forecast 2022/23 | E15: Forecast 2023/24 | F15: Forecast 2024/25 | G15: Forecast 2025/26 | H15: Forecast 2026/27 | I15: Forecast 2027/28 | J15: ="Forecast "&J1+7&"/"&RIGHT(J1,2)+8 -> Forecast 2028/29 | K15: Forecast 2029/30 | L15: Forecast 2030/31 | M15: Forecast 2031/32 | N15: Forecast 2032/33 | O15: Forecast 2033/34
A16: ='Template names'!C23 -> Next yr of long term forecast | B16: ="Forecast "&B1+8&"/"&RIGHT(B1,2)+9 -> Forecast 2021/22 | C16: Forecast 2022/23 | D16: Forecast 2023/24 | E16: Forecast 2024/25 | F16: Forecast 2025/26 | G16: Forecast 2026/27 | H16: Forecast 2027/28 | I16: Forecast 2028/29 | J16: ="Forecast "&J1+8&"/"&RIGHT(J1,2)+9 -> Forecast 2029/30 | K16: Forecast 2030/31 | L16: Forecast 2031/32 | M16: Forecast 2032/33 | N16: Forecast 2033/34 | O16: Forecast 2034/35 | Z16: Roads Infrastructure | AA16: Roads, Pavements & Bridges | AB16: Roads | AC16: Spatial integration | AD16: Quality basic education
A17: ='Template names'!C24 -> Next yr of long term forecast | B17: ="Forecast "&B1+9&"/"&RIGHT(B1,2)+10 -> Forecast 2022/23 | C17: Forecast 2023/24 | D17: Forecast 2024/25 | E17: Forecast 2025/26 | F17: Forecast 2026/27 | G17: Forecast 2027/28 | H17: Forecast 2028/29 | I17: Forecast 2029/30 | J17: ="Forecast "&J1+9&"/"&RIGHT(J1,2)+10 -> Forecast 2030/31 | K17: Forecast 2031/32 | L17: Forecast 2032/33 | M17: Forecast 2033/34 | N17: Forecast 2034/35 | O17: Forecast 2035/36 | Z17: Storm water Infrastructure | AA17: Storm water | AB17: Road Structures | AC17: Inclusion and access | AD17: A long and healthy life for all South Africans
A18: ='Template names'!C25 -> Next yr of long term forecast | B18: ="Forecast "&B1+10&"/"&RIGHT(B1,2)+11 -> Forecast 2023/24 | C18: Forecast 2024/25 | D18: Forecast 2025/26 | E18: Forecast 2026/27 | F18: Forecast 2027/28 | G18: Forecast 2028/29 | H18: Forecast 2029/30 | I18: Forecast 2030/31 | J18: ="Forecast "&J1+10&"/"&RIGHT(J1,2)+11 -> Forecast 2031/32 | K18: Forecast 2032/33 | L18: Forecast 2033/34 | M18: Forecast 2034/35 | N18: Forecast 2035/36 | O18: Forecast 2036/37 | Z18: Electrical Infrastructure | AA18: Generation | AB18: Road Furniture | AC18: Growth | AD18: All people in South Africa are and feel safe
A19: ='Template names'!C26 -> Next yr of long term forecast | B19: ="Forecast "&B1+11&"/"&RIGHT(B1,2)+12 -> Forecast 2024/25 | C19: Forecast 2025/26 | D19: Forecast 2026/27 | E19: Forecast 2027/28 | F19: Forecast 2028/29 | G19: Forecast 2029/30 | H19: Forecast 2030/31 | I19: Forecast 2031/32 | J19: ="Forecast "&J1+11&"/"&RIGHT(J1,2)+12 -> Forecast 2032/33 | K19: Forecast 2033/34 | L19: Forecast 2034/35 | M19: Forecast 2035/36 | N19: Forecast 2036/37 | O19: Forecast 2037/38 | Z19: Water Supply Infrastructure | AA19: Transmission & Reticulation | AB19: Capital Spares | AC19: Governance | AD19: Decent employment through inclusive growth
A20: ='Template names'!C27 -> Next yr of long term forecast | B20: ="Forecast "&B1+12&"/"&RIGHT(B1,2)+13 -> Forecast 2025/26 | C20: Forecast 2026/27 | D20: Forecast 2027/28 | E20: Forecast 2028/29 | F20: Forecast 2029/30 | G20: Forecast 2030/31 | H20: Forecast 2031/32 | I20: Forecast 2032/33 | J20: ="Forecast "&J1+12&"/"&RIGHT(J1,2)+13 -> Forecast 2033/34 | K20: Forecast 2034/35 | L20: Forecast 2035/36 | M20: Forecast 2036/37 | N20: Forecast 2037/38 | O20: Forecast 2038/39 | Z20: Sanitation Infrastructure | AA20: Street Lighting | AB20: Drainage Collection | AD20: A skilled and capable workforce to support an inclusive growth path
A21: ='Template names'!C28 -> Next yr of long term forecast | B21: ="Forecast "&B1+13&"/"&RIGHT(B1,2)+14 -> Forecast 2026/27 | C21: Forecast 2027/28 | D21: Forecast 2028/29 | E21: Forecast 2029/30 | F21: Forecast 2030/31 | G21: Forecast 2031/32 | H21: Forecast 2032/33 | I21: Forecast 2033/34 | J21: ="Forecast "&J1+13&"/"&RIGHT(J1,2)+14 -> Forecast 2034/35 | K21: Forecast 2035/36 | L21: Forecast 2036/37 | M21: Forecast 2037/38 | N21: Forecast 2038/39 | O21: Forecast 2039/40 | Z21: Solid Waste Infrastructure | AA21: Dams & Reservoirs | AB21: Storm water Conveyance | AD21: An efficient, competitive and responsive economic infrastructure network
A22: ='Template names'!C29 -> Next yr of long term forecast | B22: ="Forecast "&B1+14&"/"&RIGHT(B1,2)+15 -> Forecast 2027/28 | C22: Forecast 2028/29 | D22: Forecast 2029/30 | E22: Forecast 2030/31 | F22: Forecast 2031/32 | G22: Forecast 2032/33 | H22: Forecast 2033/34 | I22: Forecast 2034/35 | J22: ="Forecast "&J1+14&"/"&RIGHT(J1,2)+15 -> Forecast 2035/36 | K22: Forecast 2036/37 | L22: Forecast 2037/38 | M22: Forecast 2038/39 | N22: Forecast 2039/40 | O22: Forecast 2040/41 | Z22: Rail Infrastructure | AA22: Water purification | AB22: Attenuation | AD22: Vibrant, equitable, sustainable rural communities contributing towards food security for all
A23: Adjustments Budget | B23: ="Annual target " & B1&"/"&RIGHT(B1,2)+1 -> Annual target 2013/14 | C23: Annual target 2014/15 | D23: Annual target 2015/16 | E23: Annual target 2016/17 | F23: Annual target 2017/18 | G23: Annual target 2018/19 | H23: Annual target 2019/20 | I23: Annual target 2020/21 | J23: ="Annual target " & J1&"/"&RIGHT(J1,2)+1 -> Annual target 2021/22 | K23: Annual target 2022/23 | L23: Annual target 2023/24 | M23: Annual target 2024/25 | N23: Annual target 2025/26 | O23: Annual target 2026/27 | Z23: Coastal Infrastructure | AA23: Reticulation | AB23: Power Plants | AD23: Sustainable human settlements and improved quality of household life
A24: =A23 -> Adjustments Budget | B24: ="Revised target "& B1&"/"&RIGHT(B1,2)+1 -> Revised target 2013/14 | C24: Revised target 2014/15 | D24: Revised target 2015/16 | E24: Revised target 2016/17 | F24: Revised target 2017/18 | G24: Revised target 2018/19 | H24: Revised target 2019/20 | I24: Revised target 2020/21 | J24: ="Revised target "& J1&"/"&RIGHT(J1,2)+1 -> Revised target 2021/22 | K24: Revised target 2022/23 | L24: Revised target 2023/24 | M24: Revised target 2024/25 | N24: Revised target 2025/26 | O24: Revised target 2026/27 | Z24: Information and Communication Infrastructure | AA24: Sewerage purification | AB24: HV Substations | AD24: Responsive, accountable, effective and efficient local government
A25: NOTE: This sheet should not be directly amended - select headings from sheet 'S' | Z25: Community Facilities | AA25: Waste Management | AB25: HV Switching Station | AD25: Protect and enhance our environmental assets and natural resources
Z26: Sport and Recreation Facilities | AA26: Transportation | AB26: HV Transmission Conductors | AD26: Create a better South Africa and contribute to a better Africa and a better world
A27: Name link | B27: 85 | Z27: Heritage assets | AA27: Gas | AB27: MV Substations | AD27: An efficient, effective and development-oriented public service
A28: Name of Muni | B28: =INDEX(B29:B307,B27,1) -> KZN225 Msunduzi | Z28: Revenue Generating | AA28: Parks & gardens | AB28: MV Switching Stations | AD28: A comprehensive, responsive and sustainable social protection system
B29: Choose name from list | C29: Set name on 'Instructions' sheet | Z29: Non-revenue Generating | AA29: Sportsfields & stadia | AB29: MV Networks | AD29: A diverse, socially cohesive society with a common national identity
B30: BUF Buffalo City | C30: EC EASTERN CAPE | Z30: Operational Buildings | AA30: Swimming pools | AB30: LV Networks
B31: NMA Nelson Mandela Bay | C31: EC EASTERN CAPE | Z31: Housing | AA31: Community halls | AB31: Capital Spares
B32: EC101 Dr Beyers Naude | C32: EC EASTERN CAPE | Z32: Biological or Cultivated Assets | AA32: Libraries | AB32: Dams and Weirs
B33: EC102 Blue Crane Route | C33: EC EASTERN CAPE | Z33: Servitudes | AA33: Recreational facilities | AB33: Boreholes
B34: EC104 Makana | C34: EC EASTERN CAPE | Z34: Licences and Rights | AA34: Fire, safety & emergency | AB34: Reservoirs
B35: EC105 Ndlambe | C35: EC EASTERN CAPE | Z35: Computer Equipment | AA35: Security and policing | AB35: Pump Stations
B36: EC106 Sundays River Valley | C36: EC EASTERN CAPE | Z36: Furniture and Office Equipment | AA36: Buses | AB36: Water Treatment Works
B37: EC108 Kouga | C37: EC EASTERN CAPE | Z37: Machinery and Equipment | AA37: Clinics | AB37: Bulk Mains
B38: EC109 Kou-Kamma | C38: EC EASTERN CAPE | Z38: Transport Assets | AA38: Museums & Art Galleries | AB38: Distribution
B39: DC10 Sarah Baartman | C39: EC EASTERN CAPE | Z39: Land | AA39: Cemeteries | AB39: Distribution Points
B40: EC121 Mbhashe | C40: EC EASTERN CAPE | Z40: Zoo's, Marine and Non-biological Animals | AA40: Social rental housing | AB40: PRV Stations
B41: EC122 Mnquma | C41: EC EASTERN CAPE | AA41: Buildings | AB41: Capital Spares
B42: EC123 Great Kei | C42: EC EASTERN CAPE | AA42: Housing development | AB42: Pump Station
B43: EC124 Amahlathi | C43: EC EASTERN CAPE | AA43: General vehicles | AB43: Reticulation
B44: EC126 Ngqushwa | C44: EC EASTERN CAPE | AA44: Specialised vehicles - Refuse | AB44: Waste Water Treatment Works
B45: EC129 Raymond Mhlaba | C45: EC EASTERN CAPE | AA45: Specialised vehicles - Fire | AB45: Outfall Sewers
B46: DC12 Amathole | C46: EC EASTERN CAPE | AA46: Specialised vehicles - Conservancy | AB46: Toilet Facilities
B47: EC131 Inxuba Yethemba | C47: EC EASTERN CAPE | AA47: Specialised vehicles - Ambulances | AB47: Capital Spares
B48: EC135 Intsika Yethu | C48: EC EASTERN CAPE | AA48: Plant & equipment | AB48: Landfill Sites
B49: EC136 Emalahleni (Ec) | C49: EC EASTERN CAPE | AA49: Computers - hardware/equipment | AB49: Waste Transfer Stations
B50: EC137 Engcobo | C50: EC EASTERN CAPE | AA50: Furniture and other office equipment | AB50: Waste Processing Facilities
B51: EC138 Sakhisizwe | C51: EC EASTERN CAPE | AA51: Abattoirs | AB51: Waste Drop-off Points
B52: EC139 Enoch Mgijima | C52: EC EASTERN CAPE | AA52: Markets | AB52: Waste Separation Facilities
B53: DC13 Chris Hani | C53: EC EASTERN CAPE | AA53: Civic Land and Buildings | AB53: Electricity Generation Facilities
B54: EC141 Elundini | C54: EC EASTERN CAPE | AA54: Other Buildings | AB54: Capital Spares
B55: EC142 Senqu | C55: EC EASTERN CAPE | AA55: Other Land | AB55: Rail Lines
B56: EC145 Walter Sisulu | C56: EC EASTERN CAPE | AA56: Surplus Assets - (Investment or Inventory) | AB56: Rail Structures
B57: DC14 Joe Gqabi | C57: EC EASTERN CAPE | AA57: Computers - software & programming | AB57: Rail Furniture
B58: EC153 Ngquza Hills | C58: EC EASTERN CAPE | AA58: Other | AB58: Drainage Collection
B59: EC154 Port St Johns | C59: EC EASTERN CAPE | AB59: Storm water Conveyance
B60: EC155 Nyandeni | C60: EC EASTERN CAPE | Z60: SA16 - Investments | AB60: Attenuation
B61: EC156 Mhlontlo | C61: EC EASTERN CAPE | Z61: Security | AA61: Interest rate | AB61: MV Substations
B62: EC157 King Sabata Dalindyebo | C62: EC EASTERN CAPE | Z62: Yes | AA62: Fixed | AB62: LV Networks
B63: DC15 O .R. Tambo | C63: EC EASTERN CAPE | Z63: No | AA63: Variable | AB63: Capital Spares
B64: EC441 Matatiele | C64: EC EASTERN CAPE | AB64: Sand Pumps
B65: EC442 Umzimvubu | C65: EC EASTERN CAPE | AB65: Piers
B66: EC443 Mbizana | C66: EC EASTERN CAPE | Z66: SA36, SA37 - Capital projects | AB66: Revetments
B67: EC444 Ntabankulu | C67: EC EASTERN CAPE | Z67: Yes | AB67: Promenades
B68: DC44 Alfred Nzo | C68: EC EASTERN CAPE | Z68: No | AB68: Capital Spares
B69: MAN Mangaung | C69: FS FREE STATE | AB69: Data Centres
B70: FS161 Letsemeng | C70: FS FREE STATE | AB70: Core Layers
B71: FS162 Kopanong | C71: FS FREE STATE | AB71: Distribution Layers
B72: FS163 Mohokare | C72: FS FREE STATE | AB72: Capital Spares
B73: DC16 Xhariep | C73: FS FREE STATE | AB73: Halls
B74: FS181 Masilonyana | C74: FS FREE STATE | AB74: Centres
B75: FS182 Tokologo | C75: FS FREE STATE | AB75: Crèches
B76: FS183 Tswelopele | C76: FS FREE STATE | AB76: Clinics/Care Centres
B77: FS184 Matjhabeng | C77: FS FREE STATE | AB77: Fire/Ambulance Stations
B78: FS185 Nala | C78: FS FREE STATE | AB78: Testing Stations
B79: DC18 Lejweleputswa | C79: FS FREE STATE | AB79: Museums
B80: FS191 Setsoto | C80: FS FREE STATE | AB80: Galleries
B81: FS192 Dihlabeng | C81: FS FREE STATE | AB81: Theatres
B82: FS193 Nketoana | C82: FS FREE STATE | AB82: Libraries
B83: FS194 Maluti-a-Phofung | C83: FS FREE STATE | AB83: Cemeteries/Crematoria
B84: FS195 Phumelela | C84: FS FREE STATE | AB84: Police
B85: FS196 Mantsopa | C85: FS FREE STATE | AB85: Purls
B86: DC19 Thabo Mofutsanyana | C86: FS FREE STATE | AB86: Public Open Space
B87: FS201 Moqhaka | C87: FS FREE STATE | AB87: Nature Reserves
B88: FS203 Ngwathe | C88: FS FREE STATE | AB88: Public Ablution Facilities
B89: FS204 Metsimaholo | C89: FS FREE STATE | AB89: Markets
B90: FS205 Mafube | C90: FS FREE STATE | AB90: Stalls
B91: DC20 Fezile Dabi | C91: FS FREE STATE | AB91: Abattoirs
B92: EKU City of Ekurhuleni | C92: GT GAUTENG | AB92: Airports
B93: JHB City Of Johannesburg | C93: GT GAUTENG | AB93: Taxi Ranks/Bus Terminals
B94: TSH City Of Tshwane | C94: GT GAUTENG | AB94: Capital Spares
B95: GT421 Emfuleni | C95: GT GAUTENG | AB95: Indoor Facilities
B96: GT422 Midvaal | C96: GT GAUTENG | AB96: Outdoor Facilities
B97: GT423 Lesedi | C97: GT GAUTENG | AB97: Capital Spares
B98: DC42 Sedibeng | C98: GT GAUTENG | AB98: Monuments
B99: GT481 Mogale City | C99: GT GAUTENG | AB99: Historic Buildings
B100: GT484 Merafong City | C100: GT GAUTENG | AB100: Works of Art
B101: GT485 Rand West City | C101: GT GAUTENG | AB101: Conservation Areas
B102: DC48 West Rand | C102: GT GAUTENG | AB102: Other Heritage
B103: ETH eThekwini | C103: KZN KWAZULU-NATAL | AB103: Improved Property
B104: KZN212 Umdoni | C104: KZN KWAZULU-NATAL | AB104: Unimproved Property
B105: KZN213 Umzumbe | C105: KZN KWAZULU-NATAL | AB105: Municipal Offices
B106: KZN214 uMuziwabantu | C106: KZN KWAZULU-NATAL | AB106: Pay/Enquiry Points
B107: KZN216 Ray Nkonyeni | C107: KZN KWAZULU-NATAL | AB107: Building Plan Offices
B108: DC21 Ugu | C108: KZN KWAZULU-NATAL | AB108: Workshops
B109: KZN221 uMshwathi | C109: KZN KWAZULU-NATAL | AB109: Yards
B110: KZN222 uMngeni | C110: KZN KWAZULU-NATAL | AB110: Stores
B111: KZN223 Mpofana | C111: KZN KWAZULU-NATAL | AB111: Laboratories
B112: KZN224 Impendle | C112: KZN KWAZULU-NATAL | AB112: Training Centres
B113: KZN225 Msunduzi | C113: KZN KWAZULU-NATAL | AB113: Manufacturing Plant
B114: KZN226 Mkhambathini | C114: KZN KWAZULU-NATAL | AB114: Depots
B115: KZN227 Richmond | C115: KZN KWAZULU-NATAL | AB115: Capital Spares
B116: DC22 uMgungundlovu | C116: KZN KWAZULU-NATAL | AB116: Staff Housing
B117: KZN235 Okhahlamba | C117: KZN KWAZULU-NATAL | AB117: Social Housing
B118: KZN237 Inkosi Langalibalele | C118: KZN KWAZULU-NATAL | AB118: Capital Spares
B119: KZN238 Alfred Duma | C119: KZN KWAZULU-NATAL | AB119: Water Rights
B120: DC23 Uthukela | C120: KZN KWAZULU-NATAL | AB120: Effluent Licenses
B121: KZN241 Endumeni | C121: KZN KWAZULU-NATAL | AB121: Solid Waste Licenses
B122: KZN242 Nquthu | C122: KZN KWAZULU-NATAL | AB122: Computer Software and Applications
B123: KZN244 Msinga | C123: KZN KWAZULU-NATAL | AB123: Load Settlement Software Applications
B124: KZN245 Umvoti | C124: KZN KWAZULU-NATAL | AB124: Unspecified
B125: DC24 Umzinyathi | C125: KZN KWAZULU-NATAL
B126: KZN252 Newcastle | C126: KZN KWAZULU-NATAL
B127: KZN253 Emadlangeni | C127: KZN KWAZULU-NATAL
B128: KZN254 Dannhauser | C128: KZN KWAZULU-NATAL
B129: DC25 Amajuba | C129: KZN KWAZULU-NATAL
B130: KZN261 eDumbe | C130: KZN KWAZULU-NATAL
B131: KZN262 uPhongolo | C131: KZN KWAZULU-NATAL
B132: KZN263 Abaqulusi | C132: KZN KWAZULU-NATAL
B133: KZN265 Nongoma | C133: KZN KWAZULU-NATAL
B134: KZN266 Ulundi | C134: KZN KWAZULU-NATAL
B135: DC26 Zululand | C135: KZN KWAZULU-NATAL
B136: KZN271 Umhlabuyalingana | C136: KZN KWAZULU-NATAL
B137: KZN272 Jozini | C137: KZN KWAZULU-NATAL
B138: KZN275 Mtubatuba | C138: KZN KWAZULU-NATAL
B139: KZN276 Hlabisa Big Five | C139: KZN KWAZULU-NATAL
B140: DC27 Umkhanyakude | C140: KZN KWAZULU-NATAL
B141: KZN281 Mfolozi | C141: KZN KWAZULU-NATAL
B142: KZN282 uMhlathuze | C142: KZN KWAZULU-NATAL
B143: KZN284 uMlalazi | C143: KZN KWAZULU-NATAL
B144: KZN285 Mthonjaneni | C144: KZN KWAZULU-NATAL
B145: KZN286 Nkandla | C145: KZN KWAZULU-NATAL
B146: DC28 King Cetshwayo | C146: KZN KWAZULU-NATAL
B147: KZN291 Mandeni | C147: KZN KWAZULU-NATAL
B148: KZN292 KwaDukuza | C148: KZN KWAZULU-NATAL
B149: KZN293 Ndwedwe | C149: KZN KWAZULU-NATAL
B150: KZN294 Maphumulo | C150: KZN KWAZULU-NATAL
B151: DC29 iLembe | C151: KZN KWAZULU-NATAL
B152: KZN433 Greater Kokstad | C152: KZN KWAZULU-NATAL
B153: KZN434 Ubuhlebezwe | C153: KZN KWAZULU-NATAL
B154: KZN435 Umzimkhulu | C154: KZN KWAZULU-NATAL
B155: KZN436 Dr Nkosazana Dlamini Zuma | C155: KZN KWAZULU-NATAL
B156: DC43 Harry Gwala | C156: KZN KWAZULU-NATAL
B157: LIM331 Greater Giyani | C157: LIM LIMPOPO
B158: LIM332 Greater Letaba | C158: LIM LIMPOPO
B159: LIM333 Greater Tzaneen | C159: LIM LIMPOPO
B160: LIM334 Ba-Phalaborwa | C160: LIM LIMPOPO
B161: LIM335 Maruleng | C161: LIM LIMPOPO
B162: DC33 Mopani | C162: LIM LIMPOPO
B163: LIM341 Musina | C163: LIM LIMPOPO
B164: LIM343 Thulamela | C164: LIM LIMPOPO
B165: LIM344 Makhado | C165: LIM LIMPOPO
B166: LIM345 Collins Chabane | C166: LIM LIMPOPO
B167: DC34 Vhembe | C167: LIM LIMPOPO
B168: LIM351 Blouberg | C168: LIM LIMPOPO
B169: LIM353 Molemole | C169: LIM LIMPOPO
B170: LIM354 Polokwane | C170: LIM LIMPOPO
B171: LIM355 Lepelle-Nkumpi | C171: LIM LIMPOPO
B172: DC35 Capricorn | C172: LIM LIMPOPO
B173: LIM361 Thabazimbi | C173: LIM LIMPOPO
B174: LIM362 Lephalale | C174: LIM LIMPOPO
B175: LIM366 Bela Bela | C175: LIM LIMPOPO
B176: LIM367 Mogalakwena | C176: LIM LIMPOPO
B177: LIM368 Modimolle-Mookgopong | C177: LIM LIMPOPO
B178: DC36 Waterberg | C178: LIM LIMPOPO
B179: LIM471 Ephraim Mogale | C179: LIM LIMPOPO
B180: LIM472 Elias Motsoaledi | C180: LIM LIMPOPO
B181: LIM473 Makhuduthamaga | C181: LIM LIMPOPO
B182: LIM476 Tubatse Fetakgomo | C182: LIM LIMPOPO
B183: DC47 Sekhukhune | C183: LIM LIMPOPO
B184: MP301 Albert Luthuli | C184: MP MPUMALANGA
B185: MP302 Msukaligwa | C185: MP MPUMALANGA
B186: MP303 Mkhondo | C186: MP MPUMALANGA
B187: MP304 Pixley Ka Seme (MP) | C187: MP MPUMALANGA
B188: MP305 Lekwa | C188: MP MPUMALANGA
B189: MP306 Dipaleseng | C189: MP MPUMALANGA
B190: MP307 Govan Mbeki | C190: MP MPUMALANGA
B191: DC30 Gert Sibande | C191: MP MPUMALANGA
B192: MP311 Victor Khanye | C192: MP MPUMALANGA
B193: MP312 Emalahleni (Mp) | C193: MP MPUMALANGA
B194: MP313 Steve Tshwete | C194: MP MPUMALANGA
B195: MP314 Emakhazeni | C195: MP MPUMALANGA
B196: MP315 Thembisile Hani | C196: MP MPUMALANGA
B197: MP316 Dr J.S. Moroka | C197: MP MPUMALANGA
B198: DC31 Nkangala | C198: MP MPUMALANGA
B199: MP321 Thaba Chweu | C199: MP MPUMALANGA
B200: MP324 Nkomazi | C200: MP MPUMALANGA
... 87 more rows

Sheet Org structure
A1: Organisational Structure Votes | C1: Organisational Structure Sub-Votes | E1: Display Sub-Votes
A2: =B2&" - "&C2 -> Vote 1 - City Manager | B2: Vote 1 | C2: City Manager
A3: =B13&" - "& C13 -> Vote 2 - City Finance | B3: 1.1 | C3: Internal Audit and Compliance | D3: =CONCATENATE(B3, " - ", C3) -> 1,1 - Internal Audit and Compliance | E3: 1.1 - Internal Audit and Compliance
A4: =B24&" - "&C24 -> Vote 3 - Community Services and Social Equity | B4: 1.2 | C4: Office of the City Manager | D4: 1,2 - Office of the City Manager | E4: 1.2 - Office of the City Manager
A5: =B35&" - "&C35 -> Vote 4 - Corporate Services | B5: 1.3 | C5: Political Support | D5: 1,3 - Political Support | E5: 1.3 - Political Support
A6: =B46&" - "&C46 -> Vote 5 - Infrastructure Services | B6: 1.4 | C6: Strategic Planning | D6: 1,4 - Strategic Planning | E6: 1.4 - Strategic Planning
A7: =B57&" - "&C57 -> Vote 6 - Sustainable Development and City Enterprises | B7: 1.5 | C7: [Name of sub-vote] | D7: 1,5 - [Name of sub-vote]
A8: =B68&" - "&C68 -> Vote 7 - [NAME OF VOTE 7] | B8: 1.6 | C8: [Name of sub-vote] | D8: 1,6 - [Name of sub-vote]
A9: =B79&" - "&C79 -> Vote 8 - [NAME OF VOTE 8] | B9: 1.7 | C9: [Name of sub-vote] | D9: 1,7 - [Name of sub-vote]
A10: =B90&" - "&C90 -> Vote 9 - [NAME OF VOTE 9] | B10: 1.8 | C10: [Name of sub-vote] | D10: 1,8 - [Name of sub-vote]
A11: =B101&" - "&C101 -> Vote 10 - [NAME OF VOTE 10] | B11: 1.9 | C11: [Name of sub-vote] | D11: 1,9 - [Name of sub-vote]
A12: =B112&" - "&C112 -> Vote 11 - [NAME OF VOTE 11] | B12: 1.10 | C12: [Name of sub-vote] | D12: 1.10 - [Name of sub-vote]
A13: =B123&" - "&C123 -> Vote 12 - [NAME OF VOTE 12] | B13: Vote 2 | C13: City Finance
A14: =B134&" - "&C134 -> Vote 13 - [NAME OF VOTE 13] | B14: 2.1 | C14: Asset Management | D14: =CONCATENATE(B14, " - ", C14) -> 2,1 - Asset Management | E14: 2.1 - Asset Management
A15: =B145&" - "&C145 -> Vote 14 - [NAME OF VOTE 14] | B15: 2.2 | C15: Budget and Treasury Management | D15: 2,2 - Budget and Treasury Management | E15: 2.2 - Budget and Treasury Management
A16: =B156&" - "&C156 -> Vote 15 - [NAME OF VOTE 15] | B16: 2.3 | C16: Expenditure Management | D16: 2,3 - Expenditure Management | E16: 2.3 - Expenditure Management
B17: 2.4 | C17: Revenue Management | D17: 2,4 - Revenue Management | E17: 2.4 - Revenue Management
B18: 2.5 | C18: Supply Chain Management | D18: 2,5 - Supply Chain Management | E18: 2.5 - Supply Chain Management
B19: 2.6 | C19: [Name of sub-vote] | D19: 2,6 - [Name of sub-vote]
B20: 2.7 | C20: [Name of sub-vote] | D20: 2,7 - [Name of sub-vote]
B21: 2.8 | C21: [Name of sub-vote] | D21: 2,8 - [Name of sub-vote]
B22: 2.9 | C22: [Name of sub-vote] | D22: 2,9 - [Name of sub-vote]
B23: 2.10 | C23: [Name of sub-vote] | D23: 2.10 - [Name of sub-vote]
B24: Vote 3 | C24: Community Services and Social Equity
B25: 3.1 | C25: Area Based Management | D25: =CONCATENATE(B25, " - ", C25) -> 3,1 - Area Based Management | E25: 3.1 - Area Based Management
B26: 3.2 | C26: Public Safety, Emergency Services and Enforcement | D26: 3,2 - Public Safety, Emergency Services and Enforcement | E26: 3.2 - Public Safety, Emergency Services and Enforcement
B27: 3.3 | C27: Recreation and Facilities | D27: 3,3 - Recreation and Facilities | E27: 3.3 - Recreation and Facilities
B28: 3.4 | C28: Waste Management | D28: 3,4 - Waste Management | E28: 3.4 - Waste Management
B29: 3.5 | C29: [Name of sub-vote] | D29: 3,5 - [Name of sub-vote]
B30: 3.6 | C30: [Name of sub-vote] | D30: 3,6 - [Name of sub-vote]
B31: 3.7 | C31: [Name of sub-vote] | D31: 3,7 - [Name of sub-vote]
B32: 3.8 | C32: [Name of sub-vote] | D32: 3,8 - [Name of sub-vote]
B33: 3.9 | C33: [Name of sub-vote] | D33: 3,9 - [Name of sub-vote]
B34: 3.10 | C34: [Name of sub-vote] | D34: 3.10 - [Name of sub-vote]
B35: Vote 4 | C35: Corporate Services
B36: 4.1 | C36: Human Resources Management | D36: =CONCATENATE(B36, " - ", C36) -> 4,1 - Human Resources Management | E36: 4.1 - Human Resources Management
B37: 4.2 | C37: Information Technology | D37: 4,2 - Information Technology | E37: 4.2 - Information Technology
B38: 4.3 | C38: Legal Services | D38: 4,3 - Legal Services | E38: 4.3 - Legal Services
B39: 4.4 | C39: Secretariat and Auxiliary Services | D39: 4,4 - Secretariat and Auxiliary Services | E39: 4.4 - Secretariat and Auxiliary Services
B40: 4.5 | C40: General Manager: Corporate Service | D40: 4,5 - General Manager: Corporate Service | E40: 4.5 - General Manager: Corporate Service
B41: 4.6 | C41: [Name of sub-vote] | D41: 4,6 - [Name of sub-vote]
B42: 4.7 | C42: [Name of sub-vote] | D42: 4,7 - [Name of sub-vote]
B43: 4.8 | C43: [Name of sub-vote] | D43: 4,8 - [Name of sub-vote]
B44: 4.9 | C44: [Name of sub-vote] | D44: 4,9 - [Name of sub-vote]
B45: 4.10 | C45: [Name of sub-vote] | D45: 4.10 - [Name of sub-vote]
B46: Vote 5 | C46: Infrastructure Services
B47: 5.1 | C47: Electricity | D47: =CONCATENATE(B47, " - ", C47) -> 5,1 - Electricity | E47: 5.1 - Electricity
B48: 5.2 | C48: Project Management Office | D48: 5,2 - Project Management Office | E48: 5.2 - Project Management Office
B49: 5.3 | C49: Roads and Transportation | D49: 5,3 - Roads and Transportation | E49: 5.3 - Roads and Transportation
B50: 5.4 | C50: Water and Sanitation | D50: 5,4 - Water and Sanitation | E50: 5.4 - Water and Sanitation
B51: 5.5 | C51: General Manager: Infrastructure | D51: 5,5 - General Manager: Infrastructure | E51: General Manager: Infrastructure
B52: 5.6 | C52: [Name of sub-vote] | D52: 5,6 - [Name of sub-vote]
B53: 5.7 | C53: [Name of sub-vote] | D53: 5,7 - [Name of sub-vote]
B54: 5.8 | C54: [Name of sub-vote] | D54: 5,8 - [Name of sub-vote]
B55: 5.9 | C55: [Name of sub-vote] | D55: 5,9 - [Name of sub-vote]
B56: 5.10 | C56: [Name of sub-vote] | D56: 5.10 - [Name of sub-vote]
B57: Vote 6 | C57: Sustainable Development and City Enterprises
B58: 6.1 | C58: City Entities | D58: =CONCATENATE(B58, " - ", C58) -> 6,1 - City Entities | E58: 6.1 - City Entities
B59: 6.2 | C59: Development Services | D59: 6,2 - Development Services | E59: 6.2 - Development Services
B60: 6.3 | C60: Human Settlement Development | D60: 6,3 - Human Settlement Development | E60: 6.3 - Human Settlement Development
B61: 6.4 | C61: Town Planning | D61: 6,4 - Town Planning | E61: 6.4 - Town Planning
B62: 6.5 | C62: [Name of sub-vote] | D62: 6,5 - [Name of sub-vote]
B63: 6.6 | C63: [Name of sub-vote] | D63: 6,6 - [Name of sub-vote]
B64: 6.7 | C64: [Name of sub-vote] | D64: 6,7 - [Name of sub-vote]
B65: 6.8 | C65: [Name of sub-vote] | D65: 6,8 - [Name of sub-vote]
B66: 6.9 | C66: [Name of sub-vote] | D66: 6,9 - [Name of sub-vote]
B67: 6.10 | C67: [Name of sub-vote] | D67: 6.10 - [Name of sub-vote]
B68: Vote 7 | C68: [NAME OF VOTE 7]
B69: 7.1 | C69: [Name of sub-vote] | D69: =CONCATENATE(B69, " - ", C69) -> 7,1 - [Name of sub-vote] | E69: 7.1 - [Name of sub-vote]
B70: 7.2 | C70: [Name of sub-vote] | D70: 7,2 - [Name of sub-vote]
B71: 7.3 | C71: [Name of sub-vote] | D71: 7,3 - [Name of sub-vote]
B72: 7.4 | C72: [Name of sub-vote] | D72: 7,4 - [Name of sub-vote]
B73: 7.5 | C73: [Name of sub-vote] | D73: 7,5 - [Name of sub-vote]
B74: 7.6 | C74: [Name of sub-vote] | D74: 7,6 - [Name of sub-vote]
B75: 7.7 | C75: [Name of sub-vote] | D75: 7,7 - [Name of sub-vote]
B76: 7.8 | C76: [Name of sub-vote] | D76: 7,8 - [Name of sub-vote]
B77: 7.9 | C77: [Name of sub-vote] | D77: 7,9 - [Name of sub-vote]
B78: 7.10 | C78: [Name of sub-vote] | D78: 7.10 - [Name of sub-vote]
B79: Vote 8 | C79: [NAME OF VOTE 8]
B80: 8.1 | C80: [Name of sub-vote] | D80: =CONCATENATE(B80, " - ", C80) -> 8,1 - [Name of sub-vote] | E80: 8.1 - [Name of sub-vote]
B81: 8.2 | C81: [Name of sub-vote] | D81: 8,2 - [Name of sub-vote]
B82: 8.3 | C82: [Name of sub-vote] | D82: 8,3 - [Name of sub-vote]
B83: 8.4 | C83: [Name of sub-vote] | D83: 8,4 - [Name of sub-vote]
B84: 8.5 | C84: [Name of sub-vote] | D84: 8,5 - [Name of sub-vote]
B85: 8.6 | C85: [Name of sub-vote] | D85: 8,6 - [Name of sub-vote]
B86: 8.7 | C86: [Name of sub-vote] | D86: 8,7 - [Name of sub-vote]
B87: 8.8 | C87: [Name of sub-vote] | D87: 8,8 - [Name of sub-vote]
B88: 8.9 | C88: [Name of sub-vote] | D88: 8,9 - [Name of sub-vote]
B89: 8.10 | C89: [Name of sub-vote] | D89: 8.10 - [Name of sub-vote]
B90: Vote 9 | C90: [NAME OF VOTE 9]
B91: 9.1 | C91: [Name of sub-vote] | D91: =CONCATENATE(B91, " - ", C91) -> 9,1 - [Name of sub-vote] | E91: 9.1 - [Name of sub-vote]
B92: 9.2 | C92: [Name of sub-vote] | D92: 9,2 - [Name of sub-vote]
B93: 9.3 | C93: [Name of sub-vote] | D93: 9,3 - [Name of sub-vote]
B94: 9.4 | C94: [Name of sub-vote] | D94: 9,4 - [Name of sub-vote]
B95: 9.5 | C95: [Name of sub-vote] | D95: 9,5 - [Name of sub-vote]
B96: 9.6 | C96: [Name of sub-vote] | D96: 9,6 - [Name of sub-vote]
B97: 9.7 | C97: [Name of sub-vote] | D97: 9,7 - [Name of sub-vote]
B98: 9.8 | C98: [Name of sub-vote] | D98: 9,8 - [Name of sub-vote]
B99: 9.9 | C99: [Name of sub-vote] | D99: 9,9 - [Name of sub-vote]
B100: 9.10 | C100: [Name of sub-vote] | D100: 9.10 - [Name of sub-vote]
B101: Vote 10 | C101: [NAME OF VOTE 10]
B102: 10.1 | C102: [Name of sub-vote] | D102: =CONCATENATE(B102, " - ", C102) -> 10,1 - [Name of sub-vote] | E102: 10.1 - [Name of sub-vote]
B103: 10.2 | C103: [Name of sub-vote] | D103: 10,2 - [Name of sub-vote]
B104: 10.3 | C104: [Name of sub-vote] | D104: 10,3 - [Name of sub-vote]
B105: 10.4 | C105: [Name of sub-vote] | D105: 10,4 - [Name of sub-vote]
B106: 10.5 | C106: [Name of sub-vote] | D106: 10,5 - [Name of sub-vote]
B107: 10.6 | C107: [Name of sub-vote] | D107: 10,6 - [Name of sub-vote]
B108: 10.7 | C108: [Name of sub-vote] | D108: 10,7 - [Name of sub-vote]
B109: 10.8 | C109: [Name of sub-vote] | D109: 10,8 - [Name of sub-vote]
B110: 10.9 | C110: [Name of sub-vote] | D110: 10,9 - [Name of sub-vote]
B111: 10.10 | C111: [Name of sub-vote] | D111: 10.10 - [Name of sub-vote]
B112: Vote 11 | C112: [NAME OF VOTE 11]
B113: 11.1 | C113: [Name of sub-vote] | D113: =CONCATENATE(B113, " - ", C113) -> 11,1 - [Name of sub-vote] | E113: 11.1 - [Name of sub-vote]
B114: 11.2 | C114: [Name of sub-vote] | D114: 11,2 - [Name of sub-vote]
B115: 11.3 | C115: [Name of sub-vote] | D115: 11,3 - [Name of sub-vote]
B116: 11.4 | C116: [Name of sub-vote] | D116: 11,4 - [Name of sub-vote]
B117: 11.5 | C117: [Name of sub-vote] | D117: 11,5 - [Name of sub-vote]
B118: 11.6 | C118: [Name of sub-vote] | D118: 11,6 - [Name of sub-vote]
B119: 11.7 | C119: [Name of sub-vote] | D119: 11,7 - [Name of sub-vote]
B120: 11.8 | C120: [Name of sub-vote] | D120: 11,8 - [Name of sub-vote]
B121: 11.9 | C121: [Name of sub-vote] | D121: 11,9 - [Name of sub-vote]
B122: 11.10 | C122: [Name of sub-vote] | D122: 11.10 - [Name of sub-vote]
B123: Vote 12 | C123: [NAME OF VOTE 12]
B124: 12.1 | C124: [Name of sub-vote] | D124: =CONCATENATE(B124, " - ", C124) -> 12,1 - [Name of sub-vote] | E124: 12.1 - [Name of sub-vote]
B125: 12.2 | C125: [Name of sub-vote] | D125: 12,2 - [Name of sub-vote]
B126: 12.3 | C126: [Name of sub-vote] | D126: 12,3 - [Name of sub-vote]
B127: 12.4 | C127: [Name of sub-vote] | D127: 12,4 - [Name of sub-vote]
B128: 12.5 | C128: [Name of sub-vote] | D128: 12,5 - [Name of sub-vote]
B129: 12.6 | C129: [Name of sub-vote] | D129: 12,6 - [Name of sub-vote]
B130: 12.7 | C130: [Name of sub-vote] | D130: 12,7 - [Name of sub-vote]
B131: 12.8 | C131: [Name of sub-vote] | D131: 12,8 - [Name of sub-vote]
B132: 12.9 | C132: [Name of sub-vote] | D132: 12,9 - [Name of sub-vote]
B133: 12.10 | C133: [Name of sub-vote] | D133: 12.10 - [Name of sub-vote]
B134: Vote 13 | C134: [NAME OF VOTE 13]
B135: 13.1 | C135: [Name of sub-vote] | D135: =CONCATENATE(B135, " - ", C135) -> 13,1 - [Name of sub-vote] | E135: 13.1 - [Name of sub-vote]
B136: 13.2 | C136: [Name of sub-vote] | D136: 13,2 - [Name of sub-vote]
B137: 13.3 | C137: [Name of sub-vote] | D137: 13,3 - [Name of sub-vote]
B138: 13.4 | C138: [Name of sub-vote] | D138: 13,4 - [Name of sub-vote]
B139: 13.5 | C139: [Name of sub-vote] | D139: 13,5 - [Name of sub-vote]
B140: 13.6 | C140: [Name of sub-vote] | D140: 13,6 - [Name of sub-vote]
B141: 13.7 | C141: [Name of sub-vote] | D141: 13,7 - [Name of sub-vote]
B142: 13.8 | C142: [Name of sub-vote] | D142: 13,8 - [Name of sub-vote]
B143: 13.9 | C143: [Name of sub-vote] | D143: 13,9 - [Name of sub-vote]
B144: 13.10 | C144: [Name of sub-vote] | D144: 13.10 - [Name of sub-vote]
B145: Vote 14 | C145: [NAME OF VOTE 14]
B146: 14.1 | C146: [Name of sub-vote] | D146: =CONCATENATE(B146, " - ", C146) -> 14,1 - [Name of sub-vote] | E146: 14.1 - [Name of sub-vote]
B147: 14.2 | C147: [Name of sub-vote] | D147: 14,2 - [Name of sub-vote]
B148: 14.3 | C148: [Name of sub-vote] | D148: 14,3 - [Name of sub-vote]
B149: 14.4 | C149: [Name of sub-vote] | D149: 14,4 - [Name of sub-vote]
B150: 14.5 | C150: [Name of sub-vote] | D150: 14,5 - [Name of sub-vote]
B151: 14.6 | C151: [Name of sub-vote] | D151: 14,6 - [Name of sub-vote]
B152: 14.7 | C152: [Name of sub-vote] | D152: 14,7 - [Name of sub-vote]
B153: 14.8 | C153: [Name of sub-vote] | D153: 14,8 - [Name of sub-vote]
B154: 14.9 | C154: [Name of sub-vote] | D154: 14,9 - [Name of sub-vote]
B155: 14.10 | C155: [Name of sub-vote] | D155: 14.10 - [Name of sub-vote]
B156: Vote 15 | C156: [NAME OF VOTE 15]
B157: 15.1 | C157: [Name of sub-vote] | D157: =CONCATENATE(B157, " - ", C157) -> 15,1 - [Name of sub-vote] | E157: 15.1 - [Name of sub-vote]
B158: 15.2 | C158: [Name of sub-vote] | D158: 15,2 - [Name of sub-vote]
B159: 15.3 | C159: [Name of sub-vote] | D159: 15,3 - [Name of sub-vote]
B160: 15.4 | C160: [Name of sub-vote] | D160: 15,4 - [Name of sub-vote]
B161: 15.5 | C161: [Name of sub-vote] | D161: 15,5 - [Name of sub-vote]
B162: 15.6 | C162: [Name of sub-vote] | D162: 15,6 - [Name of sub-vote]
B163: 15.7 | C163: [Name of sub-vote] | D163: 15,7 - [Name of sub-vote]
B164: 15.8 | C164: [Name of sub-vote] | D164: 15,8 - [Name of sub-vote]
B165: 15.9 | C165: [Name of sub-vote] | D165: 15,9 - [Name of sub-vote]
B166: 15.10 | C166: [Name of sub-vote] | D166: 15.10 - [Name of sub-vote]

Sheet Contacts
A1: =muni&" - "&" Contact Information" -> KZN225 Msunduzi - Contact Information
A3: A. GENERAL INFORMATION
A4: Municipality | B4: =muni -> KZN225 Msunduzi | C4: =IF(B4="Choose name from List","Set name on 'Instructions' sheet", "") -> 
A6: Grade | C6: 1 Grade in terms of the Remuneration of Public Office Bearers Act.
A8: Province | B8: =IF(B4>" ",VLOOKUP(B4,'Lookup and lists'!B29:C307,2, FALSE)," ") -> KZN KWAZULU-NATAL
A10: Web Address
A12: e-mail Address
A14: B. CONTACT INFORMATION
A15: Postal address:
A16: P.O. Box
A17: City / Town
A18: Postal Code
A20: Street address
A21: Building
A22: Street No. & Name
A23: City / Town
A24: Postal Code
A26: General Contacts
A27: Telephone number
A28: Fax number
A30: C. POLITICAL LEADERSHIP
A31: Speaker: | C31: Secretary/PA to the Speaker:
A32: ID Number | C32: ID Number
A33: Title | C33: Title
A34: Name | C34: Name
A35: Telephone number | C35: Telephone number
A36: Cell number | C36: Cell number
A37: Fax number | C37: Fax number
A38: E-mail address | C38: E-mail address
A40: Mayor/Executive Mayor: | C40: Secretary/PA to the Mayor/Executive Mayor:
A41: ID Number | C41: ID Number
A42: Title | C42: Title
A43: Name | C43: Name
A44: Telephone number | C44: Telephone number
A45: Cell number | C45: Cell number
A46: Fax number | C46: Fax number
A47: E-mail address | C47: E-mail address
A49: Deputy Mayor/Executive Mayor: | C49: Secretary/PA to the Deputy Mayor/Executive Mayor:
A50: ID Number | C50: ID Number
A51: Title | C51: Title
A52: Name | C52: Name
A53: Telephone number | C53: Telephone number
A54: Cell number | C54: Cell number
A55: Fax number | C55: Fax number
A56: E-mail address | C56: E-mail address
A58: D. MANAGEMENT LEADERSHIP
A59: Municipal Manager: | C59: Secretary/PA to the Municipal Manager:
A60: ID Number | C60: ID Number
A61: Title | C61: Title
A62: Name | C62: Name
A63: Telephone number | C63: Telephone number
A64: Cell number | C64: Cell number
A65: Fax number | C65: Fax number
A66: E-mail address | C66: E-mail address
A68: Chief Financial Officer | C68: Secretary/PA to the Chief Financial Officer
A69: ID Number | C69: ID Number
A70: Title | C70: Title
A71: Name | C71: Name
A72: Telephone number | C72: Telephone number
A73: Cell number | C73: Cell number
A74: Fax number | C74: Fax number
A75: E-mail address | C75: E-mail address
A77: Official responsible for submitting financial information | C77: Official responsible for submitting financial information
A78: ID Number | C78: ID Number
A79: Title | C79: Title
A80: Name | C80: Name
A81: Telephone number | C81: Telephone number
A82: Cell number | C82: Cell number
A83: Fax number | C83: Fax number
A84: E-mail address | C84: E-mail address
A85: Official responsible for submitting financial information | C85: Official responsible for submitting financial information
A86: ID Number | C86: ID Number
A87: Title | C87: Title
A88: Name | C88: Name
A89: Telephone number | C89: Telephone number
A90: Cell number | C90: Cell number
A91: Fax number | C91: Fax number
A92: E-mail address | C92: E-mail address
A93: Official responsible for submitting financial information | C93: Official responsible for submitting financial information
A94: ID Number | C94: ID Number
A95: Title | C95: Title
A96: Name | C96: Name
A97: Telephone number | C97: Telephone number
A98: Cell number | C98: Cell number
A99: Fax number | C99: Fax number
A100: E-mail address | C100: E-mail address
A101: Official responsible for submitting financial information | C101: Official responsible for submitting financial information
A102: ID Number | C102: ID Number
A103: Title | C103: Title
A104: Name | C104: Name
A105: Telephone number | C105: Telephone number
A106: Cell number | C106: Cell number
A107: Fax number | C107: Fax number
A108: E-mail address | C108: E-mail address
A109: Official responsible for submitting financial information | C109: Official responsible for submitting financial information
A110: ID Number | C110: ID Number
A111: Title | C111: Title
A112: Name | C112: Name
A113: Telephone number | C113: Telephone number
A114: Cell number | C114: Cell number
A115: Fax number | C115: Fax number
A116: E-mail address | C116: E-mail address
A117: Official responsible for submitting financial information | C117: Official responsible for submitting financial information
A118: ID Number | C118: ID Number
A119: Title | C119: Title
A120: Name | C120: Name
A121: Telephone number | C121: Telephone number
A122: Cell number | C122: Cell number
A123: Fax number | C123: Fax number
A124: E-mail address | C124: E-mail address
A125: Official responsible for submitting financial information | C125: Official responsible for submitting financial information
A126: ID Number | C126: ID Number
A127: Title | C127: Title
A128: Name | C128: Name
A129: Telephone number | C129: Telephone number
A130: Cell number | C130: Cell number
A131: Fax number | C131: Fax number
A132: E-mail address | C132: E-mail address
A133: Official responsible for submitting financial information
A134: ID Number
A135: Title
A136: Name
A137: Telephone number
A138: Cell number
A139: Fax number
A140: E-mail address

Sheet A1-Sum
A1: =muni&" - "&Approve1 -> KZN225 Msunduzi - Table A1 Consolidated Budget Summary
A2: =desc -> Description | B2: =head1b -> 2017/18 | C2: =head1A -> 2018/19 | D2: =Head1 -> 2019/20 | E2: =Head2 -> Current Year 2020/21 | I2: =Head3 -> 2021/22 Medium Term Revenue & Expenditure Framework
A3: R thousands | B3: =Head5 -> Audited Outcome | C3: =Head5 -> Audited Outcome | D3: =Head5 -> Audited Outcome | E3: =Head6 -> Original Budget | F3: =Head7 -> Adjusted Budget | G3: =Head8 -> Full Year Forecast | H3: =Head5b -> Pre-audit outcome | I3: =Head9 -> Budget Year 2021/22 | J3: =Head10 -> Budget Year +1 2022/23 | K3: =Head11 -> Budget Year +2 2023/24
A4: Financial Performance
A5: Property rates | B5: ='A4-FinPerf RE'!C5 -> 864163568 | C5: ='A4-FinPerf RE'!D5 -> 930979920 | D5: ='A4-FinPerf RE'!E5 -> 1177107606 | E5: ='A4-FinPerf RE'!F5 -> 1269794594 | F5: ='A4-FinPerf RE'!G5 -> 1269794594 | G5: ='A4-FinPerf RE'!H5 -> 1269794594 | H5: ='A4-FinPerf RE'!I5 -> 0 | I5: ='A4-FinPerf RE'!J5 -> 1321378575 | J5: ='A4-FinPerf RE'!K5 -> 1400661290 | K5: ='A4-FinPerf RE'!L5 -> 1491704274 | M5: =J5+J6 -> 5844802327 | N5: =K5+K6 -> 6343549913
A6: Service charges | B6: =SUM('A4-FinPerf RE'!C6:C9) -> 2710643839 | C6: =SUM('A4-FinPerf RE'!D6:D9) -> 2942462111 | D6: =SUM('A4-FinPerf RE'!E6:E9) -> 3104621258 | E6: =SUM('A4-FinPerf RE'!F6:F9) -> 3575763602 | F6: =SUM('A4-FinPerf RE'!G6:G9) -> 3575763602 | G6: =SUM('A4-FinPerf RE'!H6:H9) -> 3575763602 | H6: =SUM('A4-FinPerf RE'!I6:I9) -> 0 | I6: =SUM('A4-FinPerf RE'!J6:J9) -> 4017823674 | J6: =SUM('A4-FinPerf RE'!K6:K9) -> 4444141037 | K6: =SUM('A4-FinPerf RE'!L6:L9) -> 4851845640
A7: Investment revenue | B7: ='A4-FinPerf RE'!C12 -> 39129952 | C7: ='A4-FinPerf RE'!D12 -> 20507403 | D7: ='A4-FinPerf RE'!E12 -> 14116343.54 | E7: ='A4-FinPerf RE'!F12 -> 15260422.43 | F7: ='A4-FinPerf RE'!G12 -> 15369322.43 | G7: ='A4-FinPerf RE'!H12 -> 15369322.43 | H7: ='A4-FinPerf RE'!I12 -> 0 | I7: ='A4-FinPerf RE'!J12 -> 16076855.03 | J7: ='A4-FinPerf RE'!K12 -> 17030212.53 | K7: ='A4-FinPerf RE'!L12 -> 18057134.35
A8: Transfers recognised - operational | B8: ='A4-FinPerf RE'!C18 -> 557086308 | C8: ='A4-FinPerf RE'!D18 -> 604487443.2 | D8: ='A4-FinPerf RE'!E18 -> 637128044 | E8: ='A4-FinPerf RE'!F18 -> 675483240 | F8: ='A4-FinPerf RE'!G18 -> 819982787 | G8: ='A4-FinPerf RE'!H18 -> 819982787 | H8: ='A4-FinPerf RE'!I18 -> 0 | I8: ='A4-FinPerf RE'!J18 -> 661215834.8 | J8: ='A4-FinPerf RE'!K18 -> 696906045.3 | K8: ='A4-FinPerf RE'!L18 -> 701999380.5
A9: Other own revenue | B9: ='A4-FinPerf RE'!C11+'A4-FinPerf RE'!C13+'A4-FinPerf RE'!C14+'A4-FinPerf RE'!C15+'A4-FinPerf RE'!C16+'A4-FinPerf RE'!C17+'A4-FinPerf RE'!C19+'A4-FinPerf RE'!C20 -> 445631287 | C9: ='A4-FinPerf RE'!D11+'A4-FinPerf RE'!D13+'A4-FinPerf RE'!D14+'A4-FinPerf RE'!D15+'A4-FinPerf RE'!D16+'A4-FinPerf RE'!D17+'A4-FinPerf RE'!D19+'A4-FinPerf RE'!D20 -> 499562293 | D9: ='A4-FinPerf RE'!E11+'A4-FinPerf RE'!E13+'A4-FinPerf RE'!E14+'A4-FinPerf RE'!E15+'A4-FinPerf RE'!E16+'A4-FinPerf RE'!E17+'A4-FinPerf RE'!E19+'A4-FinPerf RE'!E20 -> 426957170 | E9: ='A4-FinPerf RE'!F11+'A4-FinPerf RE'!F13+'A4-FinPerf RE'!F14+'A4-FinPerf RE'!F15+'A4-FinPerf RE'!F16+'A4-FinPerf RE'!F17+'A4-FinPerf RE'!F19+'A4-FinPerf RE'!F20 -> 381508399.1 | F9: ='A4-FinPerf RE'!G11+'A4-FinPerf RE'!G13+'A4-FinPerf RE'!G14+'A4-FinPerf RE'!G15+'A4-FinPerf RE'!G16+'A4-FinPerf RE'!G17+'A4-FinPerf RE'!G19+'A4-FinPerf RE'!G20 -> 381508399.1 | G9: ='A4-FinPerf RE'!H11+'A4-FinPerf RE'!H13+'A4-FinPerf RE'!H14+'A4-FinPerf RE'!H15+'A4-FinPerf RE'!H16+'A4-FinPerf RE'!H17+'A4-FinPerf RE'!H19+'A4-FinPerf RE'!H20 -> 381508399.1 | H9: ='A4-FinPerf RE'!I11+'A4-FinPerf RE'!I13+'A4-FinPerf RE'!I14+'A4-FinPerf RE'!I15+'A4-FinPerf RE'!I16+'A4-FinPerf RE'!I17+'A4-FinPerf RE'!I19+'A4-FinPerf RE'!I20 -> 0 | I9: ='A4-FinPerf RE'!J11+'A4-FinPerf RE'!J13+'A4-FinPerf RE'!J14+'A4-FinPerf RE'!J15+'A4-FinPerf RE'!J16+'A4-FinPerf RE'!J17+'A4-FinPerf RE'!J19+'A4-FinPerf RE'!J20 -> 401919098.5 | J9: ='A4-FinPerf RE'!K11+'A4-FinPerf RE'!K13+'A4-FinPerf RE'!K14+'A4-FinPerf RE'!K15+'A4-FinPerf RE'!K16+'A4-FinPerf RE'!K17+'A4-FinPerf RE'!K19+'A4-FinPerf RE'!K20 -> 425752901 | K9: ='A4-FinPerf RE'!L11+'A4-FinPerf RE'!L13+'A4-FinPerf RE'!L14+'A4-FinPerf RE'!L15+'A4-FinPerf RE'!L16+'A4-FinPerf RE'!L17+'A4-FinPerf RE'!L19+'A4-FinPerf RE'!L20 -> 451425801
A10: ='A4-FinPerf RE'!A21 -> Total Revenue (excluding capital transfers and contributions) | B10: =SUM(B5:B9) -> 4616654954 | C10: 4997999170 | D10: 5359930421 | E10: 5917810258 | F10: 6062418705 | G10: 6062418705 | H10: 0 | I10: 6418414037 | J10: 6984491486 | K10: 7515032229
A11: Employee costs | B11: ='A4-FinPerf RE'!C24 -> 1194821260 | C11: ='A4-FinPerf RE'!D24 -> 1310730366 | D11: ='A4-FinPerf RE'!E24 -> 1345486985 | E11: ='A4-FinPerf RE'!F24 -> 1478324763 | F11: ='A4-FinPerf RE'!G24 -> 1474657970 | G11: ='A4-FinPerf RE'!H24 -> 1474657970 | H11: ='A4-FinPerf RE'!I24 -> 0 | I11: ='A4-FinPerf RE'!J24 -> 1538089743 | J11: ='A4-FinPerf RE'!K24 -> 1612775389 | K11: ='A4-FinPerf RE'!L24 -> 1692314816
A12: Remuneration of councillors | B12: ='A4-FinPerf RE'!C25 -> 45020093 | C12: ='A4-FinPerf RE'!D25 -> 44130681 | D12: ='A4-FinPerf RE'!E25 -> 43759322 | E12: ='A4-FinPerf RE'!F25 -> 53650401.12 | F12: ='A4-FinPerf RE'!G25 -> 53650401.44 | G12: ='A4-FinPerf RE'!H25 -> 53650401.44 | H12: ='A4-FinPerf RE'!I25 -> 0 | I12: ='A4-FinPerf RE'!J25 -> 56332921.51 | J12: ='A4-FinPerf RE'!K25 -> 59149567.59 | K12: ='A4-FinPerf RE'!L25 -> 62107045.97
A13: Depreciation & asset impairment | B13: ='A4-FinPerf RE'!C27 -> 470106108 | C13: ='A4-FinPerf RE'!D27 -> 460955083 | D13: ='A4-FinPerf RE'!E27 -> 417614093.7 | E13: ='A4-FinPerf RE'!F27 -> 489941448.3 | F13: ='A4-FinPerf RE'!G27 -> 482441449.3 | G13: ='A4-FinPerf RE'!H27 -> 482441449.3 | H13: ='A4-FinPerf RE'!I27 -> 0 | I13: ='A4-FinPerf RE'!J27 -> 421872297.6 | J13: ='A4-FinPerf RE'!K27 -> 405795700 | K13: ='A4-FinPerf RE'!L27 -> 313902120
A14: Finance charges | B14: ='A4-FinPerf RE'!C28 -> 61439423 | C14: ='A4-FinPerf RE'!D28 -> 52462384 | D14: ='A4-FinPerf RE'!E28 -> 43716970 | E14: ='A4-FinPerf RE'!F28 -> 31793212.22 | F14: ='A4-FinPerf RE'!G28 -> 36505334.22 | G14: ='A4-FinPerf RE'!H28 -> 36505334.22 | H14: ='A4-FinPerf RE'!I28 -> 0 | I14: ='A4-FinPerf RE'!J28 -> 34724271.93 | J14: ='A4-FinPerf RE'!K28 -> 36669376.45 | K14: ='A4-FinPerf RE'!L28 -> 27063703.09
A15: Inventory consumed and bulk purchases | B15: ='A4-FinPerf RE'!C29+'A4-FinPerf RE'!C30 -> 2026326327 | C15: ='A4-FinPerf RE'!D29+'A4-FinPerf RE'!D30 -> 2188653315 | D15: ='A4-FinPerf RE'!E29+'A4-FinPerf RE'!E30 -> 2548288188 | E15: ='A4-FinPerf RE'!F29+'A4-FinPerf RE'!F30 -> 2654837499 | F15: ='A4-FinPerf RE'!G29+'A4-FinPerf RE'!G30 -> 2617810532 | G15: ='A4-FinPerf RE'!H29+'A4-FinPerf RE'!H30 -> 2617810532 | H15: ='A4-FinPerf RE'!I29+'A4-FinPerf RE'!I30 -> 0 | I15: ='A4-FinPerf RE'!J29+'A4-FinPerf RE'!J30 -> 3015913148 | J15: ='A4-FinPerf RE'!K29+'A4-FinPerf RE'!K30 -> 3337446472 | K15: ='A4-FinPerf RE'!L29+'A4-FinPerf RE'!L30 -> 3648112068
A16: Transfers and grants | B16: ='A4-FinPerf RE'!C32 -> 19201984 | C16: ='A4-FinPerf RE'!D32 -> 15819791 | D16: ='A4-FinPerf RE'!E32 -> 25306678 | E16: ='A4-FinPerf RE'!F32 -> 25080000 | F16: ='A4-FinPerf RE'!G32 -> 59680000 | G16: ='A4-FinPerf RE'!H32 -> 59680000 | H16: ='A4-FinPerf RE'!I32 -> 0 | I16: ='A4-FinPerf RE'!J32 -> 45862882.85 | J16: ='A4-FinPerf RE'!K32 -> 52058867.74 | K16: ='A4-FinPerf RE'!L32 -> 55615730.33
A17: Other expenditure | B17: ='A4-FinPerf RE'!C26+'A4-FinPerf RE'!C31+'A4-FinPerf RE'!C33+'A4-FinPerf RE'!C34 -> 1711484133 | C17: ='A4-FinPerf RE'!D26+'A4-FinPerf RE'!D31+'A4-FinPerf RE'!D33+'A4-FinPerf RE'!D34 -> 1478171142 | D17: ='A4-FinPerf RE'!E26+'A4-FinPerf RE'!E31+'A4-FinPerf RE'!E33+'A4-FinPerf RE'!E34 -> 1142476601 | E17: ='A4-FinPerf RE'!F26+'A4-FinPerf RE'!F31+'A4-FinPerf RE'!F33+'A4-FinPerf RE'!F34 -> 782850145.7 | F17: ='A4-FinPerf RE'!G26+'A4-FinPerf RE'!G31+'A4-FinPerf RE'!G33+'A4-FinPerf RE'!G34 -> 948405778.6 | G17: ='A4-FinPerf RE'!H26+'A4-FinPerf RE'!H31+'A4-FinPerf RE'!H33+'A4-FinPerf RE'!H34 -> 948405778.6 | H17: ='A4-FinPerf RE'!I26+'A4-FinPerf RE'!I31+'A4-FinPerf RE'!I33+'A4-FinPerf RE'!I34 -> 0 | I17: ='A4-FinPerf RE'!J26+'A4-FinPerf RE'!J31+'A4-FinPerf RE'!J33+'A4-FinPerf RE'!J34 -> 1005618754 | J17: ='A4-FinPerf RE'!K26+'A4-FinPerf RE'!K31+'A4-FinPerf RE'!K33+'A4-FinPerf RE'!K34 -> 1147112054 | K17: ='A4-FinPerf RE'!L26+'A4-FinPerf RE'!L31+'A4-FinPerf RE'!L33+'A4-FinPerf RE'!L34 -> 1278708977
A18: ='A4-FinPerf RE'!A35 -> Total Expenditure | B18: =SUM(B11:B17) -> 5528399328 | C18: =SUM(C11:C17) -> 5550922762 | D18: 5566648838 | E18: 5516477470 | F18: 5673151466 | G18: 5673151466 | H18: 0 | I18: 6118414019 | J18: 6651007426 | K18: 7077824461
A19: ='A4-FinPerf RE'!A37 -> Surplus/(Deficit) | B19: =B10-B18 -> -911744374 | C19: -552923591.8 | D19: -206718416.1 | E19: 401332788.3 | F19: 389267239.1 | G19: 389267239.1 | H19: 0 | I19: 300000018.7 | J19: 333484059.1 | K19: 437207768.5
A20: ='A4-FinPerf RE'!A38 -> Transfers and subsidies - capital (monetary allocations) (National / Provincial and District) | B20: ='A4-FinPerf RE'!C38 -> 386288122 | C20: ='A4-FinPerf RE'!D38 -> 412154185.8 | D20: ='A4-FinPerf RE'!E38 -> 430113748.5 | E20: ='A4-FinPerf RE'!F38 -> 525891581 | F20: ='A4-FinPerf RE'!G38 -> 526485335 | G20: ='A4-FinPerf RE'!H38 -> 526485335 | H20: ='A4-FinPerf RE'!I38 -> 0 | I20: ='A4-FinPerf RE'!J38 -> 380796576 | J20: ='A4-FinPerf RE'!K38 -> 332115854.7 | K20: ='A4-FinPerf RE'!L38 -> 345142134.3
A21: ='A4-FinPerf RE'!A39&" & "&'A4-FinPerf RE'!A40 -> Transfers and subsidies - capital (monetary allocations) (National / Provincial Departmental Agencies, Households, Non-profit Institutions, Private Enterprises, Public Corporatons, Higher Educational Institutions) & Transfers and subsidies - capital (in-kind - all) | B21: ='A4-FinPerf RE'!C39+'A4-FinPerf RE'!C40 -> 0 | C21: ='A4-FinPerf RE'!D39+'A4-FinPerf RE'!D40 -> 0 | D21: ='A4-FinPerf RE'!E39+'A4-FinPerf RE'!E40 -> 0 | E21: ='A4-FinPerf RE'!F39+'A4-FinPerf RE'!F40 -> 0 | F21: ='A4-FinPerf RE'!G39+'A4-FinPerf RE'!G40 -> 0 | G21: ='A4-FinPerf RE'!H39+'A4-FinPerf RE'!H40 -> 0 | H21: ='A4-FinPerf RE'!I39+'A4-FinPerf RE'!I40 -> 0 | I21: ='A4-FinPerf RE'!J39+'A4-FinPerf RE'!J40 -> 0 | J21: ='A4-FinPerf RE'!K39+'A4-FinPerf RE'!K40 -> 0 | K21: ='A4-FinPerf RE'!L39+'A4-FinPerf RE'!L40 -> 0
A22: ='A4-FinPerf RE'!A41 -> Surplus/(Deficit) after capital transfers & contributions | B22: =B19+SUM(B20:B21) -> -525456252 | C22: =C19+SUM(C20:C21) -> -140769406 | E22: 927224369.3 | F22: 915752574.1 | G22: 915752574.1 | H22: 0 | I22: 680796594.7 | J22: 665599913.8 | K22: 782349902.8
A23: ='A4-FinPerf RE'!A46 -> Share of surplus/ (deficit) of associate | B23: ='A4-FinPerf RE'!C46 -> 0 | C23: ='A4-FinPerf RE'!D46 -> 0 | D23: ='A4-FinPerf RE'!E46 -> 0 | E23: ='A4-FinPerf RE'!F46 -> 0 | F23: ='A4-FinPerf RE'!G46 -> 0 | G23: ='A4-FinPerf RE'!H46 -> 0 | H23: ='A4-FinPerf RE'!I46 -> 0 | I23: ='A4-FinPerf RE'!J46 -> 0 | J23: ='A4-FinPerf RE'!K46 -> 0 | K23: ='A4-FinPerf RE'!L46 -> 0
A24: ='A4-FinPerf RE'!A47 -> Surplus/(Deficit) for the year | B24: =B22+B23 -> -525456252 | C24: =C22+C23 -> -140769406 | D24: 0 | E24: 927224369.3 | F24: 915752574.1 | G24: 915752574.1 | H24: 0 | I24: 680796594.7 | J24: 665599913.8 | K24: 782349902.8
A26: Capital expenditure & funds sources
A27: Capital expenditure | B27: ='A5-Capex'!C63 -> 600053545 | C27: ='A5-Capex'!D63 -> 486193633 | D27: ='A5-Capex'!E63 -> 479854918.8 | E27: ='A5-Capex'!F63 -> 580891581 | F27: ='A5-Capex'!G63 -> 747190359.8 | G27: ='A5-Capex'!H63 -> 747190359.8 | H27: ='A5-Capex'!I63 -> 0 | I27: ='A5-Capex'!J63 -> 576301627 | J27: ='A5-Capex'!K63 -> 471702461.7 | K27: ='A5-Capex'!L63 -> 445822964.3
A28: Transfers recognised - capital | B28: ='A5-Capex'!C70 -> 363745921.2 | C28: ='A5-Capex'!D70 -> 366029304 | D28: ='A5-Capex'!E70 -> 389132125 | E28: ='A5-Capex'!F70 -> 525891581 | F28: ='A5-Capex'!G70 -> 648605943.8 | G28: ='A5-Capex'!H70 -> 648605943.8 | H28: ='A5-Capex'!I70 -> 0 | I28: ='A5-Capex'!J70 -> 380796576 | J28: ='A5-Capex'!K70 -> 332115854.7 | K28: ='A5-Capex'!L70 -> 345142134.3
A30: ='A5-Capex'!A72 -> Borrowing | B30: ='A5-Capex'!C72 -> 88896142.76 | C30: ='A5-Capex'!D72 -> 47052852 | D30: ='A5-Capex'!E72 -> 4229818.17 | E30: ='A5-Capex'!F72 -> 0 | F30: ='A5-Capex'!G72 -> 0 | G30: ='A5-Capex'!H72 -> 0 | H30: ='A5-Capex'!I72 -> 0 | I30: ='A5-Capex'!J72 -> 100000000 | J30: ='A5-Capex'!K72 -> 100000000 | K30: ='A5-Capex'!L72 -> 0
A31: ='A5-Capex'!A73 -> Internally generated funds | B31: ='A5-Capex'!C73 -> 147411481 | C31: ='A5-Capex'!D73 -> 73111477 | D31: ='A5-Capex'!E73 -> 86493279 | E31: ='A5-Capex'!F73 -> 55000000 | F31: ='A5-Capex'!G73 -> 98584414 | G31: ='A5-Capex'!H73 -> 98584414 | H31: ='A5-Capex'!I73 -> 0 | I31: ='A5-Capex'!J73 -> 95505050.95 | J31: ='A5-Capex'!K73 -> 39586606.98 | K31: ='A5-Capex'!L73 -> 100680830
A32: Total sources of capital funds | B32: =+B28+B30+B31 -> 600053545 | C32: =+C28+C30+C31 -> 486193633 | D32: 479855222.2 | E32: 580891581 | F32: 747190357.8 | G32: 747190357.8 | H32: 0 | I32: 576301627 | J32: 471702461.7 | K32: 445822964.3
A34: Financial position
A35: ='A6-FinPos'!A12 -> Total current assets | B35: ='A6-FinPos'!C12 -> 1339001666 | C35: ='A6-FinPos'!D12 -> 2352368627 | D35: ='A6-FinPos'!E12 -> 2861868721 | E35: ='A6-FinPos'!F12 -> 2972344765 | F35: ='A6-FinPos'!G12 -> 2694173428 | G35: ='A6-FinPos'!H12 -> 2694173428 | H35: ='A6-FinPos'!I12 -> 0 | I35: ='A6-FinPos'!J12 -> 3808880705 | J35: ='A6-FinPos'!K12 -> 4344304011 | K35: ='A6-FinPos'!L12 -> 5195076944
A36: ='A6-FinPos'!A24 -> Total non current assets | B36: ='A6-FinPos'!C24 -> 8165408956 | C36: ='A6-FinPos'!D24 -> 7822828397 | D36: ='A6-FinPos'!E24 -> 7787361578 | E36: ='A6-FinPos'!F24 -> 8340425653 | F36: ='A6-FinPos'!G24 -> 8511254429 | G36: ='A6-FinPos'!H24 -> 8511254429 | H36: ='A6-FinPos'!I24 -> 0 | I36: ='A6-FinPos'!J24 -> 7969426606 | J36: ='A6-FinPos'!K24 -> 6840108082 | K36: ='A6-FinPos'!L24 -> 6064563156
A37: ='A6-FinPos'!A34 -> Total current liabilities | B37: ='A6-FinPos'!C34 -> 1367826748 | C37: ='A6-FinPos'!D34 -> 1476198845 | D37: ='A6-FinPos'!E34 -> 1893327922 | E37: ='A6-FinPos'!F34 -> 1441718351 | F37: ='A6-FinPos'!G34 -> 1345847148 | G37: ='A6-FinPos'!H34 -> 1345847148 | H37: ='A6-FinPos'!I34 -> 0 | I37: ='A6-FinPos'!J34 -> 1295697302 | J37: ='A6-FinPos'!K34 -> 1743828777 | K37: ='A6-FinPos'!L34 -> 2144834551
A38: ='A6-FinPos'!A39 -> Total non current liabilities | B38: ='A6-FinPos'!C39 -> 1181060537 | C38: ='A6-FinPos'!D39 -> 991034435 | D38: ='A6-FinPos'!E39 -> 816497835.6 | E38: ='A6-FinPos'!F39 -> 1091864952 | F38: ='A6-FinPos'!G39 -> 1091864952 | G38: ='A6-FinPos'!H39 -> 1091864952 | H38: ='A6-FinPos'!I39 -> 0 | I38: ='A6-FinPos'!J39 -> 1187237456 | J38: ='A6-FinPos'!K39 -> 968335022.8 | K38: ='A6-FinPos'!L39 -> 951652430.4
A39: Community wealth/Equity | B39: ='A6-FinPos'!C48 -> 6955523337 | C39: ='A6-FinPos'!D48 -> 7707963744 | D39: ='A6-FinPos'!E48 -> 7939404541 | E39: ='A6-FinPos'!F48 -> 8779187114 | F39: ='A6-FinPos'!G48 -> 8767715757 | G39: ='A6-FinPos'!H48 -> 8767715757 | H39: ='A6-FinPos'!I48 -> 0 | I39: ='A6-FinPos'!J48 -> 9295372552 | J39: ='A6-FinPos'!K48 -> 8472248292 | K39: ='A6-FinPos'!L48 -> 8163153119
A41: Cash flows
A42: Net cash from (used) operating | B42: ='A7-CFlow'!C17 -> 574982604 | C42: ='A7-CFlow'!D17 -> 374095861 | D42: ='A7-CFlow'!E17 -> 676226236 | E42: ='A7-CFlow'!F17 -> 752533430.4 | F42: ='A7-CFlow'!G17 -> 594287085.5 | G42: ='A7-CFlow'!H17 -> 594287085.5 | H42: ='A7-CFlow'!I17 -> 0 | I42: ='A7-CFlow'!J17 -> 636907927.5 | J42: ='A7-CFlow'!K17 -> 399155599.1 | K42: ='A7-CFlow'!L17 -> 486972911.7
A43: Net cash from (used) investing | B43: ='A7-CFlow'!C27 -> -676673962 | C43: ='A7-CFlow'!D27 -> -483556556 | D43: ='A7-CFlow'!E27 -> -381844005 | E43: ='A7-CFlow'!F27 -> -580891581 | F43: ='A7-CFlow'!G27 -> -747190357.8 | G43: ='A7-CFlow'!H27 -> -747190357.8 | H43: ='A7-CFlow'!I27 -> 0 | I43: ='A7-CFlow'!J27 -> -576301627 | J43: ='A7-CFlow'!K27 -> -471702461.7 | K43: ='A7-CFlow'!L27 -> -445822964.3
A44: Net cash from (used) financing | B44: ='A7-CFlow'!C36 -> -61681966 | C44: ='A7-CFlow'!D36 -> -94966367 | D44: ='A7-CFlow'!E36 -> -83600511 | E44: ='A7-CFlow'!F36 -> -79206000 | F44: ='A7-CFlow'!G36 -> -79206000 | G44: ='A7-CFlow'!H36 -> -79206000 | H44: ='A7-CFlow'!I36 -> 0 | I44: ='A7-CFlow'!J36 -> 8362465.853 | J44: ='A7-CFlow'!K36 -> 86871841.51 | K44: ='A7-CFlow'!L36 -> -14448664.34
A45: =LEFT('A7-CFlow'!A40,37) -> Cash/cash equivalents at the year end | B45: ='A7-CFlow'!C40 -> 512622307 | C45: ='A7-CFlow'!D40 -> 308195245 | D45: ='A7-CFlow'!E40 -> 518976965 | E45: ='A7-CFlow'!F40 -> 382435849.4 | F45: ='A7-CFlow'!G40 -> 286867694.7 | G45: ='A7-CFlow'!H40 -> 286867694.7 | H45: ='A7-CFlow'!I40 -> 0 | I45: ='A7-CFlow'!J40 -> 355836461.2 | J45: ='A7-CFlow'!K40 -> 370161440 | K45: ='A7-CFlow'!L40 -> 396862723.1
A47: Cash backing/surplus reconciliation
A48: ='A8-ResRecon'!A4 -> Cash and investments available | B48: ='A8-ResRecon'!C8 -> 526156054 | C48: ='A8-ResRecon'!D8 -> 310838242 | D48: ='A8-ResRecon'!E8 -> 518976967 | E48: ='A8-ResRecon'!F8 -> 385405520.9 | F48: ='A8-ResRecon'!G8 -> 286867049.5 | G48: ='A8-ResRecon'!H8 -> 286867049.5 | H48: ='A8-ResRecon'!I8 -> 0 | I48: ='A8-ResRecon'!J8 -> 355836461.2 | J48: ='A8-ResRecon'!K8 -> 370161440 | K48: ='A8-ResRecon'!L8 -> 396862723.1
A49: ='A8-ResRecon'!A10 -> Application of cash and investments | B49: ='A8-ResRecon'!C18 -> 623953497 | C49: ='A8-ResRecon'!D18 -> -402484217 | D49: ='A8-ResRecon'!E18 -> -212960686 | E49: ='A8-ResRecon'!F18 -> -874184991.3 | F49: ='A8-ResRecon'!G18 -> -646534878.3 | G49: ='A8-ResRecon'!H18 -> -835339192.3 | H49: ='A8-ResRecon'!I18 -> 0 | I49: ='A8-ResRecon'!J18 -> -1938345837 | J49: ='A8-ResRecon'!K18 -> -1821745801 | K49: ='A8-ResRecon'!L18 -> -2163897698
A50: Balance - surplus (shortfall) | B50: =B48-B49 -> -97797443 | C50: =C48-C49 -> 713322459 | D50: 731937653 | E50: 1259590512 | F50: 933401927.8 | G50: 1122206242 | H50: 0 | I50: 2294182298 | J50: 2191907241 | K50: 2560760421
A52: Asset management
A53: Asset register summary (WDV) | B53: ='A9-Asset'!C165 -> 7343364292 | C53: ='A9-Asset'!D165 -> 8114943436 | D53: ='A9-Asset'!E165 -> 7776759066 | E53: ='A9-Asset'!F165 -> 8299932731 | F53: ='A9-Asset'!G165 -> 7330583369 | G53: ='A9-Asset'!H165 -> 7278296220 | H53: ='A9-Asset'!H165 -> 7278296220 | I53: ='A9-Asset'!I165 -> 7603684243 | J53: ='A9-Asset'!J165 -> 7371783676 | K53: ='A9-Asset'!K165 -> 7969860313
A54: ='A9-Asset'!A168 -> Depreciation | B54: ='A9-Asset'!C168 -> 470106108 | C54: ='A9-Asset'!D168 -> 460955083 | D54: ='A9-Asset'!E168 -> 302561252.5 | E54: ='A9-Asset'!F168 -> 482441448.6 | F54: ='A9-Asset'!G168 -> 482441448.6 | G54: ='A9-Asset'!H168 -> 482441448.6 | H54: ='A9-Asset'!H168 -> 482441448.6 | I54: ='A9-Asset'!I168 -> 343877278.4 | J54: ='A9-Asset'!J168 -> 327648236.7 | K54: ='A9-Asset'!K168 -> 255045089
A55: Renewal and Upgrading of Existing Assets | B55: ='A9-Asset'!C37+'A9-Asset'!C69 -> 515763053.1 | C55: ='A9-Asset'!D37+'A9-Asset'!D69 -> 427389635.9 | D55: ='A9-Asset'!E37+'A9-Asset'!E69 -> 399137066 | E55: ='A9-Asset'!F37+'A9-Asset'!F69 -> 124650000 | F55: ='A9-Asset'!G37+'A9-Asset'!G69 -> 723780175.1 | G55: ='A9-Asset'!H37+'A9-Asset'!H69 -> 723780175.1 | H55: ='A9-Asset'!H37+'A9-Asset'!H69 -> 723780175.1 | I55: ='A9-Asset'!I37+'A9-Asset'!I69 -> 373119775 | J55: ='A9-Asset'!J37+'A9-Asset'!J69 -> 422114082.1 | K55: ='A9-Asset'!K37+'A9-Asset'!K69 -> 385438801.7
A56: Repairs and Maintenance | B56: ='A9-Asset'!C169 -> 171343507.7 | C56: ='A9-Asset'!D169 -> 0 | D56: ='A9-Asset'!E169 -> 57161591 | E56: ='A9-Asset'!F169 -> 233303814.3 | F56: ='A9-Asset'!G169 -> 233303814.3 | G56: ='A9-Asset'!H169 -> 233303814.3 | H56: ='A9-Asset'!H169 -> 233303814.3 | I56: ='A9-Asset'!I169 -> 405336559.7 | J56: ='A9-Asset'!J169 -> 390271758.4 | K56: ='A9-Asset'!K169 -> 383981272.8
A58: Free services
A59: Cost of Free Basic Services provided | B59: ='A10-SerDel'!C60 -> 171243307.3 | C59: ='A10-SerDel'!D60 -> 171798140.2 | D59: ='A10-SerDel'!E60 -> 0 | E59: ='A10-SerDel'!F60 -> 218603828.2 | F59: ='A10-SerDel'!G60 -> 218603828.2 | G59: ='A10-SerDel'!H60 -> 218603828.2 | H59: ='A10-SerDel'!I60 -> 214698464.2 | I59: ='A10-SerDel'!I60 -> 214698464.2 | J59: ='A10-SerDel'!J60 -> 229830824.6 | K59: ='A10-SerDel'!K60 -> 245966988.1
A60: Revenue cost of free services provided | B60: ='A10-SerDel'!C79 -> 414339108.9 | C60: ='A10-SerDel'!D79 -> 414860391.4 | D60: ='A10-SerDel'!E79 -> 108350.08 | E60: ='A10-SerDel'!F79 -> 131444221.4 | F60: ='A10-SerDel'!G79 -> 131444221.4 | G60: ='A10-SerDel'!H79 -> 131444221.4 | H60: ='A10-SerDel'!I79 -> 105677918 | I60: ='A10-SerDel'!I79 -> 105677918 | J60: ='A10-SerDel'!J79 -> 112017693.1 | K60: ='A10-SerDel'!K79 -> 119297868.2
A61: Households below minimum service level
A62: ='A10-SerDel'!A5 -> Water: | B62: ='A10-SerDel'!C14 -> 9318.72 | C62: ='A10-SerDel'!D14 -> 8505.0944 | D62: ='A10-SerDel'!E14 -> 8505.0944 | E62: ='A10-SerDel'!F14 -> 7889.100214 | F62: ='A10-SerDel'!G14 -> 7889.100214 | G62: ='A10-SerDel'!H14 -> 7889.100214 | H62: ='A10-SerDel'!I14 -> 7889.100214 | I62: ='A10-SerDel'!I14 -> 7889.100214 | J62: ='A10-SerDel'!J14 -> 7889.100214 | K62: ='A10-SerDel'!K14 -> 8311.167075
A63: ='A10-SerDel'!A16 -> Sanitation/sewerage: | B63: ='A10-SerDel'!C26 -> 2102.44 | C63: ='A10-SerDel'!D26 -> 1184.4888 | D63: ='A10-SerDel'!E26 -> 1184.4888 | E63: ='A10-SerDel'!F26 -> 353.5421475 | F63: ='A10-SerDel'!G26 -> 353.5421475 | G63: ='A10-SerDel'!H26 -> 353.5421475 | H63: ='A10-SerDel'!I26 -> 353.5421475 | I63: ='A10-SerDel'!I26 -> 353.5421475 | J63: ='A10-SerDel'!J26 -> 353.5421475 | K63: ='A10-SerDel'!K26 -> 372.4566524
A64: ='A10-SerDel'!A28 -> Energy: | B64: ='A10-SerDel'!C35 -> 10000 | C64: ='A10-SerDel'!D35 -> 8000 | D64: ='A10-SerDel'!E35 -> 8000 | E64: ='A10-SerDel'!F35 -> 4000 | F64: ='A10-SerDel'!G35 -> 4000 | G64: ='A10-SerDel'!H35 -> 4000 | H64: ='A10-SerDel'!I35 -> 4000 | I64: ='A10-SerDel'!I35 -> 4000 | J64: ='A10-SerDel'!J35 -> 4000 | K64: ='A10-SerDel'!K35 -> 4000
A65: ='A10-SerDel'!A37 -> Refuse: | B65: ='A10-SerDel'!C45 -> 44872.86 | C65: ='A10-SerDel'!D45 -> 40770.3172 | D65: ='A10-SerDel'!E45 -> 40770.3172 | E65: ='A10-SerDel'!F45 -> 28952.43801 | F65: ='A10-SerDel'!G45 -> 28952.43801 | G65: ='A10-SerDel'!H45 -> 28952.43801 | H65: ='A10-SerDel'!I45 -> 28952.43801 | I65: ='A10-SerDel'!I45 -> 28952.43801 | J65: ='A10-SerDel'!J45 -> 28952.43801 | K65: ='A10-SerDel'!K45 -> 28952.43801

Sheet A2-FinPerf SC
A1: =muni&" - "&Approve3 -> KZN225 Msunduzi - Table A2 Consolidated Budgeted Financial Performance (revenue and expenditure by functional classification)
A2: ="Functional Classification "&desc -> Functional Classification Description | B2: =head27 -> Ref | C2: =head1b -> 2017/18 | D2: =head1A -> 2018/19 | E2: =Head1 -> 2019/20 | F2: =Head2 -> Current Year 2020/21 | I2: =Head3 -> 2021/22 Medium Term Revenue & Expenditure Framework
A3: R thousand | B3: 1 | C3: =Head5 -> Audited Outcome | D3: =Head5 -> Audited Outcome | E3: =Head5 -> Audited Outcome | F3: =Head6 -> Original Budget | G3: =Head7 -> Adjusted Budget | H3: =Head8 -> Full Year Forecast | I3: =Head9 -> Budget Year 2021/22 | J3: =Head10 -> Budget Year +1 2022/23 | K3: =Head11 -> Budget Year +2 2023/24
A4: Revenue - Functional
A5: Governance and administration | C5: =SUM(C6:C8) -> 1871078794 | D5: =SUM(D6:D8) -> 2467301543 | E5: 1658394619 | F5: 1572338502 | G5: 1661336502 | H5: 1661336502 | I5: 1981018743 | J5: 2098624311 | K5: 2212335459
A6: Executive and council | C6: =A2A!C6 -> 8115405.88 | D6: =A2A!D6 -> 3096549 | E6: =A2A!E6 -> 4200350.03 | F6: =A2A!F6 -> 4447530.013 | G6: =A2A!G6 -> 4447530.013 | H6: =A2A!H6 -> 4447530.013 | I6: =A2A!I6 -> 3578714.869 | J6: =A2A!J6 -> 66433.86086 | K6: =A2A!K6 -> 70439.82267
A7: Finance and administration | C7: =A2A!C9 -> 1862966177 | D7: =A2A!D9 -> 2464204994 | E7: =A2A!E9 -> 1654194234 | F7: =A2A!F9 -> 1567890972 | G7: =A2A!G9 -> 1656888972 | H7: =A2A!H9 -> 1656888972 | I7: =A2A!I9 -> 1977440028 | J7: =A2A!J9 -> 2098557877 | K7: =A2A!K9 -> 2212265019
A8: Internal audit | C8: =A2A!C23 -> -2788.35 | D8: =A2A!D23 -> 0 | E8: =A2A!E23 -> 34.9 | F8: =A2A!F23 -> 0 | G8: =A2A!G23 -> 0 | H8: =A2A!H23 -> 0 | I8: =A2A!I23 -> 0 | J8: =A2A!J23 -> 0 | K8: =A2A!K23 -> 0
A9: Community and public safety | C9: =SUM(C10:C14) -> 114024500 | D9: =SUM(D10:D14) -> 189741250 | E9: 155266538.7 | F9: 369251054.5 | G9: 421154744.5 | H9: 421154744.5 | I9: 130529800.2 | J9: 48619702.59 | K9: 48771292.42
A10: Community and social services | C10: =A2A!C26 -> 28614804.88 | D10: =A2A!D26 -> 29034011 | E10: =A2A!E26 -> 38829586.05 | F10: =A2A!F26 -> 26242986.68 | G10: =A2A!G26 -> 26648021.68 | H10: =A2A!H26 -> 26648021.68 | I10: =A2A!I26 -> 21601427.47 | J10: =A2A!J26 -> 21075863.72 | K10: =A2A!K26 -> 20415325.2
A11: Sport and recreation | C11: =A2A!C48 -> 11184128.98 | D11: =A2A!D48 -> 10053818 | E11: =A2A!E48 -> 693112.67 | F11: =A2A!F48 -> 11002054.79 | G11: =A2A!G48 -> 11002054.79 | H11: =A2A!H48 -> 11002054.79 | I11: =A2A!I48 -> 291935.3701 | J11: =A2A!J48 -> 309247.1376 | K11: =A2A!K48 -> 327894.74
A12: Public safety | C12: =A2A!C54 -> 18371823.37 | D12: =A2A!D54 -> 23856429 | E12: =A2A!E54 -> 15024987.17 | F12: =A2A!F54 -> 3768735.464 | G12: =A2A!G54 -> 3768735.464 | H12: =A2A!H54 -> 3768735.464 | I12: =A2A!I54 -> 3970362.811 | J12: =A2A!J54 -> 4205805.326 | K12: =A2A!K54 -> 4459415.387
A13: Housing | C13: =A2A!C63 -> 55853742.81 | D13: =A2A!D63 -> 126796992 | E13: =A2A!E63 -> 100718852.8 | F13: =A2A!F63 -> 328237277.5 | G13: =A2A!G63 -> 379735932.5 | H13: =A2A!H63 -> 379735932.5 | I13: =A2A!I63 -> 104666074.6 | J13: =A2A!J63 -> 23028786.41 | K13: =A2A!K63 -> 23568657.09
A14: Health | C14: =A2A!C66 -> 0 | D14: =A2A!D66 -> 0 | E14: =A2A!E66 -> 0 | F14: =A2A!F66 -> 0 | G14: =A2A!G66 -> 0 | H14: =A2A!H66 -> 0 | I14: =A2A!I66 -> 0 | J14: =A2A!J66 -> 0 | K14: =A2A!K66 -> 0
A15: Economic and environmental services | C15: =SUM(C16:C18) -> 284890218.3 | D15: =SUM(D16:D18) -> 316615533 | E15: 273241464.6 | F15: 106923434.4 | G15: 109927537.4 | H15: 109927537.4 | I15: 38412632.05 | J15: 49674301.14 | K15: 54956161.49
A16: Planning and development | C16: =A2A!C75 -> 57660546.35 | D16: =A2A!D75 -> 58630681 | E16: =A2A!E75 -> 33595749.05 | F16: =A2A!F75 -> 41022287.16 | G16: =A2A!G75 -> 44026390.16 | H16: =A2A!H75 -> 44026390.16 | I16: =A2A!I75 -> 38298488.01 | J16: =A2A!J75 -> 49553388.34 | K16: =A2A!K75 -> 54827957.66
A17: Road transport | C17: =A2A!C86 -> 227108094.1 | D17: =A2A!D86 -> 257948727 | E17: =A2A!E86 -> 239601710.6 | F17: =A2A!F86 -> 65792799.76 | G17: =A2A!G86 -> 65792799.76 | H17: =A2A!H86 -> 65792799.76 | I17: =A2A!I86 -> 0 | J17: =A2A!J86 -> 0 | K17: =A2A!K86 -> 0
A18: Environmental protection | C18: =A2A!C91 -> 121577.81 | D18: =A2A!D91 -> 36125 | E18: =A2A!E91 -> 44004.88 | F18: =A2A!F91 -> 108347.4601 | G18: =A2A!G91 -> 108347.4601 | H18: =A2A!H91 -> 108347.4601 | I18: =A2A!I91 -> 114144.0492 | J18: =A2A!J91 -> 120912.7913 | K18: =A2A!K91 -> 128203.8327
A19: Trading services | C19: =SUM(C20:C23) -> 2681559726 | D19: =SUM(D20:D23) -> 2409575555 | E19: 3670460355 | F19: 4331953791 | G19: 4331577947 | H19: 4331577947 | I19: 4904764744 | J19: =SUM(J20:J23) -> 5392831095 | K19: 5836527765
A20: Energy sources | C20: =A2A!C99 -> 1475960320 | D20: =A2A!D99 -> 964526827.2 | E20: =A2A!E99 -> 2209984732 | F20: =A2A!F99 -> 2655002809 | G20: =A2A!G99 -> 2655002809 | H20: =A2A!H99 -> 2655002809 | I20: =A2A!I99 -> 3038086189 | J20: =A2A!J99 -> 3379997240 | K20: =A2A!K99 -> 3716027004
A21: Water management | C21: =A2A!C103 -> 855835877.4 | D21: =A2A!D103 -> 1063455446 | E21: =A2A!E103 -> 1060295199 | F21: =A2A!F103 -> 1253549994 | G21: =A2A!G103 -> 1253174150 | H21: =A2A!H103 -> 1253174150 | I21: =A2A!I103 -> 1476594054 | J21: =A2A!J103 -> 1599012309 | K21: =A2A!K103 -> 1684849401
A22: Waste water management | C22: =A2A!C107 -> 219430789.6 | D22: =A2A!D107 -> 222239922 | E22: =A2A!E107 -> 254352471.7 | F22: =A2A!F107 -> 173542219.9 | G22: =A2A!G107 -> 173542219.9 | H22: =A2A!H107 -> 173542219.9 | I22: =A2A!I107 -> 213394622.9 | J22: =A2A!J107 -> 226351357.8 | K22: =A2A!K107 -> 239006950.5
A23: Waste management | C23: =A2A!C112 -> 130332739.4 | D23: =A2A!D112 -> 159353360 | E23: =A2A!E112 -> 145827951.6 | F23: =A2A!F112 -> 249858768.2 | G23: =A2A!G112 -> 249858768.2 | H23: =A2A!H112 -> 249858768.2 | I23: =A2A!I112 -> 176689878.4 | J23: =A2A!J112 -> 187470188.5 | K23: =A2A!K112 -> 196644409.5
A24: Other | B24: 4 | C24: =A2A!C117 -> 51389836.79 | D24: =A2A!D117 -> 26919475 | E24: =A2A!E117 -> 32681201.21 | F24: =A2A!F117 -> 63610900.69 | G24: =A2A!G117 -> 63610900.69 | H24: =A2A!H117 -> 63610900.69 | I24: =A2A!I117 -> 64846075.39 | J24: =A2A!J117 -> 68691447.66 | K24: =A2A!K117 -> 72833541.95
A25: ="Total "&A4 -> Total Revenue - Functional | B25: 2 | C25: =C5+C9+C15+C19+C24 -> 5002943076 | D25: =D5+D9+D15+D19+D24 -> 5410153356 | E25: =E5+E9+E15+E19+E24 -> 5790044179 | F25: 6444077683 | G25: 6587607632 | H25: 6587607632 | I25: =I5+I9+I15+I19+I24 -> 7119571995 | J25: 7658440858 | K25: 8225424220
A27: Expenditure - Functional
A28: Governance and administration | C28: =SUM(C29:C31) -> 908162793.9 | D28: =SUM(D29:D31) -> 1594305157 | E28: 1041450363 | F28: 1354264744 | G28: 1405319174 | H28: 1405319174 | I28: 1216239065 | J28: 1344565090 | K28: 1457048809
A29: Executive and council | C29: =A2A!C128 -> 215359061.9 | D29: =A2A!D128 -> 157678062.5 | E29: =A2A!E128 -> 123578808.5 | F29: =A2A!F128 -> 137732466.4 | G29: =A2A!G128 -> 138609982.7 | H29: =A2A!H128 -> 138609982.7 | I29: =A2A!I128 -> 117003171.7 | J29: =A2A!J128 -> 121274774.9 | K29: =A2A!K128 -> 124895696.1
A30: Finance and administration | C30: =A2A!C131 -> 679958112.4 | D30: =A2A!D131 -> 1407041307 | E30: =A2A!E131 -> 899233616.7 | F30: =A2A!F131 -> 1194545745 | G30: =A2A!G131 -> 1244452659 | H30: =A2A!H131 -> 1244452659 | I30: =A2A!I131 -> 1077460435 | J30: =A2A!J131 -> 1200136140 | K30: =A2A!K131 -> 1307290143
A31: Internal audit | C31: =A2A!C145 -> 12845619.53 | D31: =A2A!D145 -> 29585787 | E31: =A2A!E145 -> 18637938.28 | F31: =A2A!F145 -> 21986532.79 | G31: =A2A!G145 -> 22256532.79 | H31: =A2A!H145 -> 22256532.79 | I31: =A2A!I145 -> 21775457.74 | J31: =A2A!J145 -> 23154175.27 | K31: =A2A!K145 -> 24862969.46
A32: Community and public safety | C32: =SUM(C33:C37) -> 468536565.9 | D32: =SUM(D33:D37) -> 527521416.5 | E32: 472238040.6 | F32: 440067727.2 | G32: 533334006.7 | H32: 533334006.7 | I32: 549083301.6 | J32: 584664439.7 | K32: 602800821.5
A33: Community and social services | C33: =A2A!C148 -> 113019937.6 | D33: =A2A!D148 -> 114264920 | E33: =A2A!E148 -> 113129414.6 | F33: =A2A!F148 -> 128373725.8 | G33: =A2A!G148 -> 130889937.8 | H33: =A2A!H148 -> 130889937.8 | I33: =A2A!I148 -> 138323594.9 | J33: =A2A!J148 -> 145373023.5 | K33: =A2A!K148 -> 144965836.9
A34: Sport and recreation | C34: =A2A!C170 -> 137259360 | D34: =A2A!D170 -> 121845681.8 | E34: =A2A!E170 -> 102369147.3 | F34: =A2A!F170 -> 114418472.7 | G34: =A2A!G170 -> 114548472.7 | H34: =A2A!H170 -> 114548472.7 | I34: =A2A!I170 -> 133116283.9 | J34: =A2A!J170 -> 151549371.9 | K34: =A2A!K170 -> 158129782.9
A35: Public safety | C35: =A2A!C176 -> 152733927.4 | D35: =A2A!D176 -> 170573214.7 | E35: =A2A!E176 -> 193214425.3 | F35: =A2A!F176 -> 106871795.3 | G35: =A2A!G176 -> 140511795.8 | H35: =A2A!H176 -> 140511795.8 | I35: =A2A!I176 -> 211547136.6 | J35: =A2A!J176 -> 220324319.2 | K35: =A2A!K176 -> 230020243.2
A36: Housing | C36: =A2A!C185 -> 60453655.17 | D36: =A2A!D185 -> 120625836 | E36: =A2A!E185 -> 58055817.76 | F36: =A2A!F185 -> 90129848.36 | G36: =A2A!G185 -> 147109915.4 | H36: =A2A!H185 -> 147109915.4 | I36: =A2A!I185 -> 50925986.88 | J36: =A2A!J185 -> 51509773.94 | K36: =A2A!K185 -> 52895575.44
A37: Health | C37: =A2A!C188 -> 5069685.76 | D37: =A2A!D188 -> 211764 | E37: =A2A!E188 -> 5469235.54 | F37: =A2A!F188 -> 273885.0279 | G37: =A2A!G188 -> 273885.0279 | H37: =A2A!H188 -> 273885.0279 | I37: =A2A!I188 -> 15170299.41 | J37: =A2A!J188 -> 15907951.11 | K37: =A2A!K188 -> 16789383.06
A38: Economic and environmental services | C38: =SUM(C39:C41) -> 338301626.6 | D38: =SUM(D39:D41) -> 280587711 | E38: 326641282.9 | F38: 288173315.6 | G38: 294605680.6 | H38: 294605680.6 | I38: 421022081.1 | J38: 420654008 | K38: 390576312.3
A39: Planning and development | C39: =A2A!C197 -> 73017068.09 | D39: =A2A!D197 -> 86015704.44 | E39: =A2A!E197 -> 83509759.39 | F39: =A2A!F197 -> 92239503.88 | G39: =A2A!G197 -> 94069123.88 | H39: =A2A!H197 -> 94069123.88 | I39: =A2A!I197 -> 73618014.47 | J39: =A2A!J197 -> 76827259.32 | K39: =A2A!K197 -> 80833027.6
A40: Road transport | C40: =A2A!C208 -> 253088873.6 | D40: =A2A!D208 -> 177738673.6 | E40: =A2A!E208 -> 222698043.4 | F40: =A2A!F208 -> 171068986.7 | G40: =A2A!G208 -> 175671731.8 | H40: =A2A!H208 -> 175671731.8 | I40: =A2A!I208 -> 321529184.4 | J40: =A2A!J208 -> 317945459.8 | K40: =A2A!K208 -> 281577039.7
A41: Environmental protection | C41: =A2A!C213 -> 12195684.9 | D41: =A2A!D213 -> 16833333 | E41: =A2A!E213 -> 20433480.06 | F41: =A2A!F213 -> 24864824.96 | G41: =A2A!G213 -> 24864824.96 | H41: =A2A!H213 -> 24864824.96 | I41: =A2A!I213 -> 25874882.14 | J41: =A2A!J213 -> 25881288.92 | K41: =A2A!K213 -> 28166244.98
A42: Trading services | C42: =SUM(C43:C46) -> 3747922600 | D42: =SUM(D43:D46) -> 3076128616 | E42: 3649462489 | F42: =SUM(F43:F46) -> 3353046547 | G42: 3358591185 | H42: 3358591185 | I42: 4189944597 | J42: 4573063590 | K42: =SUM(K43:K46) -> 4919283179
A43: Energy sources | C43: =A2A!C221 -> 2333576254 | D43: =A2A!D221 -> 1819221127 | E43: =A2A!E221 -> 2064060141 | F43: =A2A!F221 -> 2291332273 | G43: =A2A!G221 -> 2205525043 | H43: =A2A!H221 -> 2205525043 | I43: =A2A!I221 -> 2660033713 | J43: =A2A!J221 -> 2950257300 | K43: =A2A!K221 -> 3221453025
A44: Water management | C44: =A2A!C225 -> 1067151586 | D44: =A2A!D225 -> 878194761.9 | E44: =A2A!E225 -> 1207807520 | F44: =A2A!F225 -> 0 | G44: =A2A!G225 -> 31023406.77 | H44: =A2A!H225 -> 31023406.77 | I44: =A2A!I225 -> 1127189124 | J44: =A2A!J225 -> 1200913252 | K44: =A2A!K225 -> 1256504353
A45: Waste water management | C45: =A2A!C229 -> 265209594.3 | D45: =A2A!D229 -> 258354772 | E45: =A2A!E229 -> 252760435 | F45: =A2A!F229 -> 931929869 | G45: =A2A!G229 -> 995608331 | H45: =A2A!H229 -> 995608331 | I45: =A2A!I229 -> 287545278.3 | J45: =A2A!J229 -> 301919809.3 | K45: =A2A!K229 -> 315510422
A46: Waste management | C46: =A2A!C234 -> 81985165.73 | D46: =A2A!D234 -> 120357955.2 | E46: =A2A!E234 -> 124834392 | F46: =A2A!F234 -> 129784404.9 | G46: =A2A!G234 -> 126434404.9 | H46: =A2A!H234 -> 126434404.9 | I46: =A2A!I234 -> 115176481.1 | J46: =A2A!J234 -> 119973229.7 | K46: =A2A!K234 -> 125815378.7
A47: Other | B47: 4 | C47: =A2A!C239 -> 65475741.97 | D47: =A2A!D239 -> 72379861.56 | E47: =A2A!E239 -> 76856662.09 | F47: =A2A!F239 -> 81300979.88 | G47: =A2A!G239 -> 81300979.88 | H47: =A2A!H239 -> 81300979.88 | I47: =A2A!I239 -> 62486356.9 | J47: =A2A!J239 -> 68203209.37 | K47: =A2A!K239 -> 69358457.51
A48: ="Total "&A27 -> Total Expenditure - Functional | B48: 3 | C48: =C28+C32+C38+C42+C47 -> 5528399328 | D48: =D28+D32+D38+D42+D47 -> 5550922762 | E48: =E28+E32+E38+E42+E47 -> 5566648838 | F48: =F28+F32+F38+F42+F47 -> 5516853314 | G48: 5673151027 | H48: 5673151027 | I48: 6438775401 | J48: 6991150337 | K48: 7439067579
A49: =result -> Surplus/(Deficit) for the year | C49: =C25-C48 -> -525456252 | D49: =D25-D48 -> -140769406 | E49: 223395341.2 | F49: 927224369.3 | G49: 914456605.2 | H49: 914456605.2 | I49: 680796594.7 | J49: 667290520.5 | K49: 786356640.6
A50: =head27a -> References
A51: 1. Government Finance Statistics Functions and Sub-functions are standardised to assist the compilation of national and international accounts for comparison purposes
A52: 2. Total Revenue by functional classification must reconcile to Total Operating Revenue shown in Budgeted Financial Performance (revenue and expenditure)
A53: 3. Total Expenditure by Functional Classification must reconcile to Total Operating Expenditure shown in Budgeted Financial Performance (revenue and expenditure)
A54: 4. All amounts must be classified under a functional classification . The GFS function 'Other' is only for Abbatoirs, Air Transport, Forestry, Licensing and Regulation, Markets and Tourism - and if used must be supported by footnotes. Nothing else may be placed under 'Other'. Assign associate share to relevant classification.
A57: check oprev balance | C57: =C25-'A4-FinPerf RE'!C59 -> 0 | D57: =D25-'A4-FinPerf RE'!D59 -> 0 | E57: =E25-'A4-FinPerf RE'!E59 -> 8.779999733 | F57: =F25-'A4-FinPerf RE'!F59 -> 375844 | G57: =G25-'A4-FinPerf RE'!G59 -> -1296408 | H57: =H25-'A4-FinPerf RE'!H59 -> -1296408 | I57: =I25-'A4-FinPerf RE'!J59 -> 320361382.3 | J57: =J25-'A4-FinPerf RE'!K59 -> 341833517.8 | K57: =K25-'A4-FinPerf RE'!L59 -> 365249856.2
A58: check opexp balance | C58: =C48-'A4-FinPerf RE'!C35 -> 0.01999950409 | D58: =D48-'A4-FinPerf RE'!D35 -> 0 | E58: =E48-'A4-FinPerf RE'!E35 -> 0 | F58: =F48-'A4-FinPerf RE'!F35 -> 375844 | G58: =G48-'A4-FinPerf RE'!G35 -> -439.0832253 | H58: =H48-'A4-FinPerf RE'!H35 -> -439.0832253 | I58: =I48-'A4-FinPerf RE'!J35 -> 320361382.3 | J58: =J48-'A4-FinPerf RE'!K35 -> 340142911.1 | K58: =K48-'A4-FinPerf RE'!L35 -> 361243118.4

Sheet A2A
A1: =muni&" - "&Approve3 -> KZN225 Msunduzi - Table A2 Consolidated Budgeted Financial Performance (revenue and expenditure by functional classification) | M1: 7'
A2: ="Functional Classification "&desc -> Functional Classification Description | B2: =head27 -> Ref | C2: =head1b -> 2017/18 | D2: =head1A -> 2018/19 | E2: =Head1 -> 2019/20 | F2: =Head2 -> Current Year 2020/21 | I2: =Head3 -> 2021/22 Medium Term Revenue & Expenditure Framework
A3: R thousand | B3: 1 | C3: =Head5 -> Audited Outcome | D3: =Head5 -> Audited Outcome | E3: =Head5 -> Audited Outcome | F3: =Head6 -> Original Budget | G3: =Head7 -> Adjusted Budget | H3: =Head8 -> Full Year Forecast | I3: =Head9 -> Budget Year 2021/22 | J3: =Head10 -> Budget Year +1 2022/23 | K3: =Head11 -> Budget Year +2 2023/24
A4: Revenue - Functional | M4: 3562576.715 | N4: 3990085.921 | O4: 4389094.513
A5: Municipal governance and administration | C5: =C6+C9+C23 -> 1871078794 | D5: 2467301543 | E5: 1658394619 | F5: 1572338502 | G5: 1661336502 | H5: 1661336502 | I5: 1981018743 | J5: 2098624311 | K5: 2212335459 | L5: 1661336502 | M5: 3562576.715 | N5: 3990085.921 | O5: 4389094.513
A6: Executive and council | C6: =SUM(C7:C8) -> 8115405.88 | D6: =SUM(D7:D8) -> 3096549 | E6: 4200350.03 | F6: 4447530.013 | G6: 4447530.013 | H6: 4447530.013 | I6: 3578714.869 | J6: 66433.86086 | K6: 70439.82267 | L6: 4447530.013 | M6: 105662918 | N6: 110312086.4 | O6: 115276130.3
A7: Mayor and Council | C7: 38148.93 | E7: -128873.71 | L7: 0 | M7: 105662918 | N7: 110312086.4 | O7: 115276130.3
A8: Municipal Manager, Town Secretary and Chief Executive | C8: 8077256.95 | D8: 3096549 | E8: 4329223.74 | F8: 4447530.013 | G8: 4447530.013 | H8: 4447530.013 | I8: 3578714.869 | J8: 66433.86086 | K8: 70439.82267 | L8: 4447530.013 | M8: 6977655.264 | N8: 7391430.222 | O8: 7837133.464
A9: Finance and administration | C9: =SUM(C10:C22) -> 1862966177 | D9: 2464204994 | E9: 1654194234 | F9: 1567890972 | G9: 1656888972 | H9: 1656888972 | I9: 1977440028 | J9: 2098557877 | K9: 2212265019 | L9: 1656888972 | M9: 6977655.264 | N9: 7391430.222 | O9: 7837133.464
A10: Administrative and Corporate Support | C10: -1108.29 | D10: 380 | E10: 3500875.81 | G10: 0 | L10: 0 | M10: 13255972.54 | N10: 14183890.62 | O10: 15176762.96
A11: Asset Management | C11: 7758588.04 | D11: 280027 | E11: 1356895.9 | G11: 0 | I11: 11713700.32 | J11: 12408322.75 | K11: 13156544.61 | L11: 0 | M11: 13255972.54 | N11: 14183890.62 | O11: 15176762.96
A12: Finance | C12: 1798580756 | D12: 2417315969 | E12: 1590314851 | F12: 1548651792 | G12: 1637649792 | H12: 1637649792 | I12: 1939216554 | J12: 2058161071 | K12: 2168043280 | L12: 1637649792 | M12: 190902259.7 | N12: 204265417.9 | O12: 218563997.1
A13: Fleet Management | G13: 0 | H13: 0 | L13: 0 | M13: 190902259.7 | N13: 204265417.9 | O13: 218563997.1
A14: Human Resources | C14: 6255068.83 | D14: 24486021 | E14: 9291052.94 | F14: 18980058.64 | G14: 18980058.64 | H14: 18980058.64 | I14: 12339543.78 | J14: 12977958.68 | K14: 15149535.2 | L14: 18980058.64
A15: Information Technology | C15: -47306.64 | D15: 11858 | E15: 616.54 | F15: 2016.014 | G15: 2016.014 | H15: 2016.014 | I15: 2123.870749 | J15: 2249.816284 | K15: 2385.480206 | L15: 2016.014
A16: Legal Services | C16: -228133.21 | D16: 9395 | E16: 135.57 | F16: 257106.0316 | G16: 257106.0316 | H16: 257106.0316 | I16: 270861.2043 | J16: 286923.2737 | K16: 304224.7471 | L16: 257106.0316
A17: Marketing, Customer Relations, Publicity and Media Co-ordination | C17: -4.23 | E17: 13.04 | G17: 0 | L17: 0
A18: Property Services | C18: 14347802.9 | D18: 21864521 | E18: 39624986.5 | G18: 0 | I18: 13602002.3 | J18: 14408601.03 | K18: 15277439.67 | L18: 0
A19: Risk Management | E19: 173.73 | G19: 0 | L19: 0
A20: Security Services | C20: 7872.74 | D20: 138 | E20: 173.73 | G20: 0 | L20: 0
A21: Supply Chain Management | C21: 36292640.32 | D21: 236685 | E21: 79973.34 | G21: 0 | I21: 295242.5403 | J21: 312750.423 | K21: 331609.2735 | L21: 0
A22: Valuation Service | E22: 10024486.05 | G22: 0 | L22: 0
A23: Internal audit | C23: =SUM(C24:C24) -> -2788.35 | D23: 0 | E23: 34.9 | F23: 0 | G23: 0 | H23: 0 | I23: 0 | J23: 0 | K23: 0 | L23: 0
A24: Governance Function | C24: -2788.35 | E24: 34.9 | L24: 0
A25: Community and public safety | C25: =C26+C48+C54+C63+C66 -> 114024500 | D25: 189741250 | E25: 155266538.7 | F25: 369251054.5 | G25: 421154744.5 | H25: 421154744.5 | I25: 130529800.2 | J25: 48619702.59 | K25: 48771292.42 | L25: 421154744.5
A26: Community and social services | C26: =SUM(C27:C47) -> 28614804.88 | D26: =SUM(D27:D47) -> 29034011 | E26: 38829586.05 | F26: 26242986.68 | G26: 26648021.68 | H26: 26648021.68 | I26: 21601427.47 | J26: 21075863.72 | K26: 20415325.2 | L26: 26648021.68
A27: Aged Care | C27: -0.47 | E27: 63 | L27: 0
A28: Agricultural | L28: 0
A29: Animal Care and Diseases | L29: 0
A30: Cemeteries, Funeral Parlours and Crematoriums | C30: 3097949.28 | D30: 609991 | E30: 2698963.34 | F30: 3523188.282 | G30: 3523188.282 | H30: 3523188.282 | I30: 3711678.855 | J30: 3931781.411 | K30: 4168867.83 | L30: 3523188.282
A31: Child Care Facilities | G31: 0 | H31: 0 | L31: 0
A32: Community Halls and Facilities | C32: 4189000.67 | D32: 7957867 | E32: 6685882.14 | F32: 1045798.401 | G32: 1045798.401 | H32: 1045798.401 | I32: 1101748.615 | J32: 1167082.308 | K32: 1237457.371 | L32: 1045798.401
A33: Consumer Protection | G33: 0 | H33: 0 | L33: 0
A34: Cultural Matters | G34: 0 | H34: 0 | L34: 0
A35: Disaster Management | G35: 0 | H35: 0 | L35: 0
A36: Education | G36: 0 | H36: 0 | L36: 0
A37: Indigenous and Customary Law | G37: 0 | H37: 0 | L37: 0
A38: Industrial Promotion | G38: 0 | H38: 0 | L38: 0
A39: Language Policy | G39: 0 | H39: 0 | L39: 0
A40: Libraries and Archives | C40: 21247691.89 | D40: 20000000 | E40: 28731129.23 | F40: 10974000 | G40: 10974000 | H40: 10974000 | I40: 16363000 | J40: 15438000 | K40: 14438000 | L40: 10974000
A41: Literacy Programmes | G41: 0 | H41: 0 | L41: 0
A42: Media Services | G42: 0 | H42: 0 | L42: 0
A43: Museums and Art Galleries | C43: 124218.47 | D43: 441000 | E43: 713369.28 | F43: 10700000 | G43: 11105035 | H43: 11105035 | I43: 425000 | J43: 539000 | K43: 571000 | L43: 11105035
A44: Population Development | C44: -44054.96 | D44: 25153 | E44: 179.06 | L44: 0
A45: Provincial Cultural Matters | L45: 0
A46: Theatres | L46: 0
A47: Zoo's | L47: 0
A48: Sport and recreation | C48: =SUM(C49:C53) -> 11184128.98 | D48: =SUM(D49:D53) -> 10053818 | E48: 693112.67 | F48: 11002054.79 | G48: 11002054.79 | H48: 11002054.79 | I48: 291935.3701 | J48: 309247.1376 | K48: 327894.74 | L48: 11002054.79
A49: Beaches and Jetties | L49: 0
A50: Casinos, Racing, Gambling, Wagering | L50: 0
A51: Community Parks (including Nurseries) | C51: -288.91 | E51: 527.86 | L51: 0
A52: Recreational Facilities | C52: 11184417.89 | D52: 10053818 | E52: 692584.81 | F52: 11002054.79 | G52: 11002054.79 | H52: 11002054.79 | I52: 291935.3701 | J52: 309247.1376 | K52: 327894.74 | L52: 11002054.79
A53: Sports Grounds and Stadiums | L53: 0
A54: Public safety | C54: =SUM(C55:C62) -> 18371823.37 | D54: 23856429 | E54: 15024987.17 | F54: 3768735.464 | G54: 3768735.464 | H54: 3768735.464 | I54: 3970362.811 | J54: 4205805.326 | K54: 4459415.387 | L54: 3768735.464
A55: Civil Defence | C55: -10.66 | D55: 5397 | E55: -814.29 | L55: 0
A56: Cleansing | L56: 0
A57: Control of Public Nuisances | L57: 0
A58: Fencing and Fences | L58: 0
A59: Fire Fighting and Protection | C59: 308155.74 | D59: 312733 | E59: 216610.23 | F59: 334269.5213 | G59: 334269.5213 | H59: 334269.5213 | I59: 352152.9407 | J59: 373035.6101 | K59: 395529.6574 | L59: 334269.5213
A60: Licensing and Control of Animals | F60: 0 | G60: 0 | H60: 0 | L60: 0
A61: Police Forces, Traffic and Street Parking Control | C61: 18063678.29 | D61: 23538299 | E61: 14809191.23 | F61: 3434465.943 | G61: 3434465.943 | H61: 3434465.943 | I61: 3618209.871 | J61: 3832769.716 | K61: 4063885.73 | L61: 3434465.943
A62: Pounds | L62: 0
A63: Housing | C63: =SUM(C64:C65) -> 55853742.81 | D63: =SUM(D64:D65) -> 126796992 | E63: 100718852.8 | F63: 328237277.5 | G63: 379735932.5 | H63: 379735932.5 | I63: 104666074.6 | J63: 23028786.41 | K63: 23568657.09 | L63: 379735932.5
A64: Housing | C64: 55853742.81 | D64: 126796992 | E64: 100718852.8 | F64: 328237277.5 | G64: 379735932.5 | H64: 379735932.5 | I64: 104666074.6 | J64: 23028786.41 | K64: 23568657.09 | L64: 379735932.5
A65: Informal Settlements | L65: 0
A66: Health | C66: =SUM(C67:C73) -> 0 | D66: =SUM(D67:D73) -> 0 | E66: 0 | F66: 0 | G66: 0 | H66: 0 | I66: 0 | J66: 0 | K66: 0 | L66: 0
A67: Ambulance | L67: 0
A68: Health Services | L68: 0
A69: Laboratory Services | L69: 0
A70: Food Control | L70: 0
A71: Health Surveillance and Prevention of Communicable Diseases including immunizations | L71: 0
A72: Vector Control | L72: 0
A73: Chemical Safety | L73: 0
A74: Economic and environmental services | C74: =C75+C86+C91 -> 284890218.3 | D74: 316615533 | E74: 273241464.6 | F74: 106923434.4 | G74: 109927537.4 | H74: 109927537.4 | I74: 38412632.05 | J74: 49674301.14 | K74: 54956161.49 | L74: 109927537.4
A75: Planning and development | C75: =SUM(C76:C85) -> 57660546.35 | D75: =SUM(D76:D85) -> 58630681 | E75: 33595749.05 | F75: 41022287.16 | G75: 44026390.16 | H75: 44026390.16 | I75: 38298488.01 | J75: 49553388.34 | K75: 54827957.66 | L75: 44026390.16
A76: Billboards | L76: 0
A77: Corporate Wide Strategic Planning (IDPs, LEDs) | C77: -11744.97 | E77: 13.78 | L77: 0
A78: Central City Improvement District | L78: 0
A79: Development Facilitation | L79: 0
A80: Economic Development/Planning | C80: -22108.31 | E80: 23.95 | G80: 4000000 | H80: 4000000 | L80: 4000000
A81: Regional Planning and Development | G81: 0 | H81: 0 | L81: 0
A82: Town Planning, Building Regulations and Enforcement, and City Engineer | C82: 57694399.63 | D82: 58630681 | E82: 33595711.32 | F82: 41022287.16 | G82: 40026390.16 | H82: 40026390.16 | I82: 38298488.01 | J82: 49553388.34 | K82: 54827957.66 | L82: 40026390.16
A83: Project Management Unit | L83: 0
A84: Provincial Planning | L84: 0
A85: Support to Local Municipalities | L85: 0
A86: Road transport | C86: =SUM(C87:C90) -> 227108094.1 | D86: 257948727 | E86: 239601710.6 | F86: 65792799.76 | G86: 65792799.76 | H86: 65792799.76 | I86: 0 | J86: 0 | K86: 0 | L86: 65792799.76
A87: Public Transport | C87: 134317688.4 | D87: 199373912 | E87: 135535047.3 | F87: 65792799.76 | G87: 65792799.76 | H87: 65792799.76 | L87: 65792799.76
A88: Road and Traffic Regulation | L88: 0
A89: Roads | C89: 92790405.76 | D89: 58453902 | E89: 104066663.3 | L89: 0
A90: Taxi Ranks | D90: 120913 | L90: 0
A91: Environmental protection | C91: =SUM(C92:C97) -> 121577.81 | D91: =SUM(D92:D97) -> 36125 | E91: 44004.88 | F91: 108347.4601 | G91: 108347.4601 | H91: 108347.4601 | I91: 114144.0492 | J91: 120912.7913 | K91: 128203.8327 | L91: 108347.4601
A92: Biodiversity and Landscape | L92: 0
A93: Coastal Protection | L93: 0
A94: Indigenous Forests | L94: 0
A95: Nature Conservation | L95: 0
A96: Pollution Control | C96: 121577.81 | D96: 36125 | E96: 44004.88 | F96: 108347.4601 | G96: 108347.4601 | H96: 108347.4601 | I96: 114144.0492 | J96: 120912.7913 | K96: 128203.8327 | L96: 108347.4601
A97: Soil Conservation | L97: 0
A98: Trading services | C98: =C99+C103+C107+C112 -> 2681559726 | D98: =D99+D103+D107+D112 -> 2409575555 | E98: 3670460355 | F98: 4331953791 | G98: 4331577947 | H98: 4331577947 | I98: 4904764744 | J98: 5392831095 | K98: =K99+K103+K107+K112 -> 5836527765 | L98: 4331577947
A99: Energy sources | C99: =SUM(C100:C102) -> 1475960320 | D99: =SUM(D100:D102) -> 964526827.2 | E99: 2209984732 | F99: 2655002809 | G99: 2655002809 | H99: 2655002809 | I99: 3038086189 | J99: 3379997240 | K99: 3716027004 | L99: 2655002809
A100: Electricity | C100: 1475960320 | D100: 963932079.2 | E100: 2209067332 | F100: 2635365106 | G100: 2635365106 | H100: 2635365106 | I100: 3038086189 | J100: 3379997240 | K100: 3716027004 | L100: 2635365106
A101: Street Lighting and Signal Systems | D101: 594748 | E101: 917400.07 | F101: 19637703.26 | G101: 19637703.26 | H101: 19637703.26 | L101: 19637703.26
A102: Nonelectric Energy | F102: 0 | L102: 0
A103: Water management | C103: =SUM(C104:C106) -> 855835877.4 | D103: =SUM(D104:D106) -> 1063455446 | E103: 1060295199 | F103: 1253549994 | G103: 1253174150 | H103: 1253174150 | I103: 1476594054 | J103: 1599012309 | K103: 1684849401 | L103: 1253174150
A104: Water Treatment | L104: 0
A105: Water Distribution | C105: 855835877.4 | D105: 1063455446 | E105: 1060295199 | F105: 1253549994 | G105: 1253174150 | H105: 1253174150 | I105: 1476594054 | J105: 1599012309 | K105: 1684849401 | L105: 1253174150
A106: Water Storage | L106: 0
A107: Waste water management | C107: =SUM(C108:C111) -> 219430789.6 | D107: =SUM(D108:D111) -> 222239922 | E107: 254352471.7 | F107: 173542219.9 | G107: 173542219.9 | H107: 173542219.9 | I107: 213394622.9 | J107: 226351357.8 | K107: 239006950.5 | L107: 173542219.9
A108: Public Toilets | C108: -3078.65 | E108: 7 | L108: 0
A109: Sewerage | C109: 219269404 | D109: 222239761 | E109: 254350145.8 | F109: 173542219.9 | G109: 173542219.9 | H109: 173542219.9 | I109: 213394622.9 | J109: 226351357.8 | K109: 239006950.5 | L109: 173542219.9
A110: Storm Water Management | C110: 164464.28 | D110: 161 | E110: 2318.9 | L110: 0
A111: Waste Water Treatment | L111: 0
A112: Waste management | C112: =SUM(C113:C116) -> 130332739.4 | D112: =SUM(D113:D116) -> 159353360 | E112: 145827951.6 | F112: 249858768.2 | G112: 249858768.2 | H112: 249858768.2 | I112: 176689878.4 | J112: 187470188.5 | K112: 196644409.5 | L112: 249858768.2
A113: Recycling | L113: 0
A114: Solid Waste Disposal (Landfill Sites) | C114: 21468274.25 | D114: 39818614 | E114: 23816106.46 | F114: 249858768.2 | G114: 249858768.2 | H114: 249858768.2 | I114: 36843731.06 | J114: 39331060.45 | K114: 39572415.82 | L114: 249858768.2
A115: Solid Waste Removal | C115: 108864465.1 | D115: 119534746 | E115: 122011845.2 | I115: 139846147.4 | J115: 148139128 | K115: 157071993.7 | L115: 0
A116: Street Cleaning | L116: 0
A117: Other | C117: =SUM(C118:C123) -> 51389836.79 | D117: =SUM(D118:D123) -> 26919475 | E117: 32681201.21 | F117: 63610900.69 | G117: 63610900.69 | H117: 63610900.69 | I117: 64846075.39 | J117: 68691447.66 | K117: 72833541.95 | L117: 63610900.69
A118: Abattoirs | L118: 0
A119: Air Transport | C119: 11991073.64 | D119: 7068721 | E119: 7386267.73 | F119: 12490719.59 | G119: 12490719.59 | H119: 12490719.59 | I119: 10525223.09 | J119: 11149368.82 | K119: 11821675.76 | L119: 12490719.59
A120: Forestry | C120: 9923913.8 | D120: 6918116 | E120: 4347825.95 | F120: 7663197.093 | G120: 7663197.093 | H120: 7663197.093 | I120: 8073178.138 | J120: 8551917.601 | K120: 9067598.233 | L120: 7663197.093
A121: Licensing and Regulation | C121: 362630.42 | D121: 352870 | E121: 103515.5 | I121: 465741.516 | J121: 493359.9879 | K121: 523109.5952 | L121: 0
A122: Markets | C122: 29106812.27 | D122: 12579768 | E122: 20843579.62 | F122: 43456984 | G122: 43456984 | H122: 43456984 | I122: 45781932.64 | J122: 48496801.25 | K122: 51421158.36 | L122: 43456984
A123: Tourism | C123: 5406.66 | E123: 12.41 | L123: 0
A124: ="Total "&A4 -> Total Revenue - Functional | B124: 2 | C124: =C5+C25+C74+C98+C117 -> 5002943076 | D124: 5410153356 | E124: 5790044179 | F124: 6444077683 | G124: 6587607632 | H124: 6587607632 | I124: 7119571995 | J124: 7658440858 | K124: 8225424220 | L124: 6587607632
L125: 0
A126: Expenditure - Functional | L126: 0
A127: =A5 -> Municipal governance and administration | C127: =C128+C131+C145 -> 908162793.9 | D127: 1594305157 | E127: 1041450363 | F127: 1354264744 | G127: 1405319174 | H127: 1405319174 | I127: 1216239065 | J127: 1344565090 | K127: 1457048809 | L127: 1405319174 | M127: -3562576.715 | N127: -3990085.921 | O127: 4389094.513
A128: Executive and council | C128: =SUM(C129:C130) -> 215359061.9 | D128: 157678062.5 | E128: 123578808.5 | F128: 137732466.4 | G128: 138609982.7 | H128: 138609982.7 | I128: 117003171.7 | J128: 121274774.9 | K128: 124895696.1 | L128: 138609982.7 | M128: -3562576.715 | N128: -3990085.921 | O128: 4389094.513
A129: Mayor and Council | C129: 92779927.99 | D129: 93734726 | E129: 79058829.48 | F129: 86039675.17 | G129: 88752895.17 | H129: 88752895.17 | I129: 81937773.72 | J129: 87734240.29 | K129: 91612971.74 | L129: 88752895.17 | M129: -105662918 | N129: -110312086.4 | O129: 115276130.3
A130: Municipal Manager, Town Secretary and Chief Executive | C130: 122579133.9 | D130: 63943336.54 | E130: 44519979.03 | F130: 51692791.24 | G130: 49857087.56 | H130: 49857087.56 | I130: 35065398.01 | J130: 33540534.59 | K130: 33282724.4 | L130: 49857087.56 | M130: -105662918 | N130: -110312086.4 | O130: 115276130.3
A131: Finance and administration | C131: =SUM(C132:C144) -> 679958112.4 | D131: 1407041307 | E131: 899233616.7 | F131: 1194545745 | G131: 1244452659 | H131: 1244452659 | I131: 1077460435 | J131: 1200136140 | K131: 1307290143 | L131: 1244452659 | M131: -6977655.264 | N131: -7391430.222 | O131: 7837133.464
A132: Administrative and Corporate Support | C132: 23831897.82 | D132: 52451674 | E132: 50264328.21 | F132: 63311187.6 | G132: 62649554.6 | H132: 62649554.6 | I132: 60503138.97 | J132: 64247641.96 | K132: 67936950.17 | L132: 62649554.6 | M132: -6977655.264 | N132: -7391430.222 | O132: 7837133.464
A133: Asset Management | C133: 52156209.33 | D133: 108133005.8 | E133: 61292864.67 | F133: 114851325.4 | G133: 116354060.4 | H133: 116354060.4 | I133: 64914782.56 | J133: 68962074.27 | K133: 97076635.4 | L133: 116354060.4 | M133: -13255972.54 | N133: -14183890.62 | O133: 15176762.96
A134: Finance | C134: 111925136.8 | D134: 797933757.1 | E134: 336264911.3 | F134: 527291938.1 | G134: 536010051.8 | H134: 536010051.8 | I134: 541319059.7 | J134: 619706945.7 | K134: 682088677 | L134: 536010051.8 | M134: -13255972.54 | N134: -14183890.62 | O134: 15176762.96
A135: Fleet Management | C135: 949228.1 | L135: 0 | M135: -190902259.7 | N135: -204265417.9 | O135: 218563997.1
A136: Human Resources | C136: 123342315.7 | D136: 113834911.3 | E136: 78526261.1 | F136: 167919296.4 | G136: 177750164.4 | H136: 177750164.4 | I136: 120049117.5 | J136: 132999426.5 | K136: 138867802.7 | L136: 177750164.4 | M136: -190902259.7 | N136: -204265417.9 | O136: 218563997.1
A137: Information Technology | C137: 43894388.85 | D137: 41302542 | E137: 39378015.42 | F137: 36645394.82 | G137: 47436872.82 | H137: 47436872.82 | I137: 32962041.95 | J137: 37897207.49 | K137: 42116560.05 | L137: 47436872.82 | M137: 21975025.78
A138: Legal Services | C138: 16645212.17 | D138: 10705121 | E138: 14770253.19 | F138: 11011185.17 | G138: 10482390.17 | H138: 10482390.17 | I138: 16293851.43 | J138: 17933350.25 | K138: 18948121.87 | L138: 10482390.17 | M138: 4966902.94
A139: Marketing, Customer Relations, Publicity and Media Co-ordination | C139: 97792.87 | D139: 7369798 | E139: 12844089.33 | F139: 20838266.32 | G139: 20838266.32 | H139: 20838266.32 | I139: 14978962.98 | J139: 17021657.55 | K139: 17878534.58 | L139: 20838266.32 | M139: 15466577.12
A140: Property Services | C140: 55851839.82 | D140: 58887380 | E140: 75071808.52 | F140: 57794332.63 | G140: 59124332.63 | H140: 59124332.63 | I140: 59734838.36 | J140: 69225274.81 | K140: 63524172.85 | L140: 59124332.63 | M140: 79058829.48
A141: Risk Management | G141: 0 | H141: 0 | L141: 0 | M141: 44519979.03
A142: Security Services | C142: 150786224 | D142: 150426551 | E142: 154812636.4 | F142: 131236960.7 | G142: 128844216 | H142: 128844216 | I142: 120933820.1 | J142: 124018919.2 | K142: 128027715.7 | L142: 128844216 | M142: 50264328.21
A143: Supply Chain Management | C143: 100477867 | D143: 65996567.22 | E143: 63181304.39 | F143: 63645857.89 | G143: 84962749.35 | H143: 84962749.35 | I143: 45770821.54 | J143: 48123642.11 | K143: 50824972.87 | L143: 84962749.35 | M143: 61292864.67
A144: Valuation Service | E144: 12827144.16 | G144: 0 | H144: 0 | L144: 0 | M144: 12827144.16
A145: Internal audit | C145: =SUM(C146:C146) -> 12845619.53 | D145: 29585787 | E145: 18637938.28 | F145: 21986532.79 | G145: 22256532.79 | H145: 22256532.79 | I145: 21775457.74 | J145: 23154175.27 | K145: 24862969.46 | L145: 22256532.79 | M145: 336264911.3
A146: Governance Function | C146: 12845619.53 | D146: 29585787 | E146: 18637938.28 | F146: 21986532.79 | G146: 22256532.79 | H146: 22256532.79 | I146: 21775457.74 | J146: 23154175.27 | K146: 24862969.46 | L146: 22256532.79 | M146: 78526261.1
A147: Community and public safety | C147: =C148+C170+C176+C185+C188 -> 468536565.9 | D147: 527521416.5 | E147: 472238040.6 | F147: 440067727.2 | G147: 533334006.7 | H147: 533334006.7 | I147: 549083301.6 | J147: 584664439.7 | K147: 602800821.5 | L147: 533334006.7 | M147: 39378015.42
A148: Community and social services | C148: =SUM(C149:C169) -> 113019937.6 | D148: =SUM(D149:D169) -> 114264920 | E148: 113129414.6 | F148: 128373725.8 | G148: 130889937.8 | H148: 130889937.8 | I148: 138323594.9 | J148: 145373023.5 | K148: 144965836.9 | L148: 130889937.8 | M148: 14770253.19
A149: Aged Care | C149: 4787.79 | D149: 4368270 | E149: 28650.61 | F149: 4431.06125 | G149: 4431.06125 | H149: 4431.06125 | I149: 16610.15 | J149: 19813.958 | K149: 23611.8534 | L149: 4431.06125 | M149: 12844089.33
A150: Agricultural | G150: 0 | H150: 0 | L150: 0 | M150: 75071808.52
A151: Animal Care and Diseases | C151: 1178842.41 | D151: 1248398 | E151: 1322049.36 | F151: 982940.46 | G151: 982940.46 | H151: 982940.46 | I151: 1482653.13 | J151: 1570129.68 | K151: 1662767.37 | L151: 982940.46 | M151: 154812636.4
A152: Cemeteries, Funeral Parlours and Crematoriums | C152: 8144035.71 | D152: 21888152 | E152: 25987108.46 | F152: 26579168.83 | G152: 26593168.83 | H152: 26593168.83 | I152: 28695970.24 | J152: 30820279.57 | K152: 32355781.76 | L152: 26593168.83 | M152: 63181304.39
A153: Child Care Facilities | G153: 0 | H153: 0 | L153: 0 | M153: 5469235.54
A154: Community Halls and Facilities | C154: 25757185.54 | D154: 16419755.46 | E154: 14666382.09 | F154: 15746961.96 | G154: 15746961.96 | H154: 15746961.96 | I154: 15871751.88 | J154: 17494118.35 | K154: 13635307.39 | L154: 15746961.96 | M154: 58055817.76
A155: Consumer Protection | G155: 0 | H155: 0 | L155: 0 | M155: 18637938.28
A156: Cultural Matters | G156: 0 | H156: 0 | L156: 0 | M156: 19394700.79
A157: Disaster Management | G157: 0 | H157: 0 | L157: 0 | M157: 23074439.92
A158: Education | G158: 0 | H158: 0 | L158: 0 | M158: 4080150.62
A159: =A37 -> Indigenous and Customary Law | G159: 0 | H159: 0 | L159: 0 | M159: 27628357.37
A160: Industrial Promotion | G160: 0 | H160: 0 | L160: 0 | M160: 2679013.39
A161: Language Policy | G161: 0 | H161: 0 | L161: 0 | M161: 5500706.73
A162: Libraries and Archives | C162: 54041948.11 | D162: 60285670 | E162: 59331929.19 | F162: 68987451.48 | G162: 71261116.48 | H162: 71261116.48 | I162: 76962358.47 | J162: 79033546.24 | K162: 80045467.8 | L162: 71261116.48 | M162: 13287784.87
A163: Literacy Programmes | G163: 0 | H163: 0 | L163: 0 | M163: 64721267.79
A164: Media Services | G164: 0 | H164: 0 | L164: 0 | M164: 13908466.71
A165: Museums and Art Galleries | C165: 7876466.43 | D165: 8147499 | E165: 6707807.71 | F165: 7907722.202 | G165: 8165123.202 | H165: 8165123.202 | I165: 6232282.659 | J165: 6886013.182 | K165: 7239563.258 | L165: 8165123.202 | M165: 98385793.12
A166: Population Development | C166: 16010223.83 | D166: 1907175.54 | E166: 5079039.34 | F166: 8165049.802 | G166: 8136195.802 | H166: 8136195.802 | I166: 9061968.331 | J166: 9549122.483 | K166: 10003337.5 | L166: 8136195.802 | M166: 80920165.51
A167: Provincial Cultural Matters | G167: 0 | H167: 0 | L167: 0 | M167: 6531463.51
A168: Theatres | C168: 6447.79 | E168: 6447.84 | G168: 0 | H168: 0 | L168: 0 | M168: 213742671.6
A169: Zoo's | G169: 0 | H169: 0 | L169: 0 | M169: 2423908.37
A170: Sport and recreation | C170: =SUM(C171:C175) -> 137259360 | D170: 121845681.8 | E170: 102369147.3 | F170: 114418472.7 | G170: 114548472.7 | H170: 114548472.7 | I170: 133116283.9 | J170: 151549371.9 | K170: 158129782.9 | L170: 114548472.7 | M170: 45310937.11
A171: Beaches and Jetties | L171: 0 | M171: 25536831.98
A172: Casinos, Racing, Gambling, Wagering | L172: 0 | M172: 31521378.23
A173: Community Parks (including Nurseries) | C173: 34967543.34 | D173: 68830747.07 | E173: 45310937.11 | F173: 48114791.71 | G173: 48294791.71 | H173: 48294791.71 | I173: 57138463.6 | J173: 61876621.31 | K173: 64182244.61 | L173: 48294791.71 | M173: -15485353.23
A174: Recreational Facilities | C174: 102291816.7 | D174: 53014934.75 | E174: 57058210.21 | F174: 66303680.98 | G174: 66253680.98 | H174: 66253680.98 | I174: 75977820.29 | J174: 89672750.63 | K174: 93947538.27 | L174: 66253680.98 | M174: 140319745.2
A175: Sports Grounds and Stadiums | G175: 0 | H175: 0 | L175: 0 | M175: 2974590.12
A176: Public safety | C176: =SUM(C177:C184) -> 152733927.4 | D176: 170573214.7 | E176: 193214425.3 | F176: 106871795.3 | G176: 140511795.8 | H176: 140511795.8 | I176: 211547136.6 | J176: 220324319.2 | K176: 230020243.2 | L176: 140511795.8 | M176: 223021252.5
A177: Civil Defence | C177: 9533965.7 | D177: 1828973 | E177: 13908466.71 | F177: 12197113.98 | G177: 12197113.98 | H177: 12197113.98 | I177: 9112937.443 | J177: 8378732.277 | K177: 8645705.28 | L177: 12197113.98 | M177: 26764592.31
A178: Cleansing | L178: 0 | M178: 1207807520
A179: =A57 -> Control of Public Nuisances | L179: 0
A180: Fencing and Fences | L180: 0
A181: Fire Fighting and Protection | C181: 75639242.64 | D181: 97259032 | E181: 98385793.12 | F181: 94674681.31 | G181: 128314681.9 | H181: 128314681.9 | I181: 97784309.23 | J181: 102863562.7 | K181: 107715661.1 | L181: 128314681.9
A182: Licensing and Control of Animals | L182: 0
A183: Police Forces, Traffic and Street Parking Control | C183: 67560719.03 | D183: 71485209.72 | E183: 80920165.51 | I183: 104649889.9 | J183: 109082024.3 | K183: 113658876.8 | L183: 0
A184: Pounds | L184: 0
A185: =A63 -> Housing | C185: =SUM(C186:C187) -> 60453655.17 | D185: 120625836 | E185: 58055817.76 | F185: 90129848.36 | G185: 147109915.4 | H185: 147109915.4 | I185: 50925986.88 | J185: 51509773.94 | K185: 52895575.44 | L185: 147109915.4
A186: Housing | C186: 60453655.17 | D186: 120625836 | E186: 58055817.76 | F186: 90129848.36 | G186: 147109915.4 | H186: 147109915.4 | I186: 50925986.88 | J186: 51509773.94 | K186: 52895575.44 | L186: 147109915.4
A187: Informal Settlements | L187: 0
A188: Health | C188: =SUM(C189:C195) -> 5069685.76 | D188: =SUM(D189:D195) -> 211764 | E188: 5469235.54 | F188: 273885.0279 | G188: 273885.0279 | H188: 273885.0279 | I188: 15170299.41 | J188: 15907951.11 | K188: 16789383.06 | L188: 273885.0279
A189: Ambulance | L189: 0
A190: Health Services | C190: 5069685.76 | D190: 211764 | E190: 5469235.54 | F190: 273885.0279 | G190: 273885.0279 | H190: 273885.0279 | I190: 15170299.41 | J190: 15907951.11 | K190: 16789383.06 | L190: 273885.0279
A191: Laboratory Services | L191: 0
A192: Food Control | L192: 0
A193: Health Surveillance and Prevention of Communicable Diseases including immunizations | L193: 0
A194: Vector Control | L194: 0
A195: Chemical Safety | L195: 0
A196: Economic and environmental services | C196: =C197+C208+C213 -> 338301626.6 | D196: 280587711 | E196: 326641282.9 | F196: 288173315.6 | G196: 294605680.6 | H196: 294605680.6 | I196: 421022081.1 | J196: 420654008 | K196: 390576312.3 | L196: 294605680.6
A197: Planning and development | C197: =SUM(C198:C207) -> 73017068.09 | D197: =SUM(D198:D207) -> 86015704.44 | E197: 83509759.39 | F197: 92239503.88 | G197: 94069123.88 | H197: 94069123.88 | I197: 73618014.47 | J197: 76827259.32 | K197: 80833027.6 | L197: 94069123.88
A198: Billboards | L198: 0
A199: Corporate Wide Strategic Planning (IDPs, LEDs) | C199: 4979248.01 | D199: 9393331 | E199: 5500706.73 | F199: 12848610.79 | G199: 12930492.79 | H199: 12930492.79 | I199: 7512024.147 | J199: 7975364.438 | K199: 8634802.591 | L199: 12930492.79
A200: Central City Improvement District | G200: 0 | H200: 0 | L200: 0
... 54 more rows

Sheet A3-FinPerf V
A1: =muni&" - "&Approve2 -> KZN225 Msunduzi - Table A3 Consolidated Budgeted Financial Performance (revenue and expenditure by municipal vote)
A2: =Vdesc -> Vote Description | B2: =head27 -> Ref | C2: =head1b -> 2017/18 | D2: =head1A -> 2018/19 | E2: =Head1 -> 2019/20 | F2: =Head2 -> Current Year 2020/21 | I2: =Head3 -> 2021/22 Medium Term Revenue & Expenditure Framework | L2: =Head4 -> LTFS
A3: R thousand | C3: =Head5 -> Audited Outcome | D3: =Head5 -> Audited Outcome | E3: =Head5 -> Audited Outcome | F3: =Head6 -> Original Budget | G3: =Head7 -> Adjusted Budget | H3: =Head8 -> Full Year Forecast | I3: =Head9 -> Budget Year 2021/22 | J3: =Head10 -> Budget Year +1 2022/23 | K3: =Head11 -> Budget Year +2 2023/24 | L3: =Head12 -> Forecast 2024/25 | M3: =Head13 -> Forecast 2025/26 | N3: =Head14 -> Forecast 2026/27 | O3: =Head15 -> Forecast 2027/28 | P3: =Head16 -> Forecast 2028/29 | Q3: =Head17 -> Forecast 2029/30 | R3: =Head18 -> Forecast 2030/31 | S3: =Head19 -> Forecast 2031/32 | T3: =Head20 -> Forecast 2032/33 | U3: =Head21 -> Forecast 2033/34 | V3: =Head22 -> Forecast 2034/35 | W3: =Head23 -> Forecast 2035/36
A4: Revenue by Vote | B4: 1
A5: =A3A!A5 -> Vote 1 - City Manager | C5: =A3A!C5 -> 88662.54 | D5: =A3A!D5 -> 214 | E5: =A3A!E5 -> 325.94 | F5: =A3A!F5 -> 4447530.013 | G5: =A3A!G5 -> 4447530.013 | H5: =A3A!H5 -> 4447530.013 | I5: =A3A!I5 -> 62714.86912 | J5: =A3A!J5 -> 66433.86086 | K5: =A3A!K5 -> 70439.82267
A6: =A3A!A16 -> Vote 2 - City Finance | C6: =A3A!C16 -> 1848718404 | D6: =A3A!D16 -> 2424189254 | E6: =A3A!E16 -> 1641040016 | F6: =A3A!F16 -> 2396133946 | G6: =A3A!G16 -> 2485131946 | H6: =A3A!H16 -> 2485131946 | I6: =A3A!I16 -> 1955891051 | J6: =A3A!J16 -> 2075824365 | K6: =A3A!K16 -> 2186771671
A7: =A3A!A27 -> Vote 3 - Community Services and Social Equity | C7: =A3A!C27 -> 199491348.7 | D7: =A3A!D27 -> 236959425 | E7: =A3A!E27 -> 200023446.7 | F7: =A3A!F27 -> 214664344.3 | G7: =A3A!G27 -> 214664344.3 | H7: =A3A!H27 -> 214664344.3 | I7: =A3A!I27 -> 210662798.7 | J7: =A3A!J27 -> 221562377 | K7: =A3A!K27 -> 230861445.6
A8: =A3A!A38 -> Vote 4 - Corporate Services | C8: =A3A!C38 -> 9383448.99 | D8: =A3A!D38 -> 5862268 | E8: =A3A!E38 -> 10720708.95 | F8: =A3A!F38 -> 19239180.69 | G8: =A3A!G38 -> 19239180.69 | H8: =A3A!H38 -> 19239180.69 | I8: =A3A!I38 -> 6094104.853 | J8: =A3A!J38 -> 2730986.471 | K8: =A3A!K38 -> 2895664.955
A9: =A3A!A49 -> Vote 5 - Infrastructure Services | C9: =A3A!C49 -> 2784000849 | D9: =A3A!D49 -> 2530317922 | E9: =A3A!E49 -> 3770506293 | F9: =A3A!F49 -> 3376346373 | G9: =A3A!G49 -> 3376346373 | H9: =A3A!H49 -> 3376346373 | I9: =A3A!I49 -> 4738511544 | J9: =A3A!J49 -> 5216323160 | K9: =A3A!K49 -> 5652895638
A10: =A3A!A60 -> Vote 6 - Sustainable Development and City Enterprises | C10: =A3A!C60 -> 161260363 | D10: =A3A!D60 -> 212824273 | E10: =A3A!E60 -> 167753159.2 | F10: =A3A!F60 -> 432870465.4 | G10: =A3A!G60 -> 495093158.4 | H10: =A3A!H60 -> 495093158.4 | I10: =A3A!I60 -> 208349782 | J10: =A3A!J60 -> 141933535.2 | K10: =A3A!K60 -> 151929360.5
A11: Total Revenue by Vote | B11: 2 | C11: =SUM(C5:C10) -> 5002943076 | D11: 5410153356 | E11: 5790043950 | F11: 6443701839 | G11: 6594922532 | H11: 6594922532 | I11: 7119571995 | J11: 7658440858 | K11: 8225424220
A13: Expenditure by Vote to be appropriated | B13: 1
A14: =A3A!A165 -> Vote 1 - City Manager | C14: =A3A!C165 -> 176238545.4 | D14: =A3A!D165 -> 194108064 | E14: =A3A!E165 -> 156640668.9 | F14: =A3A!F165 -> 181805355.9 | G14: =A3A!G165 -> 187429782.2 | H14: =A3A!H165 -> 187429782.2 | I14: =A3A!I165 -> 149906309.9 | J14: =A3A!J165 -> 162021564.9 | K14: =A3A!K165 -> 170043955.5
A15: =A3A!A176 -> Vote 2 - City Finance | C15: =A3A!C176 -> 275761302.6 | D15: =A3A!D176 -> 975349935 | E15: =A3A!E176 -> 489444288.8 | F15: =A3A!F176 -> 700877661.2 | G15: =A3A!G176 -> 705258982.7 | H15: =A3A!H176 -> 705258982.7 | I15: =A3A!I176 -> 646309781.6 | J15: =A3A!J176 -> 737339877.6 | K15: =A3A!K176 -> 830856582.5
A16: =A3A!A187 -> Vote 3 - Community Services and Social Equity | C16: =A3A!C187 -> 668362475.6 | D16: =A3A!D187 -> 724942866.7 | E16: =A3A!E187 -> 734370884.9 | F16: =A3A!F187 -> 743751614.2 | G16: =A3A!G187 -> 769029279.2 | H16: =A3A!H187 -> 769029279.2 | I16: =A3A!I187 -> 785013601.5 | J16: =A3A!J187 -> 830796618.4 | K16: =A3A!K187 -> 850969562.7
A17: =A3A!A198 -> Vote 4 - Corporate Services | C17: =A3A!C198 -> 258379079.4 | D17: =A3A!D198 -> 196080850 | E17: =A3A!E198 -> 155921670.6 | F17: =A3A!F198 -> 200548950.4 | G17: =A3A!G198 -> 215358953.4 | H17: =A3A!H198 -> 215358953.4 | I17: =A3A!I198 -> 195537113.7 | J17: =A3A!J198 -> 207685710.6 | K17: =A3A!K198 -> 219935130
A18: =A3A!A209 -> Vote 5 - Infrastructure Services | C18: =A3A!C209 -> 3932591376 | D18: =A3A!D209 -> 3156044087 | E18: =A3A!E209 -> 3776349725 | F18: =A3A!F209 -> 3393288719 | G18: =A3A!G209 -> 3407283654 | H18: =A3A!H209 -> 3407283654 | I18: =A3A!I209 -> 4437107376 | J18: =A3A!J209 -> 4818015990 | K18: =A3A!K209 -> 5122593375
A19: =A3A!A220 -> Vote 6 - Sustainable Development and City Enterprises | C19: =A3A!C220 -> 217066549 | D19: =A3A!D220 -> 304396959 | E19: =A3A!E220 -> 253921599 | F19: =A3A!F220 -> 296205168.6 | G19: =A3A!G220 -> 388790375.2 | H19: =A3A!H220 -> 388790375.2 | I19: =A3A!I220 -> 224901217.9 | J19: =A3A!J220 -> 235290576.5 | K19: =A3A!K220 -> 244668973.4
A20: Total Expenditure by Vote | B20: 2 | C20: =SUM(C14:C19) -> 5528399328 | D20: 5550922762 | E20: 5566648838 | F20: 5516477470 | G20: 5673151027 | H20: 5673151027 | I20: 6438775401 | J20: 6991150337 | K20: 7439067579 | L20: 0 | M20: 0 | N20: 0 | O20: 0 | P20: 0 | Q20: 0 | R20: 0 | S20: 0 | T20: 0 | U20: 0 | V20: 0 | W20: 0
A21: =result -> Surplus/(Deficit) for the year | B21: 2 | C21: =C11-C20 -> -525456252 | D21: -140769406 | E21: 223395112.5 | F21: 927224369.3 | G21: 921771505.2 | H21: 921771505.2 | I21: 680796594.7 | J21: 667290520.5 | K21: 786356640.6 | L21: 0 | M21: 0 | N21: 0 | O21: 0 | P21: 0 | Q21: 0 | R21: 0 | S21: 0 | T21: 0 | U21: 0 | V21: 0 | W21: 0
A22: =head27a -> References
A23: 1. Insert 'Vote'; e.g. department, if different to functional classification structure
A24: 2. Must reconcile to Budgeted Financial Performance (revenue and expenditure)
A25: 3. Assign share in 'associate' to relevant Vote
A27: ="check "&A21 -> check Surplus/(Deficit) for the year | C27: =C21-A3A!C332 -> 0 | D27: =D21-A3A!D332 -> 0 | E27: =E21-A3A!E332 -> 0 | F27: =F21-A3A!F332 -> 0 | G27: =G21-A3A!G332 -> 0 | H27: =H21-A3A!H332 -> 0 | I27: =I21-A3A!I332 -> 0 | J27: =J21-A3A!J332 -> 0 | K27: =K21-A3A!K332 -> 0

Sheet A3A
A1: =muni&" - "&Approve2&"A" -> KZN225 Msunduzi - Table A3 Consolidated Budgeted Financial Performance (revenue and expenditure by municipal vote)A
A2: =Vdesc -> Vote Description | B2: =head27 -> Ref | C2: =head1b -> 2017/18 | D2: =head1A -> 2018/19 | E2: =Head1 -> 2019/20 | F2: =Head2 -> Current Year 2020/21 | I2: =Head3 -> 2021/22 Medium Term Revenue & Expenditure Framework | L2: =Head4 -> LTFS
A3: R thousand | C3: =Head5 -> Audited Outcome | D3: =Head5 -> Audited Outcome | E3: =Head5 -> Audited Outcome | F3: =Head6 -> Original Budget | G3: =Head7 -> Adjusted Budget | H3: =Head8 -> Full Year Forecast | I3: =Head9 -> Budget Year 2021/22 | J3: =Head10 -> Budget Year +1 2022/23 | K3: =Head11 -> Budget Year +2 2023/24 | L3: =Head12 -> Forecast 2024/25 | M3: =Head13 -> Forecast 2025/26 | N3: =Head14 -> Forecast 2026/27 | O3: =Head15 -> Forecast 2027/28 | P3: =Head16 -> Forecast 2028/29 | Q3: =Head17 -> Forecast 2029/30 | R3: =Head18 -> Forecast 2030/31 | S3: =Head19 -> Forecast 2031/32 | T3: =Head20 -> Forecast 2032/33 | U3: =Head21 -> Forecast 2033/34 | V3: =Head22 -> Forecast 2034/35 | W3: =Head23 -> Forecast 2035/36
A4: Revenue by Vote | B4: 1 | Z4: 3.1 - Area Based Management | AA4: 790002.4
A5: ='Org structure'!A2 -> Vote 1 - City Manager | C5: =SUM(C6:C15) -> 88662.54 | D5: =SUM(D6:D15) -> 214 | E5: 325.94 | F5: 4447530.013 | G5: 4447530.013 | H5: 4447530.013 | I5: 62714.86912 | J5: 66433.86086 | K5: 70439.82267 | Z5: 3.2 - Public Safety, Emergency Services and Enforcement | AA5: 15025160.9
A6: ='Org structure'!E3 -> 1.1 - Internal Audit and Compliance | C6: -2788.35 | E6: 34.9 | Z6: 3.3 - Recreation and Facilities | AA6: 38380324.76
A7: ='Org structure'!E4 -> 1.2 - Office of the City Manager | C7: 65141.63 | D7: 214 | E7: 129164.97 | F7: 4447530.013 | G7: 4447530.013 | H7: 4447530.013 | I7: 62714.86912 | J7: 66433.86086 | K7: 70439.82267 | Z7: 3.4 - Waste Management | AA7: 145827958.6
A8: ='Org structure'!E5 -> 1.3 - Political Support | C8: 38054.23 | E8: -128887.71 | Z8: 4.1 - Human Resources Management | AA8: 3019034.71
A9: ='Org structure'!E6 -> 1.4 - Strategic Planning | C9: -11744.97 | E9: 13.78 | Z9: 4.2 - Information Technology | AA9: 616.54
A10: ='Org structure'!E7 -> 0 | Z10: 4.3 - Legal Services | AA10: 135.57
A11: ='Org structure'!E8 -> 0 | Z11: 4.4 - Secretariat and Auxiliary Services | AA11: 3500875.81
A12: ='Org structure'!E9 -> 0 | Z12: 4.5 - General Manager: Corporate Service | AA12: 4200046.32
A13: ='Org structure'!E10 -> 0 | Z13: 5.1 - Electricity | AA13: 2209984880
A14: ='Org structure'!E11 -> 0 | Z14: 5.2 - Project Management Office | AA14: 6272011.53
A15: ='Org structure'!E12 -> 0 | Z15: 5.3 - Roads and Transportation | AA15: 239604029.5
A16: ='Org structure'!A3 -> Vote 2 - City Finance | C16: =SUM(C17:C26) -> 1848718404 | D16: =SUM(D17:D26) -> 2424189254 | E16: 1641040016 | F16: 2396133946 | G16: 2485131946 | H16: 2485131946 | I16: 1955891051 | J16: 2075824365 | K16: 2186771671 | Z16: 5.4 - Water and Sanitation | AA16: 1314645345
A17: ='Org structure'!E14 -> 2.1 - Asset Management | C17: 13790711.19 | D17: 6761852 | E17: 40943851.56 | I17: 16379253.87 | J17: 17350543.63 | K17: 18396781.41 | Z17: 5.5 - General Manager: Infrastructure | AA17: 26.45
A18: ='Org structure'!E15 -> 2.2 - Budget and Treasury Management | C18: 299699535.5 | D18: 439797155 | E18: 314420414.7 | F18: 518591000 | G18: 607589000 | H18: 607589000 | I18: 384922702.2 | J18: 410698664.6 | K18: 414129369.8 | Z18: 6.1 - City Entities | AA18: 8099649.28
A19: ='Org structure'!E16 -> 2.3 - Expenditure Management | C19: -79924.06 | D19: 62 | E19: 264.31 | I19: 353276.725 | J19: 374226.0348 | K19: 396791.8647 | Z19: 6.2 - Development Services | AA19: 103539.45
A20: ='Org structure'!E17 -> 2.4 - Revenue Management | C20: 1499015441 | D20: 1977393500 | E20: 1285595512 | F20: 1877542946 | G20: 1877542946 | H20: 1877542946 | I20: 1553940576 | J20: 1647088181 | K20: 1753517119 | Z20: 6.3 - Human Settlement Development | AA20: 100718852.8
A21: ='Org structure'!E18 -> 2.5 - Supply Chain Management | C21: 36292640.32 | D21: 236685 | E21: 79973.34 | I21: 295242.5403 | J21: 312750.423 | K21: 331609.2735 | Z21: 6.4 - Town Planning | AA21: 33639711.94
A22: ='Org structure'!E19 -> 0
A23: ='Org structure'!E20 -> 0
A24: ='Org structure'!E21 -> 0
A25: ='Org structure'!E22 -> 0
A26: ='Org structure'!E23 -> 0
A27: ='Org structure'!A4 -> Vote 3 - Community Services and Social Equity | C27: =SUM(C28:C37) -> 199491348.7 | D27: 236959425 | E27: 200023446.7 | F27: 214664344.3 | G27: 214664344.3 | H27: 214664344.3 | I27: 210662798.7 | J27: 221562377 | K27: 230861445.6
A28: ='Org structure'!E25 -> 3.1 - Area Based Management | C28: 629162.9 | D28: 25153 | E28: 790002.4 | F28: 3523188.282 | G28: 3523188.282 | H28: 3523188.282 | I28: 1070442.527 | J28: 1133919.769 | K28: 1202295.131
A29: ='Org structure'!E26 -> 3.2 - Public Safety, Emergency Services and Enforcement | C29: 18379696.11 | D29: 23856567 | E29: 15025160.9 | F29: 4814533.865 | G29: 4814533.865 | H29: 4814533.865 | I29: 3970362.811 | J29: 4205805.326 | K29: 4459415.387
A30: ='Org structure'!E27 -> 3.3 - Recreation and Facilities | C30: 50152829 | D30: 53724345 | E30: 38380324.76 | F30: 21976054.79 | G30: 21976054.79 | H30: 21976054.79 | I30: 28932114.94 | J30: 28752463.45 | K30: 28555325.6
A31: ='Org structure'!E28 -> 3.4 - Waste Management | C31: 130329660.7 | D31: 159353360 | E31: 145827958.6 | F31: 184350567.4 | G31: 184350567.4 | H31: 184350567.4 | I31: 176689878.4 | J31: 187470188.5 | K31: 196644409.5
A32: ='Org structure'!E29 -> 0
A33: ='Org structure'!E30 -> 0
A34: ='Org structure'!E31 -> 0
A35: ='Org structure'!E32 -> 0
A36: ='Org structure'!E33 -> 0
A37: ='Org structure'!E34 -> 0
A38: ='Org structure'!A5 -> Vote 4 - Corporate Services | C38: =SUM(C39:C48) -> 9383448.99 | D38: 5862268 | E38: 10720708.95 | F38: 19239180.69 | G38: 19239180.69 | H38: 19239180.69 | I38: 6094104.853 | J38: 2730986.471 | K38: 2895664.955
A39: ='Org structure'!E36 -> 4.1 - Human Resources Management | C39: 1648642.13 | D39: 2948539 | E39: 3019034.71 | F39: 18980058.64 | G39: 18980058.64 | H39: 18980058.64 | I39: 2305119.778 | J39: 2441813.381 | K39: 2589054.728
A40: ='Org structure'!E37 -> 4.2 - Information Technology | C40: -47306.64 | D40: 11644 | E40: 616.54 | F40: 2016.014 | G40: 2016.014 | H40: 2016.014 | I40: 2123.870749 | J40: 2249.816284 | K40: 2385.480206
A41: ='Org structure'!E38 -> 4.3 - Legal Services | C41: -228133.21 | D41: 9395 | E41: 135.57 | F41: 257106.0316 | G41: 257106.0316 | H41: 257106.0316 | I41: 270861.2043 | J41: 286923.2737 | K41: 304224.7471
A42: ='Org structure'!E39 -> 4.4 - Secretariat and Auxiliary Services | C42: -1071.42 | D42: 341 | E42: 3500875.81
A43: ='Org structure'!E40 -> 4.5 - General Manager: Corporate Service | C43: 8011318.13 | D43: 2892349 | E43: 4200046.32 | I43: 3516000 | J43: 0 | K43: 0
A44: ='Org structure'!E41 -> 0
A45: ='Org structure'!E42 -> 0
A46: ='Org structure'!E43 -> 0
A47: ='Org structure'!E44 -> 0
A48: ='Org structure'!E45 -> 0
A49: ='Org structure'!A6 -> Vote 5 - Infrastructure Services | C49: =SUM(C50:C59) -> 2784000849 | D49: =SUM(D50:D59) -> 2530317922 | E49: 3770506293 | F49: 3376346373 | G49: 3376346373 | H49: 3376346373 | I49: 4738511544 | J49: 5216323160 | K49: 5652895638
A50: ='Org structure'!E47 -> 5.1 - Electricity | C50: 1476552719 | D50: 964526827.2 | E50: 2209984880 | F50: 1787507107 | G50: 1787507107 | H50: 1787507107 | I50: 3038086189 | J50: 3379997240 | K50: 3716027004
A51: ='Org structure'!E48 -> 5.2 - Project Management Office | C51: 4607940.21 | D51: 21662773 | E51: 6272011.53 | F51: 19637703.26 | G51: 19637703.26 | H51: 19637703.26 | I51: 10034424 | J51: 10536145.3 | K51: 12560480.48
A52: ='Org structure'!E49 -> 5.3 - Roads and Transportation | C52: 227734016.2 | D52: 258228915 | E52: 239604029.5 | F52: 65792799.76 | G52: 65792799.76 | H52: 65792799.76 | I52: 402254.1181 | J52: 426107.7873 | K52: 451802.0869
A53: ='Org structure'!E50 -> 5.4 - Water and Sanitation | C53: 1075105281 | D53: 1285695207 | E53: 1314645345 | F53: 1503408762 | G53: 1503408762 | H53: 1503408762 | I53: 1689988677 | J53: 1825363667 | K53: 1923856351
A54: ='Org structure'!E51 -> General Manager: Infrastructure | C54: 891.89 | D54: 204200 | E54: 26.45
A55: ='Org structure'!E52 -> 0
A56: ='Org structure'!E53 -> 0
A57: ='Org structure'!E54 -> 0
A58: ='Org structure'!E55 -> 0
A59: ='Org structure'!E56 -> 0
A60: ='Org structure'!A7 -> Vote 6 - Sustainable Development and City Enterprises | C60: =SUM(C61:C70) -> 161260363 | D60: =SUM(D61:D70) -> 212824273 | E60: 167753159.2 | F60: 432870465.4 | G60: 495093158.4 | H60: 495093158.4 | I60: 208349782 | J60: 141933535.2 | K60: 151929360.5
A61: ='Org structure'!E58 -> 6.1 - City Entities | C61: 51087740.86 | D61: 27007605 | E61: 33291054.99 | G61: 513935 | H61: 513935 | I61: 64805333.87 | J61: 68737087.67 | K61: 72881432.36
A62: ='Org structure'!E59 -> 6.2 - Development Services | C62: 356064.34 | D62: 352870 | E62: 103539.45 | F62: 41022287.16 | G62: 45022287.16 | H62: 45022287.16 | I62: 465741.516 | J62: 493359.9879 | K62: 523109.5952
A63: ='Org structure'!E60 -> 6.3 - Human Settlement Development | C63: 52005113.31 | D63: 126796992 | E63: 100718852.8 | F63: 328237277.5 | G63: 386941932.5 | H63: 386941932.5 | I63: 104666074.6 | J63: 23028786.41 | K63: 23568657.09
A64: ='Org structure'!E61 -> 6.4 - Town Planning | C64: 57826986.74 | D64: 58666806 | E64: 33639711.94 | F64: 63610900.69 | G64: 62615003.69 | H64: 62615003.69 | I64: 38412632.05 | J64: 49674301.14 | K64: 54956161.49
A65: ='Org structure'!E62 -> 0 | C65: -15542.23
A66: ='Org structure'!E63 -> 0
A67: ='Org structure'!E64 -> 0
A68: ='Org structure'!E65 -> 0
A69: ='Org structure'!E66 -> 0
A70: ='Org structure'!E67 -> 0
A71: ='Org structure'!A8 -> Vote 7 - [NAME OF VOTE 7] | C71: =SUM(C72:C81) -> 0 | D71: 0 | E71: 0 | F71: 0 | G71: 0 | H71: 0 | I71: 0 | J71: 0 | K71: 0
A72: ='Org structure'!E69 -> 7.1 - [Name of sub-vote]
A73: ='Org structure'!E70 -> 0
A74: ='Org structure'!E71 -> 0
A75: ='Org structure'!E72 -> 0
A76: ='Org structure'!E73 -> 0
A77: ='Org structure'!E74 -> 0
A78: ='Org structure'!E75 -> 0
A79: ='Org structure'!E76 -> 0
A80: ='Org structure'!E77 -> 0
A81: ='Org structure'!E78 -> 0
A82: ='Org structure'!A9 -> Vote 8 - [NAME OF VOTE 8] | C82: =SUM(C83:C92) -> 0 | D82: =SUM(D83:D92) -> 0 | E82: 0 | F82: 0 | G82: 0 | H82: 0 | I82: 0 | J82: 0 | K82: 0
A83: ='Org structure'!E80 -> 8.1 - [Name of sub-vote]
A84: ='Org structure'!E81 -> 0
A85: ='Org structure'!E82 -> 0
A86: ='Org structure'!E83 -> 0
A87: ='Org structure'!E84 -> 0
A88: ='Org structure'!E85 -> 0
A89: ='Org structure'!E86 -> 0
A90: ='Org structure'!E87 -> 0
A91: ='Org structure'!E88 -> 0
A92: ='Org structure'!E89 -> 0
A93: ='Org structure'!A10 -> Vote 9 - [NAME OF VOTE 9] | C93: =SUM(C94:C103) -> 0 | D93: =SUM(D94:D103) -> 0 | E93: 0 | F93: 0 | G93: 0 | H93: 0 | I93: 0 | J93: 0 | K93: 0
A94: ='Org structure'!E91 -> 9.1 - [Name of sub-vote]
A95: ='Org structure'!E92 -> 0
A96: ='Org structure'!E93 -> 0
A97: ='Org structure'!E94 -> 0
A98: ='Org structure'!E95 -> 0
A99: ='Org structure'!E96 -> 0
A100: ='Org structure'!E97 -> 0
A101: ='Org structure'!E98 -> 0
A102: ='Org structure'!E99 -> 0
A103: ='Org structure'!E100 -> 0
A104: ='Org structure'!A11 -> Vote 10 - [NAME OF VOTE 10] | C104: =SUM(C105:C114) -> 0 | D104: =SUM(D105:D114) -> 0 | E104: 0 | F104: 0 | G104: 0 | H104: 0 | I104: 0 | J104: 0 | K104: 0
A105: ='Org structure'!E102 -> 10.1 - [Name of sub-vote]
A106: ='Org structure'!E103 -> 0
A107: ='Org structure'!E104 -> 0
A108: ='Org structure'!E105 -> 0
A109: ='Org structure'!E106 -> 0
A110: ='Org structure'!E107 -> 0
A111: ='Org structure'!E108 -> 0
A112: ='Org structure'!E109 -> 0
A113: ='Org structure'!E110 -> 0
A114: ='Org structure'!E111 -> 0
A115: ='Org structure'!A12 -> Vote 11 - [NAME OF VOTE 11] | C115: =SUM(C116:C125) -> 0 | D115: =SUM(D116:D125) -> 0 | E115: 0 | F115: 0 | G115: 0 | H115: 0 | I115: 0 | J115: 0 | K115: 0
A116: ='Org structure'!E113 -> 11.1 - [Name of sub-vote]
A117: ='Org structure'!E114 -> 0
A118: ='Org structure'!E115 -> 0
A119: ='Org structure'!E116 -> 0
A120: ='Org structure'!E117 -> 0
A121: ='Org structure'!E118 -> 0
A122: ='Org structure'!E119 -> 0
A123: ='Org structure'!E120 -> 0
A124: ='Org structure'!E121 -> 0
A125: ='Org structure'!E122 -> 0
A126: ='Org structure'!A13 -> Vote 12 - [NAME OF VOTE 12] | C126: =SUM(C127:C136) -> 0 | D126: =SUM(D127:D136) -> 0 | E126: 0 | F126: 0 | G126: 0 | H126: 0 | I126: 0 | J126: 0 | K126: 0
A127: ='Org structure'!E124 -> 12.1 - [Name of sub-vote]
A128: ='Org structure'!E125 -> 0
A129: ='Org structure'!E126 -> 0
A130: ='Org structure'!E127 -> 0
A131: ='Org structure'!E128 -> 0
A132: ='Org structure'!E129 -> 0
A133: ='Org structure'!E130 -> 0
A134: ='Org structure'!E131 -> 0
A135: ='Org structure'!E132 -> 0
A136: ='Org structure'!E133 -> 0
A137: ='Org structure'!A14 -> Vote 13 - [NAME OF VOTE 13] | C137: =SUM(C138:C147) -> 0 | D137: =SUM(D138:D147) -> 0 | E137: 0 | F137: 0 | G137: 0 | H137: 0 | I137: 0 | J137: 0 | K137: 0
A138: ='Org structure'!E135 -> 13.1 - [Name of sub-vote]
A139: ='Org structure'!E136 -> 0
A140: ='Org structure'!E137 -> 0
A141: ='Org structure'!E138 -> 0
A142: ='Org structure'!E139 -> 0
A143: ='Org structure'!E140 -> 0
A144: ='Org structure'!E141 -> 0
A145: ='Org structure'!E142 -> 0
A146: ='Org structure'!E143 -> 0
A147: ='Org structure'!E144 -> 0
A148: ='Org structure'!A15 -> Vote 14 - [NAME OF VOTE 14] | C148: =SUM(C149:C158) -> 0 | D148: =SUM(D149:D158) -> 0 | E148: 0 | F148: 0 | G148: 0 | H148: 0 | I148: 0 | J148: 0 | K148: 0
A149: ='Org structure'!E146 -> 14.1 - [Name of sub-vote]
A150: ='Org structure'!E147 -> 0
A151: ='Org structure'!E148 -> 0
A152: ='Org structure'!E149 -> 0
A153: ='Org structure'!E150 -> 0
A154: ='Org structure'!E151 -> 0
A155: ='Org structure'!E152 -> 0
A156: ='Org structure'!E153 -> 0
A157: ='Org structure'!E154 -> 0
A158: ='Org structure'!E155 -> 0
A159: ='Org structure'!A16 -> Vote 15 - [NAME OF VOTE 15] | C159: =SUM(C160:C161) -> 0 | D159: 0 | E159: 0 | F159: 0 | G159: 0 | H159: 0 | I159: 0 | J159: 0 | K159: 0
A160: ='Org structure'!E157 -> 15.1 - [Name of sub-vote]
A161: ='Org structure'!E166 -> 0
A162: Total Revenue by Vote | B162: 2 | C162: =C5+C16+C27+C38+C49+C60+C71+C82+C93+C104+C115+C126+C137+C148+C159 -> 5002943076 | D162: 5410153356 | E162: 5790043950 | F162: 6443701839 | G162: 6594922532 | H162: 6594922532 | I162: 7119571995 | J162: 7658440858 | K162: 8225424220 | L162: =SUM(L78:L81) -> 0 | M162: 0 | N162: 0 | O162: 0 | P162: 0 | Q162: 0 | R162: 0 | S162: 0 | T162: 0 | U162: 0 | V162: 0 | W162: 0
A164: Expenditure by Vote | B164: 1
A165: =A5 -> Vote 1 - City Manager | C165: =SUM(C166:C175) -> 176238545.4 | D165: 194108064 | E165: 156640668.9 | F165: 181805355.9 | G165: 187429782.2 | H165: 187429782.2 | I165: =SUM(I166:I169) -> 149906309.9 | J165: =SUM(J166:J169) -> 162021564.9 | K165: =SUM(K166:K169) -> 170043955.5 | Y165: 1.1 - Internal Audit and Compliance | Z165: 18637938.28
A166: 1.1 - Internal Audit and Compliance | C166: 12845619.53 | D166: 29585787 | E166: 18637938.28 | F166: 19757657.66 | G166: 20027657.66 | H166: 20027657.66 | I166: 21775457.74 | J166: 23154175.27 | K166: 24862969.46 | Y166: 1.2 - Office of the City Manager | Z166: 55644220.54
A167: 1.2 - Office of the City Manager | C167: 78843976.27 | D167: 69404433 | E167: 55644220.54 | F167: 42326752.98 | G167: 44836077.31 | H167: 44836077.31 | I167: 29733213.96 | J167: 33704887.52 | K167: 35054422.29 | Y167: 1.3 - Political Support | Z167: 76857803.39
A168: 1.3 - Political Support | C168: 79569701.56 | D168: 85724513 | E168: 76857803.39 | F168: 106872334.4 | G168: 109635554.4 | H168: 109635554.4 | I168: 90885614.01 | J168: 97187137.65 | K168: 101491761.1 | Y168: 1.4 - Strategic Planning | Z168: 5500706.73
A169: 1.4 - Strategic Planning | C169: 4979248.01 | D169: 9393331 | E169: 5500706.73 | F169: 12848610.79 | G169: 12930492.79 | H169: 12930492.79 | I169: 7512024.147 | J169: 7975364.438 | K169: 8634802.591 | Y169: 2.1 - Asset Management | Z169: 74868789.68
A170: 0 | I170: 72847646.99 | J170: 84315941.34 | K170: 113553147 | Y170: 2.2 - Budget and Treasury Management | Z170: 27419381.87
A171: 0 | Y171: 2.3 - Expenditure Management | Z171: 63846097.97
A172: 0 | Y172: 2.4 - Revenue Management | Z172: 260128714.9
A173: 0 | Y173: 2.5 - Supply Chain Management | Z173: 63181304.39
A174: 0 | Y174: 3.1 - Area Based Management | Z174: 32379250.3
A175: 0 | Y175: 3.2 - Public Safety, Emergency Services and Enforcement | Z175: 336647862.6
A176: Vote 2 - City Finance | C176: =SUM(C177:C186) -> 275761302.6 | D176: =SUM(D177:D186) -> 975349935 | E176: =SUM(E177:E186) -> 489444288.8 | F176: 700877661.2 | G176: 705258982.7 | H176: 705258982.7 | I176: 646309781.6 | J176: 737339877.6 | K176: 830856582.5 | Y176: 3.3 - Recreation and Facilities | Z176: 237534789.8
A177: 2.1 - Asset Management | C177: 56698215.01 | D177: 121395371.8 | E177: 74868789.68 | F177: 94584991.87 | G177: 96104991.87 | H177: 96104991.87 | I177: 72457420.13 | J177: 83907202.94 | K177: 113140169.9 | Y177: 3.4 - Waste Management | Z177: 127808982.1
A178: 2.2 - Budget and Treasury Management | C178: -25922100.37 | D178: 80325809 | E178: 27419381.87 | F178: 34270508.09 | G178: 41666637.79 | H178: 41666637.79 | I178: 122871191.4 | J178: 127898563.1 | K178: 132345248.3 | Y178: 4.1 - Human Resources Management | Z178: 74348104.3
A179: 2.3 - Expenditure Management | C179: 58469733.36 | D179: 46587775 | E179: 63846097.97 | F179: 484978367.6 | G179: 457625622.9 | H179: 457625622.9 | I179: 31427404.01 | J179: 33072935.99 | K179: 27025926.38 | Y179: 4.2 - Information Technology | Z179: 32974505.65
A180: 2.4 - Revenue Management | C180: 86037587.67 | D180: 661044412 | E180: 260128714.9 | F180: 22239285.46 | G180: 23740330.46 | H180: 23740330.46 | I180: 373782944.5 | J180: 444337533.4 | K180: 507520265.1 | Y180: 4.3 - Legal Services | Z180: 14770253.19
A181: 2.5 - Supply Chain Management | C181: 100477867 | D181: 65996567.22 | E181: 63181304.39 | F181: 64804508.21 | G181: 86121399.67 | H181: 86121399.67 | I181: 45770821.54 | J181: 48123642.11 | K181: 50824972.87 | Y181: 4.4 - Secretariat and Auxiliary Services | Z181: 24768759.66
A182: 0 | Y182: 4.5 - General Manager: Corporate Service | Z182: 9060047.8
A183: 0 | Y183: 5.1 - Electricity | Z183: 2085365058
A184: 0 | Y184: 5.2 - Project Management Office | Z184: 12573127.24
A185: 0 | Y185: 5.3 - Roads and Transportation | Z185: 246514483.8
A186: 0 | Y186: 5.4 - Water and Sanitation | Z186: 1430828773
A187: Vote 3 - Community Services and Social Equity | C187: =SUM(C188:C197) -> 668362475.6 | D187: 724942866.7 | E187: 734370884.9 | F187: 743751614.2 | G187: 769029279.2 | H187: 769029279.2 | I187: 785013601.5 | J187: 830796618.4 | K187: 850969562.7 | Y187: 5.5 - General Manager: Infrastructure | Z187: 1068283.88
A188: 3.1 - Area Based Management | C188: 26776269.83 | D188: 29901836.54 | E188: 32379250.3 | I188: 51984820.22 | J188: 54841882.86 | K188: 58119497.18 | Y188: 6.1 - City Entities | Z188: 90863518.31
A189: 3.2 - Public Safety, Emergency Services and Enforcement | C189: 295712197 | D189: 309168018.7 | E189: 336647862.6 | F189: 743751614.2 | G189: 768791614.2 | H189: 768791614.2 | I189: 317247534.2 | J189: 328318447.7 | K189: 341179762.7 | Y189: 6.2 - Development Services | Z189: 16556686.57
A190: 3.3 - Recreation and Facilities | C190: 252089568.5 | D190: 258723405.3 | E190: 237534789.8 | G190: 3737665 | H190: 3737665 | I190: 299705258.3 | J190: 326674560.8 | K190: 324768756.2 | Y190: 6.3 - Human Settlement Development | Z190: 58249918.81
A191: 3.4 - Waste Management | C191: 93784440.16 | D191: 127149606.2 | E191: 127808982.1 | G191: -3500000 | H191: -3500000 | I191: 116075988.7 | J191: 120961726.9 | K191: 126901546.7 | Y191: 6.4 - Town Planning | Z191: 87440226.38
A192: 0 | Y192: 6.5 - General Manager: Sustainable Development and City Enterprises | Z192: 811248.92
A193: 0 | Y193: Grand Total | Z193: 5566648838
A194: 0
A195: 0
A196: 0
A197: =A37 -> 0
A198: Vote 4 - Corporate Services | C198: =SUM(C199:C208) -> 258379079.4 | D198: 196080850 | E198: 155921670.6 | F198: 200548950.4 | G198: 215358953.4 | H198: 215358953.4 | I198: 195537113.7 | J198: 207685710.6 | K198: 219935130
A199: 4.1 - Human Resources Management | C199: 125100765.1 | D199: 109130487 | E199: 74348104.3 | F199: 37102233.06 | G199: 46529040.06 | H199: 46529040.06 | I199: 109467447.1 | J199: 116631448 | K199: 121876547.2
A200: 4.2 - Information Technology | C200: 32233000.43 | D200: 26302852 | E200: 32974505.65 | F200: 4306177.429 | G200: 10907655.43 | H200: 10907655.43 | I200: 32777666.07 | J200: 37682721.56 | K200: 41911435.74
A201: 4.3 - Legal Services | C201: 16645212.17 | D201: 10705121 | E201: 14770253.19 | F201: 117626955.3 | G201: 117098160.3 | H201: 117098160.3 | I201: 16293851.43 | J201: 17933350.25 | K201: 18948121.87
... 134 more rows

Sheet A4-FinPerf RE
A1: =muni&" - "&Approve4 -> KZN225 Msunduzi - Table A4 Consolidated Budgeted Financial Performance (revenue and expenditure)
A2: =desc -> Description | B2: =head27 -> Ref | C2: =head1b -> 2017/18 | D2: =head1A -> 2018/19 | E2: =Head1 -> 2019/20 | F2: =Head2 -> Current Year 2020/21 | J2: =Head3 -> 2021/22 Medium Term Revenue & Expenditure Framework | M2: =Head4 -> LTFS
A3: R thousand | B3: 1 | C3: =Head5 -> Audited Outcome | D3: =Head5 -> Audited Outcome | E3: =Head5 -> Audited Outcome | F3: =Head6 -> Original Budget | G3: =Head7 -> Adjusted Budget | H3: =Head8 -> Full Year Forecast | I3: =Head5b -> Pre-audit outcome | J3: =Head9 -> Budget Year 2021/22 | K3: =Head10 -> Budget Year +1 2022/23 | L3: =Head11 -> Budget Year +2 2023/24 | M3: =Head12 -> Forecast 2024/25 | N3: =Head13 -> Forecast 2025/26 | O3: =Head14 -> Forecast 2026/27 | P3: =Head15 -> Forecast 2027/28 | Q3: =Head16 -> Forecast 2028/29 | R3: =Head17 -> Forecast 2029/30 | S3: =Head18 -> Forecast 2030/31 | T3: =Head19 -> Forecast 2031/32 | U3: =Head20 -> Forecast 2032/33 | V3: =Head21 -> Forecast 2033/34 | W3: =Head22 -> Forecast 2034/35 | X3: =Head23 -> Forecast 2035/36
A4: Revenue By Source
A5: Property rates | B5: 2 | C5: ='SA1'!C9 -> 864163568 | D5: ='SA1'!D9 -> 930979920 | E5: ='SA1'!E9 -> 1177107606 | F5: ='SA1'!F9 -> 1269794594 | G5: ='SA1'!G9 -> 1269794594 | H5: ='SA1'!H9 -> 1269794594 | I5: ='SA1'!I9 -> 0 | J5: ='SA1'!J9 -> 1321378575 | K5: ='SA1'!K9 -> 1400661290 | L5: ='SA1'!L9 -> 1491704274
A6: Service charges - electricity revenue | B6: 2 | C6: ='SA1'!C15 -> 1904923329 | D6: ='SA1'!D15 -> 2032091624 | E6: ='SA1'!E15 -> 2159912320 | F6: ='SA1'!F15 -> 2584775677 | G6: ='SA1'!G15 -> 2584775677 | H6: ='SA1'!H15 -> 2584775677 | I6: ='SA1'!I15 -> 0 | J6: ='SA1'!J15 -> 2961894448 | K6: ='SA1'!K15 -> 3317321782 | L6: ='SA1'!L15 -> 3649053960
A7: Service charges - water revenue | B7: 2 | C7: ='SA1'!C21 -> 563095497 | D7: ='SA1'!D21 -> 649733747 | E7: ='SA1'!E21 -> 662849315 | F7: ='SA1'!F21 -> 722633094.8 | G7: ='SA1'!G21 -> 722633094.8 | H7: ='SA1'!H21 -> 722633094.8 | I7: ='SA1'!I21 -> 0 | J7: ='SA1'!J21 -> 773217411.5 | K7: ='SA1'!K21 -> 827342630.3 | L7: ='SA1'!L21 -> 885256614.4
A8: Service charges - sanitation revenue | B8: 2 | C8: ='SA1'!C27 -> 142391879 | D8: ='SA1'!D27 -> 161144633 | E8: ='SA1'!E27 -> 172220501.9 | F8: ='SA1'!F27 -> 152021749.4 | G8: ='SA1'!G27 -> 152021749.4 | H8: ='SA1'!H27 -> 152021749.4 | I8: ='SA1'!I27 -> 0 | J8: ='SA1'!J27 -> 160154913 | K8: ='SA1'!K27 -> 169652099.3 | L8: ='SA1'!L27 -> 179882120.9
A9: Service charges - refuse revenue | B9: 2 | C9: ='SA1'!C34 -> 100233134 | D9: ='SA1'!D34 -> 99492107 | E9: ='SA1'!E34 -> 109639121 | F9: ='SA1'!F34 -> 116333081 | G9: ='SA1'!G34 -> 116333081 | H9: ='SA1'!H34 -> 116333081 | I9: ='SA1'!I34 -> 0 | J9: ='SA1'!J34 -> 122556900.8 | K9: ='SA1'!K34 -> 129824525 | L9: ='SA1'!L34 -> 137652943.9
A11: Rental of facilities and equipment | C11: 27295067 | D11: 20617910 | E11: 43597286 | F11: 29078797.63 | G11: 29078797.63 | H11: 29078797.63 | J11: 30634513.3 | K11: 32451139.94 | L11: 34407943.68
A12: Interest earned - external investments | C12: 39129952 | D12: 20507403 | E12: 14116343.54 | F12: 15260422.43 | G12: 15369322.43 | H12: 15369322.43 | J12: 16076855.03 | K12: 17030212.53 | L12: 18057134.35
A13: Interest earned - outstanding debtors | C13: 201961916 | D13: 218926060 | E13: 292253612.1 | F13: 202457793.9 | G13: 202457793.9 | H13: 202457793.9 | J13: 213289285.9 | K13: 225937340.5 | L13: 239561362.1
A14: Dividends received | C14: 0 | D14: 0 | F14: 0 | G14: 0 | H14: 0
A15: Fines, penalties and forfeits | C15: 14284733 | D15: 12557144 | E15: 13272582.05 | F15: 1798551.444 | G15: 1798551.444 | H15: 1798551.444 | J15: 1894773.946 | K15: 2007134.041 | L15: 2128164.224
A16: Licences and permits | C16: 898614 | D16: 829644 | E16: 604456 | F16: 1119569.005 | G16: 1119569.005 | H16: 1119569.005 | J16: 1179465.947 | K16: 1249408.278 | L16: 1324747.597
A17: Agency services | C17: 2577730 | D17: 1970390 | E17: 1090372 | F17: 601902.026 | G17: 601902.026 | H17: 601902.026 | J17: 634103.7844 | K17: 671706.1388 | L17: 712210.019
A18: Transfers and subsidies | C18: 557086308 | D18: 604487443.2 | E18: 637128044 | F18: 675483240 | G18: 819982787 | H18: 819982787 | J18: 661215834.8 | K18: 696906045.3 | L18: 701999380.5
A19: Other revenue | B19: 2 | C19: ='SA1'!C39 -> 69050805 | D19: ='SA1'!D39 -> 63774510 | E19: ='SA1'!E39 -> 76138861.76 | F19: ='SA1'!F39 -> 146451785.1 | G19: ='SA1'!G39 -> 146451785.1 | H19: ='SA1'!H39 -> 146451785.1 | I19: ='SA1'!I39 -> 0 | J19: ='SA1'!J39 -> 154286955.6 | K19: ='SA1'!K39 -> 163436172.1 | L19: ='SA1'!L39 -> 173291373.3
A20: Gains | C20: 129562422 | D20: 180886635
A21: Total Revenue (excluding capital transfers and contributions) | C21: =SUM(C5:C9)+SUM(C11:C20) -> 4616654954 | D21: =SUM(D5:D9)+SUM(D11:D20) -> 4997999170 | E21: 5359930421 | F21: 5917810258 | G21: 6062418705 | H21: 6062418705 | I21: 0 | J21: 6418414037 | K21: 6984491486 | L21: 7515032229 | M21: =SUM(M5:M20) -> 0 | N21: 0 | O21: 0 | P21: 0 | Q21: 0 | R21: 0 | S21: 0 | T21: 0 | U21: 0 | V21: 0 | W21: 0 | X21: 0
A23: Expenditure By Type
A24: Employee related costs | B24: 2 | C24: ='SA1'!C57 -> 1194821260 | D24: ='SA1'!D57 -> 1310730366 | E24: ='SA1'!E57 -> 1345486985 | F24: ='SA1'!F57 -> 1478324763 | G24: ='SA1'!G57 -> 1474657970 | H24: ='SA1'!H57 -> 1474657970 | I24: ='SA1'!I57 -> 0 | J24: ='SA1'!J57 -> 1538089743 | K24: ='SA1'!K57 -> 1612775389 | L24: ='SA1'!L57 -> 1692314816
A25: Remuneration of councillors | C25: 45020093 | D25: 44130681 | E25: 43759322 | F25: 53650401.12 | G25: 53650401.44 | H25: 53650401.44 | J25: 56332921.51 | K25: 59149567.59 | L25: 62107045.97
A26: Debt impairment | B26: 3 | C26: 908868803 | D26: 697521846 | E26: 567918578 | F26: 123904143.3 | G26: 123904143.3 | H26: 123904143.3 | J26: 150000000 | K26: 200000000 | L26: 250000000
A27: Depreciation & asset impairment | B27: 2 | C27: ='SA1'!C66 -> 470106108 | D27: ='SA1'!D66 -> 460955083 | E27: ='SA1'!E66 -> 417614093.7 | F27: ='SA1'!F66 -> 489941448.3 | G27: ='SA1'!G66 -> 482441449.3 | H27: ='SA1'!H66 -> 482441449.3 | I27: ='SA1'!I66 -> 0 | J27: ='SA1'!J66 -> 421872297.6 | K27: ='SA1'!K66 -> 405795700 | L27: ='SA1'!L66 -> 313902120
A28: Finance charges | C28: 61439423 | D28: 52462384 | E28: 43716970 | F28: 31793212.22 | G28: 36505334.22 | H28: 36505334.22 | J28: 34724271.93 | K28: 36669376.45 | L28: 27063703.09
A29: Bulk purchases - electricity | B29: 2 | C29: ='SA1'!C71 -> 1483727730 | D29: ='SA1'!D71 -> 1575444642 | E29: ='SA1'!E71 -> 1755899646 | F29: ='SA1'!F71 -> 1956168063 | G29: ='SA1'!G71 -> 1869644590 | H29: ='SA1'!H71 -> 1869644590 | I29: ='SA1'!I71 -> 0 | J29: ='SA1'!J71 -> 2185393029 | K29: ='SA1'!K71 -> 2449680193 | L29: ='SA1'!L71 -> 2696348212
A30: Inventory consumed | B30: 8 | C30: ='SA1'!C284 -> 542598597 | D30: ='SA1'!D284 -> 613208673 | E30: ='SA1'!E284 -> 792388542 | F30: ='SA1'!F284 -> 698669435.8 | G30: ='SA1'!G284 -> 748165942 | H30: ='SA1'!H284 -> 748165942 | I30: ='SA1'!I284 -> 0 | J30: ='SA1'!J284 -> 830520119.4 | K30: ='SA1'!K284 -> 887766279.2 | L30: ='SA1'!L284 -> 951763856.7
A31: Contracted services | C31: ='SA1'!C184 -> 42558828 | D31: ='SA1'!D184 -> 33079463 | E31: ='SA1'!E184 -> 31504387.07 | F31: ='SA1'!F184 -> 464722594.3 | G31: ='SA1'!G184 -> 636216030.1 | H31: ='SA1'!H184 -> 636216030.1 | I31: ='SA1'!I184 -> 0 | J31: ='SA1'!J184 -> 655391231 | K31: ='SA1'!K184 -> 716382501.2 | L31: ='SA1'!L184 -> 774470299.8
A32: Transfers and subsidies | C32: ='SA1'!C76 -> 19201984 | D32: ='SA1'!D76 -> 15819791 | E32: ='SA1'!E76 -> 25306678 | F32: ='SA1'!F76 -> 25080000 | G32: ='SA1'!G76 -> 59680000 | H32: ='SA1'!H76 -> 59680000 | I32: ='SA1'!I76 -> 0 | J32: ='SA1'!J76 -> 45862882.85 | K32: ='SA1'!K76 -> 52058867.74 | L32: ='SA1'!L76 -> 55615730.33
A33: Other expenditure | B33: 4, 5 | C33: ='SA1'!C272 -> 754380838 | D33: ='SA1'!D272 -> 698306556 | E33: ='SA1'!E272 -> 495112178 | F33: ='SA1'!F272 -> 194223408.2 | G33: ='SA1'!G272 -> 188215605.3 | H33: ='SA1'!H272 -> 188215605.3 | I33: ='SA1'!I272 -> 0 | J33: ='SA1'!J272 -> 200227522.5 | K33: ='SA1'!K272 -> 230729553.2 | L33: ='SA1'!L272 -> 254238677.4
A34: Losses | C34: 5675664 | D34: 49263277 | E34: 47941458 | G34: 70000 | H34: 70000
A35: Total Expenditure | C35: =SUM(C24:C34) -> 5528399328 | D35: =SUM(D24:D34) -> 5550922762 | E35: 5566648838 | F35: 5516477470 | G35: 5673151466 | H35: 5673151466 | I35: 0 | J35: 6118414019 | K35: 6651007426 | L35: 7077824461 | M35: =SUM(M24:M34) -> 0 | N35: 0 | O35: 0 | P35: 0 | Q35: 0 | R35: 0 | S35: 0 | T35: 0 | U35: 0 | V35: 0 | W35: 0 | X35: 0
A37: Surplus/(Deficit) | C37: =C21-C35 -> -911744374 | D37: -552923591.8 | E37: -206718416.1 | F37: 401332788.3 | G37: 389267239.1 | H37: 389267239.1 | I37: 0 | J37: 300000018.7 | K37: 333484059.1 | L37: 437207768.5 | M37: =M21+M35 -> 0 | N37: 0 | O37: 0 | P37: 0 | Q37: 0 | R37: 0 | S37: 0 | T37: 0 | U37: 0 | V37: 0 | W37: 0 | X37: 0
A38: Transfers and subsidies - capital (monetary allocations) (National / Provincial and District) | C38: 386288122 | D38: 412154185.8 | E38: 430113748.5 | F38: 525891581 | G38: 526485335 | H38: 526485335 | J38: 380796576 | K38: 332115854.7 | L38: 345142134.3
A39: Transfers and subsidies - capital (monetary allocations) (National / Provincial Departmental Agencies, Households, Non-profit Institutions, Private Enterprises, Public Corporatons, Higher Educational Institutions) | B39: 6
A40: Transfers and subsidies - capital (in-kind - all)
A41: Surplus/(Deficit) after capital transfers & contributions | C41: =SUM(C37:C40) -> -525456252 | D41: -140769406 | E41: 223395332.4 | F41: 927224369.3 | G41: 915752574.1 | H41: 915752574.1 | I41: 0 | J41: 680796594.7 | K41: 665599913.8 | L41: 782349902.8
A42: Taxation
A43: Surplus/(Deficit) after taxation | C43: =C41-C42 -> -525456252 | D43: -140769406 | E43: 223395332.4 | F43: 927224369.3 | G43: 915752574.1 | H43: 915752574.1 | I43: 0 | J43: 680796594.7 | K43: 665599913.8 | L43: 782349902.8
A44: Attributable to minorities
A45: Surplus/(Deficit) attributable to municipality | C45: =SUM(C43:C44) -> -525456252 | D45: -140769406 | E45: 223395332.4 | F45: 927224369.3 | G45: 915752574.1 | H45: 915752574.1 | I45: 0 | J45: 680796594.7 | K45: 665599913.8 | L45: 782349902.8
A46: Share of surplus/ (deficit) of associate | B46: 7
A47: =result -> Surplus/(Deficit) for the year | C47: =SUM(C45:C46) -> -525456252 | D47: -140769406 | E47: 223395332.4 | F47: 927224369.3 | G47: 915752574.1 | H47: 915752574.1 | I47: 0 | J47: 680796594.7 | K47: 665599913.8 | L47: 782349902.8 | M47: =M25+M46 -> 0 | N47: 0 | O47: 0 | P47: 0 | Q47: 0 | R47: 0 | S47: 0 | T47: 0 | U47: 0 | V47: 0 | W47: 0 | X47: 0
A48: =head27a -> References
A49: 1. Classifications are revenue sources and expenditure type | J49: 680796594.7 | K49: 667290520.5 | L49: 786356640.6
A50: 2. Detail to be provided in Table SA1 | J50: 680796594.7 | K50: 665599913.8 | L50: 782349902.8
A51: 3. Previously described as 'bad or doubtful debts' - amounts shown should reflect the change in the provision for debt impairment
A52: 4. Expenditure type components previously shown under repairs and maintenance should be allocated back to the originating expenditure group/item; e.g. employee costs
A53: 5. Repairs & maintenance detailed in Table A9 and Table SA34c
A54: 6. Contributions are funds provided by external organisations to assist with infrastructure development; e.g. developer contributions (detail to be provided in Table SA1)
A55: 7. Equity method ( Includes Joint Ventures)
A56: 8. All materials not part of 'bulk' e.g road making materials, pipe, cable etc.
A57: check balance | C57: =C45-'A3-FinPerf V'!C21 -> 0.01999855042 | D57: =D45-'A3-FinPerf V'!D21 -> 0 | E57: =E45-'A3-FinPerf V'!E21 -> 219.9200001 | F57: =F45-'A3-FinPerf V'!F21 -> 0 | G57: =G45-'A3-FinPerf V'!G21 -> -6018931.083 | H57: =H45-'A3-FinPerf V'!H21 -> -6018931.083 | J57: =J45-'A3-FinPerf V'!I21 -> -1.907348633e-06 | K57: =K45-'A3-FinPerf V'!J21 -> -1690606.688 | L57: =L45-'A3-FinPerf V'!K21 -> -4006737.852
A59: Total revenue | C59: =C21+SUM(C38:C40) -> 5002943076 | D59: 5410153356 | E59: 5790044170 | F59: 6443701839 | G59: 6588904040 | H59: 6588904040 | I59: 0 | J59: 6799210613 | K59: 7316607340 | L59: 7860174363

Sheet A5A
A1: =muni&" - "&Approve5 -> KZN225 Msunduzi - Table A5 Consolidated Budgeted Capital Expenditure by vote, functional classification and funding
A2: =Vdesc -> Vote Description | B2: =head27 -> Ref | C2: =head1b -> 2017/18 | D2: =head1A -> 2018/19 | E2: =Head1 -> 2019/20 | F2: =Head2 -> Current Year 2020/21 | J2: =Head3 -> 2021/22 Medium Term Revenue & Expenditure Framework | N2: ="Multi-year appropriation for "&Head9& " in the "&Head2A&" Annual Budget" -> Multi-year appropriation for Budget Year 2021/22 in the 2020/21 Annual Budget | R2: ="Multi-year appropriation for "&RIGHT(Head10,7)& " in the "&Head2A&" Annual Budget" -> Multi-year appropriation for 2022/23 in the 2020/21 Annual Budget | V2: New multi-year appropriations (funds for new and existing projects)
A3: R thousand | B3: 1 | C3: =Head5 -> Audited Outcome | D3: =Head5 -> Audited Outcome | E3: =Head5 -> Audited Outcome | F3: =Head6 -> Original Budget | G3: =Head7 -> Adjusted Budget | H3: =Head8 -> Full Year Forecast | I3: =Head5b -> Pre-audit outcome | J3: =Head9 -> Budget Year 2021/22 | K3: =Head10 -> Budget Year +1 2022/23 | L3: =Head11 -> Budget Year +2 2023/24 | N3: ="Appropriation for "&RIGHT(Head9,7) -> Appropriation for 2021/22 | O3: ="Adjustments in "&Head2A -> Adjustments in 2020/21 | P3: ="Downward adjustments for "&RIGHT(Head9,7) -> Downward adjustments for 2021/22 | Q3: Appropriation carried forward | R3: ="Appropriation for "&RIGHT(Head9,7) -> Appropriation for 2021/22 | S3: ="Adjustments in "&Head2A -> Adjustments in 2020/21 | T3: ="Downward adjustments for "&RIGHT(Head9,7) -> Downward adjustments for 2021/22 | U3: Appropriation carried forward | V3: =Head9 -> Budget Year 2021/22 | W3: =Head10 -> Budget Year +1 2022/23 | X3: =Head11 -> Budget Year +2 2023/24
A4: Capital expenditure - Municipal Vote
A5: Multi-year expenditure appropriation | B5: 2
A6: ='Org structure'!A2 -> Vote 1 - City Manager | C6: =SUM(C7:C16) -> 320532.86 | D6: =SUM(D7:D16) -> 10000 | E6: 646307 | F6: 3800000 | G6: 2300000 | H6: 2300000 | I6: =SUM(I7:I16) -> 0 | J6: 0 | K6: 0 | L6: 0 | N6: =SUM(N7:N16) -> 0 | O6: 0 | P6: 0 | Q6: 0 | R6: 0 | S6: 0 | T6: 0 | U6: 0 | V6: =SUM(V7:V16) -> 0 | W6: =SUM(W7:W16) -> 0 | X6: =SUM(X7:X16) -> 0
A7: ='Org structure'!E3 -> 1.1 - Internal Audit and Compliance | J7: =Q7+V7 -> 0 | K7: =U7+W7 -> 0 | L7: =X7 -> 0 | Q7: =SUM(N7:P7) -> 0 | U7: =SUM(R7:T7) -> 0
A8: ='Org structure'!E4 -> 1.2 - Office of the City Manager | C8: 320532.86 | D8: 10000 | F8: 3800000 | G8: 2300000 | H8: 2300000 | J8: =Q8+V8 -> 0 | K8: =U8+W8 -> 0 | L8: =X8 -> 0 | Q8: =SUM(N8:P8) -> 0 | U8: =SUM(R8:T8) -> 0
A9: ='Org structure'!E5 -> 1.3 - Political Support | E9: 646307 | J9: =Q9+V9 -> 0 | K9: =U9+W9 -> 0 | L9: 0 | Q9: 0 | U9: 0
A10: ='Org structure'!E6 -> 1.4 - Strategic Planning | J10: 0 | K10: 0 | L10: 0 | Q10: 0 | U10: 0
A11: ='Org structure'!E7 -> 0 | J11: 0 | K11: 0 | L11: =X11 -> 0 | Q11: 0 | U11: 0
A12: ='Org structure'!E8 -> 0 | J12: 0 | K12: 0 | L12: 0 | Q12: 0 | U12: 0 | Y12: Water/Water Storage
A13: ='Org structure'!E9 -> 0 | J13: 0 | K13: 0 | L13: 0 | Q13: 0 | U13: 0
A14: ='Org structure'!E10 -> 0 | J14: 0 | K14: 0 | L14: 0 | Q14: 0 | U14: 0
A15: ='Org structure'!E11 -> 0 | J15: 0 | K15: 0 | L15: 0 | Q15: 0 | U15: 0
A16: ='Org structure'!E12 -> 0 | J16: 0 | K16: 0 | L16: 0 | Q16: 0 | U16: 0
A17: ='Org structure'!A3 -> Vote 2 - City Finance | C17: =SUM(C18:C27) -> 8968380.12 | D17: =SUM(D18:D27) -> 0 | E17: 9184603 | F17: 12500000 | G17: 4720000 | H17: 4720000 | I17: =SUM(I18:I27) -> 0 | J17: 0 | K17: 0 | L17: 0 | N17: =SUM(N18:N27) -> 0 | O17: 0 | P17: 0 | Q17: 0 | R17: 0 | S17: 0 | T17: 0 | U17: 0 | V17: 0 | W17: 0 | X17: 0
A18: ='Org structure'!E14 -> 2.1 - Asset Management | J18: =Q18+V18 -> 0 | K18: =U18+W18 -> 0 | L18: =X18 -> 0 | Q18: =SUM(N18:P18) -> 0 | U18: 0
A19: ='Org structure'!E15 -> 2.2 - Budget and Treasury Management | C19: 8968380.12 | E19: 9184603 | F19: 12500000 | G19: 4720000 | H19: 4720000 | J19: =Q19+V19 -> 0 | K19: =U19+W19 -> 0 | L19: 0 | Q19: 0 | U19: 0
A20: ='Org structure'!E16 -> 2.3 - Expenditure Management | J20: 0 | K20: 0 | L20: 0 | Q20: 0 | U20: 0
A21: ='Org structure'!E17 -> 2.4 - Revenue Management | J21: 0 | K21: =U21+W21 -> 0 | L21: 0 | Q21: 0 | U21: 0
A22: ='Org structure'!E18 -> 2.5 - Supply Chain Management | J22: 0 | K22: 0 | L22: 0 | Q22: 0 | U22: 0
A23: ='Org structure'!E19 -> 0 | J23: 0 | K23: 0 | L23: 0 | Q23: 0 | U23: 0
A24: ='Org structure'!E20 -> 0 | J24: 0 | K24: 0 | L24: 0 | Q24: 0 | U24: 0
A25: ='Org structure'!E21 -> 0 | J25: 0 | K25: 0 | L25: 0 | Q25: 0 | U25: 0
A26: ='Org structure'!E22 -> 0 | J26: 0 | K26: 0 | L26: 0 | Q26: 0 | U26: 0
A27: ='Org structure'!E23 -> 0 | J27: 0 | K27: 0 | L27: 0 | Q27: 0 | U27: 0
A28: ='Org structure'!A4 -> Vote 3 - Community Services and Social Equity | C28: =SUM(C29:C38) -> 20104586.9 | D28: =SUM(D29:D38) -> 35939310 | E28: 12745198 | F28: 23812425 | G28: 46120040 | H28: 46120040 | I28: =SUM(I29:I38) -> 0 | J28: 0 | K28: 0 | L28: 0 | N28: =SUM(N29:N38) -> 0 | O28: 0 | P28: 0 | Q28: 0 | R28: 0 | S28: 0 | T28: 0 | U28: 0 | V28: 0 | W28: 0 | X28: 0
A29: ='Org structure'!E25 -> 3.1 - Area Based Management | D29: 0 | E29: 260083 | J29: =Q29+V29 -> 0 | K29: =U29+W29 -> 0 | L29: =X29 -> 0 | Q29: =SUM(N29:P29) -> 0 | U29: 0
A30: ='Org structure'!E26 -> 3.2 - Public Safety, Emergency Services and Enforcement | C30: 254720.61 | D30: 4241000 | E30: 1175649 | J30: 0 | K30: 0 | L30: 0 | Q30: 0 | U30: 0
A31: ='Org structure'!E27 -> 3.3 - Recreation and Facilities | C31: 15517625.77 | D31: 31612609 | E31: 3374495 | F31: 7000000 | G31: 23320040 | H31: 23320040 | J31: 0 | K31: 0 | L31: 0 | Q31: 0 | U31: =SUM(R31:T31) -> 0
A32: ='Org structure'!E28 -> 3.4 - Waste Management | C32: 4332240.52 | D32: 85701 | E32: 7934971 | F32: 16812425 | G32: 22800000 | H32: 22800000 | J32: 0 | K32: =U32+W32 -> 0 | L32: 0 | Q32: 0 | U32: 0
A33: ='Org structure'!E29 -> 0 | J33: =Q33+V33 -> 0 | K33: 0 | L33: 0 | Q33: 0 | U33: 0
A34: ='Org structure'!E30 -> 0 | J34: 0 | K34: 0 | L34: 0 | Q34: 0 | U34: 0
A35: ='Org structure'!E31 -> 0 | J35: 0 | K35: 0 | L35: 0 | Q35: 0 | U35: 0
A36: ='Org structure'!E32 -> 0 | J36: 0 | K36: 0 | L36: 0 | Q36: 0 | U36: 0
A37: ='Org structure'!E33 -> 0 | J37: 0 | K37: 0 | L37: 0 | Q37: 0 | U37: 0
A38: ='Org structure'!E34 -> 0 | J38: 0 | K38: 0 | L38: 0 | Q38: 0 | U38: 0
A39: ='Org structure'!A5 -> Vote 4 - Corporate Services | C39: =SUM(C40:C49) -> 823826.7 | D39: =SUM(D40:D49) -> 2587789 | E39: -6912874 | F39: 0 | G39: 1970000 | H39: 1970000 | I39: =SUM(I40:I49) -> 0 | J39: 0 | K39: 0 | L39: 0 | N39: =SUM(N40:N49) -> 0 | O39: 0 | P39: 0 | Q39: 0 | R39: 0 | S39: 0 | T39: 0 | U39: 0 | V39: 0 | W39: 0 | X39: 0
A40: ='Org structure'!E36 -> 4.1 - Human Resources Management | E40: 153990 | J40: =Q40+V40 -> 0 | K40: =U40+W40 -> 0 | L40: =X40 -> 0 | Q40: =SUM(N40:P40) -> 0 | U40: 0
A41: ='Org structure'!E37 -> 4.2 - Information Technology | C41: 823826.7 | D41: 2587789 | E41: -7251520 | G41: 1970000 | H41: 1970000 | J41: 0 | K41: 0 | L41: 0 | Q41: 0 | U41: 0
A42: ='Org structure'!E38 -> 4.3 - Legal Services | E42: 0 | J42: 0 | K42: 0 | L42: 0 | Q42: 0 | U42: 0
A43: ='Org structure'!E39 -> 4.4 - Secretariat and Auxiliary Services | E43: 184656 | J43: 0 | K43: 0 | L43: 0 | Q43: 0 | U43: 0
A44: ='Org structure'!E40 -> 4.5 - General Manager: Corporate Service | J44: 0 | K44: 0 | L44: 0 | Q44: 0 | U44: 0
A45: ='Org structure'!E41 -> 0 | J45: 0 | K45: 0 | L45: 0 | Q45: 0 | U45: 0
A46: ='Org structure'!E42 -> 0 | J46: 0 | K46: 0 | L46: 0 | Q46: 0 | U46: 0
A47: ='Org structure'!E43 -> 0 | J47: 0 | K47: 0 | L47: 0 | Q47: 0 | U47: 0
A48: ='Org structure'!E44 -> 0 | J48: 0 | K48: 0 | L48: 0 | Q48: 0 | U48: 0
A49: ='Org structure'!E45 -> 0 | J49: 0 | K49: 0 | L49: 0 | Q49: 0 | U49: 0
A50: ='Org structure'!A6 -> Vote 5 - Infrastructure Services | C50: =SUM(C51:C60) -> 391837160.5 | D50: =SUM(D51:D60) -> 29245686 | E50: 354424144.1 | F50: 168455000 | G50: 7780000 | H50: 7780000 | I50: =SUM(I51:I60) -> 0 | J50: 0 | K50: 0 | L50: 0 | N50: =SUM(N51:N60) -> 0 | O50: 0 | P50: 0 | Q50: 0 | R50: 0 | S50: 0 | T50: 0 | U50: 0 | V50: 0 | W50: 0 | X50: 0
A51: ='Org structure'!E47 -> 5.1 - Electricity | C51: 99456099.19 | D51: 7811932 | E51: 33332616 | G51: 7780000 | H51: 7780000 | J51: =Q51+V51 -> 0 | K51: =U51+W51 -> 0 | L51: =X51 -> 0 | Q51: =SUM(N51:P51) -> 0 | U51: 0
A52: ='Org structure'!E48 -> 5.2 - Project Management Office | J52: 0 | K52: 0 | L52: 0 | Q52: 0 | U52: 0
A53: ='Org structure'!E49 -> 5.3 - Roads and Transportation | C53: 210859456.2 | D53: 19991754 | E53: 297722791.1 | F53: 55700000 | J53: 0 | K53: 0 | L53: 0 | Q53: 0 | U53: 0
A54: ='Org structure'!E50 -> 5.4 - Water and Sanitation | C54: 81517380.13 | D54: 1442000 | E54: 23368737 | F54: 112755000 | J54: 0 | K54: 0 | L54: 0 | Q54: 0 | U54: 0
A55: ='Org structure'!E51 -> General Manager: Infrastructure | C55: 4225 | J55: 0 | K55: 0 | L55: 0 | Q55: 0 | U55: 0
A56: ='Org structure'!E52 -> 0 | J56: 0 | K56: 0 | L56: 0 | Q56: 0 | U56: 0
A57: ='Org structure'!E53 -> 0 | J57: 0 | K57: 0 | L57: 0 | Q57: 0 | U57: 0
A58: ='Org structure'!E54 -> 0 | J58: 0 | K58: 0 | L58: 0 | Q58: 0 | U58: 0
A59: ='Org structure'!E55 -> 0 | J59: 0 | K59: 0 | L59: 0 | Q59: 0 | U59: 0
A60: ='Org structure'!E56 -> 0 | J60: 0 | K60: 0 | L60: 0 | Q60: 0 | U60: 0
A61: ='Org structure'!A7 -> Vote 6 - Sustainable Development and City Enterprises | C61: =SUM(C62:C71) -> 72410247 | D61: =SUM(D62:D71) -> 75459271 | E61: 109767844.1 | F61: 300600156 | G61: 319509531.8 | H61: 319509531.8 | I61: =SUM(I62:I71) -> 0 | J61: 0 | K61: 0 | L61: 0 | N61: =SUM(N62:N71) -> 0 | O61: 0 | P61: 0 | Q61: 0 | R61: 0 | S61: 0 | T61: 0 | U61: 0 | V61: 0 | W61: 0 | X61: 0
A62: ='Org structure'!E58 -> 6.1 - City Entities | C62: 77653.21 | D62: 4173693 | E62: 8711868.09 | F62: 10212000 | G62: 2500000 | H62: 2500000 | J62: =Q62+V62 -> 0 | K62: =U62+W62 -> 0 | L62: =X62 -> 0 | Q62: =SUM(N62:P62) -> 0 | U62: 0
A63: ='Org structure'!E59 -> 6.2 - Development Services | E63: 10337001 | F63: 35000000 | G63: 20224298 | H63: 20224298 | J63: 0 | K63: 0 | L63: 0 | Q63: 0 | U63: 0
A64: ='Org structure'!E60 -> 6.3 - Human Settlement Development | C64: 19804945.66 | D64: 42805253 | E64: 66874142 | F64: 255388156 | G64: 279353166.8 | H64: 279353166.8 | J64: 0 | K64: 0 | L64: 0 | Q64: 0 | U64: 0
A65: ='Org structure'!E61 -> 6.4 - Town Planning | C65: 52527648.13 | D65: 28480325 | E65: 23844833 | G65: 17432067 | H65: 17432067 | J65: 0 | K65: 0 | L65: 0 | Q65: 0 | U65: 0
A66: ='Org structure'!E62 -> 0 | J66: 0 | K66: 0 | L66: 0 | Q66: 0 | U66: 0
A67: ='Org structure'!E63 -> 0 | J67: 0 | K67: 0 | L67: 0 | Q67: 0 | U67: 0
A68: ='Org structure'!E64 -> 0 | J68: 0 | K68: 0 | L68: 0 | Q68: 0 | U68: 0
A69: ='Org structure'!E65 -> 0 | J69: 0 | K69: 0 | L69: 0 | Q69: 0 | U69: 0
A70: ='Org structure'!E66 -> 0 | J70: 0 | K70: 0 | L70: 0 | Q70: 0 | U70: 0 | Y70: 73818182.08
A71: ='Org structure'!E67 -> 0 | J71: 0 | K71: 0 | L71: 0 | Q71: 0 | U71: 0
A72: ='Org structure'!A8 -> Vote 7 - [NAME OF VOTE 7] | C72: =SUM(C73:C82) -> 0 | D72: 0 | E72: 0 | F72: 0 | G72: 0 | H72: 0 | I72: 0 | J72: 0 | K72: 0 | L72: 0 | N72: =SUM(N73:N82) -> 0 | O72: 0 | P72: 0 | Q72: 0 | R72: 0 | S72: 0 | T72: 0 | U72: 0 | V72: 0 | W72: 0 | X72: 0
A73: ='Org structure'!E69 -> 7.1 - [Name of sub-vote] | J73: =Q73+V73 -> 0 | K73: =U73+W73 -> 0 | L73: =X73 -> 0 | Q73: =SUM(N73:P73) -> 0 | U73: =SUM(R73:T73) -> 0
A74: ='Org structure'!E70 -> 0 | J74: 0 | K74: 0 | L74: 0 | Q74: 0 | U74: 0
A75: ='Org structure'!E71 -> 0 | J75: 0 | K75: 0 | L75: 0 | Q75: 0 | U75: 0
A76: ='Org structure'!E72 -> 0 | J76: 0 | K76: 0 | L76: 0 | Q76: 0 | U76: 0
A77: ='Org structure'!E73 -> 0 | J77: 0 | K77: 0 | L77: 0 | Q77: 0 | U77: 0
A78: ='Org structure'!E74 -> 0 | J78: 0 | K78: 0 | L78: 0 | Q78: 0 | U78: 0
A79: ='Org structure'!E75 -> 0 | J79: 0 | K79: 0 | L79: 0 | Q79: 0 | U79: 0
A80: ='Org structure'!E76 -> 0 | J80: 0 | K80: 0 | L80: 0 | Q80: 0 | U80: 0
A81: ='Org structure'!E77 -> 0 | J81: 0 | K81: 0 | L81: 0 | Q81: 0 | U81: 0
A82: ='Org structure'!E78 -> 0 | J82: 0 | K82: 0 | L82: 0 | Q82: 0 | U82: 0
A83: ='Org structure'!A9 -> Vote 8 - [NAME OF VOTE 8] | C83: =SUM(C84:C93) -> 0 | D83: 0 | E83: 0 | F83: 0 | G83: 0 | H83: 0 | I83: 0 | J83: 0 | K83: 0 | L83: 0 | N83: =SUM(N84:N93) -> 0 | O83: 0 | P83: 0 | Q83: 0 | R83: 0 | S83: 0 | T83: 0 | U83: 0 | V83: 0 | W83: 0 | X83: 0
A84: ='Org structure'!E80 -> 8.1 - [Name of sub-vote] | J84: =Q84+V84 -> 0 | K84: =U84+W84 -> 0 | L84: =X84 -> 0 | Q84: =SUM(N84:P84) -> 0 | U84: 0
A85: ='Org structure'!E81 -> 0 | J85: 0 | K85: 0 | L85: 0 | Q85: 0 | U85: 0
A86: ='Org structure'!E82 -> 0 | J86: 0 | K86: 0 | L86: 0 | Q86: 0 | U86: 0
A87: ='Org structure'!E83 -> 0 | J87: 0 | K87: 0 | L87: 0 | Q87: 0 | U87: 0
A88: ='Org structure'!E84 -> 0 | J88: 0 | K88: 0 | L88: 0 | Q88: 0 | U88: 0
A89: ='Org structure'!E85 -> 0 | J89: 0 | K89: 0 | L89: 0 | Q89: 0 | U89: 0
A90: ='Org structure'!E86 -> 0 | J90: 0 | K90: 0 | L90: 0 | Q90: 0 | U90: 0
A91: ='Org structure'!E87 -> 0 | J91: 0 | K91: 0 | L91: 0 | Q91: 0 | U91: 0
A92: ='Org structure'!E88 -> 0 | J92: 0 | K92: 0 | L92: 0 | Q92: 0 | U92: 0
A93: ='Org structure'!E89 -> 0 | J93: 0 | K93: 0 | L93: 0 | Q93: 0 | U93: 0
A94: ='Org structure'!A10 -> Vote 9 - [NAME OF VOTE 9] | C94: =SUM(C95:C104) -> 0 | D94: =SUM(D95:D104) -> 0 | E94: 0 | F94: 0 | G94: 0 | H94: 0 | I94: 0 | J94: 0 | K94: 0 | L94: 0 | N94: =SUM(N95:N104) -> 0 | O94: 0 | P94: 0 | Q94: 0 | R94: 0 | S94: 0 | T94: 0 | U94: 0 | V94: 0 | W94: 0 | X94: 0
A95: ='Org structure'!E91 -> 9.1 - [Name of sub-vote] | J95: =Q95+V95 -> 0 | K95: =U95+W95 -> 0 | L95: =X95 -> 0 | Q95: =SUM(N95:P95) -> 0 | U95: 0
A96: ='Org structure'!E92 -> 0 | J96: 0 | K96: 0 | L96: 0 | Q96: 0 | U96: 0
A97: ='Org structure'!E93 -> 0 | J97: 0 | K97: 0 | L97: 0 | Q97: 0 | U97: 0
A98: ='Org structure'!E94 -> 0 | J98: 0 | K98: 0 | L98: 0 | Q98: 0 | U98: 0
A99: ='Org structure'!E95 -> 0 | J99: 0 | K99: 0 | L99: 0 | Q99: 0 | U99: 0
A100: ='Org structure'!E96 -> 0 | J100: 0 | K100: 0 | L100: 0 | Q100: 0 | U100: 0
A101: ='Org structure'!E97 -> 0 | J101: 0 | K101: 0 | L101: 0 | Q101: 0 | U101: 0
A102: ='Org structure'!E98 -> 0 | J102: 0 | K102: 0 | L102: 0 | Q102: 0 | U102: 0
A103: ='Org structure'!E99 -> 0 | J103: 0 | K103: 0 | L103: 0 | Q103: 0 | U103: 0
A104: ='Org structure'!E100 -> 0 | J104: 0 | K104: 0 | L104: 0 | Q104: 0 | U104: 0
A105: ='Org structure'!A11 -> Vote 10 - [NAME OF VOTE 10] | C105: =SUM(C106:C115) -> 0 | D105: =SUM(D106:D115) -> 0 | E105: 0 | F105: 0 | G105: 0 | H105: 0 | I105: 0 | J105: 0 | K105: 0 | L105: 0 | N105: =SUM(N106:N115) -> 0 | O105: 0 | P105: 0 | Q105: 0 | R105: 0 | S105: 0 | T105: 0 | U105: 0 | V105: 0 | W105: 0 | X105: 0
A106: ='Org structure'!E102 -> 10.1 - [Name of sub-vote] | J106: =Q106+V106 -> 0 | K106: =U106+W106 -> 0 | L106: =X106 -> 0 | Q106: =SUM(N106:P106) -> 0 | U106: 0
A107: ='Org structure'!E103 -> 0 | J107: 0 | K107: 0 | L107: 0 | Q107: 0 | U107: 0
A108: ='Org structure'!E104 -> 0 | J108: 0 | K108: 0 | L108: 0 | Q108: 0 | U108: 0
A109: ='Org structure'!E105 -> 0 | J109: 0 | K109: 0 | L109: 0 | Q109: 0 | U109: 0
A110: ='Org structure'!E106 -> 0 | J110: 0 | K110: 0 | L110: 0 | Q110: 0 | U110: 0
A111: ='Org structure'!E107 -> 0 | J111: 0 | K111: 0 | L111: 0 | Q111: 0 | U111: 0
A112: ='Org structure'!E108 -> 0 | J112: 0 | K112: 0 | L112: 0 | Q112: 0 | U112: 0
A113: ='Org structure'!E109 -> 0 | J113: 0 | K113: 0 | L113: 0 | Q113: 0 | U113: 0
A114: ='Org structure'!E110 -> 0 | J114: 0 | K114: 0 | L114: 0 | Q114: 0 | U114: 0
A115: ='Org structure'!E111 -> 0 | J115: 0 | K115: 0 | L115: 0 | Q115: 0 | U115: 0
A116: ='Org structure'!A12 -> Vote 11 - [NAME OF VOTE 11] | C116: =SUM(C117:C126) -> 0 | D116: 0 | E116: 0 | F116: 0 | G116: 0 | H116: 0 | I116: 0 | J116: 0 | K116: 0 | L116: 0 | N116: =SUM(N117:N126) -> 0 | O116: 0 | P116: 0 | Q116: 0 | R116: 0 | S116: 0 | T116: 0 | U116: 0 | V116: 0 | W116: 0 | X116: 0
A117: ='Org structure'!E113 -> 11.1 - [Name of sub-vote] | J117: =Q117+V117 -> 0 | K117: =U117+W117 -> 0 | L117: =X117 -> 0 | Q117: =SUM(N117:P117) -> 0 | U117: 0
A118: ='Org structure'!E114 -> 0 | J118: 0 | K118: 0 | L118: 0 | Q118: 0 | U118: 0
A119: ='Org structure'!E115 -> 0 | J119: 0 | K119: 0 | L119: 0 | Q119: 0 | U119: 0
A120: ='Org structure'!E116 -> 0 | J120: 0 | K120: 0 | L120: 0 | Q120: 0 | U120: 0
A121: ='Org structure'!E117 -> 0 | J121: 0 | K121: 0 | L121: 0 | Q121: 0 | U121: 0
A122: ='Org structure'!E118 -> 0 | J122: 0 | K122: 0 | L122: 0 | Q122: 0 | U122: 0
A123: ='Org structure'!E119 -> 0 | J123: 0 | K123: 0 | L123: 0 | Q123: 0 | U123: 0
A124: ='Org structure'!E120 -> 0 | J124: 0 | K124: 0 | L124: 0 | Q124: 0 | U124: 0
A125: ='Org structure'!E121 -> 0 | J125: 0 | K125: 0 | L125: 0 | Q125: 0 | U125: 0
A126: ='Org structure'!E122 -> 0 | J126: 0 | K126: 0 | L126: 0 | Q126: 0 | U126: 0
A127: ='Org structure'!A13 -> Vote 12 - [NAME OF VOTE 12] | C127: =SUM(C128:C137) -> 0 | D127: 0 | E127: 0 | F127: 0 | G127: 0 | H127: 0 | I127: 0 | J127: 0 | K127: 0 | L127: 0 | N127: =SUM(N128:N137) -> 0 | O127: 0 | P127: 0 | Q127: 0 | R127: 0 | S127: 0 | T127: 0 | U127: 0 | V127: 0 | W127: 0 | X127: 0
A128: ='Org structure'!E124 -> 12.1 - [Name of sub-vote] | J128: =Q128+V128 -> 0 | K128: =U128+W128 -> 0 | L128: =X128 -> 0 | Q128: =SUM(N128:P128) -> 0 | U128: 0
A129: ='Org structure'!E125 -> 0 | J129: 0 | K129: 0 | L129: 0 | Q129: 0 | U129: 0
A130: ='Org structure'!E126 -> 0 | J130: 0 | K130: 0 | L130: 0 | Q130: 0 | U130: 0
A131: ='Org structure'!E127 -> 0 | J131: 0 | K131: 0 | L131: 0 | Q131: 0 | U131: 0
A132: ='Org structure'!E128 -> 0 | J132: 0 | K132: 0 | L132: 0 | Q132: 0 | U132: 0
A133: ='Org structure'!E129 -> 0 | J133: =Q133+V133 -> 0 | K133: 0 | L133: 0 | Q133: 0 | U133: 0
A134: ='Org structure'!E130 -> 0 | J134: 0 | K134: 0 | L134: 0 | Q134: 0 | U134: 0
A135: ='Org structure'!E131 -> 0 | J135: 0 | K135: 0 | L135: 0 | Q135: 0 | U135: 0
A136: ='Org structure'!E132 -> 0 | J136: 0 | K136: 0 | L136: 0 | Q136: 0 | U136: =SUM(R136:T136) -> 0
A137: ='Org structure'!E133 -> 0 | J137: 0 | K137: 0 | L137: 0 | Q137: 0 | U137: 0
A138: ='Org structure'!A14 -> Vote 13 - [NAME OF VOTE 13] | C138: =SUM(C139:C148) -> 0 | D138: 0 | E138: 0 | F138: 0 | G138: 0 | H138: 0 | I138: 0 | J138: 0 | K138: 0 | L138: 0 | N138: =SUM(N139:N148) -> 0 | O138: 0 | P138: 0 | Q138: 0 | R138: 0 | S138: 0 | T138: 0 | U138: 0 | V138: 0 | W138: 0 | X138: 0
A139: ='Org structure'!E135 -> 13.1 - [Name of sub-vote] | J139: =Q139+V139 -> 0 | K139: =U139+W139 -> 0 | L139: =X139 -> 0 | Q139: =SUM(N139:P139) -> 0 | U139: 0
A140: ='Org structure'!E136 -> 0 | J140: 0 | K140: 0 | L140: 0 | Q140: 0 | U140: 0
A141: ='Org structure'!E137 -> 0 | J141: 0 | K141: 0 | L141: 0 | Q141: 0 | U141: 0
A142: ='Org structure'!E138 -> 0 | J142: 0 | K142: 0 | L142: 0 | Q142: 0 | U142: 0
A143: ='Org structure'!E139 -> 0 | J143: 0 | K143: 0 | L143: 0 | Q143: 0 | U143: 0
A144: ='Org structure'!E140 -> 0 | J144: 0 | K144: 0 | L144: 0 | Q144: 0 | U144: 0
A145: ='Org structure'!E141 -> 0 | J145: 0 | K145: 0 | L145: 0 | Q145: 0 | U145: 0
A146: ='Org structure'!E142 -> 0 | J146: 0 | K146: 0 | L146: 0 | Q146: 0 | U146: 0
A147: ='Org structure'!E143 -> 0 | J147: 0 | K147: 0 | L147: 0 | Q147: 0 | U147: 0
A148: ='Org structure'!E144 -> 0 | J148: 0 | K148: 0 | L148: 0 | Q148: 0 | U148: 0
A149: ='Org structure'!A15 -> Vote 14 - [NAME OF VOTE 14] | C149: =SUM(C150:C159) -> 0 | D149: 0 | E149: 0 | F149: 0 | G149: 0 | H149: 0 | I149: 0 | J149: 0 | K149: 0 | L149: 0 | N149: =SUM(N150:N159) -> 0 | O149: 0 | P149: 0 | Q149: 0 | R149: 0 | S149: 0 | T149: 0 | U149: 0 | V149: 0 | W149: 0 | X149: 0
A150: ='Org structure'!E146 -> 14.1 - [Name of sub-vote] | J150: =Q150+V150 -> 0 | K150: =U150+W150 -> 0 | L150: =X150 -> 0 | Q150: =SUM(N150:P150) -> 0 | U150: 0
A151: ='Org structure'!E147 -> 0 | J151: 0 | K151: 0 | L151: 0 | Q151: 0 | U151: 0
A152: ='Org structure'!E148 -> 0 | J152: 0 | K152: 0 | L152: 0 | Q152: 0 | U152: 0
A153: ='Org structure'!E149 -> 0 | J153: 0 | K153: 0 | L153: 0 | Q153: 0 | U153: 0
A154: ='Org structure'!E150 -> 0 | J154: 0 | K154: 0 | L154: 0 | Q154: 0 | U154: 0
A155: ='Org structure'!E151 -> 0 | J155: 0 | K155: 0 | L155: 0 | Q155: 0 | U155: 0
A156: ='Org structure'!E152 -> 0 | J156: 0 | K156: 0 | L156: 0 | Q156: 0 | U156: 0
A157: ='Org structure'!E153 -> 0 | J157: 0 | K157: 0 | L157: 0 | Q157: 0 | U157: 0
A158: ='Org structure'!E154 -> 0 | J158: 0 | K158: 0 | L158: 0 | Q158: 0 | U158: 0
A159: ='Org structure'!E155 -> 0 | J159: 0 | K159: 0 | L159: 0 | Q159: 0 | U159: 0
A160: ='Org structure'!A16 -> Vote 15 - [NAME OF VOTE 15] | C160: =SUM(C161:C170) -> 0 | D160: 0 | E160: 0 | F160: 0 | G160: 0 | H160: 0 | I160: 0 | J160: 0 | K160: 0 | L160: 0 | N160: =SUM(N161:N170) -> 0 | O160: 0 | P160: 0 | Q160: 0 | R160: 0 | S160: 0 | T160: 0 | U160: 0 | V160: 0 | W160: 0 | X160: 0
A161: ='Org structure'!E157 -> 15.1 - [Name of sub-vote] | J161: =Q161+V161 -> 0 | K161: =U161+W161 -> 0 | L161: =X161 -> 0 | Q161: =SUM(N161:P161) -> 0 | U161: 0
A162: ='Org structure'!E158 -> 0 | J162: 0 | K162: 0 | L162: 0 | Q162: 0 | U162: 0
A163: ='Org structure'!E159 -> 0 | J163: 0 | K163: 0 | L163: 0 | Q163: 0 | U163: 0
A164: ='Org structure'!E160 -> 0 | J164: 0 | K164: 0 | L164: 0 | Q164: 0 | U164: 0
A165: ='Org structure'!E161 -> 0 | J165: 0 | K165: 0 | L165: 0 | Q165: 0 | U165: 0
A166: ='Org structure'!E162 -> 0 | J166: 0 | K166: 0 | L166: 0 | Q166: 0 | U166: 0
A167: ='Org structure'!E163 -> 0 | J167: 0 | K167: 0 | L167: 0 | Q167: 0 | U167: 0
A168: ='Org structure'!E164 -> 0 | J168: 0 | K168: 0 | L168: 0 | Q168: 0 | U168: 0
A169: ='Org structure'!E165 -> 0 | J169: 0 | K169: 0 | L169: 0 | Q169: 0 | U169: 0
A170: ='Org structure'!E166 -> 0 | J170: 0 | K170: 0 | L170: 0 | Q170: 0 | U170: 0
A171: Capital multi-year expenditure sub-total | C171: =C6+C17+C28+C39+C50+C61+C72+C83+C94+C105+C116+C127+C138+C149+C160 -> 494464734.1 | D171: =D6+D17+D28+D39+D50+D61+D72+D83+D94+D105+D116+D127+D138+D149+D160 -> 143242056 | E171: 479855222.2 | F171: 509167581 | G171: 382399571.8 | H171: 382399571.8 | I171: 0 | J171: 0 | K171: 0 | L171: 0 | N171: =N6+N17+N28+N39+N50+N61+N72+N83+N94+N105+N116+N127+N138+N149+N160 -> 0 | O171: 0 | P171: 0 | Q171: 0 | R171: 0 | S171: 0 | U171: 0 | V171: =V6+V17+V28+V39+V50+V61+V72+V83+V94+V105+V116+V127+V138+V149+V160 -> 0 | W171: =W6+W17+W28+W39+W50+W61+W72+W83+W94+W105+W116+W127+W138+W149+W160 -> 0
A173: Capital expenditure - Municipal Vote
A174: Single-year expenditure appropriation | B174: 2
A175: =A6 -> Vote 1 - City Manager | C175: =SUM(C176:C185) -> 872127.31 | D175: 4313936 | E175: 0 | F175: 0 | G175: 1500000 | H175: 1500000 | I175: 0 | J175: 9040000 | K175: 5060000 | L175: 5450000
A176: =A7 -> 1.1 - Internal Audit and Compliance | D176: 120000 | J176: 510000 | K176: 260000 | L176: 210000
A177: 1.2 - Office of the City Manager | C177: 365629.35 | D177: 3913171 | G177: 1310000 | H177: 1310000 | J177: 1700000 | K177: 2000000 | L177: 2200000
A178: 1.3 - Political Support | C178: 506497.96 | D178: 280765 | G178: 190000 | H178: 190000 | J178: 4940000 | K178: 2200000 | L178: 2500000
A179: 1.4 - Strategic Planning | J179: 1890000 | K179: 600000 | L179: 540000
A180: 0
A181: 0
A182: 0
A183: 0
A184: 0
A185: 0
A186: Vote 2 - City Finance | C186: =SUM(C187:C196) -> 14741557.57 | D186: 17257057 | E186: 0 | F186: 15000000 | G186: 27914416 | H186: 27914416 | I186: 0 | J186: 39856796.95 | K186: 15769106.98 | L186: 9597890
A187: 2.1 - Asset Management | C187: 12967773.48 | D187: 5250000 | F187: 15000000 | G187: 13500000 | H187: 13500000 | J187: 4864855.4 | K187: 4325000 | L187: 4370000
A188: 2.2 - Budget and Treasury Management | C188: 360308.93 | D188: 8147057 | G188: 13879416 | H188: 13879416 | J188: 31362168.94 | K188: 11069106.98 | L188: 5032890
A189: 2.3 - Expenditure Management | C189: 95618.8 | D189: 50000 | G189: 0 | H189: 0 | J189: 163000 | K189: 150000
A190: 2.4 - Revenue Management | C190: 548139.91 | D190: 2050000 | G190: 0 | H190: 0 | J190: 2055000 | K190: 225000 | L190: 195000
A191: 2.5 - Supply Chain Management | C191: 769716.45 | D191: 1760000 | G191: 535000 | H191: 535000 | J191: 1411772.61
A192: 0
A193: 0
A194: 0
A195: 0
A196: 0
A197: Vote 3 - Community Services and Social Equity | C197: =SUM(C198:C207) -> 62491875.35 | D197: 15738155 | E197: 0 | F197: 13700000 | G197: 19124760 | H197: 19124760 | I197: 0 | J197: 50556700 | K197: 54761500 | L197: 48412112
A198: 3.1 - Area Based Management | C198: 354586.95 | D198: 2349800 | F198: 10000000 | G198: 0 | H198: 0 | J198: 2459000 | K198: 5100000 | L198: 9200000
A199: 3.2 - Public Safety, Emergency Services and Enforcement | C199: 8257400.38 | D199: 2902083 | G199: 2000000 | H199: 2000000 | J199: 2500000 | K199: 1950000 | L199: 1600000
A200: 3.3 - Recreation and Facilities | C200: 24597455.29 | D200: 9746908 | F200: 1200000 | G200: 12162335 | H200: 12162335 | J200: 41097700 | K200: 45411500 | L200: 35412112
A201: 3.4 - Waste Management | C201: 29282432.73 | D201: 739364 | F201: 2500000 | G201: 4962425 | H201: 4962425 | J201: 4500000 | K201: 2300000 | L201: 2200000
... 140 more rows

Sheet A6-FinPos
A1: =muni&" - "&Approve6 -> KZN225 Msunduzi - Table A6 Consolidated Budgeted Financial Position
A2: =desc -> Description | B2: =head27 -> Ref | C2: =head1b -> 2017/18 | D2: =head1A -> 2018/19 | E2: =Head1 -> 2019/20 | F2: =Head2 -> Current Year 2020/21 | J2: =Head3 -> 2021/22 Medium Term Revenue & Expenditure Framework
A3: R thousand | C3: =Head5 -> Audited Outcome | D3: =Head5 -> Audited Outcome | E3: =Head5 -> Audited Outcome | F3: =Head6 -> Original Budget | G3: =Head7 -> Adjusted Budget | H3: =Head8 -> Full Year Forecast | I3: =Head5b -> Pre-audit outcome | J3: =Head9 -> Budget Year 2021/22 | K3: =Head10 -> Budget Year +1 2022/23 | L3: =Head11 -> Budget Year +2 2023/24
A4: ASSETS
A5: Current assets
A6: Cash | C6: 512622307 | D6: 308195245 | E6: 518976967 | F6: 365664115.2 | G6: 219655123.2 | H6: 219655123.2 | J6: 355836461.2 | K6: 370161440 | L6: 396862723.1
A7: Call investment deposits | B7: 1 | C7: 8869457 | F7: 16771734.26 | G7: 67212254.89 | H7: 67212254.89
A8: Consumer debtors | B8: 1 | C8: ='SA3'!C14 -> 424770387 | D8: ='SA3'!D14 -> 1703379038 | E8: ='SA3'!E14 -> 1451865358 | F8: ='SA3'!F14 -> 2485904794 | G8: ='SA3'!G14 -> 2165986453 | H8: ='SA3'!H14 -> 2165986453 | I8: ='SA3'!I14 -> 0 | J8: ='SA3'!J14 -> 2549906678 | K8: ='SA3'!K14 -> 2638074611 | L8: ='SA3'!L14 -> 2691659529
A9: Other debtors | C9: 35001598 | D9: 5449597 | E9: 550039863.6 | F9: 67823549.67 | G9: 67823549.67 | H9: 67823549.67 | J9: 729641518.6 | K9: 1162571912 | L9: 1933058645 | M9: =J9*1.0535 -> 768677339.8 | N9: =M9*1.0535 -> 809801577.5
A10: Current portion of long-term receivables | C10: 0
A11: Inventory | B11: 2 | C11: 357737917 | D11: 335344747 | E11: ='SA3'!E115 -> 340986532 | F11: ='SA3'!F115 -> 36180571.68 | G11: ='SA3'!G115 -> 173496047.1 | H11: ='SA3'!H115 -> 173496047.1 | J11: ='SA3'!J115 -> 173496047.1 | K11: ='SA3'!K115 -> 173496047.1 | L11: ='SA3'!L115 -> 173496047.1
A12: Total current assets | C12: =SUM(C6:C11) -> 1339001666 | D12: 2352368627 | E12: 2861868721 | F12: 2972344765 | G12: 2694173428 | H12: 2694173428 | I12: 0 | J12: 3808880705 | K12: 4344304011 | L12: 5195076944
A14: Non current assets
A15: Long-term receivables | C15: 0 | D15: 0
A16: Investments | C16: 4664290 | D16: 2642997 | E16: - | F16: 2969671.429 | G16: -328.5708 | H16: -328.5708
A17: Investment property | C17: 849500000 | D17: 779067512 | E17: 821671435 | F17: 782332533.6 | G17: 782332533.6 | H17: 782332533.6 | J17: 821671435 | K17: 821671435 | L17: 821671435
A18: Investment in Associate | C18: 0 | D18: 0 | G18: 0 | H18: 0
A19: Property, plant and equipment | B19: 3 | C19: 6967433290 | D19: 6645980240 | E19: ='SA3'!E121 -> 6588894508 | F19: ='SA3'!F121 -> 7111997636 | G19: ='SA3'!G121 -> 7285796412 | H19: ='SA3'!H121 -> 7285796412 | J19: ='SA3'!J121 -> 6755609329 | K19: ='SA3'!K121 -> 5575310835 | L19: ='SA3'!L121 -> 4799765910
A21: Biological | C21: 928494 | D21: 948425 | E21: 1070250 | F21: 1065650.33 | G21: 1065650.33 | H21: 1065650.33 | J21: 1070250 | K21: 1065650.33 | L21: 1065650.33
A22: Intangible | C22: 52109485 | D22: 41057963 | E22: 30700413 | F22: 46132727.23 | G22: 46132727.23 | H22: 46132727.23 | J22: 30700413 | K22: 46132727.23 | L22: 46132727.23
A23: Other non-current assets | C23: 290773397 | D23: 353131260 | E23: 345024972 | F23: 395927434.3 | G23: 395927434.3 | H23: 395927434.3 | J23: =345024972+(J22/2) -> 360375178.5 | K23: 395927434.3 | L23: 395927434.3
A24: Total non current assets | C24: =SUM(C15:C19)+SUM(C21:C23) -> 8165408956 | D24: =SUM(D15:D19)+SUM(D21:D23) -> 7822828397 | E24: 7787361578 | F24: 8340425653 | G24: 8511254429 | H24: 8511254429 | I24: 0 | J24: 7969426606 | K24: 6840108082 | L24: 6064563156
A25: TOTAL ASSETS | C25: =C12+C24 -> 9504410622 | D25: =D12+D24 -> 10175197024 | E25: =E12+E24 -> 1.06492303e+10 | F25: =F12+F24 -> 1.131277042e+10 | G25: 1.120542786e+10 | H25: 1.120542786e+10 | I25: 0 | J25: 1.177830731e+10 | K25: 1.118441209e+10 | L25: 1.12596401e+10
A27: LIABILITIES
A28: Current liabilities
A29: Bank overdraft | B29: 1
A30: Borrowing | B30: 4 | C30: ='SA3'!C127 -> 113888397 | D30: ='SA3'!D127 -> 114310751 | E30: ='SA3'!E127 -> 113418257.9 | F30: ='SA3'!F127 -> 85380595.88 | G30: ='SA3'!G127 -> 85380595.88 | H30: ='SA3'!H127 -> 85380595.88 | I30: ='SA3'!I127 -> 0 | J30: ='SA3'!J127 -> 95346077.83 | K30: ='SA3'!K127 -> 100538517.1 | L30: ='SA3'!L127 -> 102063188.2
A31: Consumer deposits | C31: 108809333 | D31: 107229302 | E31: 113838915 | F31: 114344430.7 | G31: 114344430.7 | H31: 114344430.7 | J31: 114344430.7 | K31: 114344430.7 | L31: 114344430.7
A32: Trade and other payables | B32: 4 | C32: ='SA3'!C134 -> 1105869085 | D32: ='SA3'!D134 -> 1208618752 | E32: ='SA3'!E134 -> 1624206606 | F32: ='SA3'!F134 -> 1101595513 | G32: ='SA3'!G134 -> 1005724626 | H32: ='SA3'!H134 -> 1005724626 | I32: ='SA3'!I134 -> 0 | J32: ='SA3'!J134 -> 945608981.8 | K32: ='SA3'!K134 -> 1388548018 | L32: ='SA3'!L134 -> 1788029121
A33: Provisions | C33: 39259933 | D33: 46040040 | E33: 41864143 | F33: 140397811.8 | G33: 140397495.2 | H33: 140397495.2 | J33: 140397811.8 | K33: 140397811.8 | L33: 140397811.8
A34: Total current liabilities | C34: =SUM(C29:C33) -> 1367826748 | D34: 1476198845 | E34: 1893327922 | F34: 1441718351 | G34: 1345847148 | H34: 1345847148 | I34: 0 | J34: 1295697302 | K34: 1743828777 | L34: 2144834551
A36: Non current liabilities
A37: Borrowing | C37: ='SA3'!C139 -> 451226205 | D37: ='SA3'!D139 -> 366291537 | E37: ='SA3'!E139 -> 285317995.6 | F37: ='SA3'!F139 -> 282085537 | G37: ='SA3'!G139 -> 282085537 | H37: ='SA3'!H139 -> 282085537 | I37: ='SA3'!I139 -> 0 | J37: ='SA3'!J139 -> 377458040.8 | K37: ='SA3'!K139 -> 158555607.8 | L37: ='SA3'!L139 -> 141873015.5
A38: Provisions | C38: ='SA3'!C146 -> 729834332 | D38: ='SA3'!D146 -> 624742898 | E38: ='SA3'!E146 -> 531179840 | F38: ='SA3'!F146 -> 809779414.9 | G38: ='SA3'!G146 -> 809779414.9 | H38: ='SA3'!H146 -> 809779414.9 | I38: ='SA3'!I146 -> 0 | J38: ='SA3'!J146 -> 809779414.9 | K38: ='SA3'!K146 -> 809779414.9 | L38: ='SA3'!L146 -> 809779414.9 | N38: 382053057.4 | O38: 1393505939 | P38: 2266001071
A39: Total non current liabilities | C39: =SUM(C37:C38) -> 1181060537 | D39: =SUM(D37:D38) -> 991034435 | E39: =SUM(E37:E38) -> 816497835.6 | F39: =SUM(F37:F38) -> 1091864952 | G39: 1091864952 | H39: 1091864952 | I39: 0 | J39: 1187237456 | K39: =SUM(K37:K38) -> 968335022.8 | L39: 951652430.4
A40: TOTAL LIABILITIES | C40: =C34+C39 -> 2548887285 | D40: =D34+D39 -> 2467233280 | E40: =E34+E39 -> 2709825758 | F40: =F34+F39 -> 2533583303 | G40: 2437712100 | H40: 2437712100 | I40: 0 | J40: 2482934758 | K40: =K34+K39 -> 2712163800 | L40: 3096486982
A42: NET ASSETS | B42: 5 | C42: =C25-C40 -> 6955523337 | D42: 7707963744 | E42: 7939404541 | F42: 8779187114 | G42: 8767715757 | H42: 8767715757 | I42: 0 | J42: 9295372552 | K42: 8472248292 | L42: 8163153119
N43: 26162145
A44: COMMUNITY WEALTH/EQUITY
A45: Accumulated Surplus/(Deficit) | C45: 6723888693 | D45: 7479050486 | E45: 7748557372 | F45: 8550273856 | G45: 8538802499 | H45: 8538802499 | J45: 9066459294 | K45: 8243335034 | L45: 7934239861
A46: Reserves | B46: 4 | C46: ='SA3'!C165 -> 231634644 | D46: ='SA3'!D165 -> 228913258 | E46: ='SA3'!E165 -> 190847169 | F46: ='SA3'!F165 -> 228913258 | G46: ='SA3'!G165 -> 228913258 | H46: ='SA3'!H165 -> 228913258 | I46: ='SA3'!I165 -> 0 | J46: ='SA3'!J165 -> 228913258 | K46: ='SA3'!K165 -> 228913258 | L46: ='SA3'!L165 -> 228913258
A48: TOTAL COMMUNITY WEALTH/EQUITY | B48: 5 | C48: =SUM(C45:C46) -> 6955523337 | D48: =SUM(D45:D46) -> 7707963744 | E48: 7939404541 | F48: 8779187114 | G48: 8767715757 | H48: 8767715757 | I48: 0 | J48: 9295372552 | K48: 8472248292 | L48: 8163153119
A49: =head27a -> References
A50: 1. Detail to be provided in Table SA3 | O50: =D48-D42 -> 0
A51: 2. Include completed low cost housing to be transferred to beneficiaries within 12 months | F51: =F48-F42 -> 0
A52: 3. Include 'Construction-work-in-progress' (disclosed separately in annual financial statements)
A53: 4. Detail to be provided in Table SA3. Includes reserves to be funded by statute.
A54: 5. Net assets must balance with Total Community Wealth/Equity | K54: =K53/2 -> 0
A55: check balance | C55: =IF((C42-C48)=0,0,"Unbalanced") -> 0 | D55: =IF((D42-D48)=0,0,"Unbalanced") -> 0 | E55: 0 | F55: Unbalanced | G55: 0 | H55: 0 | I55: 0 | J55: Unbalanced | K55: Unbalanced | L55: Unbalanced
J56: =J42-J48 -> 0 | K56: =K42-K48 -> 7.629394531e-06 | L56: =L42-L48 -> -7.629394531e-06

Sheet A5-Capex
A2: =Vdesc -> Vote Description | B2: =head27 -> Ref | C2: =head1b -> 2017/18 | D2: =head1A -> 2018/19 | E2: =Head1 -> 2019/20 | F2: =Head2 -> Current Year 2020/21 | J2: =Head3 -> 2021/22 Medium Term Revenue & Expenditure Framework
A3: R thousand | B3: 1 | C3: =Head5 -> Audited Outcome | D3: =Head5 -> Audited Outcome | E3: =Head5 -> Audited Outcome | F3: =Head6 -> Original Budget | G3: =Head7 -> Adjusted Budget | H3: =Head8 -> Full Year Forecast | I3: =Head5b -> Pre-audit outcome | J3: =Head9 -> Budget Year 2021/22 | K3: =Head10 -> Budget Year +1 2022/23 | L3: =Head11 -> Budget Year +2 2023/24
A4: Capital expenditure - Vote
A5: Multi-year expenditure to be appropriated | B5: 2
A6: =A5A!A6 -> Vote 1 - City Manager | C6: =A5A!C6 -> 320532.86 | D6: =A5A!D6 -> 10000 | E6: =A5A!E6 -> 646307 | F6: =A5A!F6 -> 3800000 | G6: =A5A!G6 -> 2300000 | H6: =A5A!H6 -> 2300000 | I6: =A5A!I6 -> 0 | J6: =A5A!J6 -> 0 | K6: =A5A!K6 -> 0 | L6: =A5A!L6 -> 0
A7: =A5A!A17 -> Vote 2 - City Finance | C7: =A5A!C17 -> 8968380.12 | D7: =A5A!D17 -> 0 | E7: =A5A!E17 -> 9184603 | F7: =A5A!F17 -> 12500000 | G7: =A5A!G17 -> 4720000 | H7: =A5A!H17 -> 4720000 | I7: =A5A!I17 -> 0 | J7: =A5A!J17 -> 0 | K7: =A5A!K17 -> 0 | L7: =A5A!L17 -> 0
A8: =A5A!A28 -> Vote 3 - Community Services and Social Equity | C8: =A5A!C28 -> 20104586.9 | D8: =A5A!D28 -> 35939310 | E8: =A5A!E28 -> 12745198 | F8: =A5A!F28 -> 23812425 | G8: =A5A!G28 -> 46120040 | H8: =A5A!H28 -> 46120040 | I8: =A5A!I28 -> 0 | J8: =A5A!J28 -> 0 | K8: =A5A!K28 -> 0 | L8: =A5A!L28 -> 0
A9: =A5A!A39 -> Vote 4 - Corporate Services | C9: =A5A!C39 -> 823826.7 | D9: =A5A!D39 -> 2587789 | E9: =A5A!E39 -> -6912874 | F9: =A5A!F39 -> 0 | G9: =A5A!G39 -> 1970000 | H9: =A5A!H39 -> 1970000 | I9: =A5A!I39 -> 0 | J9: =A5A!J39 -> 0 | K9: =A5A!K39 -> 0 | L9: =A5A!L39 -> 0
A10: =A5A!A50 -> Vote 5 - Infrastructure Services | C10: =A5A!C50 -> 391837160.5 | D10: =A5A!D50 -> 29245686 | E10: =A5A!E50 -> 354424144.1 | F10: =A5A!F50 -> 168455000 | G10: =A5A!G50 -> 7780000 | H10: =A5A!H50 -> 7780000 | I10: =A5A!I50 -> 0 | J10: =A5A!J50 -> 0 | K10: =A5A!K50 -> 0 | L10: =A5A!L50 -> 0
A11: =A5A!A61 -> Vote 6 - Sustainable Development and City Enterprises | C11: =A5A!C61 -> 72410247 | D11: =A5A!D61 -> 75459271 | E11: =A5A!E61 -> 109767844.1 | F11: =A5A!F61 -> 300600156 | G11: =A5A!G61 -> 319509531.8 | H11: =A5A!H61 -> 319509531.8 | I11: =A5A!I61 -> 0 | J11: =A5A!J61 -> 0 | K11: =A5A!K61 -> 0 | L11: =A5A!L61 -> 0
A12: =A5A!A72 -> Vote 7 - [NAME OF VOTE 7] | C12: =A5A!C72 -> 0 | D12: =A5A!D72 -> 0 | E12: =A5A!E72 -> 0 | F12: =A5A!F72 -> 0 | G12: =A5A!G72 -> 0 | H12: =A5A!H72 -> 0 | I12: =A5A!I72 -> 0 | J12: =A5A!J72 -> 0 | K12: =A5A!K72 -> 0 | L12: =A5A!L72 -> 0
A13: =A5A!A83 -> Vote 8 - [NAME OF VOTE 8] | C13: =A5A!C83 -> 0 | D13: =A5A!D83 -> 0 | E13: =A5A!E83 -> 0 | F13: =A5A!F83 -> 0 | G13: =A5A!G83 -> 0 | H13: =A5A!H83 -> 0 | I13: =A5A!I83 -> 0 | J13: =A5A!J83 -> 0 | K13: =A5A!K83 -> 0 | L13: =A5A!L83 -> 0
A14: =A5A!A94 -> Vote 9 - [NAME OF VOTE 9] | C14: =A5A!C94 -> 0 | D14: =A5A!D94 -> 0 | E14: =A5A!E94 -> 0 | F14: =A5A!F94 -> 0 | G14: =A5A!G94 -> 0 | H14: =A5A!H94 -> 0 | I14: =A5A!I94 -> 0 | J14: =A5A!J94 -> 0 | K14: =A5A!K94 -> 0 | L14: =A5A!L94 -> 0
A15: =A5A!A105 -> Vote 10 - [NAME OF VOTE 10] | C15: =A5A!C105 -> 0 | D15: =A5A!D105 -> 0 | E15: =A5A!E105 -> 0 | F15: =A5A!F105 -> 0 | G15: =A5A!G105 -> 0 | H15: =A5A!H105 -> 0 | I15: =A5A!I105 -> 0 | J15: =A5A!J105 -> 0 | K15: =A5A!K105 -> 0 | L15: =A5A!L105 -> 0
A16: =A5A!A116 -> Vote 11 - [NAME OF VOTE 11] | C16: =A5A!C116 -> 0 | D16: =A5A!D116 -> 0 | E16: =A5A!E116 -> 0 | F16: =A5A!F116 -> 0 | G16: =A5A!G116 -> 0 | H16: =A5A!H116 -> 0 | I16: =A5A!I116 -> 0 | J16: =A5A!J116 -> 0 | K16: =A5A!K116 -> 0 | L16: =A5A!L116 -> 0
A17: =A5A!A127 -> Vote 12 - [NAME OF VOTE 12] | C17: =A5A!C127 -> 0 | D17: =A5A!D127 -> 0 | E17: =A5A!E127 -> 0 | F17: =A5A!F127 -> 0 | G17: =A5A!G127 -> 0 | H17: =A5A!H127 -> 0 | I17: =A5A!I127 -> 0 | J17: =A5A!J127 -> 0 | K17: =A5A!K127 -> 0 | L17: =A5A!L127 -> 0
A18: =A5A!A138 -> Vote 13 - [NAME OF VOTE 13] | C18: =A5A!C138 -> 0 | D18: =A5A!D138 -> 0 | E18: =A5A!E138 -> 0 | F18: =A5A!F138 -> 0 | G18: =A5A!G138 -> 0 | H18: =A5A!H138 -> 0 | I18: =A5A!I138 -> 0 | J18: =A5A!J138 -> 0 | K18: =A5A!K138 -> 0 | L18: =A5A!L138 -> 0
A19: =A5A!A149 -> Vote 14 - [NAME OF VOTE 14] | C19: =A5A!C149 -> 0 | D19: =A5A!D149 -> 0 | E19: =A5A!E149 -> 0 | F19: =A5A!F149 -> 0 | G19: =A5A!G149 -> 0 | H19: =A5A!H149 -> 0 | I19: =A5A!I149 -> 0 | J19: =A5A!J149 -> 0 | K19: =A5A!K149 -> 0 | L19: =A5A!L149 -> 0
A20: =A5A!A160 -> Vote 15 - [NAME OF VOTE 15] | C20: =A5A!C160 -> 0 | D20: =A5A!D160 -> 0 | E20: =A5A!E160 -> 0 | F20: =A5A!F160 -> 0 | G20: =A5A!G160 -> 0 | H20: =A5A!H160 -> 0 | I20: =A5A!I160 -> 0 | J20: =A5A!J160 -> 0 | K20: =A5A!K160 -> 0 | L20: =A5A!L160 -> 0
A21: Capital multi-year expenditure sub-total | B21: 7 | C21: =SUM(C6:C20) -> 494464734.1 | D21: =SUM(D6:D20) -> 143242056 | E21: 479855222.2 | F21: 509167581 | G21: 382399571.8 | H21: =SUM(H6:H20) -> 382399571.8 | I21: 0 | J21: 0 | K21: 0 | L21: 0
A23: Single-year expenditure to be appropriated | B23: 2
A24: =A6 -> Vote 1 - City Manager | C24: =A5A!C175 -> 872127.31 | D24: =A5A!D175 -> 4313936 | E24: =A5A!E175 -> 0 | F24: =A5A!F175 -> 0 | G24: =A5A!G175 -> 1500000 | H24: =A5A!H175 -> 1500000 | I24: =A5A!I175 -> 0 | J24: =A5A!J175 -> 9040000 | K24: =A5A!K175 -> 5060000 | L24: =A5A!L175 -> 5450000
A25: =A7 -> Vote 2 - City Finance | C25: =A5A!C186 -> 14741557.57 | D25: =A5A!D186 -> 17257057 | E25: =A5A!E186 -> 0 | F25: =A5A!F186 -> 15000000 | G25: =A5A!G186 -> 27914416 | H25: =A5A!H186 -> 27914416 | I25: =A5A!I186 -> 0 | J25: =A5A!J186 -> 39856796.95 | K25: =A5A!K186 -> 15769106.98 | L25: =A5A!L186 -> 9597890
A26: Vote 3 - Community Services and Social Equity | C26: =A5A!C197 -> 62491875.35 | D26: =A5A!D197 -> 15738155 | E26: =A5A!E197 -> 0 | F26: =A5A!F197 -> 13700000 | G26: =A5A!G197 -> 19124760 | H26: =A5A!H197 -> 19124760 | I26: =A5A!I197 -> 0 | J26: =A5A!J197 -> 50556700 | K26: =A5A!K197 -> 54761500 | L26: =A5A!L197 -> 48412112
A27: Vote 4 - Corporate Services | C27: =A5A!C208 -> 4126633.36 | D27: =A5A!D208 -> 875802 | E27: =A5A!E208 -> 0 | F27: =A5A!F208 -> 0 | G27: =A5A!G208 -> 530000 | H27: =A5A!H208 -> 530000 | I27: =A5A!I208 -> 0 | J27: =A5A!J208 -> 4457625 | K27: =A5A!K208 -> 3137500 | L27: =A5A!L208 -> 3911500
A28: Vote 5 - Infrastructure Services | C28: =A5A!C219 -> 15489003.69 | D28: =A5A!D219 -> 414791205 | E28: =A5A!E219 -> 0 | F28: =A5A!F219 -> 33000000 | G28: =A5A!G219 -> 310123978 | H28: =A5A!H219 -> 310123978 | I28: =A5A!I219 -> 0 | J28: =A5A!J219 -> 346647960 | K28: =A5A!K219 -> 343974354.7 | L28: =A5A!L219 -> 325001462.3
A29: Vote 6 - Sustainable Development and City Enterprises | C29: =A5A!C230 -> 2710737.17 | D29: =A5A!D230 -> 17268330 | E29: =A5A!E230 -> 0 | F29: =A5A!F230 -> 10024000 | G29: =A5A!G230 -> 5597634 | H29: =A5A!H230 -> 5597634 | I29: =A5A!I230 -> 0 | J29: =A5A!J230 -> 125742545 | K29: =A5A!K230 -> 49000000 | L29: =A5A!L230 -> 53450000
A30: Vote 7 - [NAME OF VOTE 7] | C30: =A5A!C241 -> 0 | D30: =A5A!D241 -> 0 | E30: =A5A!E241 -> 0 | F30: =A5A!F241 -> 0 | G30: =A5A!G241 -> 0 | H30: =A5A!H241 -> 0 | I30: =A5A!I241 -> 0 | J30: =A5A!J241 -> 0 | K30: =A5A!K241 -> 0 | L30: =A5A!L241 -> 0
A31: Vote 8 - [NAME OF VOTE 8] | C31: =A5A!C252 -> 0 | D31: =A5A!D252 -> 0 | E31: =A5A!E252 -> 0 | F31: =A5A!F252 -> 0 | G31: =A5A!G252 -> 0 | H31: =A5A!H252 -> 0 | I31: =A5A!I252 -> 0 | J31: =A5A!J252 -> 0 | K31: =A5A!K252 -> 0 | L31: =A5A!L252 -> 0
A32: Vote 9 - [NAME OF VOTE 9] | C32: =A5A!C263 -> 0 | D32: =A5A!D263 -> 0 | E32: =A5A!E263 -> 0 | F32: =A5A!F263 -> 0 | G32: =A5A!G263 -> 0 | H32: =A5A!H263 -> 0 | I32: =A5A!I263 -> 0 | J32: =A5A!J263 -> 0 | K32: =A5A!K263 -> 0 | L32: =A5A!L263 -> 0
A33: Vote 10 - [NAME OF VOTE 10] | C33: =A5A!C274 -> 0 | D33: =A5A!D274 -> 0 | E33: =A5A!E274 -> 0 | F33: =A5A!F274 -> 0 | G33: =A5A!G274 -> 0 | H33: =A5A!H274 -> 0 | I33: =A5A!I274 -> 0 | J33: =A5A!J274 -> 0 | K33: =A5A!K274 -> 0 | L33: =A5A!L274 -> 0
A34: Vote 11 - [NAME OF VOTE 11] | C34: =A5A!C285 -> 0 | D34: =A5A!D285 -> 0 | E34: =A5A!E285 -> 0 | F34: =A5A!F285 -> 0 | G34: =A5A!G285 -> 0 | H34: =A5A!H285 -> 0 | I34: =A5A!I285 -> 0 | J34: =A5A!J285 -> 0 | K34: =A5A!K285 -> 0 | L34: =A5A!L285 -> 0
A35: Vote 12 - [NAME OF VOTE 12] | C35: =A5A!C296 -> 0 | D35: =A5A!D296 -> 0 | E35: =A5A!E296 -> 0 | F35: =A5A!F296 -> 0 | G35: =A5A!G296 -> 0 | H35: =A5A!H296 -> 0 | I35: =A5A!I296 -> 0 | J35: =A5A!J296 -> 0 | K35: =A5A!K296 -> 0 | L35: =A5A!L296 -> 0
A36: Vote 13 - [NAME OF VOTE 13] | C36: =A5A!C307 -> 0 | D36: =A5A!D307 -> 0 | E36: =A5A!E307 -> 0 | F36: =A5A!F307 -> 0 | G36: =A5A!G307 -> 0 | H36: =A5A!H307 -> 0 | I36: =A5A!I307 -> 0 | J36: =A5A!J307 -> 0 | K36: =A5A!K307 -> 0 | L36: =A5A!L307 -> 0
A37: Vote 14 - [NAME OF VOTE 14] | C37: =A5A!C318 -> 0 | D37: =A5A!D318 -> 0 | E37: =A5A!E318 -> 0 | F37: =A5A!F318 -> 0 | G37: =A5A!G318 -> 0 | H37: =A5A!H318 -> 0 | I37: =A5A!I318 -> 0 | J37: =A5A!J318 -> 0 | K37: =A5A!K318 -> 0 | L37: =A5A!L318 -> 0
A38: =A20 -> Vote 15 - [NAME OF VOTE 15] | C38: =A5A!C329 -> 0 | D38: =A5A!D329 -> 0 | E38: =A5A!E329 -> 0 | F38: =A5A!F329 -> 0 | G38: =A5A!G329 -> 0 | H38: =A5A!H329 -> 0 | I38: =A5A!I329 -> 0 | J38: =A5A!J329 -> 0 | K38: =A5A!K329 -> 0 | L38: =A5A!L329 -> 0
A39: Capital single-year expenditure sub-total | C39: =SUM(C24:C38) -> 100431934.4 | D39: =SUM(D24:D38) -> 470244485 | E39: 0 | F39: 71724000 | G39: 364790788 | H39: 364790788 | I39: 0 | J39: 576301627 | K39: 471702461.7 | L39: 445822964.3
A40: Total Capital Expenditure - Vote | C40: =C39+C21 -> 594896668.5 | D40: =D39+D21 -> 613486541 | E40: 479855222.2 | F40: 580891581 | G40: 747190359.8 | H40: 747190359.8 | I40: 0 | J40: 576301627 | K40: 471702461.7 | L40: 445822964.3
A42: Capital Expenditure - Functional
A43: Governance and administration | C43: =SUM(C44:C46) -> 29972312.97 | D43: =SUM(D44:D46) -> 28132933 | E43: 2918036 | F43: 32500000 | G43: 38934416 | H43: 38934416 | I43: 0 | J43: 52295750.95 | K43: 23366606.98 | L43: 18419390
A44: Executive and council | C44: 999317.72 | D44: 3715815 | E44: 646307 | F44: 5000000 | G44: 3800000 | H44: 3800000 | J44: 6042000 | K44: 3700000 | L44: 4500000
A45: Finance and administration | C45: 28972995.25 | D45: 24297118 | E45: 2271729 | F45: 27500000 | G45: 35134416 | H45: 35134416 | J45: 45843750.95 | K45: 19456606.98 | L45: 13739390
A46: Internal audit | D46: 120000 | J46: 410000 | K46: 210000 | L46: 180000
A47: Community and public safety | C47: =SUM(C48:C52) -> 66163824.06 | D47: =SUM(D48:D52) -> 94239595 | E47: 1454997.71 | F47: 324874092 | G47: 322085541.8 | H47: 322085541.8 | I47: 0 | J47: 133799245 | K47: 54461500 | L47: 47712112
A48: Community and social services | C48: 10800630.3 | D48: 30651091 | F48: 45972000 | G48: 37482375 | H48: 37482375 | J48: 43382300 | K48: 52441500 | L48: 46112112
A49: Sport and recreation | C49: 29669037.71 | D49: 11558226 | E49: 3374495 | G49: 0 | H49: 0 | J49: 2475000 | K49: 70000 | L49: 0
A50: Public safety | C50: 5109025.42 | D50: 2000000 | E50: -1919497.29 | G50: 0 | H50: 0 | J50: 1100000 | K50: 1950000 | L50: 1600000
A51: Housing | C51: 20585130.63 | D51: 50030278 | F51: 278902092 | G51: 284603166.8 | H51: 284603166.8 | J51: 86841945 | K51: 0 | L51: 0
A52: Health
A53: Economic and environmental services | C53: =SUM(C54:C56) -> 276491579 | D53: =SUM(D54:D56) -> 181530343 | E53: 321827707.1 | F53: 104572064 | G53: 197865670 | H53: 197865670 | I53: 0 | J53: 115510000 | K53: 107482500 | L53: 119390070
A54: Planning and development | C54: 53736385.34 | D54: 35975923 | E54: 23844833 | F54: 13936064 | G54: 37856365 | H54: 37856365 | J54: 35890000 | K54: 45600000 | L54: 50540000
A55: Road transport | C55: 222441760 | D55: 143969445 | E55: 297722791.1 | F55: 90636000 | G55: 160009305 | H55: 160009305 | J55: 79620000 | K55: 61882500 | L55: 68850070
A56: Environmental protection | C56: 313433.59 | D56: 1584975 | E56: 260083
A57: Trading services | C57: =SUM(C58:C61) -> 226939794.4 | D57: =SUM(D58:D61) -> 177154337 | E57: 153654178 | F57: 116445425 | G57: 185657098 | H57: 185657098 | I57: 0 | J57: 272096631 | K57: 284391854.7 | L57: 258351392.3
A58: Energy sources | C58: 108120630.9 | D58: 56636360 | E58: 47652373.97 | F58: 12500000 | G58: 16134330 | H58: 16134330 | J58: 130000000 | K58: 113300000 | L58: 76521440
A59: Water management | C59: 59634353.24 | D59: 75391016 | E59: 74706096 | F59: 71931425 | G59: 68660397 | H59: 68660397 | J59: 77660964 | K59: 91893834.45 | L59: 100295260.5
A60: Waste water management | C60: 25570137.06 | D60: 44301896 | E60: =23368737-8000 -> 23360737 | F60: 27514000 | G60: 73099946 | H60: 73099946 | J60: 59935667 | K60: 76898020.25 | L60: 79334691.8
A61: Waste management | C61: 33614673.25 | D61: 825065 | E61: 7934971 | F61: 4500000 | G61: 27762425 | H61: 27762425 | J61: 4500000 | K61: 2300000 | L61: 2200000
A62: Other | C62: 486034.61 | D62: 5136425 | F62: 2500000 | G62: 2647634 | H62: 2647634 | J62: 2600000 | K62: 2000000 | L62: 1950000
A63: Total Capital Expenditure - Functional | B63: 3 | C63: =C43+C47+C53+C57+C62 -> 600053545 | D63: =D43+D47+D53+D57+D62 -> 486193633 | E63: 479854918.8 | F63: 580891581 | G63: 747190359.8 | H63: 747190359.8 | I63: 0 | J63: 576301627 | K63: 471702461.7 | L63: =L43+L47+L53+L57+L62 -> 445822964.3
A65: Funded by:
A66: National Government | C66: 232549654.4 | D66: 293481109 | E66: 312943688 | F66: 255267425 | G66: 308119500.8 | H66: 308119500.8 | J66: 297296576 | K66: 328615854.7 | L66: 341642134.3
A67: Provincial Government | C67: 131196266.8 | D67: 72548195 | E67: 76188437 | F67: 270624156 | G67: 340486443 | H67: 340486443 | J67: 83500000 | K67: 3500000 | L67: 3500000
A68: District Municipality
A69: ='A4-FinPerf RE'!A39 -> Transfers and subsidies - capital (monetary allocations) (National / Provincial Departmental Agencies, Households, Non-profit Institutions, Private Enterprises, Public Corporatons, Higher Educational Institutions)
A70: Transfers recognised - capital | B70: 4 | C70: =SUM(C66:C69) -> 363745921.2 | D70: 366029304 | E70: 389132125 | F70: 525891581 | G70: 648605943.8 | H70: 648605943.8 | I70: 0 | J70: 380796576 | K70: 332115854.7 | L70: 345142134.3 | M70: =J70/J74 -> 0.6607591549
A72: Borrowing | B72: 6 | C72: 88896142.76 | D72: 47052852 | E72: 4229818.17 | J72: 100000000 | K72: 100000000 | L72: 0
A73: Internally generated funds | C73: 147411481 | D73: 73111477 | E73: 86493279 | F73: 55000000 | G73: 98584414 | H73: 98584414 | J73: 95505050.95 | K73: 39586606.98 | L73: 100680830
A74: Total Capital Funding | B74: 7 | C74: =+C70+C72+C73 -> 600053545 | D74: =+D70+D72+D73 -> 486193633 | E74: 479855222.2 | F74: 580891581 | G74: 747190357.8 | H74: 747190357.8 | I74: 0 | J74: 576301627 | K74: 471702461.7 | L74: 445822964.3
A75: =head27a -> References
A76: 1. Municipalities may choose to appropriate for capital expenditure for three years or for one year (if one year appropriation projected expenditure required for yr2 and yr3).
A77: 2. Include capital component of PPP unitary payment. Note that capital transfers are only appropriated to municipalities for the budget year
A78: 3. Capital expenditure by functional classification must reconcile to the appropriations by vote
A79: 4. Must reconcile to supporting table SA20 and to Budgeted Financial Performance (revenue and expenditure)
A81: 6. Include finance leases and PPP capital funding component of unitary payment - total borrowing/repayments to reconcile to changes in Table SA17
A82: 7. Total Capital Funding must balance with Total Capital Expenditure
A83: 8. Include any capitalised interest (MFMA section 46) as part of relevant capital budget
A85: check balance | C85: =IF((C63-C74)=0,0,"Unbalanced") -> 0 | D85: =IF((D63-D74)=0,0,"Unbalanced") -> 0 | E85: Unbalanced | F85: Unbalanced | G85: Unbalanced | H85: Unbalanced | I85: 0 | J85: 0 | K85: Unbalanced | L85: Unbalanced

Sheet A7-CFlow
A1: =muni&" - "&Approve7 -> KZN225 Msunduzi - Table A7 Consolidated Budgeted Cash Flows
A2: =desc -> Description | B2: =head27 -> Ref | C2: =head1b -> 2017/18 | D2: =head1A -> 2018/19 | E2: =Head1 -> 2019/20 | F2: =Head2 -> Current Year 2020/21 | J2: =Head3 -> 2021/22 Medium Term Revenue & Expenditure Framework
A3: R thousand | C3: =Head5 -> Audited Outcome | D3: =Head5 -> Audited Outcome | E3: =Head5 -> Audited Outcome | F3: =Head6 -> Original Budget | G3: =Head7 -> Adjusted Budget | H3: =Head8 -> Full Year Forecast | I3: =Head5b -> Pre-audit outcome | J3: =Head9 -> Budget Year 2021/22 | K3: =Head10 -> Budget Year +1 2022/23 | L3: =Head11 -> Budget Year +2 2023/24
A4: CASH FLOW FROM OPERATING ACTIVITIES
A5: Receipts
A6: Property rates | C6: 842538662 | D6: 3597971504 | E6: 3893416276 | F6: 1079325405 | G6: 1041231567 | H6: 1041231567 | J6: ='SA30'!N5 -> 1228882075 | K6: ='SA30'!O5 -> 1302615000 | L6: ='SA30'!P5 -> 1387284975
A7: Service charges | C7: 2527616429 | F7: 3039399062 | G7: 2932126154 | H7: 2932126154 | J7: ='SA30'!N6+'SA30'!N7+'SA30'!N8+'SA30'!N9 -> 3495506596 | K7: ='SA30'!O6+'SA30'!O7+'SA30'!O8+'SA30'!O9 -> 3666449885 | L7: ='SA30'!P6+'SA30'!P7+'SA30'!P8+'SA30'!P9 -> 4093784467
A8: Other revenue | C8: 136375 | D8: 1488 | F8: 152193014.5 | G8: 152193014.5 | H8: 152193014.5 | J8: ='SA30'!N11+'SA30'!N15+'SA30'!N16+'SA30'!N17+'SA30'!N19 -> 187682425.7 | K8: ='SA30'!O11+'SA30'!O15+'SA30'!O16+'SA30'!O17+'SA30'!O19 -> 198811993.5 | L8: ='SA30'!P11+'SA30'!P15+'SA30'!P16+'SA30'!P17+'SA30'!P19 -> 210800356.7
A9: Transfers and Subsidies - Operational | B9: 1 | C9: 605812000.6 | D9: 1031722607 | E9: 1169508101 | F9: 675483240 | G9: 819982787 | H9: 819982787 | J9: ='SA30'!N18 -> 661215834.8 | K9: ='SA30'!O18 -> 701406045.3 | L9: ='SA30'!P18 -> 706149380.5
A10: Transfers and Subsidies - Capital | B10: 1 | C10: 396056334.4 | F10: 525891581 | G10: 526485335 | H10: 526485335 | J10: ='SA30'!N23 -> 380796576 | K10: ='SA30'!O23 -> 332115854.7 | L10: ='SA30'!P23 -> 345142134.3
A11: Interest | C11: 42051116 | D11: 37482111 | E11: 45593332 | F11: 185060483.9 | G11: 185169383.9 | H11: 185169383.9 | J11: ='SA30'!N12+'SA30'!N13 -> 229366140.9 | K11: ='SA30'!O12+'SA30'!O13 -> 242967553 | L11: ='SA30'!P12+'SA30'!P13 -> 257618496.5
A12: Dividends | C12: 0 | D12: 0 | G12: 0 | H12: 0 | J12: ='SA30'!N14 -> 0 | K12: ='SA30'!O14 -> 0 | L12: ='SA30'!P14 -> 0
A13: Payments
A14: Suppliers and employees | C14: -3765066174 | D14: -4237962509 | E14: -4385977162 | F14: -4847945682 | G14: -4980315360 | H14: -4980315360 | J14: =-('SA30'!N35+'SA30'!N36+'SA30'!N38+'SA30'!N39+'SA30'!N40+'SA30'!N41+'SA30'!N44+'SA30'!N50) -> -5465954566 | K14: =-('SA30'!O35+'SA30'!O36+'SA30'!O38+'SA30'!O39+'SA30'!O40+'SA30'!O41+'SA30'!O44+'SA30'!O50) -> -5956482487 | L14: =-('SA30'!P35+'SA30'!P36+'SA30'!P38+'SA30'!P39+'SA30'!P40+'SA30'!P41+'SA30'!P44+'SA30'!P50) -> -6431127464
A15: Finance charges | C15: -54960155 | D15: -55119340 | E15: -46314311 | F15: -31793212.22 | G15: -36505334.22 | H15: -36505334.22 | J15: =-('SA30'!N37) -> -34724271.93 | K15: =-('SA30'!O37) -> -36669376.45 | L15: =-('SA30'!P37) -> -27063703.09
A16: Transfers and Grants | B16: 1 | C16: -19201984 | F16: -25080461.44 | G16: -46080462 | H16: -46080462 | J16: =-('SA30'!N42+'SA30'!N43) -> -45862882.85 | K16: =-('SA30'!O42+'SA30'!O43) -> -52058867.74 | L16: =-('SA30'!P42+'SA30'!P43) -> -55615730.33
A17: NET CASH FROM/(USED) OPERATING ACTIVITIES | C17: =SUM(C6:C12)+SUM(C14:C16) -> 574982604 | D17: 374095861 | E17: 676226236 | F17: 752533430.4 | G17: 594287085.5 | H17: 594287085.5 | I17: 0 | J17: 636907927.5 | K17: 399155599.1 | L17: 486972911.7
A19: CASH FLOWS FROM INVESTING ACTIVITIES
A20: Receipts
A21: Proceeds on disposal of PPE | C21: 0 | D21: 3715678 | J21: ='SA30'!N24+'SA30'!N25 -> 0 | K21: ='SA30'!O24+'SA30'!O25 -> 0 | L21: ='SA30'!P24+'SA30'!P25 -> 0
A23: Decrease (increase) in non-current receivables | C23: -8616620 | D23: 186254 | E23: 166278 | J23: ='SA30'!N30 -> 0 | K23: ='SA30'!O30 -> 0 | L23: ='SA30'!P30 -> 0
A24: Decrease (increase) in non-current investments | C24: 306236 | D24: -6155452 | E24: 17040365 | J24: ='SA30'!N31 -> 0 | K24: ='SA30'!O31 -> 0 | L24: ='SA30'!P31 -> 0
A25: Payments
A26: Capital assets | C26: -668363578 | D26: -481303036 | E26: -399050648 | F26: -580891581 | G26: -747190357.8 | H26: -747190357.8 | J26: =-('SA30'!N48) -> -576301627 | K26: =-('SA30'!O48) -> -471702461.7 | L26: =-('SA30'!P48) -> -445822964.3
A27: NET CASH FROM/(USED) INVESTING ACTIVITIES | C27: =+C21+C23+C24+C26 -> -676673962 | D27: =(+D21+D23+D24+D26) -> -483556556 | E27: =+E21+E23+E24+E26 -> -381844005 | F27: -580891581 | G27: -747190357.8 | H27: -747190357.8 | I27: 0 | J27: -576301627 | K27: -471702461.7 | L27: -445822964.3
A29: CASH FLOWS FROM FINANCING ACTIVITIES
A30: Receipts
A31: Short term loans | J31: ='SA30'!N26 -> 0 | K31: ='SA30'!O26 -> 0 | L31: ='SA30'!P26 -> 0
A32: Borrowing long term/refinancing | J32: ='SA30'!N27 -> 100000000 | K32: ='SA30'!O27 -> 100000000 | L32: ='SA30'!P27 -> 0
A33: Increase (decrease) in consumer deposits | J33: ='SA30'!N28 -> 0 | K33: ='SA30'!O28 -> 0 | L33: ='SA30'!P28 -> 0
A34: Payments
A35: Repayment of borrowing | C35: -61681966 | D35: -94966367 | E35: -83600511 | F35: -79206000 | G35: -79206000 | H35: -79206000 | J35: =-('SA30'!N49) -> -91637534.15 | K35: =-('SA30'!O49) -> -13128158.49 | L35: =-('SA30'!P49) -> -14448664.34
A36: NET CASH FROM/(USED) FINANCING ACTIVITIES | C36: =SUM(C31:C33)+C35 -> -61681966 | D36: =SUM(D31:D33)+D35 -> -94966367 | E36: -83600511 | F36: -79206000 | G36: -79206000 | H36: -79206000 | I36: 0 | J36: 8362465.853 | K36: 86871841.51 | L36: -14448664.34
A38: NET INCREASE/ (DECREASE) IN CASH HELD | C38: =C17+C27+C36 -> -163373324 | D38: =D17+D27+D36 -> -204427062 | E38: 210781720 | F38: 92435849.43 | G38: -232109272.3 | H38: -232109272.3 | I38: 0 | J38: 68968766.42 | K38: 14324978.88 | L38: 26701283.04
A39: Cash/cash equivalents at the year begin: | B39: 2 | C39: 675995631 | D39: 512622307 | E39: 308195245 | F39: 290000000 | G39: 518976967 | H39: 518976967 | J39: ='SA30'!N54 -> 286867694.7 | K39: =J40 -> 355836461.2 | L39: =K40 -> 370161440
A40: Cash/cash equivalents at the year end: | B40: 2 | C40: =C38+C39 -> 512622307 | D40: =D38+D39 -> 308195245 | E40: =E38+E39 -> 518976965 | F40: =F38+F39 -> 382435849.4 | G40: 286867694.7 | H40: 286867694.7 | I40: 0 | J40: 355836461.2 | K40: 370161440 | L40: 396862723.1
A41: =head27a -> References
A42: 1. Local/District municipalities to include transfers from/to District/Local Municipalities
A43: 2. Cash equivalents includes investments with maturities of 3 months or less
A44: 3. The MTREF is populated directly from SA30.
A45: Total receipts | C45: =SUM(C6:C12)+SUM(C21:C23) -> 4405594297 | D45: 4671079642 | E45: 5108683987 | F45: 5657352786 | G45: 5657188241 | H45: 5657188241 | I45: 0 | J45: 6183449648 | K45: 6444366331 | L45: 7000779810
A46: Total payments | C46: =SUM(C14:C16)+C26 -> -4507591891 | D46: =SUM(D14:D16)+D26 -> -4774384885 | E46: -4831342121 | F46: -5485710937 | G46: -5810091514 | H46: -5810091514 | I46: 0 | J46: -6122843348 | K46: -6516913193 | L46: -6959629862
C47: =C45+C46 -> -101997594 | D47: =D45+D46 -> -103305243 | E47: 277341866 | F47: 171641849.4 | G47: -152903272.3 | H47: -152903272.3 | I47: 0 | J47: 60606300.57 | K47: -72546862.63 | L47: 41149947.38
A48: Borrowings & investments & c.deposits | C48: =C24+C32+C33 -> 306236 | D48: =D24+D32+D33 -> -6155452 | E48: 17040365 | F48: 0 | G48: 0 | H48: 0 | I48: 0 | J48: 100000000 | K48: 100000000 | L48: 0
A49: =A35 -> Repayment of borrowing | C49: =C35 -> -61681966 | D49: =D35 -> -94966367 | E49: -83600511 | F49: -79206000 | G49: -79206000 | H49: -79206000 | I49: =I35 -> 0 | J49: -91637534.15 | K49: -13128158.49 | L49: -14448664.34
C50: =C47+C48+C49 -> -163373324 | D50: =D47+D48+D49 -> -204427062 | E50: 210781720 | F50: 92435849.43 | G50: -232109272.3 | H50: -232109272.3 | I50: 0 | J50: 68968766.42 | K50: 14324978.88 | L50: 26701283.04
C51: =C38-C50 -> 0 | D51: 0 | E51: 0 | F51: 1.192092896e-07 | G51: 0 | H51: 0 | I51: 0 | J51: -2.384185791e-07 | K51: 2.421438694e-07 | L51: 1.788139343e-07

Sheet A8-ResRecon
A1: =muni&" - "&Approve8 -> KZN225 Msunduzi - Table A8 Consolidated Cash backed reserves/accumulated surplus reconciliation
A2: =desc -> Description | B2: =head27 -> Ref | C2: =head1b -> 2017/18 | D2: =head1A -> 2018/19 | E2: =Head1 -> 2019/20 | F2: =Head2 -> Current Year 2020/21 | J2: =Head3 -> 2021/22 Medium Term Revenue & Expenditure Framework
A3: R thousand | C3: =Head5 -> Audited Outcome | D3: =Head5 -> Audited Outcome | E3: =Head5 -> Audited Outcome | F3: =Head6 -> Original Budget | G3: =Head7 -> Adjusted Budget | H3: =Head8 -> Full Year Forecast | I3: =Head5b -> Pre-audit outcome | J3: =Head9 -> Budget Year 2021/22 | K3: =Head10 -> Budget Year +1 2022/23 | L3: =Head11 -> Budget Year +2 2023/24
A4: Cash and investments available
A5: =LEFT('A7-CFlow'!A40,37) -> Cash/cash equivalents at the year end | B5: 1 | C5: ='A7-CFlow'!C40 -> 512622307 | D5: ='A7-CFlow'!D40 -> 308195245 | E5: ='A7-CFlow'!E40 -> 518976965 | F5: ='A7-CFlow'!F40 -> 382435849.4 | G5: ='A7-CFlow'!G40 -> 286867694.7 | H5: ='A7-CFlow'!H40 -> 286867694.7 | I5: ='A7-CFlow'!I40 -> 0 | J5: ='A7-CFlow'!J40 -> 355836461.2 | K5: ='A7-CFlow'!K40 -> 370161440 | L5: ='A7-CFlow'!L40 -> 396862723.1
A6: Other current investments > 90 days | C6: ='A6-FinPos'!C6+'A6-FinPos'!C7-'A6-FinPos'!C29-'A8-ResRecon'!C5 -> 8869457 | D6: ='A6-FinPos'!D6+'A6-FinPos'!D7-'A6-FinPos'!D29-'A8-ResRecon'!D5 -> 0 | E6: ='A6-FinPos'!E6+'A6-FinPos'!E7-'A6-FinPos'!E29-'A8-ResRecon'!E5 -> 2 | F6: ='A6-FinPos'!F6+'A6-FinPos'!F7-'A6-FinPos'!F29-'A8-ResRecon'!F5 -> 0 | G6: ='A6-FinPos'!G6+'A6-FinPos'!G7-'A6-FinPos'!G29-'A8-ResRecon'!G5 -> -316.6753232 | H6: ='A6-FinPos'!H6+'A6-FinPos'!H7-'A6-FinPos'!H29-'A8-ResRecon'!H5 -> -316.6753232 | I6: ='A6-FinPos'!I6+'A6-FinPos'!I7-'A6-FinPos'!I29-'A8-ResRecon'!I5 -> 0 | J6: ='A6-FinPos'!J6+'A6-FinPos'!J7-'A6-FinPos'!J29-'A8-ResRecon'!J5 -> 0 | K6: ='A6-FinPos'!K6+'A6-FinPos'!K7-'A6-FinPos'!K29-'A8-ResRecon'!K5 -> 0 | L6: ='A6-FinPos'!L6+'A6-FinPos'!L7-'A6-FinPos'!L29-'A8-ResRecon'!L5 -> 0
A7: ='A6-FinPos'!A14&" - "&'A6-FinPos'!A16 -> Non current assets - Investments | B7: 1 | C7: ='A6-FinPos'!C16 -> 4664290 | D7: ='A6-FinPos'!D16 -> 2642997 | E7: ='A6-FinPos'!E16 -> - | F7: ='A6-FinPos'!F16 -> 2969671.429 | G7: ='A6-FinPos'!G16 -> -328.5708 | H7: ='A6-FinPos'!H16 -> -328.5708 | I7: ='A6-FinPos'!I16 -> 0 | J7: ='A6-FinPos'!J16 -> 0 | K7: ='A6-FinPos'!K16 -> 0 | L7: ='A6-FinPos'!L16 -> 0
A8: Cash and investments available: | C8: =SUM(C5:C7) -> 526156054 | D8: =SUM(D5:D7) -> 310838242 | E8: 518976967 | F8: 385405520.9 | G8: 286867049.5 | H8: 286867049.5 | I8: 0 | J8: 355836461.2 | K8: 370161440 | L8: 396862723.1
A10: Application of cash and investments
A11: ='SA3'!A132 -> Unspent conditional transfers | C11: ='SA3'!C132 -> 122349562 | D11: ='SA3'!D132 -> 103510102 | E11: ='SA3'!E132 -> 180851130 | F11: ='SA3'!F132 -> 60197644.34 | G11: ='SA3'!G132 -> 60197644.34 | H11: ='SA3'!H132 -> 60197644.34 | I11: ='SA3'!I132 -> 0 | J11: ='SA3'!J132 -> 0 | K11: ='SA3'!K132 -> 0 | L11: ='SA3'!L132 -> 0
A12: Unspent borrowing | C12: ='SA17'!C67 -> 0 | D12: ='SA17'!D67 -> 0 | E12: ='SA17'!E67 -> 0 | F12: ='SA17'!F67 -> 0 | G12: ='SA17'!G67 -> 0 | H12: ='SA17'!H67 -> 0 | J12: ='SA17'!I67 -> 0 | K12: ='SA17'!J67 -> 0 | L12: ='SA17'!K67 -> 0
A13: Statutory requirements | B13: 2 | F13: -5950000 | G13: -5950000
A14: Other working capital requirements | B14: 3 | C14: =-C32 -> 501603935 | D14: =-D32 -> -505994319 | E14: -393811816 | F14: =-F32 -> -1123186950 | G14: -895536836.6 | H14: -895536836.6 | I14: 0 | J14: -1938345837 | K14: -1821745801 | L14: -2163897698
A15: Other provisions | F15: 63000000 | G15: 63000000
A16: Long term investments committed | B16: 4 | C16: =C52 -> 0 | D16: =D52 -> 0 | E16: 0 | F16: 0 | G16: 0 | H16: 0 | I16: 0 | J16: 0 | K16: 0 | L16: 0
A17: Reserves to be backed by cash/investments | B17: 5 | F17: 131754314 | G17: 131754314
A18: ="Total "&A10&":" -> Total Application of cash and investments: | C18: =SUM(C11:C17) -> 623953497 | D18: =SUM(D11:D17) -> -402484217 | E18: -212960686 | F18: -874184991.3 | G18: -646534878.3 | H18: -835339192.3 | I18: 0 | J18: -1938345837 | K18: -1821745801 | L18: -2163897698
A19: Surplus(shortfall) | C19: =C8-C18 -> -97797443 | D19: =D8-D18 -> 713322459 | E19: 731937653 | F19: 1259590512 | G19: 933401927.8 | H19: 1122206242 | I19: 0 | J19: 2294182298 | K19: 2191907241 | L19: 2560760421
A20: =head27a -> References
A21: 1. Must reconcile with Budgeted Cash Flows
A22: 2. For example: VAT, taxation
A23: 3. Council approval for policy required - include sufficient working capital (e.g. allowing for a % of current debtors > 90 days as uncollectable)
A24: 4. For example: sinking fund requirements for borrowing
A25: 5. Council approval required for each reserve created and basis of cash backing of reserves
A28: Other working capital requirements
A29: Debtors | C29: =IF(ISERROR(ROUND(C35*C36,-3)),0,(ROUND(C35*C36,-3))) -> 398256000 | D29: =IF(ISERROR(ROUND(D35*D36,-3)),0,(ROUND(D35*D36,-3))) -> 1466638000 | E29: 1655292000 | F29: 2086593000 | G29: 1763072000 | H29: 1763072000 | I29: 0 | J29: 2805963000 | K29: 3132302000 | L29: 3873935000
A31: Creditors due | C31: ='SA3'!C130+'SA3'!C131 -> 899859935 | D31: ='SA3'!D130+'SA3'!D131 -> 960643681 | E31: ='SA3'!E130+'SA3'!E131 -> 1261480184 | F31: ='SA3'!F130+'SA3'!F131 -> 963406050.4 | G31: ='SA3'!G130+'SA3'!G131 -> 867535163.4 | H31: ='SA3'!H130+'SA3'!H131 -> 867535163.4 | I31: ='SA3'!I130+'SA3'!I131 -> 0 | J31: ='SA3'!J130+'SA3'!J131 -> 867617163.4 | K31: ='SA3'!K130+'SA3'!K131 -> 1310556199 | L31: ='SA3'!L130+'SA3'!L131 -> 1710037302
A32: Total | C32: =C29-C31 -> -501603935 | D32: =D29-D31 -> 505994319 | E32: 393811816 | F32: 1123186950 | G32: 895536836.6 | H32: 895536836.6 | I32: 0 | J32: 1938345837 | K32: 1821745801 | L32: 2163897698
A34: Debtors collection assumptions
A35: Balance outstanding - debtors | C35: ='A6-FinPos'!C8+'A6-FinPos'!C9+'A6-FinPos'!C15 -> 459771985 | D35: ='A6-FinPos'!D8+'A6-FinPos'!D9+'A6-FinPos'!D15 -> 1708828635 | E35: ='A6-FinPos'!E8+'A6-FinPos'!E9+'A6-FinPos'!E15 -> 2001905222 | F35: ='A6-FinPos'!F8+'A6-FinPos'!F9+'A6-FinPos'!F15 -> 2553728344 | G35: ='A6-FinPos'!G8+'A6-FinPos'!G9+'A6-FinPos'!G15 -> 2233810003 | H35: ='A6-FinPos'!H8+'A6-FinPos'!H9+'A6-FinPos'!H15 -> 2233810003 | I35: ='A6-FinPos'!I8+'A6-FinPos'!I9+'A6-FinPos'!I15 -> 0 | J35: ='A6-FinPos'!J8+'A6-FinPos'!J9+'A6-FinPos'!J15 -> 3279548196 | K35: ='A6-FinPos'!K8+'A6-FinPos'!K9+'A6-FinPos'!K15 -> 3800646523 | L35: ='A6-FinPos'!L8+'A6-FinPos'!L9+'A6-FinPos'!L15 -> 4624718174
A36: Estimate of debtors collection rate | C36: =IF(ISERROR('SA10'!D10),0,('SA10'!D10)) -> 0.866203711 | D36: =IF(ISERROR('SA10'!E10),0,('SA10'!E10)) -> 0.8582709883 | E36: =IF(ISERROR('SA10'!F10),0,('SA10'!F10)) -> 0.8268583312 | F36: =IF(ISERROR('SA10'!G10),0,('SA10'!G10)) -> 0.8170773039 | G36: =IF(ISERROR('SA10'!H10),0,('SA10'!H10)) -> 0.7892669168 | H36: =IF(ISERROR('SA10'!I10),0,('SA10'!I10)) -> 0.7892669168 | I36: =IF(ISERROR('SA10'!J10),0,('SA10'!J10)) -> 0 | J36: =IF(ISERROR('SA10'!K10),0,('SA10'!K10)) -> 0.855594369 | K36: =IF(ISERROR('SA10'!L10),0,('SA10'!L10)) -> 0.8241498065 | L36: =IF(ISERROR('SA10'!M10),0,('SA10'!M10)) -> 0.8376585933
K39: `
A40: =A16 -> Long term investments committed
A41: Balance (Insert description; eg sinking fund)
C52: =SUM(C41:C51) -> 0 | D52: =SUM(D41:D51) -> 0 | E52: 0 | F52: 0 | G52: 0 | H52: 0 | I52: 0 | J52: 0 | K52: 0 | L52: 0
A53: =A17 -> Reserves to be backed by cash/investments
A54: ='SA3'!A160 -> Housing Development Fund | C54: ='SA3'!C160 -> 87653806 | D54: ='SA3'!D160 -> 90761936 | E54: ='SA3'!E160 -> 93528758 | F54: ='SA3'!F160 -> 90761936 | G54: ='SA3'!G160 -> 90761936 | H54: ='SA3'!H160 -> 90761936 | I54: ='SA3'!I160 -> 0 | J54: ='SA3'!J160 -> 90761936 | K54: ='SA3'!K160 -> 90761936 | L54: ='SA3'!L160 -> 90761936
A55: ='SA3'!A161 -> Capital replacement
A56: ='SA3'!A162 -> Self-insurance
A57: Other (list)
C67: =SUM(C54:C65) -> 87653806 | D67: 90761936 | E67: 93528758 | F67: 90761936 | G67: 90761936 | H67: 90761936 | I67: 0 | J67: 90761936 | K67: 90761936 | L67: 90761936

Sheet A9-Asset
A1: =muni&" - "&Approve9 -> KZN225 Msunduzi - Table A9 Consolidated Asset Management
A2: =desc -> Description | B2: =head27 -> Ref | C2: =head1b -> 2017/18 | D2: =head1A -> 2018/19 | E2: =Head1 -> 2019/20 | F2: =Head2 -> Current Year 2020/21 | I2: =Head3 -> 2021/22 Medium Term Revenue & Expenditure Framework
A3: R thousand | C3: =Head5 -> Audited Outcome | D3: =Head5 -> Audited Outcome | E3: =Head5 -> Audited Outcome | F3: =Head6 -> Original Budget | G3: =Head7 -> Adjusted Budget | H3: =Head8 -> Full Year Forecast | I3: =Head9 -> Budget Year 2021/22 | J3: =Head10 -> Budget Year +1 2022/23 | K3: =Head11 -> Budget Year +2 2023/24
A4: CAPITAL EXPENDITURE
A5: Total New Assets | B5: 1 | C5: =C15+C18+C19+C22+C25+C26+SUM(C29:C35) -> 79133615.43 | D5: =D15+D18+D19+D22+D25+D26+SUM(D29:D35) -> 186096905.2 | E5: 21108134.1 | F5: 456241581 | G5: 23410184.66 | H5: 23410184.66 | I5: 203181851.9 | J5: 49588379.59 | K5: 60384162.61
A6: Roads Infrastructure | C6: =SA34a!C7 -> 2747414.07 | D6: =SA34a!D7 -> 15103038.98 | E6: =SA34a!E7 -> 0 | F6: =SA34a!F7 -> 10845780.9 | G6: =SA34a!G7 -> 0 | H6: =SA34a!H7 -> 0 | I6: =SA34a!I7 -> 24100000 | J6: =SA34a!J7 -> 11940000 | K6: =SA34a!K7 -> 18443000
A7: Storm water Infrastructure | C7: =SA34a!C12 -> 0 | D7: =SA34a!D12 -> 0 | E7: =SA34a!E12 -> 0 | F7: =SA34a!F12 -> 0 | G7: =SA34a!G12 -> 0 | H7: =SA34a!H12 -> 0 | I7: =SA34a!I12 -> 0 | J7: =SA34a!J12 -> 0 | K7: =SA34a!K12 -> 0
A8: Electrical Infrastructure | C8: =SA34a!C16 -> -43045834.14 | D8: =SA34a!D16 -> 67277868.22 | E8: =SA34a!E16 -> 0 | F8: =SA34a!F16 -> 133651704.7 | G8: =SA34a!G16 -> 0 | H8: =SA34a!H16 -> 0 | I8: =SA34a!I16 -> 7600000 | J8: =SA34a!J16 -> 11940000 | K8: =SA34a!K16 -> 13443000
A9: Water Supply Infrastructure | C9: =SA34a!C26 -> 0 | D9: =SA34a!D26 -> 0 | E9: =SA34a!E26 -> 0 | F9: =SA34a!F26 -> 0 | G9: =SA34a!G26 -> 0 | H9: =SA34a!H26 -> 0 | I9: =SA34a!I26 -> 0 | J9: =SA34a!J26 -> 0 | K9: =SA34a!K26 -> 0
A10: Sanitation Infrastructure | C10: =SA34a!C37 -> 0 | D10: =SA34a!D37 -> 0 | E10: =SA34a!E37 -> 0 | F10: =SA34a!F37 -> 48520598.77 | G10: =SA34a!G37 -> 0 | H10: =SA34a!H37 -> 0 | I10: =SA34a!I37 -> 0 | J10: =SA34a!J37 -> 0 | K10: =SA34a!K37 -> 0
A11: Solid Waste Infrastructure | C11: =SA34a!C44 -> 148867 | D11: =SA34a!D44 -> 0 | E11: =SA34a!E44 -> 0 | F11: =SA34a!F44 -> 0 | G11: =SA34a!G44 -> 0 | H11: =SA34a!H44 -> 0 | I11: =SA34a!I44 -> 0 | J11: =SA34a!J44 -> 0 | K11: =SA34a!K44 -> 0
A12: Rail Infrastructure | C12: =SA34a!C52 -> 0 | D12: =SA34a!D52 -> 0 | E12: =SA34a!E52 -> 0 | F12: =SA34a!F52 -> 0 | G12: =SA34a!G52 -> 0 | H12: =SA34a!H52 -> 0 | I12: =SA34a!I52 -> 0 | J12: =SA34a!J52 -> 0 | K12: =SA34a!K52 -> 0
A13: Coastal Infrastructure | C13: =SA34a!C62 -> 0 | D13: =SA34a!D62 -> 0 | E13: =SA34a!E62 -> 0 | F13: =SA34a!F62 -> 0 | G13: =SA34a!G62 -> 0 | H13: =SA34a!H62 -> 0 | I13: =SA34a!I62 -> 0 | J13: =SA34a!J62 -> 0 | K13: =SA34a!K62 -> 0
A14: Information and Communication Infrastructure | C14: =SA34a!C68 -> 0 | D14: =SA34a!D68 -> 0 | E14: =SA34a!E68 -> 0 | F14: =SA34a!F68 -> 0 | G14: =SA34a!G68 -> 0 | H14: =SA34a!H68 -> 0 | I14: =SA34a!I68 -> 0 | J14: =SA34a!J68 -> 0 | K14: =SA34a!K68 -> 0
A15: Infrastructure | C15: =SUM(C6:C14) -> -40149553.07 | D15: =SUM(D6:D14) -> 82380907.2 | E15: 0 | F15: 193018084.3 | G15: 0 | H15: 0 | I15: 31700000 | J15: 23880000 | K15: 31886000
A16: Community Facilities | C16: =SA34a!C75 -> 0 | D16: =SA34a!D75 -> 336655.96 | E16: =SA34a!E75 -> 0 | F16: =SA34a!F75 -> 39558111.67 | G16: =SA34a!G75 -> 2500000 | H16: =SA34a!H75 -> 2500000 | I16: =SA34a!I75 -> 1800000 | J16: =SA34a!J75 -> 1700000 | K16: =SA34a!K75 -> 1900000
A17: Sport and Recreation Facilities | C17: =SA34a!C98 -> 5106431.17 | D17: =SA34a!D98 -> 0 | E17: =SA34a!E98 -> 0 | F17: =SA34a!F98 -> 0 | G17: =SA34a!G98 -> 0 | H17: =SA34a!H98 -> 0 | I17: =SA34a!I98 -> 0 | J17: =SA34a!J98 -> 0 | K17: =SA34a!K98 -> 0
A18: Community Assets | C18: =SUM(C16:C17) -> 5106431.17 | D18: =SUM(D16:D17) -> 336655.96 | E18: 0 | F18: 39558111.67 | G18: 2500000 | H18: 2500000 | I18: 1800000 | J18: 1700000 | K18: 1900000
A19: Heritage Assets | C19: =SA34a!C103 -> 24328842.71 | D19: =SA34a!D103 -> 18343511.91 | E19: =SA34a!E103 -> 9604587.45 | F19: =SA34a!F103 -> 33918752.69 | G19: =SA34a!G103 -> 0 | H19: =SA34a!H103 -> 0 | I19: =SA34a!I103 -> 0 | J19: =SA34a!J103 -> 0 | K19: =SA34a!K103 -> 0
A20: Revenue Generating | C20: =SA34a!C111 -> 0 | D20: =SA34a!D111 -> 0 | E20: =SA34a!E111 -> 0 | F20: =SA34a!F111 -> 0 | G20: =SA34a!G111 -> 0 | H20: =SA34a!H111 -> 0 | I20: =SA34a!I111 -> 0 | J20: =SA34a!J111 -> 0 | K20: =SA34a!K111 -> 0
A21: Non-revenue Generating | C21: =SA34a!C114 -> 0 | D21: =SA34a!D114 -> 0 | E21: =SA34a!E114 -> 0 | F21: =SA34a!F114 -> 0 | G21: =SA34a!G114 -> 0 | H21: =SA34a!H114 -> 0 | I21: =SA34a!I114 -> 0 | J21: =SA34a!J114 -> 0 | K21: =SA34a!K114 -> 0
A22: Investment properties | C22: =SUM(C20:C21) -> 0 | D22: =SUM(D20:D21) -> 0 | E22: 0 | F22: 0 | G22: 0 | H22: 0 | I22: 0 | J22: 0 | K22: 0
A23: Operational Buildings | C23: =SA34a!C119 -> 0 | D23: =SA34a!D119 -> 2885283.88 | E23: =SA34a!E119 -> 0 | F23: =SA34a!F119 -> 3800000 | G23: =SA34a!G119 -> 0 | H23: =SA34a!H119 -> 0 | I23: =SA34a!I119 -> 1100000 | J23: =SA34a!J119 -> 500000 | K23: =SA34a!K119 -> 500000
A24: Housing | C24: =SA34a!C131 -> 0 | D24: =SA34a!D131 -> 0 | E24: =SA34a!E131 -> 0 | F24: =SA34a!F131 -> 0 | G24: =SA34a!G131 -> 0 | H24: =SA34a!H131 -> 0 | I24: =SA34a!I131 -> 106241945 | J24: =SA34a!J131 -> 1360000 | K24: =SA34a!K131 -> 5457000
A25: Other Assets | C25: =SUM(C23:C24) -> 0 | D25: =SUM(D23:D24) -> 2885283.88 | E25: 0 | F25: 3800000 | G25: 0 | H25: 0 | I25: 107341945 | J25: 1860000 | K25: 5957000
A26: Biological or Cultivated Assets | C26: =SA34a!C136 -> 0 | D26: =SA34a!D136 -> 0 | E26: =SA34a!E136 -> 0 | F26: =SA34a!F136 -> 0 | G26: =SA34a!G136 -> 0 | H26: =SA34a!H136 -> 0 | I26: =SA34a!I136 -> 0 | J26: =SA34a!J136 -> 0 | K26: =SA34a!K136 -> 0
A27: Servitudes | C27: =SA34a!C140 -> 0 | D27: =SA34a!D140 -> 0 | E27: =SA34a!E140 -> 0 | F27: =SA34a!F140 -> 0 | G27: =SA34a!G140 -> 0 | H27: =SA34a!H140 -> 0 | I27: =SA34a!I140 -> 0 | J27: =SA34a!J140 -> 0 | K27: =SA34a!K140 -> 0
A28: Licences and Rights | C28: =SA34a!C141 -> 195112.8 | D28: =SA34a!D141 -> 8968380.12 | E28: =SA34a!E141 -> 0 | F28: =SA34a!F141 -> 46237276.47 | G28: =SA34a!G141 -> -21788000 | H28: =SA34a!H141 -> -21788000 | I28: =SA34a!I141 -> 0 | J28: =SA34a!J141 -> 0 | K28: =SA34a!K141 -> 0
A29: Intangible Assets | C29: =SUM(C27:C28) -> 195112.8 | D29: =SUM(D27:D28) -> 8968380.12 | E29: 0 | F29: 46237276.47 | G29: -21788000 | H29: -21788000 | I29: 0 | J29: 0 | K29: 0
A30: Computer Equipment | C30: =SA34a!C149 -> 19861904.45 | D30: =SA34a!D149 -> 34960244.87 | E30: =SA34a!E149 -> 0 | F30: =SA34a!F149 -> 30489488.02 | G30: =SA34a!G149 -> 5109707 | H30: =SA34a!H149 -> 5109707 | I30: =SA34a!I149 -> 5106690.34 | J30: =SA34a!J149 -> 3831717.98 | K30: =SA34a!K149 -> 4416998
A31: Furniture and Office Equipment | C31: =SA34a!C152 -> 50761735.64 | D31: =SA34a!D152 -> 4304516.88 | E31: =SA34a!E152 -> 1551738.66 | F31: =SA34a!F152 -> 26221102.4 | G31: =SA34a!G152 -> 7929416 | H31: =SA34a!H152 -> 7929416 | I31: =SA34a!I152 -> 7196887.61 | J31: =SA34a!J152 -> 5016661.61 | K31: =SA34a!K152 -> 4514164.61
A32: Machinery and Equipment | C32: =SA34a!C155 -> 10858594.59 | D32: =SA34a!D155 -> 33839751.12 | E32: =SA34a!E155 -> 3956830.37 | F32: =SA34a!F155 -> 34478166.65 | G32: =SA34a!G155 -> 7422034 | H32: =SA34a!H155 -> 7422034 | I32: =SA34a!I155 -> 35881095 | J32: =SA34a!J155 -> 8480000 | K32: =SA34a!K155 -> 4890000
A33: Transport Assets | C33: =SA34a!C158 -> 337124.62 | D33: =SA34a!D158 -> 77653.21 | E33: =SA34a!E158 -> 5994977.62 | F33: =SA34a!F158 -> 0 | G33: =SA34a!G158 -> 22237027.66 | H33: =SA34a!H158 -> 22237027.66 | I33: =SA34a!I158 -> 14155234 | J33: =SA34a!J158 -> 4820000 | K33: =SA34a!K158 -> 6820000
A34: Land | C34: =SA34a!C161 -> 7833422.52 | D34: =SA34a!D161 -> 0 | E34: =SA34a!E161 -> 0 | F34: =SA34a!F161 -> 48520598.77 | G34: =SA34a!G161 -> 0 | H34: =SA34a!H161 -> 0 | I34: =SA34a!I161 -> 0 | J34: =SA34a!J161 -> 0 | K34: =SA34a!K161 -> 0
A35: Zoo's, Marine and Non-biological Animals | C35: =SA34a!C164 -> 0 | D35: =SA34a!D164 -> 0 | E35: =SA34a!E164 -> 0 | F35: =SA34a!F164 -> 0 | G35: =SA34a!G164 -> 0 | H35: =SA34a!H164 -> 0 | I35: =SA34a!I164 -> 0 | J35: =SA34a!J164 -> 0 | K35: =SA34a!K164 -> 0
A37: Total Renewal of Existing Assets | B37: 2 | C37: =C47+C50+C51+C54+C57+C58+SUM(C61:C67) -> 515763053.1 | D37: =D47+D50+D51+D54+D57+D58+SUM(D61:D67) -> 251586368.5 | E37: 203992313.9 | F37: 15200000 | G37: 259787252.8 | H37: 259787252.8 | I37: 251781525 | J37: 257590892.1 | K37: 241207291.7 | L37: 251781525 | M37: 257590892.1 | N37: 241207291.7
A38: Roads Infrastructure | C38: =SA34b!C7 -> 98713824.34 | D38: =SA34b!D7 -> 32198255.8 | E38: =SA34b!E7 -> 0 | F38: =SA34b!F7 -> 5914548.294 | G38: =SA34b!G7 -> 39449298 | H38: =SA34b!H7 -> 39449298 | I38: =SA34b!I7 -> 41326894 | J38: =SA34b!J7 -> 32069310 | K38: =SA34b!K7 -> 20697000 | L38: 121338250 | M38: 164523190 | N38: 144231510
A39: Storm water Infrastructure | C39: =SA34b!C12 -> 0 | D39: =SA34b!D12 -> 0 | E39: =SA34b!E12 -> 0 | F39: =SA34b!F12 -> 0 | G39: =SA34b!G12 -> 0 | H39: =SA34b!H12 -> 0 | I39: =SA34b!I12 -> 0 | J39: =SA34b!J12 -> 0 | K39: =SA34b!K12 -> 0 | L39: =SUM(L37:L38) -> 373119775 | M39: 373119775 | N39: 373119775
A40: Electrical Infrastructure | C40: =SA34b!C16 -> 51960594.32 | D40: =SA34b!D16 -> 44447125.26 | E40: =SA34b!E16 -> 0 | F40: =SA34b!F16 -> 0 | G40: =SA34b!G16 -> 10334330 | H40: =SA34b!H16 -> 10334330 | I40: =SA34b!I16 -> 0 | J40: =SA34b!J16 -> 0 | K40: =SA34b!K16 -> 0
A41: Water Supply Infrastructure | C41: =SA34b!C26 -> 48979612.42 | D41: =SA34b!D26 -> 0 | E41: =SA34b!E26 -> 0 | F41: =SA34b!F26 -> 0 | G41: =SA34b!G26 -> 68660397 | H41: =SA34b!H26 -> 68660397 | I41: =SA34b!I26 -> 64261109 | J41: =SA34b!J26 -> 76393834.45 | K41: =SA34b!K26 -> 79900420 | L41: =L39-I101 -> -203181852
A42: Sanitation Infrastructure | C42: =SA34b!C37 -> 0 | D42: =SA34b!D37 -> 1197869.29 | E42: =SA34b!E37 -> 0 | F42: =SA34b!F37 -> 0 | G42: =SA34b!G37 -> 32720000 | H42: =SA34b!H37 -> 32720000 | I42: =SA34b!I37 -> 74185522 | J42: =SA34b!J37 -> 93398020.25 | K42: =SA34b!K37 -> 100729532.3
A43: Solid Waste Infrastructure | C43: =SA34b!C44 -> 30713723.54 | D43: =SA34b!D44 -> 19377263.52 | E43: =SA34b!E44 -> 0 | F43: =SA34b!F44 -> 1556460.077 | G43: =SA34b!G44 -> 45099946 | H43: =SA34b!H44 -> 45099946 | I43: =SA34b!I44 -> 2000000 | J43: =SA34b!J44 -> 2100000 | K43: =SA34b!K44 -> 2200000
A44: Rail Infrastructure | C44: =SA34b!C52 -> 0 | D44: =SA34b!D52 -> 0 | E44: =SA34b!E52 -> 0 | F44: =SA34b!F52 -> 0 | G44: =SA34b!G52 -> 0 | H44: =SA34b!H52 -> 0 | I44: =SA34b!I52 -> 0 | J44: =SA34b!J52 -> 0 | K44: =SA34b!K52 -> 0 | M44: =64-100 -> -36
A45: Coastal Infrastructure | C45: =SA34b!C62 -> 0 | D45: =SA34b!D62 -> 0 | E45: =SA34b!E62 -> 0 | F45: =SA34b!F62 -> 0 | G45: =SA34b!G62 -> 0 | H45: =SA34b!H62 -> 0 | I45: =SA34b!I62 -> 0 | J45: =SA34b!J62 -> 0 | K45: =SA34b!K62 -> 0
A46: Information and Communication Infrastructure | C46: =SA34b!C68 -> 0 | D46: =SA34b!D68 -> 0 | E46: =SA34b!E68 -> 0 | F46: =SA34b!F68 -> 0 | G46: =SA34b!G68 -> 0 | H46: =SA34b!H68 -> 0 | I46: =SA34b!I68 -> 0 | J46: =SA34b!J68 -> 0 | K46: =SA34b!K68 -> 0
A47: Infrastructure | C47: =SUM(C38:C46) -> 230367754.6 | D47: =SUM(D38:D46) -> 97220513.87 | E47: 0 | F47: 7471008.371 | G47: 196263971 | H47: 196263971 | I47: 181773525 | J47: 203961164.7 | K47: 203526952.3
A48: Community Facilities | C48: =SA34b!C75 -> 8706674.4 | D48: =SA34b!D75 -> 3705234.78 | E48: =SA34b!E75 -> 0 | F48: =SA34b!F75 -> 0 | G48: =SA34b!G75 -> 12300000 | H48: =SA34b!H75 -> 12300000 | I48: =SA34b!I75 -> 35808000 | J48: =SA34b!J75 -> 41029727.39 | K48: =SA34b!K75 -> 31080339.39
A49: Sport and Recreation Facilities | C49: =SA34b!C98 -> 28616267.99 | D49: =SA34b!D98 -> 24870985.83 | E49: =SA34b!E98 -> 0 | F49: =SA34b!F98 -> 0 | G49: =SA34b!G98 -> 0 | H49: =SA34b!H98 -> 0 | I49: =SA34b!I98 -> 0 | J49: =SA34b!J98 -> 0 | K49: =SA34b!K98 -> 0
A50: Community Assets | C50: =SUM(C48:C49) -> 37322942.39 | D50: =SUM(D48:D49) -> 28576220.61 | E50: 0 | F50: 0 | G50: 12300000 | H50: 12300000 | I50: 35808000 | J50: 41029727.39 | K50: 31080339.39
A51: Heritage Assets | C51: =SA34b!C103 -> 16065512.57 | D51: =SA34b!D103 -> 15407721.55 | E51: =SA34b!E103 -> 208367676 | F51: =SA34b!F103 -> 0 | G51: =SA34b!G103 -> 4450000 | H51: =SA34b!H103 -> 4450000 | I51: =SA34b!I103 -> 0 | J51: =SA34b!J103 -> 0 | K51: =SA34b!K103 -> 0
A52: Revenue Generating | C52: =SA34b!C111 -> 0 | D52: =SA34b!D111 -> 0 | E52: =SA34b!E111 -> 0 | F52: =SA34b!F111 -> 0 | G52: =SA34b!G111 -> 0 | H52: =SA34b!H111 -> 0 | I52: =SA34b!I111 -> 0 | J52: =SA34b!J111 -> 0 | K52: =SA34b!K111 -> 0
A53: Non-revenue Generating | C53: =SA34b!C114 -> 0 | D53: =SA34b!D114 -> 0 | E53: =SA34b!E114 -> 0 | F53: =SA34b!F114 -> 0 | G53: =SA34b!G114 -> 0 | H53: =SA34b!H114 -> 0 | I53: =SA34b!I114 -> 0 | J53: =SA34b!J114 -> 0 | K53: =SA34b!K114 -> 0
A54: Investment properties | C54: =SUM(C52:C53) -> 0 | D54: =SUM(D52:D53) -> 0 | E54: 0 | F54: 0 | G54: 0 | H54: 0 | I54: 0 | J54: 0 | K54: 0
A55: Operational Buildings | C55: =SA34b!C119 -> 0 | D55: =SA34b!D119 -> 0 | E55: =SA34b!E119 -> 0 | F55: =SA34b!F119 -> 0 | G55: =SA34b!G119 -> 0 | H55: =SA34b!H119 -> 0 | I55: =SA34b!I119 -> 1000000 | J55: =SA34b!J119 -> 1500000 | K55: =SA34b!K119 -> 2000000
A56: Housing | C56: =SA34b!C131 -> 0 | D56: =SA34b!D131 -> 0 | E56: =SA34b!E131 -> 0 | F56: =SA34b!F131 -> 0 | G56: =SA34b!G131 -> 28589166.78 | H56: =SA34b!H131 -> 28589166.78 | I56: =SA34b!I131 -> 1000000 | J56: =SA34b!J131 -> 0 | K56: =SA34b!K131 -> 0
A57: Other Assets | C57: =SUM(C55:C56) -> 0 | D57: =SUM(D55:D56) -> 0 | E57: 0 | F57: 0 | G57: 28589166.78 | H57: 28589166.78 | I57: 2000000 | J57: 1500000 | K57: 2000000
A58: Biological or Cultivated Assets | C58: =SA34b!C136 -> 0 | D58: =SA34b!D136 -> 0 | E58: =SA34b!E136 -> 0 | F58: =SA34b!F136 -> 0 | G58: =SA34b!G136 -> 0 | H58: =SA34b!H136 -> 0 | I58: =SA34b!I136 -> 0 | J58: =SA34b!J136 -> 0 | K58: =SA34b!K136 -> 0
A59: Servitudes | C59: =SA34b!C140 -> 0 | D59: =SA34b!D140 -> 0 | E59: =SA34b!E140 -> 0 | F59: =SA34b!F140 -> 0 | G59: =SA34b!G140 -> 0 | H59: =SA34b!H140 -> 0 | I59: =SA34b!I140 -> 0 | J59: =SA34b!J140 -> 0 | K59: =SA34b!K140 -> 0
A60: Licences and Rights | C60: =SA34b!C141 -> 0 | D60: =SA34b!D141 -> 0 | E60: =SA34b!E141 -> 0 | F60: =SA34b!F141 -> 0 | G60: =SA34b!G141 -> 3250000 | H60: =SA34b!H141 -> 3250000 | I60: =SA34b!I141 -> 32200000 | J60: =SA34b!J141 -> 11100000 | K60: =SA34b!K141 -> 4600000
A61: Intangible Assets | C61: =SUM(C59:C60) -> 0 | D61: =SUM(D59:D60) -> 0 | E61: 0 | F61: 0 | G61: 3250000 | H61: 3250000 | I61: 32200000 | J61: 11100000 | K61: 4600000
A62: Computer Equipment | C62: =SA34b!C149 -> 1950065.1 | D62: =SA34b!D149 -> 0 | E62: =SA34b!E149 -> 0 | F62: =SA34b!F149 -> 0 | G62: =SA34b!G149 -> 0 | H62: =SA34b!H149 -> 0 | I62: =SA34b!I149 -> 0 | J62: =SA34b!J149 -> 0 | K62: =SA34b!K149 -> 0
A63: Furniture and Office Equipment | C63: =SA34b!C152 -> 5781198.02 | D63: =SA34b!D152 -> 0 | E63: =SA34b!E152 -> 0 | F63: =SA34b!F152 -> 389115.0193 | G63: =SA34b!G152 -> 389115.0193 | H63: =SA34b!H152 -> 389115.0193 | I63: =SA34b!I152 -> 0 | J63: =SA34b!J152 -> 0 | K63: =SA34b!K152 -> 0
A64: Machinery and Equipment | C64: =SA34b!C155 -> 15350489.89 | D64: =SA34b!D155 -> 0 | E64: =SA34b!E155 -> 0 | F64: =SA34b!F155 -> 7339876.61 | G64: =SA34b!G155 -> 4365000 | H64: =SA34b!H155 -> 4365000 | I64: =SA34b!I155 -> 0 | J64: =SA34b!J155 -> 0 | K64: =SA34b!K155 -> 0
A65: Transport Assets | C65: =SA34b!C158 -> 177628403.2 | D65: =SA34b!D158 -> 110381912.5 | E65: =SA34b!E158 -> -4375362.12 | F65: =SA34b!F158 -> 0 | G65: =SA34b!G158 -> 10180000 | H65: =SA34b!H158 -> 10180000 | I65: =SA34b!I158 -> 0 | J65: =SA34b!J158 -> 0 | K65: =SA34b!K158 -> 0
A66: Land | C66: =SA34b!C161 -> 31296687.34 | D66: =SA34b!D161 -> 0 | E66: =SA34b!E161 -> 0 | F66: =SA34b!F161 -> 0 | G66: =SA34b!G161 -> 0 | H66: =SA34b!H161 -> 0 | I66: =SA34b!I161 -> 0 | J66: =SA34b!J161 -> 0 | K66: =SA34b!K161 -> 0
A67: Zoo's, Marine and Non-biological Animals | C67: =SA34b!C164 -> 0 | D67: =SA34b!D164 -> 0 | E67: =SA34b!E164 -> 0 | F67: =SA34b!F164 -> 0 | G67: =SA34b!G164 -> 0 | H67: =SA34b!H164 -> 0 | I67: =SA34b!I164 -> 0 | J67: =SA34b!J164 -> 0 | K67: =SA34b!K164 -> 0
A69: Total Upgrading of Existing Assets | B69: 6 | C69: =C79+C82+C83+C86+C89+C90+SUM(C93:C99) -> 0 | D69: =D79+D82+D83+D86+D89+D90+SUM(D93:D99) -> 175803267.3 | E69: 195144752.2 | F69: 109450000 | G69: 463992922.3 | H69: 463992922.3 | I69: 121338250 | J69: 164523190 | K69: 144231510
A70: Roads Infrastructure | C70: =SA34e!C7 -> 0 | D70: =SA34e!D7 -> 90517841.19 | E70: =SA34e!E7 -> 0 | F70: =SA34e!F7 -> 31255314.73 | G70: =SA34e!G7 -> 70819012 | H70: =SA34e!H7 -> 70819012 | I70: =SA34e!I7 -> 39149250 | J70: =SA34e!J7 -> 61623190 | K70: =SA34e!K7 -> 79110070
A71: Storm water Infrastructure | C71: =SA34e!C12 -> 0 | D71: =SA34e!D12 -> 0 | E71: =SA34e!E12 -> 0 | F71: =SA34e!F12 -> 0 | G71: =SA34e!G12 -> 0 | H71: =SA34e!H12 -> 0 | I71: =SA34e!I12 -> 0 | J71: =SA34e!J12 -> 0 | K71: =SA34e!K12 -> 0
A72: Electrical Infrastructure | C72: =SA34e!C16 -> 0 | D72: =SA34e!D16 -> 6325203.16 | E72: =SA34e!E16 -> 0 | F72: =SA34e!F16 -> 16185479.85 | G72: =SA34e!G16 -> 16185479.85 | H72: =SA34e!H16 -> 16185479.85 | I72: =SA34e!I16 -> 74000000 | J72: =SA34e!J16 -> 96000000 | K72: =SA34e!K16 -> 57621440
A73: Water Supply Infrastructure | C73: =SA34e!C26 -> 0 | D73: =SA34e!D26 -> 50483941.24 | E73: =SA34e!E26 -> 0 | F73: =SA34e!F26 -> 5463210.466 | G73: =SA34e!G26 -> 5463210.466 | H73: =SA34e!H26 -> 5463210.466 | I73: =SA34e!I26 -> 0 | J73: =SA34e!J26 -> 0 | K73: =SA34e!K26 -> 0
A74: Sanitation Infrastructure | C74: =SA34e!C37 -> 0 | D74: =SA34e!D37 -> 0 | E74: =SA34e!E37 -> 0 | F74: =SA34e!F37 -> 0 | G74: =SA34e!G37 -> 0 | H74: =SA34e!H37 -> 0 | I74: =SA34e!I37 -> 0 | J74: =SA34e!J37 -> 0 | K74: =SA34e!K37 -> 0
A75: Solid Waste Infrastructure | C75: =SA34e!C44 -> 0 | D75: =SA34e!D44 -> 4262949.49 | E75: =SA34e!E44 -> 0 | F75: =SA34e!F44 -> 4127956.972 | G75: =SA34e!G44 -> 9812425 | H75: =SA34e!H44 -> 9812425 | I75: =SA34e!I44 -> 2300000 | J75: =SA34e!J44 -> 0 | K75: =SA34e!K44 -> 0
A76: Rail Infrastructure | C76: =SA34e!C52 -> 0 | D76: =SA34e!D52 -> 0 | E76: =SA34e!E52 -> 0 | F76: =SA34e!F52 -> 0 | G76: =SA34e!G52 -> 0 | H76: =SA34e!H52 -> 0 | I76: =SA34e!I52 -> 0 | J76: =SA34e!J52 -> 0 | K76: =SA34e!K52 -> 0
A77: Coastal Infrastructure | C77: =SA34e!C62 -> 0 | D77: =SA34e!D62 -> 0 | E77: =SA34e!E62 -> 0 | F77: =SA34e!F62 -> 0 | G77: =SA34e!G62 -> 0 | H77: =SA34e!H62 -> 0 | I77: =SA34e!I62 -> 0 | J77: =SA34e!J62 -> 0 | K77: =SA34e!K62 -> 0
A78: Information and Communication Infrastructure | C78: =SA34e!C68 -> 0 | D78: =SA34e!D68 -> 0 | E78: =SA34e!E68 -> 0 | F78: =SA34e!F68 -> 0 | G78: =SA34e!G68 -> 0 | H78: =SA34e!H68 -> 0 | I78: =SA34e!I68 -> 0 | J78: =SA34e!J68 -> 0 | K78: =SA34e!K68 -> 0
A79: Infrastructure | C79: =SUM(C70:C78) -> 0 | D79: 151589935.1 | E79: 0 | F79: 57031962.02 | G79: 102280127.3 | H79: 102280127.3 | I79: 115449250 | J79: 157623190 | K79: 136731510
A80: Community Facilities | C80: =SA34e!C75 -> 0 | D80: =SA34e!D75 -> 149110.31 | E80: =SA34e!E75 -> 0 | F80: =SA34e!F75 -> 0 | G80: =SA34e!G75 -> 5774410 | H80: =SA34e!H75 -> 5774410 | I80: =SA34e!I75 -> 3500000 | J80: =SA34e!J75 -> 3500000 | K80: =SA34e!K75 -> 3500000
A81: Sport and Recreation Facilities | C81: =SA34e!C98 -> 0 | D81: =SA34e!D98 -> 1632721.64 | E81: =SA34e!E98 -> 0 | F81: =SA34e!F98 -> 0 | G81: =SA34e!G98 -> 2616061 | H81: =SA34e!H98 -> 2616061 | I81: =SA34e!I98 -> 0 | J81: =SA34e!J98 -> 0 | K81: =SA34e!K98 -> 0
A82: Community Assets | C82: =SUM(C80:C81) -> 0 | D82: 1781831.95 | E82: 0 | F82: 0 | G82: 8390471 | H82: 8390471 | I82: 3500000 | J82: 3500000 | K82: 3500000
A83: Heritage Assets | C83: =SA34e!C103 -> 0 | D83: =SA34e!D103 -> 8422674.74 | E83: =SA34e!E103 -> 201733761.1 | F83: =SA34e!F103 -> 4066785.117 | G83: =SA34e!G103 -> 8300000 | H83: =SA34e!H103 -> 8300000 | I83: =SA34e!I103 -> 0 | J83: =SA34e!J103 -> 0 | K83: =SA34e!K103 -> 0
A84: Revenue Generating | C84: =SA34e!C111 -> 0 | D84: =SA34e!D111 -> 0 | E84: =SA34e!E111 -> 0 | F84: =SA34e!F111 -> 0 | G84: =SA34e!G111 -> 0 | H84: =SA34e!H111 -> 0 | I84: =SA34e!I111 -> 0 | J84: =SA34e!J111 -> 0 | K84: =SA34e!K111 -> 0
A85: Non-revenue Generating | C85: =SA34e!C114 -> 0 | D85: =SA34e!D114 -> 0 | E85: =SA34e!E114 -> 0 | F85: =SA34e!F114 -> 0 | G85: =SA34e!G114 -> 0 | H85: =SA34e!H114 -> 0 | I85: =SA34e!I114 -> 0 | J85: =SA34e!J114 -> 0 | K85: =SA34e!K114 -> 0
A86: Investment properties | C86: =SUM(C84:C85) -> 0 | D86: 0 | E86: 0 | F86: 0 | G86: 0 | H86: 0 | I86: 0 | J86: 0 | K86: 0
A87: Operational Buildings | C87: =SA34e!C119 -> 0 | D87: =SA34e!D119 -> 0 | E87: =SA34e!E119 -> 0 | F87: =SA34e!F119 -> 0 | G87: =SA34e!G119 -> 0 | H87: =SA34e!H119 -> 0 | I87: =SA34e!I119 -> 2389000 | J87: =SA34e!J119 -> 3400000 | K87: =SA34e!K119 -> 4000000
A88: Housing | C88: =SA34e!C131 -> 0 | D88: =SA34e!D131 -> 0 | E88: =SA34e!E131 -> 0 | F88: =SA34e!F131 -> 0 | G88: =SA34e!G131 -> 244264000 | H88: =SA34e!H131 -> 244264000 | I88: =SA34e!I131 -> 0 | J88: =SA34e!J131 -> 0 | K88: =SA34e!K131 -> 0
A89: Other Assets | C89: =SUM(C87:C88) -> 0 | D89: 0 | E89: 0 | F89: 0 | G89: 244264000 | H89: 244264000 | I89: 2389000 | J89: 3400000 | K89: 4000000
A90: Biological or Cultivated Assets | C90: =SA34e!C136 -> 0 | D90: =SA34e!D136 -> 0 | E90: =SA34e!E136 -> 0 | F90: =SA34e!F136 -> 0 | G90: =SA34e!G136 -> 0 | H90: =SA34e!H136 -> 0 | I90: =SA34e!I136 -> 0 | J90: =SA34e!J136 -> 0 | K90: =SA34e!K136 -> 0
A91: Servitudes | C91: =SA34e!C140 -> 0 | D91: =SA34e!D140 -> 0 | E91: =SA34e!E140 -> 0 | F91: =SA34e!F140 -> 0 | G91: =SA34e!G140 -> 0 | H91: =SA34e!H140 -> 0 | I91: =SA34e!I140 -> 0 | J91: =SA34e!J140 -> 0 | K91: =SA34e!K140 -> 0
A92: Licences and Rights | C92: =SA34e!C141 -> 0 | D92: =SA34e!D141 -> 0 | E92: =SA34e!E141 -> 0 | F92: =SA34e!F141 -> 0 | G92: =SA34e!G141 -> 300000 | H92: =SA34e!H141 -> 300000 | I92: =SA34e!I141 -> 0 | J92: =SA34e!J141 -> 0 | K92: =SA34e!K141 -> 0
A93: Intangible Assets | C93: =SUM(C91:C92) -> 0 | D93: 0 | E93: 0 | F93: 0 | G93: 300000 | H93: 300000 | I93: 0 | J93: 0 | K93: 0
A94: Computer Equipment | C94: =SA34e!C149 -> 0 | D94: =SA34e!D149 -> 0 | E94: =SA34e!E149 -> 0 | F94: =SA34e!F149 -> 172522.4358 | G94: =SA34e!G149 -> 200000 | H94: =SA34e!H149 -> 200000 | I94: =SA34e!I149 -> 0 | J94: =SA34e!J149 -> 0 | K94: =SA34e!K149 -> 0
A95: Furniture and Office Equipment | C95: =SA34e!C152 -> 0 | D95: =SA34e!D152 -> 0 | E95: =SA34e!E152 -> 0 | F95: =SA34e!F152 -> 28753.7393 | G95: =SA34e!G152 -> 11500000 | H95: =SA34e!H152 -> 11500000 | I95: =SA34e!I152 -> 0 | J95: =SA34e!J152 -> 0 | K95: =SA34e!K152 -> 0
A96: Machinery and Equipment | C96: =SA34e!C155 -> 0 | D96: =SA34e!D155 -> 1388509.91 | E96: =SA34e!E155 -> 15562.55 | F96: =SA34e!F155 -> 0 | G96: =SA34e!G155 -> 0 | H96: =SA34e!H155 -> 0 | I96: =SA34e!I155 -> 0 | J96: =SA34e!J155 -> 0 | K96: =SA34e!K155 -> 0
A97: Transport Assets | C97: =SA34e!C158 -> 0 | D97: =SA34e!D158 -> 0 | E97: =SA34e!E158 -> -6604571.5 | F97: =SA34e!F158 -> 48149976.69 | G97: =SA34e!G158 -> 88758324 | H97: =SA34e!H158 -> 88758324 | I97: =SA34e!I158 -> 0 | J97: =SA34e!J158 -> 0 | K97: =SA34e!K158 -> 0
A98: Land | C98: =SA34e!C161 -> 0 | D98: =SA34e!D161 -> 12620315.63 | E98: =SA34e!E161 -> 0 | F98: =SA34e!F161 -> 0 | G98: =SA34e!G161 -> 0 | H98: =SA34e!H161 -> 0 | I98: =SA34e!I161 -> 0 | J98: =SA34e!J161 -> 0 | K98: =SA34e!K161 -> 0
A99: Zoo's, Marine and Non-biological Animals | C99: =SA34e!C164 -> 0 | D99: =SA34e!D164 -> 0 | E99: =SA34e!E164 -> 0 | F99: =SA34e!F164 -> 0 | G99: =SA34e!G164 -> 0 | H99: =SA34e!H164 -> 0 | I99: =SA34e!I164 -> 0 | J99: =SA34e!J164 -> 0 | K99: =SA34e!K164 -> 0
A101: Total Capital Expenditure | B101: 4 | C101: =+C5+C37+C69 -> 594896668.5 | D101: =+D5+D37+D69 -> 613486541 | E101: 420245200.1 | F101: 580891581 | G101: 747190359.8 | H101: 747190359.8 | I101: 576301627 | J101: 471702461.7 | K101: 445822964.3
A102: Roads Infrastructure | C102: =+C6+C38+C70 -> 101461238.4 | D102: =+D6+D38+D70 -> 137819136 | E102: 0 | F102: 48015643.92 | G102: 110268310 | H102: 110268310 | I102: 104576144 | J102: 105632500 | K102: 118250070
A103: Storm water Infrastructure | C103: =+C7+C39+C71 -> 0 | D103: 0 | E103: 0 | F103: 0 | G103: 0 | H103: 0 | I103: 0 | J103: 0 | K103: 0
A104: Electrical Infrastructure | C104: 8914760.18 | D104: 118050196.6 | E104: 0 | F104: 149837184.5 | G104: 26519809.85 | H104: 26519809.85 | I104: 81600000 | J104: 107940000 | K104: 71064440
A105: Water Supply Infrastructure | C105: 48979612.42 | D105: 50483941.24 | E105: 0 | F105: 5463210.466 | G105: 74123607.47 | H105: 74123607.47 | I105: 64261109 | J105: 76393834.45 | K105: 79900420
A106: Sanitation Infrastructure | C106: 0 | D106: 1197869.29 | E106: 0 | F106: 48520598.77 | G106: 32720000 | H106: 32720000 | I106: 74185522 | J106: 93398020.25 | K106: 100729532.3
A107: Solid Waste Infrastructure | C107: 30862590.54 | D107: 23640213.01 | E107: 0 | F107: 5684417.05 | G107: 54912371 | H107: 54912371 | I107: 4300000 | J107: 2100000 | K107: 2200000
A108: Rail Infrastructure | C108: 0 | D108: 0 | E108: 0 | F108: 0 | G108: 0 | H108: 0 | I108: 0 | J108: 0 | K108: 0
A109: Coastal Infrastructure | C109: 0 | D109: 0 | E109: 0 | F109: 0 | G109: 0 | H109: 0 | I109: 0 | J109: 0 | K109: 0
A110: Information and Communication Infrastructure | C110: 0 | D110: 0 | E110: 0 | F110: 0 | G110: 0 | H110: 0 | I110: 0 | J110: 0 | K110: 0
A111: Infrastructure | C111: =SUM(C102:C110) -> 190218201.5 | D111: =SUM(D102:D110) -> 331191356.2 | E111: 0 | F111: 257521054.7 | G111: 298544098.3 | H111: 298544098.3 | I111: 328922775 | J111: 385464354.7 | K111: 372144462.3
A112: Community Facilities | C112: =+C16+C48+C80 -> 8706674.4 | D112: =+D16+D48+D80 -> 4191001.05 | E112: 0 | F112: 39558111.67 | G112: 20574410 | H112: 20574410 | I112: 41108000 | J112: 46229727.39 | K112: 36480339.39
A113: Sport and Recreation Facilities | C113: =+C17+C49+C81 -> 33722699.16 | D113: =+D17+D49+D81 -> 26503707.47 | E113: 0 | F113: 0 | G113: 2616061 | H113: 2616061 | I113: 0 | J113: 0 | K113: 0
A114: Community Assets | C114: =SUM(C112:C113) -> 42429373.56 | D114: =SUM(D112:D113) -> 30694708.52 | E114: 0 | F114: 39558111.67 | G114: 23190471 | H114: 23190471 | I114: 41108000 | J114: 46229727.39 | K114: 36480339.39
A115: Heritage Assets | C115: =+C19+C51+C83 -> 40394355.28 | D115: =+D19+D51+D83 -> 42173908.2 | E115: 419706024.5 | F115: 37985537.81 | G115: 12750000 | H115: 12750000 | I115: 0 | J115: 0 | K115: 0
A116: Revenue Generating | C116: =+C20+C52+C84 -> 0 | D116: =+D20+D52+D84 -> 0 | E116: 0 | F116: 0 | G116: 0 | H116: 0 | I116: 0 | J116: 0 | K116: 0
A117: Non-revenue Generating | C117: =+C21+C53+C85 -> 0 | D117: =+D21+D53+D85 -> 0 | E117: 0 | F117: 0 | G117: 0 | H117: 0 | I117: 0 | J117: 0 | K117: 0
A118: Investment properties | C118: =SUM(C116:C117) -> 0 | D118: =SUM(D116:D117) -> 0 | E118: 0 | F118: 0 | G118: 0 | H118: 0 | I118: 0 | J118: 0 | K118: 0
A119: Operational Buildings | C119: =+C23+C55+C87 -> 0 | D119: =+D23+D55+D87 -> 2885283.88 | E119: 0 | F119: 3800000 | G119: 0 | H119: 0 | I119: 4489000 | J119: 5400000 | K119: 6500000
A120: Housing | C120: =+C24+C56+C88 -> 0 | D120: =+D24+D56+D88 -> 0 | E120: 0 | F120: 0 | G120: 272853166.8 | H120: 272853166.8 | I120: 107241945 | J120: 1360000 | K120: 5457000
A121: Other Assets | C121: =SUM(C119:C120) -> 0 | D121: 2885283.88 | E121: 0 | F121: 3800000 | G121: 272853166.8 | H121: 272853166.8 | I121: 111730945 | J121: 6760000 | K121: 11957000
A122: Biological or Cultivated Assets | C122: =+C26+C58+C90 -> 0 | D122: =+D26+D58+D90 -> 0 | E122: 0 | F122: 0 | G122: 0 | H122: 0 | I122: 0 | J122: 0 | K122: 0
A123: Servitudes | C123: =+C27+C59+C91 -> 0 | D123: =+D27+D59+D91 -> 0 | E123: 0 | F123: 0 | G123: 0 | H123: 0 | I123: 0 | J123: 0 | K123: 0
A124: Licences and Rights | C124: =+C28+C60+C92 -> 195112.8 | D124: =+D28+D60+D92 -> 8968380.12 | E124: 0 | F124: 46237276.47 | G124: -18238000 | H124: -18238000 | I124: 32200000 | J124: 11100000 | K124: 4600000
A125: Intangible Assets | C125: =SUM(C123:C124) -> 195112.8 | D125: =SUM(D123:D124) -> 8968380.12 | E125: 0 | F125: 46237276.47 | G125: -18238000 | H125: -18238000 | I125: 32200000 | J125: 11100000 | K125: 4600000
A126: Computer Equipment | C126: =+C30+C62+C94 -> 21811969.55 | D126: =+D30+D62+D94 -> 34960244.87 | E126: 0 | F126: 30662010.46 | G126: 5309707 | H126: 5309707 | I126: 5106690.34 | J126: 3831717.98 | K126: 4416998 | M126: =G111+G114+G126+G127+G128+G129 -> 479825193
A127: Furniture and Office Equipment | C127: =+C31+C63+C95 -> 56542933.66 | D127: 4304516.88 | E127: 1551738.66 | F127: 26638971.16 | G127: 19818531.02 | H127: 19818531.02 | I127: 7196887.61 | J127: 5016661.61 | K127: 4514164.61
A128: Machinery and Equipment | C128: 26209084.48 | D128: 35228261.03 | E128: 3972392.92 | F128: 41818043.26 | G128: 11787034 | H128: 11787034 | I128: 35881095 | J128: 8480000 | K128: 4890000
A129: Transport Assets | C129: 177965527.8 | D129: 110459565.7 | E129: -4984956 | F129: 48149976.69 | G129: 121175351.7 | H129: 121175351.7 | I129: 14155234 | J129: 4820000 | K129: 6820000
A130: Land | C130: 39130109.86 | D130: 12620315.63 | E130: 0 | F130: 48520598.77 | G130: 0 | H130: 0 | I130: 0 | J130: 0 | K130: 0
A131: Zoo's, Marine and Non-biological Animals | C131: 0 | D131: 0 | E131: 0 | F131: 0 | G131: 0 | H131: 0 | I131: 0 | J131: 0 | K131: 0
A132: TOTAL CAPITAL EXPENDITURE - Asset class | C132: =+C5+C37+C69 -> 594896668.5 | D132: =+D5+D37+D69 -> 613486541 | E132: 420245200.1 | F132: 580891581 | G132: 747190359.8 | H132: 747190359.8 | I132: 576301627 | J132: 471702461.7 | K132: 445822964.3
A134: ASSET REGISTER SUMMARY - PPE (WDV) | B134: 5 | C134: =C144+C147+C148+C151+C154+C155+C158+C159+C160+C161+C162+C163+C164 -> 7343364292 | D134: =D144+D147+D148+D151+D154+D155+D158+D159+D160+D161+D162+D163+D164 -> 8114943436 | E134: 7776759066 | F134: 8299932731 | G134: 7330583369 | H134: 7278296220 | I134: 7603684243 | J134: 7371783676 | K134: 7969860313
A135: Roads Infrastructure | C135: 1531463951 | D135: 1863936673 | E135: 1873107347 | F135: 2665950944 | G135: 2190328004 | H135: 2190328004 | I135: 2238420646 | J135: 2224838392 | K135: 2484163671
A136: Storm water Infrastructure | C136: 449250717.8 | D136: 500215336.2 | E136: 492666819.9 | F136: 171146519.2 | G136: 151399309.7 | H136: 151399309.7 | I136: 87082591.49 | J136: 89989077.27 | K136: 47480443.02
A137: Electrical Infrastructure | C137: 1151332432 | D137: 1281576239 | E137: 1173269272 | F137: 1319290256 | G137: 1043750674 | H137: 1043750674 | I137: 1018081787 | J137: 976609672.5 | K137: 1010735141
A138: Water Supply Infrastructure | C138: 601633420.9 | D138: 729287605.4 | E138: 732347420.9 | F138: 1207157612 | G138: 1136533878 | H138: 1136533878 | I138: 1223186204 | J138: 1253926642 | K138: 1341731262
A139: Sanitation Infrastructure | C139: 341599834.2 | D139: 491269683.7 | E139: 489055780.7 | F139: 682631645.9 | G139: 588067715 | H139: 588067715 | I139: 600826029.8 | J139: 603388124.8 | K139: 622166143.5
A140: Solid Waste Infrastructure | C140: 12333619.9 | D140: 8203697.56 | E140: 7891309.98 | F140: 37297702.88 | G140: 82222177.23 | H140: 82222177.23 | I140: 85470274.23 | J140: 83291566.06 | K140: 86642973.12
A141: Rail Infrastructure | C141: 1273067.36 | D141: 1133767.16 | E141: 1018136.52 | F141: 1552439.07 | G141: 1373315.71 | H141: 1373315.71 | I141: 1254005.07 | J141: 1254005.1 | K141: 1134720.86
A142: Coastal Infrastructure | F142: 5366020.748 | G142: 4746879.111 | H142: 4746879.111 | I142: 4746879.111 | J142: 4746879.111 | K142: 4746879.111
A143: Information and Communication Infrastructure | F143: 5859000 | G143: 5182977.484 | H143: 5182977.484 | I143: 5182977.484 | J143: 5182977.484 | K143: 5182977.484
A144: Infrastructure | C144: =SUM(C135:C143) -> 4088887043 | D144: =SUM(D135:D143) -> 4875623002 | E144: 4769356087 | F144: 6096252140 | G144: 5203604929 | H144: 5203604929 | I144: 5264251393 | J144: 5243227337 | K144: 5603984212
A147: Community Assets | C147: 314213110.1 | D147: 448404541.3 | E147: 439697111.1 | F147: 36233641.81 | G147: 13785294.93 | H147: 13785294.93 | I147: 79588443.19 | J147: 77557602.47 | K147: 141209583.7
A148: Heritage Assets | C148: 226835645.5 | D148: 272674005.8 | E148: 271924972 | F148: 260307963.3 | G148: 206937599.7 | H148: 206937599.7 | I148: 206937599.7 | J148: 206937599.7 | K148: 206937599.7
A151: Investment properties | C151: 718291602.4 | D151: 702385000 | E151: 821671444.1 | F151: 756234992.1 | G151: 668979166.5 | H151: 668979166.5 | I151: 668979166.5 | J151: 668979166.5 | K151: 668979166.5
I152: 668979166.5
A154: Other Assets | C154: 223397036.6 | D154: 275725261.6 | E154: 269414591.8 | F154: 351457459.5 | G154: 579958799 | H154: 579958799 | I154: 617451810.3 | J154: 526791296.9 | K154: 587450315.5
A155: Biological or Cultivated Assets | C155: 64726278 | D155: 80648425 | E155: 74170250 | G155: 0 | H155: 0
A158: Intangible Assets | C158: 41752453.71 | D158: 40783433.79 | E158: 30700412.52 | F158: 27865742.94 | G158: 12462413 | H158: -39824735.73 | I158: -1082617.52 | J158: -54194696.97 | K158: -13363311.73
A159: Computer Equipment | C159: 37327698.13 | D159: 35928080.92 | E159: 28778537.85 | F159: 1288020.205 | G159: -24212897.46 | H159: -24212897.46 | I159: -28779613.69 | J159: -29765661.89 | K159: -30017167.46
A160: Furniture and Office Equipment | C160: 18393812.91 | D160: 17077132.76 | E160: 16196882.25 | F160: 16820364.75 | G160: 8059159.066 | H160: 8059159.066 | I160: 17596432.57 | J160: 14531619.13 | K160: 25042000.51
A161: Machinery and Equipment | C161: 53982696.84 | D161: 53218069.01 | E161: 53725800.87 | F161: 606200849.9 | G161: 506225238.5 | H161: 506225238.5 | I161: 568678244.6 | J161: 519098590.4 | K161: 572596212.5
A162: Transport Assets | C162: 99192279.93 | D162: 93488786.7 | E162: 85286830.94 | F162: 147271555.6 | G162: 203304264.9 | H162: 203304264.9 | I162: 210063384.2 | J162: 198620823.8 | K162: 207041701.8
A163: Land | C163: 1456364635 | D163: 1218987697 | E163: 915836146.2 | G163: -48520598.77 | H163: -48520598.77
A164: Zoo's, Marine and Non-biological Animals
A165: TOTAL ASSET REGISTER SUMMARY - PPE (WDV) | B165: 5 | C165: =C144+C147+C148+C151+C154+C155+C158+C159+C160+C161+C162+C163+C164 -> 7343364292 | D165: =D144+D147+D148+D151+D154+D155+D158+D159+D160+D161+D162+D163+D164 -> 8114943436 | E165: 7776759066 | F165: 8299932731 | G165: 7330583369 | H165: 7278296220 | I165: 7603684243 | J165: 7371783676 | K165: 7969860313
A167: EXPENDITURE OTHER ITEMS | C167: =SUM(C168:C169) -> 641449615.7 | D167: =SUM(D168:D169) -> 460955083 | E167: 359722843.5 | F167: 715745262.9 | G167: 715745262.9 | H167: 715745262.9 | I167: 749213838.1 | J167: 717919995.1 | K167: 639026361.8
A168: Depreciation | B168: 7 | C168: =SA34d!C167 -> 470106108 | D168: =SA34d!D167 -> 460955083 | E168: =SA34d!E167 -> 302561252.5 | F168: =SA34d!F167 -> 482441448.6 | G168: =SA34d!G167 -> 482441448.6 | H168: =SA34d!H167 -> 482441448.6 | I168: =SA34d!I167 -> 343877278.4 | J168: =SA34d!J167 -> 327648236.7 | K168: =SA34d!K167 -> 255045089
A169: Repairs and Maintenance by Asset Class | B169: 3 | C169: =C179+C182+C183+C186+C189+C190+SUM(C193:C199) -> 171343507.7 | D169: =D179+D182+D183+D186+D189+D190+SUM(D193:D199) -> 0 | E169: 57161591 | F169: 233303814.3 | G169: 233303814.3 | H169: 233303814.3 | I169: 405336559.7 | J169: 390271758.4 | K169: 383981272.8
A170: Roads Infrastructure | C170: =SA34c!C7 -> 49483260.51 | D170: =SA34c!D7 -> 0 | E170: =SA34c!E7 -> 0 | F170: =SA34c!F7 -> 67377416.65 | G170: =SA34c!G7 -> 67377416.65 | H170: =SA34c!H7 -> 67377416.65 | I170: =SA34c!I7 -> 0 | J170: =SA34c!J7 -> 0 | K170: =SA34c!K7 -> 0
A171: Storm water Infrastructure | C171: =SA34c!C12 -> 0 | D171: =SA34c!D12 -> 0 | E171: =SA34c!E12 -> 0 | F171: =SA34c!F12 -> 72368461.65 | G171: =SA34c!G12 -> 72368461.65 | H171: =SA34c!H12 -> 72368461.65 | I171: =SA34c!I12 -> 0 | J171: =SA34c!J12 -> 0 | K171: =SA34c!K12 -> 0
A172: Electrical Infrastructure | C172: =SA34c!C16 -> 52778562.73 | D172: =SA34c!D16 -> 0 | E172: =SA34c!E16 -> 33758097.36 | F172: =SA34c!F16 -> 22149634.81 | G172: =SA34c!G16 -> 22149634.81 | H172: =SA34c!H16 -> 22149634.81 | I172: =SA34c!I16 -> 7348650 | J172: =SA34c!J16 -> 8083515 | K172: =SA34c!K16 -> 7292246.5
A173: Water Supply Infrastructure | C173: =SA34c!C26 -> 16267114.47 | D173: =SA34c!D26 -> 0 | E173: =SA34c!E26 -> 0 | F173: =SA34c!F26 -> 8775393.263 | G173: =SA34c!G26 -> 8775393.263 | H173: =SA34c!H26 -> 8775393.263 | I173: =SA34c!I26 -> 116809087.8 | J173: =SA34c!J26 -> 89103069.1 | K173: =SA34c!K26 -> 54786847.77
A174: Sanitation Infrastructure | C174: =SA34c!C37 -> 6444816.268 | D174: =SA34c!D37 -> 0 | E174: =SA34c!E37 -> 0 | F174: =SA34c!F37 -> 0 | G174: =SA34c!G37 -> 0 | H174: =SA34c!H37 -> 0 | I174: =SA34c!I37 -> 0 | J174: =SA34c!J37 -> 0 | K174: =SA34c!K37 -> 0
A175: Solid Waste Infrastructure | C175: =SA34c!C44 -> 8914512.35 | D175: =SA34c!D44 -> 0 | E175: =SA34c!E44 -> 0 | F175: =SA34c!F44 -> 12138181.81 | G175: =SA34c!G44 -> 12138181.81 | H175: =SA34c!H44 -> 12138181.81 | I175: =SA34c!I44 -> 0 | J175: =SA34c!J44 -> 0 | K175: =SA34c!K44 -> 0
A176: Rail Infrastructure | C176: =SA34c!C52 -> 0 | D176: =SA34c!D52 -> 0 | E176: =SA34c!E52 -> 0 | F176: =SA34c!F52 -> 0 | G176: =SA34c!G52 -> 0 | H176: =SA34c!H52 -> 0 | I176: =SA34c!I52 -> 0 | J176: =SA34c!J52 -> 0 | K176: =SA34c!K52 -> 0
A177: Coastal Infrastructure | C177: =SA34c!C62 -> 0 | D177: =SA34c!D62 -> 0 | E177: =SA34c!E62 -> 0 | F177: =SA34c!F62 -> 0 | G177: =SA34c!G62 -> 0 | H177: =SA34c!H62 -> 0 | I177: =SA34c!I62 -> 0 | J177: =SA34c!J62 -> 0 | K177: =SA34c!K62 -> 0
A178: Information and Communication Infrastructure | C178: =SA34c!C68 -> 0 | D178: =SA34c!D68 -> 0 | E178: =SA34c!E68 -> 0 | F178: =SA34c!F68 -> 0 | G178: =SA34c!G68 -> 0 | H178: =SA34c!H68 -> 0 | I178: =SA34c!I68 -> 0 | J178: =SA34c!J68 -> 0 | K178: =SA34c!K68 -> 0
A179: Infrastructure | C179: =SUM(C170:C178) -> 133888266.3 | D179: =SUM(D170:D178) -> 0 | E179: 33758097.36 | F179: 182809088.2 | G179: 182809088.2 | H179: 182809088.2 | I179: 124157737.8 | J179: 97186584.1 | K179: 62079094.27
A180: Community Facilities | C180: =SA34c!C75 -> 17639142.13 | D180: =SA34c!D75 -> 0 | E180: =SA34c!E75 -> 0 | F180: =SA34c!F75 -> 23512721.35 | G180: =SA34c!G75 -> 23512721.35 | H180: =SA34c!H75 -> 23512721.35 | I180: =SA34c!I75 -> 59000 | J180: =SA34c!J75 -> 68000 | K180: =SA34c!K75 -> 79000
A181: Sport and Recreation Facilities | C181: =SA34c!C98 -> 0 | D181: =SA34c!D98 -> 0 | E181: =SA34c!E98 -> 0 | F181: =SA34c!F98 -> 0 | G181: =SA34c!G98 -> 0 | H181: =SA34c!H98 -> 0 | I181: =SA34c!I98 -> 0 | J181: =SA34c!J98 -> 0 | K181: =SA34c!K98 -> 0
A182: Community Assets | C182: =SUM(C180:C181) -> 17639142.13 | D182: 0 | E182: 0 | F182: 23512721.35 | G182: 23512721.35 | H182: 23512721.35 | I182: 59000 | J182: 68000 | K182: 79000
A183: Heritage Assets | C183: =SA34c!C103 -> 19816099.2 | D183: =SA34c!D103 -> 0 | E183: =SA34c!E103 -> 0 | F183: =SA34c!F103 -> 26982004.8 | G183: =SA34c!G103 -> 26982004.8 | H183: =SA34c!H103 -> 26982004.8 | I183: =SA34c!I103 -> 0 | J183: =SA34c!J103 -> 0 | K183: =SA34c!K103 -> 0
A184: Revenue Generating | C184: =SA34c!C111 -> 0 | D184: =SA34c!D111 -> 0 | E184: =SA34c!E111 -> 0 | F184: =SA34c!F111 -> 0 | G184: =SA34c!G111 -> 0 | H184: =SA34c!H111 -> 0 | I184: =SA34c!I111 -> 0 | J184: =SA34c!J111 -> 0 | K184: =SA34c!K111 -> 0
A185: Non-revenue Generating | C185: =SA34c!C114 -> 0 | D185: =SA34c!D114 -> 0 | E185: =SA34c!E114 -> 0 | F185: =SA34c!F114 -> 0 | G185: =SA34c!G114 -> 0 | H185: =SA34c!H114 -> 0 | I185: =SA34c!I114 -> 0 | J185: =SA34c!J114 -> 0 | K185: =SA34c!K114 -> 0
A186: Investment properties | C186: =SUM(C184:C185) -> 0 | D186: 0 | E186: 0 | F186: 0 | G186: 0 | H186: 0 | I186: 0 | J186: 0 | K186: 0
A187: Operational Buildings | C187: =SA34c!C119 -> 0 | D187: =SA34c!D119 -> 0 | E187: =SA34c!E119 -> 14844653.41 | F187: =SA34c!F119 -> 0 | G187: =SA34c!G119 -> 0 | H187: =SA34c!H119 -> 0 | I187: =SA34c!I119 -> 126387783.7 | J187: =SA34c!J119 -> 133301302.9 | K187: =SA34c!K119 -> 151739423.1
A188: Housing | C188: =SA34c!C131 -> 0 | D188: =SA34c!D131 -> 0 | E188: =SA34c!E131 -> 0 | F188: =SA34c!F131 -> 0 | G188: =SA34c!G131 -> 0 | H188: =SA34c!H131 -> 0 | I188: =SA34c!I131 -> 0 | J188: =SA34c!J131 -> 0 | K188: =SA34c!K131 -> 0
A189: Other Assets | C189: =SUM(C187:C188) -> 0 | D189: 0 | E189: 14844653.41 | F189: 0 | G189: 0 | H189: 0 | I189: 126387783.7 | J189: 133301302.9 | K189: 151739423.1
A190: Biological or Cultivated Assets | C190: =SA34c!C136 -> 0 | D190: =SA34c!D136 -> 0 | E190: =SA34c!E136 -> 0 | F190: =SA34c!F136 -> 0 | G190: =SA34c!G136 -> 0 | H190: =SA34c!H136 -> 0 | I190: =SA34c!I136 -> 0 | J190: =SA34c!J136 -> 0 | K190: =SA34c!K136 -> 0
A191: Servitudes | C191: =SA34c!C140 -> 0 | D191: =SA34c!D140 -> 0 | E191: =SA34c!E140 -> 0 | F191: =SA34c!F140 -> 0 | G191: =SA34c!G140 -> 0 | H191: =SA34c!H140 -> 0 | I191: =SA34c!I140 -> 0 | J191: =SA34c!J140 -> 0 | K191: =SA34c!K140 -> 0
A192: Licences and Rights | C192: =SA34c!C141 -> 0 | D192: =SA34c!D141 -> 0 | E192: =SA34c!E141 -> 0 | F192: =SA34c!F141 -> 0 | G192: =SA34c!G141 -> 0 | H192: =SA34c!H141 -> 0 | I192: =SA34c!I141 -> 0 | J192: =SA34c!J141 -> 0 | K192: =SA34c!K141 -> 0
A193: Intangible Assets | C193: =SUM(C191:C192) -> 0 | D193: 0 | E193: 0 | F193: 0 | G193: 0 | H193: 0 | I193: 0 | J193: 0 | K193: 0
A194: Computer Equipment | C194: =SA34c!C149 -> 0 | D194: =SA34c!D149 -> 0 | E194: =SA34c!E149 -> 0 | F194: =SA34c!F149 -> 0 | G194: =SA34c!G149 -> 0 | H194: =SA34c!H149 -> 0 | I194: =SA34c!I149 -> 0 | J194: =SA34c!J149 -> 0 | K194: =SA34c!K149 -> 0
A195: Furniture and Office Equipment | C195: =SA34c!C152 -> 0 | D195: =SA34c!D152 -> 0 | E195: =SA34c!E152 -> 0 | F195: =SA34c!F152 -> 0 | G195: =SA34c!G152 -> 0 | H195: =SA34c!H152 -> 0 | I195: =SA34c!I152 -> 0 | J195: =SA34c!J152 -> 0 | K195: =SA34c!K152 -> 0
A196: Machinery and Equipment | C196: =SA34c!C155 -> 0 | D196: =SA34c!D155 -> 0 | E196: =SA34c!E155 -> 8558840.23 | F196: =SA34c!F155 -> 0 | G196: =SA34c!G155 -> 0 | H196: =SA34c!H155 -> 0 | I196: =SA34c!I155 -> 120352350.9 | J196: =SA34c!J155 -> 125492188.3 | K196: =SA34c!K155 -> 132024354.9
A197: Transport Assets | C197: =SA34c!C158 -> 0 | D197: =SA34c!D158 -> 0 | E197: =SA34c!E158 -> 0 | F197: =SA34c!F158 -> 0 | G197: =SA34c!G158 -> 0 | H197: =SA34c!H158 -> 0 | I197: =SA34c!I158 -> 34379687.34 | J197: =SA34c!J158 -> 34223683.1 | K197: =SA34c!K158 -> 38059400.51
A198: Land | C198: =SA34c!C161 -> 0 | D198: =SA34c!D161 -> 0 | E198: =SA34c!E161 -> 0 | F198: =SA34c!F161 -> 0 | G198: =SA34c!G161 -> 0 | H198: =SA34c!H161 -> 0 | I198: =SA34c!I161 -> 0 | J198: =SA34c!J161 -> 0 | K198: =SA34c!K161 -> 0
A199: Zoo's, Marine and Non-biological Animals | C199: =SA34c!C164 -> 0 | D199: =SA34c!D164 -> 0 | E199: =SA34c!E164 -> 0 | F199: =SA34c!F164 -> 0 | G199: =SA34c!G164 -> 0 | H199: =SA34c!H164 -> 0 | I199: =SA34c!I164 -> 0 | J199: =SA34c!J164 -> 0 | K199: =SA34c!K164 -> 0
A201: TOTAL EXPENDITURE OTHER ITEMS | C201: =SUM(C168:C169) -> 641449615.7 | D201: 460955083 | E201: 359722843.5 | F201: 715745262.9 | G201: 715745262.9 | H201: 715745262.9 | I201: 749213838.1 | J201: 717919995.1 | K201: 639026361.8
A203: Renewal and upgrading of Existing Assets as % of total capex | C203: =IF(ISERROR((C37+C69)/C132),0,((C37+C69)/C132)) -> 0.8669792258 | D203: =IF(ISERROR((D37+D69)/D132),0,((D37+D69)/D132)) -> 0.6966569065 | E203: 0.9497718615 | F203: 0.2145839328 | G203: 0.9686690488 | H203: 0.9686690488 | I203: 0.6474383509 | J203: 0.8948736044 | K203: 0.8645557375
A204: Renewal and upgrading of Existing Assets as % of deprecn | C204: =IF(ISERROR((C37+C69)/C168),0,((C37+C69)/C168)) -> 1.09712051 | D204: =IF(ISERROR((D37+D69)/D168),0,((D37+D69)/D168)) -> 0.9271828246 | E204: 1.319194255 | F204: 0.2583733226 | G204: 1.500244594 | H204: 1.500244594 | I204: 1.085037595 | J204: 1.288314829 | K204: 1.511257493
A205: R&M as a % of PPE | C205: =IF(ISERROR(ROUND(C169/'A6-FinPos'!C19,3)),0,(ROUND(C169/'A6-FinPos'!C19,3))) -> 0.025 | D205: =IF(ISERROR(ROUND(D169/'A6-FinPos'!D19,3)),0,(ROUND(D169/'A6-FinPos'!D19,3))) -> 0 | E205: =IF(ISERROR(ROUND(E169/'A6-FinPos'!E19,3)),0,(ROUND(E169/'A6-FinPos'!E19,3))) -> 0.009 | F205: =IF(ISERROR(ROUND(F169/'A6-FinPos'!F19,3)),0,(ROUND(F169/'A6-FinPos'!F19,3))) -> 0.033 | G205: =IF(ISERROR(ROUND(G169/'A6-FinPos'!G19,3)),0,(ROUND(G169/'A6-FinPos'!G19,3))) -> 0.032 | H205: =IF(ISERROR(ROUND(H169/'A6-FinPos'!H19,3)),0,(ROUND(H169/'A6-FinPos'!H19,3))) -> 0.032 | I205: =IF(ISERROR(ROUND(I169/'A6-FinPos'!J19,3)),0,(ROUND(I169/'A6-FinPos'!J19,3))) -> 0.06 | J205: =IF(ISERROR(ROUND(J169/'A6-FinPos'!K19,3)),0,(ROUND(J169/'A6-FinPos'!K19,3))) -> 0.07 | K205: =IF(ISERROR(ROUND(K169/'A6-FinPos'!L19,3)),0,(ROUND(K169/'A6-FinPos'!L19,3))) -> 0.08
A206: Renewal and upgrading and R&M as a % of PPE | C206: =IF(ISERROR(ROUND((C37+C69+C169)/C165,2)),0,(ROUND((C37+C69+C169)/C165,2))) -> 0.09 | D206: =IF(ISERROR(ROUND((D37+D69+D169)/D165,2)),0,(ROUND((D37+D69+D169)/D165,2))) -> 0.05 | E206: 0.06 | F206: 0.04 | G206: 0.13 | H206: 0.13 | I206: 0.1 | J206: 0.11 | K206: 0.1
A208: =head27a -> References
A209: 1. Detail of new assets provided in Table SA34a
A210: 2. Detail of renewal of existing assets provided in Table SA34b
A211: 3. Detail of Repairs and Maintenance by Asset Class provided in Table SA34c
A212: 4. Must reconcile to total capital expenditure on Budgeted Capital Expenditure
A213: 5. Must reconcile to 'Budgeted Financial Position' (written down value)
A214: 6. Detail of upgrading of existing assets provided in Table SA34e
A215: 7. Detail of depreciation provided in Table SA34d
... 1 more rows

Sheet A10-SerDel
A1: =muni&" - "&Approve10 -> KZN225 Msunduzi - Table A10 Consolidated basic service delivery measurement
A2: =desc -> Description | B2: =head27 -> Ref | C2: =head1b -> 2017/18 | D2: =head1A -> 2018/19 | E2: =Head1 -> 2019/20 | F2: =Head2 -> Current Year 2020/21 | I2: =Head3 -> 2021/22 Medium Term Revenue & Expenditure Framework
C3: =Head5A -> Outcome | D3: =Head5A -> Outcome | E3: =Head5A -> Outcome | F3: =Head6 -> Original Budget | G3: =Head7 -> Adjusted Budget | H3: =Head8 -> Full Year Forecast | I3: =Head9 -> Budget Year 2021/22 | J3: =Head10 -> Budget Year +1 2022/23 | K3: =Head11 -> Budget Year +2 2023/24
A4: Household service targets | B4: 1
A5: Water:
A6: Piped water inside dwelling | C6: ='SA9'!E67 -> 83119.8 | D6: ='SA9'!F67 -> 84782.196 | E6: ='SA9'!G67 -> 84782.196 | F6: ='SA9'!H67 -> 90207.39672 | G6: ='SA9'!I67 -> 90207.39672 | H6: ='SA9'!J67 -> 90207.39672 | I6: ='SA9'!K67 -> 90207.39672 | J6: ='SA9'!L67 -> 90207.39672 | K6: ='SA9'!M67 -> 90207.39672
A7: Piped water inside yard (but not in dwelling) | C7: ='SA9'!E68 -> 65176.98 | D7: ='SA9'!F68 -> 67480.5196 | E7: ='SA9'!G68 -> 67480.5196 | F7: ='SA9'!H68 -> 69166.33259 | G7: ='SA9'!I68 -> 69166.33259 | H7: ='SA9'!J68 -> 69166.33259 | I7: ='SA9'!K68 -> 69166.33259 | J7: ='SA9'!L68 -> 69166.33259 | K7: ='SA9'!M68 -> 69166.33259
A8: Using public tap (at least min.service level) | B8: 2 | C8: ='SA9'!E69 -> 6523.92 | D8: ='SA9'!F69 -> 6654.3984 | E8: ='SA9'!G69 -> 6654.3984 | F8: ='SA9'!H69 -> 6923.236095 | G8: ='SA9'!I69 -> 6923.236095 | H8: ='SA9'!J69 -> 6923.236095 | I8: ='SA9'!K69 -> 6923.236095 | J8: ='SA9'!L69 -> 6923.236095 | K8: ='SA9'!M69 -> 6923.236095
A9: Other water supply (at least min.service level) | B9: 4 | C9: ='SA9'!E70 -> 3133.44 | D9: ='SA9'!F70 -> 3196.1088 | E9: ='SA9'!G70 -> 3196.1088 | F9: ='SA9'!H70 -> 3325.231596 | G9: ='SA9'!I70 -> 3325.231596 | H9: ='SA9'!J70 -> 3325.231596 | I9: ='SA9'!K70 -> 3325.231596 | J9: ='SA9'!L70 -> 3325.231596 | K9: ='SA9'!M70 -> 3325.231596
A10: Minimum Service Level and Above sub-total | C10: =SUM(C6:C9) -> 157954.14 | D10: =SUM(D6:D9) -> 162113.2228 | E10: 162113.2228 | F10: 169622.197 | G10: 169622.197 | H10: 169622.197 | I10: 169622.197 | J10: 169622.197 | K10: 169622.197
A11: Using public tap (< min.service level) | B11: 3 | C11: ='SA9'!E72 -> 6523.92 | D11: ='SA9'!F72 -> 6654.3984 | E11: ='SA9'!G72 -> 6654.3984 | F11: ='SA9'!H72 -> 6923.236095 | G11: ='SA9'!I72 -> 6923.236095 | H11: ='SA9'!J72 -> 6923.236095 | I11: ='SA9'!K72 -> 6923.236095 | J11: ='SA9'!L72 -> 6923.236095 | K11: ='SA9'!M72 -> 7293.629226
A12: Other water supply (< min.service level) | B12: =B9 -> 4 | C12: ='SA9'!E73 -> 2794.8 | D12: ='SA9'!F73 -> 1850.696 | E12: ='SA9'!G73 -> 1850.696 | F12: ='SA9'!H73 -> 965.8641184 | G12: ='SA9'!I73 -> 965.8641184 | H12: ='SA9'!J73 -> 965.8641184 | I12: ='SA9'!K73 -> 965.8641184 | J12: ='SA9'!L73 -> 965.8641184 | K12: ='SA9'!M73 -> 1017.537849
A13: No water supply | C13: ='SA9'!E74 -> 0 | D13: ='SA9'!F74 -> 0 | E13: ='SA9'!G74 -> 0 | F13: ='SA9'!H74 -> 0 | G13: ='SA9'!I74 -> 0 | H13: ='SA9'!J74 -> 0 | I13: ='SA9'!K74 -> 0 | J13: ='SA9'!L74 -> 0 | K13: ='SA9'!M74 -> 0
A14: Below Minimum Service Level sub-total | C14: =SUM(C11:C13) -> 9318.72 | D14: =SUM(D11:D13) -> 8505.0944 | E14: 8505.0944 | F14: 7889.100214 | G14: 7889.100214 | H14: 7889.100214 | I14: 7889.100214 | J14: 7889.100214 | K14: 8311.167075
A15: Total number of households | B15: 5 | C15: =C10+C14 -> 167272.86 | D15: =D10+D14 -> 170618.3172 | E15: 170618.3172 | F15: 177511.2972 | G15: 177511.2972 | H15: 177511.2972 | I15: 177511.2972 | J15: 177511.2972 | K15: 177933.3641
A16: Sanitation/sewerage:
A17: Flush toilet (connected to sewerage) | C17: ='SA9'!E78 -> 86851.98 | D17: ='SA9'!F78 -> 91589.0196 | E17: ='SA9'!G78 -> 91589.0196 | F17: ='SA9'!H78 -> 101168.016 | G17: ='SA9'!I78 -> 101168.016 | H17: ='SA9'!J78 -> 101168.016 | I17: ='SA9'!K78 -> 101168.016 | J17: ='SA9'!L78 -> 101168.016 | K17: ='SA9'!M78 -> 106580.5048
A18: Flush toilet (with septic tank) | C18: ='SA9'!E79 -> 8485.38 | D18: ='SA9'!F79 -> 8655.0876 | E18: ='SA9'!G79 -> 8655.0876 | F18: ='SA9'!H79 -> 9004.753139 | G18: ='SA9'!I79 -> 9004.753139 | H18: ='SA9'!J79 -> 9004.753139 | I18: ='SA9'!K79 -> 9004.753139 | J18: ='SA9'!L79 -> 9004.753139 | K18: ='SA9'!M79 -> 9486.507432
A19: Chemical toilet | C19: ='SA9'!E80 -> 7217.52 | D19: ='SA9'!F80 -> 7361.8704 | E19: ='SA9'!G80 -> 7361.8704 | F19: ='SA9'!H80 -> 7659.289964 | G19: ='SA9'!I80 -> 7659.289964 | H19: ='SA9'!J80 -> 7659.289964 | I19: ='SA9'!K80 -> 7659.289964 | J19: ='SA9'!L80 -> 7659.289964 | K19: ='SA9'!M80 -> 8069.061977
A20: Pit toilet (ventilated) | C20: ='SA9'!E81 -> 62615.54 | D20: ='SA9'!F81 -> 61827.8508 | E20: ='SA9'!G81 -> 61827.8508 | F20: ='SA9'!H81 -> 59325.69597 | G20: ='SA9'!I81 -> 59325.69597 | H20: ='SA9'!J81 -> 59325.69597 | I20: ='SA9'!K81 -> 59325.69597 | J20: ='SA9'!L81 -> 59325.69597 | K20: ='SA9'!M81 -> 62499.62071
A21: Other toilet provisions (> min.service level) | C21: ='SA9'!E82 -> 0 | D21: ='SA9'!F82 -> 0 | E21: ='SA9'!G82 -> 0 | F21: ='SA9'!H82 -> 0 | G21: ='SA9'!I82 -> 0 | H21: ='SA9'!J82 -> 0 | I21: ='SA9'!K82 -> 0 | J21: ='SA9'!L82 -> 0 | K21: ='SA9'!M82 -> 0
A22: =$A$10 -> Minimum Service Level and Above sub-total | C22: =SUM(C17:C21) -> 165170.42 | D22: =SUM(D17:D21) -> 169433.8284 | E22: 169433.8284 | F22: 177157.7551 | G22: 177157.7551 | H22: 177157.7551 | I22: 177157.7551 | J22: 177157.7551 | K22: 186635.695
A23: Bucket toilet | C23: ='SA9'!E84 -> 0 | D23: ='SA9'!F84 -> 0 | E23: ='SA9'!G84 -> 0 | F23: ='SA9'!H84 -> 0 | G23: ='SA9'!I84 -> 0 | H23: ='SA9'!J84 -> 0 | I23: ='SA9'!K84 -> 0 | J23: ='SA9'!L84 -> 0 | K23: ='SA9'!M84 -> 0
A24: Other toilet provisions (< min.service level) | C24: ='SA9'!E85 -> 2102.44 | D24: ='SA9'!F85 -> 1184.4888 | E24: ='SA9'!G85 -> 1184.4888 | F24: ='SA9'!H85 -> 353.5421475 | G24: ='SA9'!I85 -> 353.5421475 | H24: ='SA9'!J85 -> 353.5421475 | I24: ='SA9'!K85 -> 353.5421475 | J24: ='SA9'!L85 -> 353.5421475 | K24: ='SA9'!M85 -> 372.4566524
A25: No toilet provisions | C25: ='SA9'!E86 -> 0 | D25: ='SA9'!F86 -> 0 | E25: ='SA9'!G86 -> 0 | F25: ='SA9'!H86 -> 0 | G25: ='SA9'!I86 -> 0 | H25: ='SA9'!J86 -> 0 | I25: ='SA9'!K86 -> 0 | J25: ='SA9'!L86 -> 0 | K25: ='SA9'!M86 -> 0
A26: =$A$14 -> Below Minimum Service Level sub-total | C26: =SUM(C23:C25) -> 2102.44 | D26: =SUM(D23:D25) -> 1184.4888 | E26: 1184.4888 | F26: 353.5421475 | G26: 353.5421475 | H26: 353.5421475 | I26: 353.5421475 | J26: 353.5421475 | K26: 372.4566524
A27: =$A$15 -> Total number of households | B27: =$B$15 -> 5 | C27: =C22+C26 -> 167272.86 | D27: =D22+D26 -> 170618.3172 | E27: 170618.3172 | F27: 177511.2972 | G27: 177511.2972 | H27: 177511.2972 | I27: 177511.2972 | J27: 177511.2972 | K27: 187008.1516
A28: Energy:
A29: Electricity (at least min.service level) | C29: ='SA9'!E90 -> 130462.16 | D29: ='SA9'!F90 -> 135271.4032 | E29: ='SA9'!G90 -> 135271.4032 | F29: ='SA9'!H90 -> 145059.5679 | G29: ='SA9'!I90 -> 145059.5679 | H29: ='SA9'!J90 -> 145059.5679 | I29: ='SA9'!K90 -> 145059.5679 | J29: ='SA9'!L90 -> 145059.5679 | K29: ='SA9'!M90 -> 145059.5679
A30: Electricity - prepaid (min.service level) | C30: ='SA9'!E91 -> 26810.7 | D30: ='SA9'!F91 -> 27346.914 | E30: ='SA9'!G91 -> 27346.914 | F30: ='SA9'!H91 -> 28451.72933 | G30: ='SA9'!I91 -> 28451.72933 | H30: ='SA9'!J91 -> 28451.72933 | I30: ='SA9'!K91 -> 28451.72933 | J30: ='SA9'!L91 -> 28451.72933 | K30: ='SA9'!M91 -> 28451.72933
A31: =$A$10 -> Minimum Service Level and Above sub-total | C31: =SUM(C29:C30) -> 157272.86 | D31: =SUM(D29:D30) -> 162618.3172 | E31: 162618.3172 | F31: 173511.2972 | G31: 173511.2972 | H31: 173511.2972 | I31: 173511.2972 | J31: 173511.2972 | K31: 173511.2972
A32: Electricity (< min.service level) | C32: ='SA9'!E93 -> 0 | D32: ='SA9'!F93 -> 0 | E32: ='SA9'!G93 -> 0 | F32: ='SA9'!H93 -> 0 | G32: ='SA9'!I93 -> 0 | H32: ='SA9'!J93 -> 0 | I32: ='SA9'!K93 -> 0 | J32: ='SA9'!L93 -> 0 | K32: ='SA9'!M93 -> 0
A33: Electricity - prepaid (< min. service level) | C33: ='SA9'!E94 -> 0 | D33: ='SA9'!F94 -> 0 | E33: ='SA9'!G94 -> 0 | F33: ='SA9'!H94 -> 0 | G33: ='SA9'!I94 -> 0 | H33: ='SA9'!J94 -> 0 | I33: ='SA9'!K94 -> 0 | J33: ='SA9'!L94 -> 0 | K33: ='SA9'!M94 -> 0
A34: Other energy sources | C34: ='SA9'!E95 -> 10000 | D34: ='SA9'!F95 -> 8000 | E34: ='SA9'!G95 -> 8000 | F34: ='SA9'!H95 -> 4000 | G34: ='SA9'!I95 -> 4000 | H34: ='SA9'!J95 -> 4000 | I34: ='SA9'!K95 -> 4000 | J34: ='SA9'!L95 -> 4000 | K34: ='SA9'!M95 -> 4000
A35: =$A$14 -> Below Minimum Service Level sub-total | C35: =SUM(C32:C34) -> 10000 | D35: =SUM(D32:D34) -> 8000 | E35: 8000 | F35: 4000 | G35: 4000 | H35: 4000 | I35: 4000 | J35: 4000 | K35: 4000
A36: =$A$15 -> Total number of households | B36: =$B$15 -> 5 | C36: =C31+C35 -> 167272.86 | D36: =D31+D35 -> 170618.3172 | E36: 170618.3172 | F36: 177511.2972 | G36: 177511.2972 | H36: 177511.2972 | I36: 177511.2972 | J36: 177511.2972 | K36: 177511.2972
A37: Refuse:
A38: Removed at least once a week | C38: ='SA9'!E99 -> 122400 | D38: ='SA9'!F99 -> 129848 | E38: ='SA9'!G99 -> 129848 | F38: ='SA9'!H99 -> 148558.8592 | G38: ='SA9'!I99 -> 148558.8592 | H38: ='SA9'!J99 -> 148558.8592 | I38: ='SA9'!K99 -> 148558.8592 | J38: ='SA9'!L99 -> 148558.8592 | K38: ='SA9'!M99 -> 148558.8592
A39: =$A$10 -> Minimum Service Level and Above sub-total | C39: =SUM(C38) -> 122400 | D39: =SUM(D38) -> 129848 | E39: 129848 | F39: 148558.8592 | G39: 148558.8592 | H39: 148558.8592 | I39: 148558.8592 | J39: 148558.8592 | K39: 148558.8592
A40: Removed less frequently than once a week | C40: ='SA9'!E101 -> 44872.86 | D40: ='SA9'!F101 -> 40770.3172 | E40: ='SA9'!G101 -> 40770.3172 | F40: ='SA9'!H101 -> 28952.43801 | G40: ='SA9'!I101 -> 28952.43801 | H40: ='SA9'!J101 -> 28952.43801 | I40: ='SA9'!K101 -> 28952.43801 | J40: ='SA9'!L101 -> 28952.43801 | K40: ='SA9'!M101 -> 28952.43801
A41: Using communal refuse dump | C41: ='SA9'!E102 -> 0 | D41: ='SA9'!F102 -> 0 | E41: ='SA9'!G102 -> 0 | F41: ='SA9'!H102 -> 0 | G41: ='SA9'!I102 -> 0 | H41: ='SA9'!J102 -> 0 | I41: ='SA9'!K102 -> 0 | J41: ='SA9'!L102 -> 0 | K41: ='SA9'!M102 -> 0
A42: Using own refuse dump | C42: ='SA9'!E103 -> 0 | D42: ='SA9'!F103 -> 0 | E42: ='SA9'!G103 -> 0 | F42: ='SA9'!H103 -> 0 | G42: ='SA9'!I103 -> 0 | H42: ='SA9'!J103 -> 0 | I42: ='SA9'!K103 -> 0 | J42: ='SA9'!L103 -> 0 | K42: ='SA9'!M103 -> 0
A43: Other rubbish disposal | C43: ='SA9'!E104 -> 0 | D43: ='SA9'!F104 -> 0 | E43: ='SA9'!G104 -> 0 | F43: ='SA9'!H104 -> 0 | G43: ='SA9'!I104 -> 0 | H43: ='SA9'!J104 -> 0 | I43: ='SA9'!K104 -> 0 | J43: ='SA9'!L104 -> 0 | K43: ='SA9'!M104 -> 0
A44: No rubbish disposal | C44: ='SA9'!E105 -> 0 | D44: ='SA9'!F105 -> 0 | E44: ='SA9'!G105 -> 0 | F44: ='SA9'!H105 -> 0 | G44: ='SA9'!I105 -> 0 | H44: ='SA9'!J105 -> 0 | I44: ='SA9'!K105 -> 0 | J44: ='SA9'!L105 -> 0 | K44: ='SA9'!M105 -> 0
A45: =$A$14 -> Below Minimum Service Level sub-total | C45: =SUM(C40:C44) -> 44872.86 | D45: 40770.3172 | E45: 40770.3172 | F45: 28952.43801 | G45: 28952.43801 | H45: 28952.43801 | I45: 28952.43801 | J45: 28952.43801 | K45: 28952.43801
A46: =$A$15 -> Total number of households | B46: =$B$15 -> 5 | C46: =C39+C45 -> 167272.86 | D46: =D39+D45 -> 170618.3172 | E46: 170618.3172 | F46: 177511.2972 | G46: 177511.2972 | H46: 177511.2972 | I46: 177511.2972 | J46: 177511.2972 | K46: 177511.2972
A48: Households receiving Free Basic Service | B48: 7
A49: Water (6 kilolitres per household per month) | C49: ='SA9'!E263 -> 0 | D49: ='SA9'!F263 -> 0 | E49: ='SA9'!G263 -> 0 | F49: ='SA9'!H263 -> 48550.3679 | G49: ='SA9'!I263 -> 48550.3679 | H49: ='SA9'!J263 -> 48550.3679 | I49: ='SA9'!K263 -> 48550.3679 | J49: ='SA9'!L263 -> 48550.3679 | K49: ='SA9'!M263 -> 48550.3679
A50: Sanitation (free minimum level service) | C50: ='SA9'!E275 -> 0 | D50: ='SA9'!F275 -> 0 | E50: ='SA9'!G275 -> 0 | F50: ='SA9'!H275 -> 48550.3679 | G50: ='SA9'!I275 -> 48550.3679 | H50: ='SA9'!J275 -> 48550.3679 | I50: ='SA9'!K275 -> 48550.3679 | J50: ='SA9'!L275 -> 48550.3679 | K50: ='SA9'!M275 -> 48550.3679
A51: Electricity/other energy (50kwh per household per month) | C51: ='SA9'!E251 -> 0 | D51: ='SA9'!F251 -> 0 | E51: ='SA9'!G251 -> 0 | F51: ='SA9'!H251 -> 3668.32928 | G51: ='SA9'!I251 -> 3668.32928 | H51: ='SA9'!J251 -> 3668.32928 | I51: ='SA9'!K251 -> 3668.32928 | J51: ='SA9'!L251 -> 3668.32928 | K51: ='SA9'!M251 -> 3668.32928
